Workbook

Sheet 產業月營收
A1: ="上市櫃"&IF('RUN1'!I2="",'RUN1'!J3,'RUN1'!I3)&"年度合併營收報表" -> 上市櫃電子通路業年度合併營收報表
A7: 年度\月份 | B7: Jan | C7: Feb | D7: Mar | E7: Apr | F7: May | G7: Jun | H7: Jul | I7: Aug | J7: Sep | K7: Oct | L7: Nov | M7: Dec
A8: ='RUN2'!Q2 -> 2020 | B8: ='RUN2'!Q1 -> 134292195 | C8: ='RUN2'!R1 -> 119604996 | D8: ='RUN2'!S1 -> 176660182 | E8: ='RUN2'!T1 -> 162479256 | F8: ='RUN2'!U1 -> 145897413 | G8: ='RUN2'!V1 -> 155978671 | H8: ='RUN2'!W1 -> 178059887 | I8: ='RUN2'!X1 -> 170820593 | J8: ='RUN2'!Y1 -> 194698158 | K8: ='RUN2'!Z1 -> 174248467 | L8: ='RUN2'!AA1 -> 192614378 | M8: ='RUN2'!AB1 -> 192861811
A9: ='RUN2'!AC2 -> 2021 | B9: ='RUN2'!AC1 -> 200966121 | C9: ='RUN2'!AD1 -> 150852084 | D9: ='RUN2'!AE1 -> 207167858 | E9: ='RUN2'!AF1 -> 201905363 | F9: ='RUN2'!AG1 -> 200572050 | G9: ='RUN2'!AH1 -> 206058255 | H9: ='RUN2'!AI1 -> 198433127 | I9: ='RUN2'!AJ1 -> 218245937 | J9: ='RUN2'!AK1 -> 229392775 | K9: ='RUN2'!AL1 -> 195327728 | L9: ='RUN2'!AM1 -> 236452472 | M9: ='RUN2'!AN1 -> 241100012
A10: ='RUN2'!AO2 -> 2022 | B10: ='RUN2'!AO1 -> 234145373 | C10: ='RUN2'!AP1 -> 181882229 | D10: ='RUN2'!AQ1 -> 249408675 | E10: ='RUN2'!AR1 -> 207227294 | F10: ='RUN2'!AS1 -> 213971072 | G10: ='RUN2'!AT1 -> 224207431 | H10: ='RUN2'!AU1 -> 201821900 | I10: ='RUN2'!AV1 -> 216033214 | J10: ='RUN2'!AW1 -> 244912793 | K10: ='RUN2'!AX1 -> 223846866 | L10: ='RUN2'!AY1 -> 199371253 | M10: ='RUN2'!AZ1 -> 218108758
A11: ='RUN2'!BA2 -> 2023 | B11: ='RUN2'!BA1 -> 174367967 | C11: =IF(ISERROR('RUN2'!BB1)=TRUE,"",'RUN2'!BB1) -> 155912868 | D11: =IF(ISERROR('RUN2'!BC1)=TRUE,"",'RUN2'!BC1) -> 192226798 | E11: =IF(ISERROR('RUN2'!BD1)=TRUE,"",'RUN2'!BD1) -> 177278332 | F11: =IF(ISERROR('RUN2'!BE1)=TRUE,"",'RUN2'!BE1) -> 182697906 | G11: =IF(ISERROR('RUN2'!BF1)=TRUE,"",'RUN2'!BF1) -> 194901507 | H11: =IF(ISERROR('RUN2'!BG1)=TRUE,"",'RUN2'!BG1) -> 202726631 | I11: =IF(ISERROR('RUN2'!BH1)=TRUE,"",'RUN2'!BH1) -> 215489718 | J11: =IF(ISERROR('RUN2'!BI1)=TRUE,"",'RUN2'!BI1) -> 109891922 | K11: =IF(ISERROR('RUN2'!BJ1)=TRUE,"",'RUN2'!BJ1) -> 0 | L11: =IF(ISERROR('RUN2'!BK1)=TRUE,"",'RUN2'!BK1) -> 0 | M11: =IF(ISERROR('RUN2'!BL1)=TRUE,"",'RUN2'!BL1) -> 0
C12: =MIN($B$8:$M$11)-1000 -> -1000
A13: 20 | B13: =IF(A13=1,"",INDEX('RUN1'!E2:E31,A13)) -> M2329 電子通路業
A14: 1 | B14: =IF(A14=1,"",INDEX('RUN1'!F2:F189,A14)) -> 
I16: =YEAR('RUN2'!BO1)&"年"&MONTH('RUN2'!BO1)&"月合併營收前20大公司" -> 2023年9月合併營收前20大公司
I20: 公司代碼 | J20: 公司簡稱 | K20: =TEXT('RUN2'!BO1,"YYYY/MM月營收") -> 2023/09月營收 | L20: MOM% | M20: YoY%
I21: =IFERROR(LEFT(VLOOKUP($N21,'RUN2'!$A:$BL,2,0),FIND(" ",VLOOKUP($N21,'RUN2'!$A:$BL,2,0))-1),"") -> 3036 | J21: =IFERROR(MID(VLOOKUP($N21,'RUN2'!$A:$BL,2,0),FIND(" ",VLOOKUP($N21,'RUN2'!$A:$BL,2,0))+1,15),"") -> 文曄 | K21: =VLOOKUP($I21,'RUN2'!$BN:$BR,3,0) -> 62892944 | L21: =IF(I21="","",VLOOKUP($I21,'RUN2'!$BN:$BR,4,0)) -> 24.86 | M21: =IF(I21="","",VLOOKUP($I21,'RUN2'!$BN:$BR,5,0)) -> -1.29 | N21: 1
I22: =IFERROR(LEFT(VLOOKUP($N22,'RUN2'!$A:$BL,2,0),FIND(" ",VLOOKUP($N22,'RUN2'!$A:$BL,2,0))-1),"") -> 8112 | J22: =IFERROR(MID(VLOOKUP($N22,'RUN2'!$A:$BL,2,0),FIND(" ",VLOOKUP($N22,'RUN2'!$A:$BL,2,0))+1,15),"") -> 至上 | K22: =VLOOKUP($I22,'RUN2'!$BN:$BR,3,0) -> 14313764 | L22: =IF(I22="","",VLOOKUP($I22,'RUN2'!$BN:$BR,4,0)) -> -2.22 | M22: =IF(I22="","",VLOOKUP($I22,'RUN2'!$BN:$BR,5,0)) -> 13.98 | N22: 2
I23: =IFERROR(LEFT(VLOOKUP($N23,'RUN2'!$A:$BL,2,0),FIND(" ",VLOOKUP($N23,'RUN2'!$A:$BL,2,0))-1),"") -> 3033 | J23: =IFERROR(MID(VLOOKUP($N23,'RUN2'!$A:$BL,2,0),FIND(" ",VLOOKUP($N23,'RUN2'!$A:$BL,2,0))+1,15),"") -> 威健 | K23: =VLOOKUP($I23,'RUN2'!$BN:$BR,3,0) -> 6832430 | L23: =IF(I23="","",VLOOKUP($I23,'RUN2'!$BN:$BR,4,0)) -> 15.42 | M23: =IF(I23="","",VLOOKUP($I23,'RUN2'!$BN:$BR,5,0)) -> -0.4 | N23: 3
I24: =IFERROR(LEFT(VLOOKUP($N24,'RUN2'!$A:$BL,2,0),FIND(" ",VLOOKUP($N24,'RUN2'!$A:$BL,2,0))-1),"") -> 3010 | J24: =IFERROR(MID(VLOOKUP($N24,'RUN2'!$A:$BL,2,0),FIND(" ",VLOOKUP($N24,'RUN2'!$A:$BL,2,0))+1,15),"") -> 華立 | K24: =VLOOKUP($I24,'RUN2'!$BN:$BR,3,0) -> 6646333 | L24: =IF(I24="","",VLOOKUP($I24,'RUN2'!$BN:$BR,4,0)) -> 1.97 | M24: =IF(I24="","",VLOOKUP($I24,'RUN2'!$BN:$BR,5,0)) -> 6.45 | N24: 4
I25: =IFERROR(LEFT(VLOOKUP($N25,'RUN2'!$A:$BL,2,0),FIND(" ",VLOOKUP($N25,'RUN2'!$A:$BL,2,0))-1),"") -> 5434 | J25: =IFERROR(MID(VLOOKUP($N25,'RUN2'!$A:$BL,2,0),FIND(" ",VLOOKUP($N25,'RUN2'!$A:$BL,2,0))+1,15),"") -> 崇越 | K25: =VLOOKUP($I25,'RUN2'!$BN:$BR,3,0) -> 4210501 | L25: =IF(I25="","",VLOOKUP($I25,'RUN2'!$BN:$BR,4,0)) -> 1.38 | M25: =IF(I25="","",VLOOKUP($I25,'RUN2'!$BN:$BR,5,0)) -> -7.23 | N25: 5
I26: =IFERROR(LEFT(VLOOKUP($N26,'RUN2'!$A:$BL,2,0),FIND(" ",VLOOKUP($N26,'RUN2'!$A:$BL,2,0))-1),"") -> 6189 | J26: =IFERROR(MID(VLOOKUP($N26,'RUN2'!$A:$BL,2,0),FIND(" ",VLOOKUP($N26,'RUN2'!$A:$BL,2,0))+1,15),"") -> 豐藝 | K26: =VLOOKUP($I26,'RUN2'!$BN:$BR,3,0) -> 3027372 | L26: =IF(I26="","",VLOOKUP($I26,'RUN2'!$BN:$BR,4,0)) -> 2.12 | M26: =IF(I26="","",VLOOKUP($I26,'RUN2'!$BN:$BR,5,0)) -> 37.86 | N26: 6
I27: =IFERROR(LEFT(VLOOKUP($N27,'RUN2'!$A:$BL,2,0),FIND(" ",VLOOKUP($N27,'RUN2'!$A:$BL,2,0))-1),"") -> 8096 | J27: =IFERROR(MID(VLOOKUP($N27,'RUN2'!$A:$BL,2,0),FIND(" ",VLOOKUP($N27,'RUN2'!$A:$BL,2,0))+1,15),"") -> 擎亞 | K27: =VLOOKUP($I27,'RUN2'!$BN:$BR,3,0) -> 2373318 | L27: =IF(I27="","",VLOOKUP($I27,'RUN2'!$BN:$BR,4,0)) -> 41.61 | M27: =IF(I27="","",VLOOKUP($I27,'RUN2'!$BN:$BR,5,0)) -> 34.43 | N27: 7
I28: =IFERROR(LEFT(VLOOKUP($N28,'RUN2'!$A:$BL,2,0),FIND(" ",VLOOKUP($N28,'RUN2'!$A:$BL,2,0))-1),"") -> 6776 | J28: =IFERROR(MID(VLOOKUP($N28,'RUN2'!$A:$BL,2,0),FIND(" ",VLOOKUP($N28,'RUN2'!$A:$BL,2,0))+1,15),"") -> 展碁國際 | K28: =VLOOKUP($I28,'RUN2'!$BN:$BR,3,0) -> 1843189 | L28: =IF(I28="","",VLOOKUP($I28,'RUN2'!$BN:$BR,4,0)) -> -3.31 | M28: =IF(I28="","",VLOOKUP($I28,'RUN2'!$BN:$BR,5,0)) -> -1 | N28: 8
I29: =IFERROR(LEFT(VLOOKUP($N29,'RUN2'!$A:$BL,2,0),FIND(" ",VLOOKUP($N29,'RUN2'!$A:$BL,2,0))-1),"") -> 2430 | J29: =IFERROR(MID(VLOOKUP($N29,'RUN2'!$A:$BL,2,0),FIND(" ",VLOOKUP($N29,'RUN2'!$A:$BL,2,0))+1,15),"") -> 燦坤 | K29: =VLOOKUP($I29,'RUN2'!$BN:$BR,3,0) -> 1630497 | L29: =IF(I29="","",VLOOKUP($I29,'RUN2'!$BN:$BR,4,0)) -> -0.4 | M29: =IF(I29="","",VLOOKUP($I29,'RUN2'!$BN:$BR,5,0)) -> -5.73 | N29: 9
I30: =IFERROR(LEFT(VLOOKUP($N30,'RUN2'!$A:$BL,2,0),FIND(" ",VLOOKUP($N30,'RUN2'!$A:$BL,2,0))-1),"") -> 3312 | J30: =IFERROR(MID(VLOOKUP($N30,'RUN2'!$A:$BL,2,0),FIND(" ",VLOOKUP($N30,'RUN2'!$A:$BL,2,0))+1,15),"") -> 弘憶股 | K30: =VLOOKUP($I30,'RUN2'!$BN:$BR,3,0) -> 1508579 | L30: =IF(I30="","",VLOOKUP($I30,'RUN2'!$BN:$BR,4,0)) -> 10.99 | M30: =IF(I30="","",VLOOKUP($I30,'RUN2'!$BN:$BR,5,0)) -> -11.15 | N30: 10
I31: =IFERROR(LEFT(VLOOKUP($N31,'RUN2'!$A:$BL,2,0),FIND(" ",VLOOKUP($N31,'RUN2'!$A:$BL,2,0))-1),"") -> 6281 | J31: =IFERROR(MID(VLOOKUP($N31,'RUN2'!$A:$BL,2,0),FIND(" ",VLOOKUP($N31,'RUN2'!$A:$BL,2,0))+1,15),"") -> 全國電 | K31: =VLOOKUP($I31,'RUN2'!$BN:$BR,3,0) -> 1504462 | L31: =IF(I31="","",VLOOKUP($I31,'RUN2'!$BN:$BR,4,0)) -> -17.35 | M31: =IF(I31="","",VLOOKUP($I31,'RUN2'!$BN:$BR,5,0)) -> -4.47 | N31: 11
I32: =IFERROR(LEFT(VLOOKUP($N32,'RUN2'!$A:$BL,2,0),FIND(" ",VLOOKUP($N32,'RUN2'!$A:$BL,2,0))-1),"") -> 8070 | J32: =IFERROR(MID(VLOOKUP($N32,'RUN2'!$A:$BL,2,0),FIND(" ",VLOOKUP($N32,'RUN2'!$A:$BL,2,0))+1,15),"") -> 長華* | K32: =VLOOKUP($I32,'RUN2'!$BN:$BR,3,0) -> 1249818 | L32: =IF(I32="","",VLOOKUP($I32,'RUN2'!$BN:$BR,4,0)) -> -9.07 | M32: =IF(I32="","",VLOOKUP($I32,'RUN2'!$BN:$BR,5,0)) -> -29.22 | N32: 12
I33: =IFERROR(LEFT(VLOOKUP($N33,'RUN2'!$A:$BL,2,0),FIND(" ",VLOOKUP($N33,'RUN2'!$A:$BL,2,0))-1),"") -> 6118 | J33: =IFERROR(MID(VLOOKUP($N33,'RUN2'!$A:$BL,2,0),FIND(" ",VLOOKUP($N33,'RUN2'!$A:$BL,2,0))+1,15),"") -> 建達 | K33: =VLOOKUP($I33,'RUN2'!$BN:$BR,3,0) -> 716064 | L33: =IF(I33="","",VLOOKUP($I33,'RUN2'!$BN:$BR,4,0)) -> -10.44 | M33: =IF(I33="","",VLOOKUP($I33,'RUN2'!$BN:$BR,5,0)) -> -8.1 | N33: 13
I34: =IFERROR(LEFT(VLOOKUP($N34,'RUN2'!$A:$BL,2,0),FIND(" ",VLOOKUP($N34,'RUN2'!$A:$BL,2,0))-1),"") -> 3360 | J34: =IFERROR(MID(VLOOKUP($N34,'RUN2'!$A:$BL,2,0),FIND(" ",VLOOKUP($N34,'RUN2'!$A:$BL,2,0))+1,15),"") -> 尚立 | K34: =VLOOKUP($I34,'RUN2'!$BN:$BR,3,0) -> 388947 | L34: =IF(I34="","",VLOOKUP($I34,'RUN2'!$BN:$BR,4,0)) -> 9.39 | M34: =IF(I34="","",VLOOKUP($I34,'RUN2'!$BN:$BR,5,0)) -> -60.39 | N34: 14
I35: =IFERROR(LEFT(VLOOKUP($N35,'RUN2'!$A:$BL,2,0),FIND(" ",VLOOKUP($N35,'RUN2'!$A:$BL,2,0))-1),"") -> 6270 | J35: =IFERROR(MID(VLOOKUP($N35,'RUN2'!$A:$BL,2,0),FIND(" ",VLOOKUP($N35,'RUN2'!$A:$BL,2,0))+1,15),"") -> 倍微 | K35: =VLOOKUP($I35,'RUN2'!$BN:$BR,3,0) -> 255938 | L35: =IF(I35="","",VLOOKUP($I35,'RUN2'!$BN:$BR,4,0)) -> -2.1 | M35: =IF(I35="","",VLOOKUP($I35,'RUN2'!$BN:$BR,5,0)) -> -44.38 | N35: 15
I36: =IFERROR(LEFT(VLOOKUP($N36,'RUN2'!$A:$BL,2,0),FIND(" ",VLOOKUP($N36,'RUN2'!$A:$BL,2,0))-1),"") -> 3224 | J36: =IFERROR(MID(VLOOKUP($N36,'RUN2'!$A:$BL,2,0),FIND(" ",VLOOKUP($N36,'RUN2'!$A:$BL,2,0))+1,15),"") -> 三顧 | K36: =VLOOKUP($I36,'RUN2'!$BN:$BR,3,0) -> 118531 | L36: =IF(I36="","",VLOOKUP($I36,'RUN2'!$BN:$BR,4,0)) -> 10.88 | M36: =IF(I36="","",VLOOKUP($I36,'RUN2'!$BN:$BR,5,0)) -> -22.34 | N36: 16
I37: =IFERROR(LEFT(VLOOKUP($N37,'RUN2'!$A:$BL,2,0),FIND(" ",VLOOKUP($N37,'RUN2'!$A:$BL,2,0))-1),"") -> 6113 | J37: =IFERROR(MID(VLOOKUP($N37,'RUN2'!$A:$BL,2,0),FIND(" ",VLOOKUP($N37,'RUN2'!$A:$BL,2,0))+1,15),"") -> 亞矽 | K37: =VLOOKUP($I37,'RUN2'!$BN:$BR,3,0) -> 108436 | L37: =IF(I37="","",VLOOKUP($I37,'RUN2'!$BN:$BR,4,0)) -> 12.95 | M37: =IF(I37="","",VLOOKUP($I37,'RUN2'!$BN:$BR,5,0)) -> -20.82 | N37: 17
I38: =IFERROR(LEFT(VLOOKUP($N38,'RUN2'!$A:$BL,2,0),FIND(" ",VLOOKUP($N38,'RUN2'!$A:$BL,2,0))-1),"") -> 3444 | J38: =IFERROR(MID(VLOOKUP($N38,'RUN2'!$A:$BL,2,0),FIND(" ",VLOOKUP($N38,'RUN2'!$A:$BL,2,0))+1,15),"") -> 利機 | K38: =VLOOKUP($I38,'RUN2'!$BN:$BR,3,0) -> 80933 | L38: =IF(I38="","",VLOOKUP($I38,'RUN2'!$BN:$BR,4,0)) -> -6.79 | M38: =IF(I38="","",VLOOKUP($I38,'RUN2'!$BN:$BR,5,0)) -> 6.95 | N38: 18
I39: =IFERROR(LEFT(VLOOKUP($N39,'RUN2'!$A:$BL,2,0),FIND(" ",VLOOKUP($N39,'RUN2'!$A:$BL,2,0))-1),"") -> 8068 | J39: =IFERROR(MID(VLOOKUP($N39,'RUN2'!$A:$BL,2,0),FIND(" ",VLOOKUP($N39,'RUN2'!$A:$BL,2,0))+1,15),"") -> 全達 | K39: =VLOOKUP($I39,'RUN2'!$BN:$BR,3,0) -> 69542 | L39: =IF(I39="","",VLOOKUP($I39,'RUN2'!$BN:$BR,4,0)) -> 10.92 | M39: =IF(I39="","",VLOOKUP($I39,'RUN2'!$BN:$BR,5,0)) -> -46.09 | N39: 19
I40: =IFERROR(LEFT(VLOOKUP($N40,'RUN2'!$A:$BL,2,0),FIND(" ",VLOOKUP($N40,'RUN2'!$A:$BL,2,0))-1),"") -> 8084 | J40: =IFERROR(MID(VLOOKUP($N40,'RUN2'!$A:$BL,2,0),FIND(" ",VLOOKUP($N40,'RUN2'!$A:$BL,2,0))+1,15),"") -> 巨虹 | K40: =VLOOKUP($I40,'RUN2'!$BN:$BR,3,0) -> 65866 | L40: =IF(I40="","",VLOOKUP($I40,'RUN2'!$BN:$BR,4,0)) -> 13.69 | M40: =IF(I40="","",VLOOKUP($I40,'RUN2'!$BN:$BR,5,0)) -> -32.09 | N40: 20
I42: 產業評析

Sheet RUN1
A1: 公司簡稱 | B1: TSE新產業名 | C1: TEJ子產業名 | E1: TSE新產業名 | F1: TEJ子產業名 | H1: 公司簡稱 | I1: TSE新產業名 | J1: TEJ子產業名 | M1: 單月營收(千元) | N1: 單月營收(千元) | O1: 單月營收(千元) | P1: 單月營收(千元) | Q1: 單月營收(千元) | R1: 單月營收(千元) | S1: 單月營收(千元) | T1: 單月營收(千元) | U1: 單月營收(千元) | V1: 單月營收(千元) | W1: 單月營收(千元) | X1: 單月營收(千元) | AA1: 單月營收(千元) | AB1: 單月營收(千元) | AC1: 單月營收(千元) | AD1: 單月營收(千元) | AE1: 單月營收(千元) | AF1: 單月營收(千元) | AG1: 單月營收(千元) | AH1: 單月營收(千元) | AI1: 單月營收(千元) | AJ1: 單月營收(千元) | AK1: 單月營收(千元) | AL1: 單月營收(千元) | AO1: 單月營收(千元) | AP1: 單月營收(千元) | AQ1: 單月營收(千元) | AR1: 單月營收(千元) | AS1: 單月營收(千元) | AT1: 單月營收(千元) | AU1: 單月營收(千元) | AV1: 單月營收(千元) | AW1: 單月營收(千元) | AX1: 單月營收(千元) | AY1: 單月營收(千元) | AZ1: 單月營收(千元) | BC1: 單月營收(千元) | BD1: 單月營收(千元) | BE1: 單月營收(千元) | BF1: 單月營收(千元) | BG1: 單月營收(千元) | BH1: 單月營收(千元) | BI1: 單月營收(千元) | BJ1: 單月營收(千元) | BK1: 單月營收(千元) | BQ1: 去年單月營收(千元) | BR1: 去年單月營收(千元) | BS1: 去年單月營收(千元) | BT1: 去年單月營收(千元) | BU1: 去年單月營收(千元) | BV1: 去年單月營收(千元) | BW1: 去年單月營收(千元) | BX1: 去年單月營收(千元) | BY1: 去年單月營收(千元) | BZ1: 去年單月營收(千元) | CA1: 去年單月營收(千元) | CB1: 去年單月營收(千元)
A2: 1101 台泥 | B2: M1100 水泥工業 | C2: M11A 水泥製造 | E2: ~~~TSE 產業分類~~~ | F2: ~~~TEJ 子產業~~~ | I2: =IF(產業月營收!B13="","",產業月營收!B13) -> M2329 電子通路業 | J2: =IF(產業月營收!B14="","",產業月營收!B14) ->  | L2: 公司 | M2: 2020-01-31 | N2: 2020-02-27 | O2: 2020-03-31 | P2: 2020-04-30 | Q2: 2020-05-29 | R2: 2020-06-30 | S2: 2020-07-31 | T2: 2020-08-31 | U2: 2020-09-30 | V2: 2020-10-30 | W2: 2020-11-30 | X2: 2020-12-31 | Z2: 公司 | AA2: 2021-01-29 | AB2: 2021-02-26 | AC2: 2021-03-31 | AD2: 2021-04-29 | AE2: 2021-05-31 | AF2: 2021-06-30 | AG2: 2021-07-30 | AH2: 2021-08-31 | AI2: 2021-09-30 | AJ2: 2021-10-29 | AK2: 2021-11-30 | AL2: 2021-12-30 | AN2: 公司 | AO2: 2022-01-26 | AP2: 2022-02-25 | AQ2: 2022-03-31 | AR2: 2022-04-29 | AS2: 2022-05-31 | AT2: 2022-06-30 | AU2: 2022-07-29 | AV2: 2022-08-31 | AW2: 2022-09-30 | AX2: 2022-10-31 | AY2: 2022-11-30 | AZ2: 2022-12-30 | BB2: 公司 | BC2: 2023-01-31 | BD2: 2023-02-24 | BE2: 2023-03-31 | BF2: 2023-04-28 | BG2: 2023-05-31 | BH2: 2023-06-30 | BI2: 2023-07-31 | BJ2: 2023-08-31 | BK2: 2023-09-28 | BP2: 公司 | BQ2: 2020-01-31 | BR2: 2020-02-27 | BS2: 2020-03-31 | BT2: 2020-04-30 | BU2: 2020-05-29 | BV2: 2020-06-30 | BW2: 2020-07-31 | BX2: 2020-08-31 | BY2: 2020-09-30 | BZ2: 2020-10-30 | CA2: 2020-11-30 | CB2: 2020-12-31
A3: 1102 亞泥 | B3: M1100 水泥工業 | C3: M11A 水泥製造 | E3: M1100 水泥工業 | F3: M11A 水泥製造 | I3: =IF(I2="","",MID(I2,FIND(" ",I2)+1,10)) -> 電子通路業 | J3: =IF(J2="","",MID(J2,FIND(" ",J2)+1,10)&"業") ->  | L3: 1101 台泥 | M3: 7502141 | N3: 5000692 | O3: 9473250 | P3: 10216799 | Q3: 10285516 | R3: 9961312 | S3: 10178622 | T3: 9885013 | U3: 9745147 | V3: 10293900 | W3: 10889658 | X3: 10933035 | Z3: 1101 台泥 | AA3: 8596261 | AB3: 4536849 | AC3: 9779716 | AD3: 9672128 | AE3: 9832764 | AF3: 8480821 | AG3: 8319971 | AH3: 8964476 | AI3: 9597804 | AJ3: 9565047 | AK3: 9752687 | AL3: 10821264 | AN3: 1101 台泥 | AO3: 7517896 | AP3: 5456068 | AQ3: 9971650 | AR3: 8319342 | AS3: 7733787 | AT3: 9145989 | AU3: 10102468 | AV3: 10689860 | AW3: 10404901 | AX3: 11368096 | AY3: 9674576 | AZ3: 12584154 | BB3: 1101 台泥 | BC3: 7325221 | BD3: 7306069 | BE3: 11730367 | BF3: 9100119 | BG3: 9596091 | BH3: 8816109 | BI3: 8953462 | BJ3: 9379408 | BP3: 1101 台泥 | BQ3: 9394240 | BR3: 5085162 | BS3: 10876929 | BT3: 10596314 | BU3: 10903967 | BV3: 9866871 | BW3: 10489337 | BX3: 10228796 | BY3: 10120251 | BZ3: 11211942 | CA3: 11678701 | CB3: 12330504
A4: 1103 嘉泥 | B4: M1100 水泥工業 | C4: M11A 水泥製造 | E4: M1200 食品工業 | F4: M11B 預拌混凝土 | L4: 1102 亞泥 | M4: 5210319 | N4: 2851105 | O4: 5077457 | P4: 6751585 | Q4: 7182969 | R4: 6752208 | S4: 6798878 | T4: 6683133 | U4: 7256519 | V4: 7433331 | W4: 7923604 | X4: 8320877 | Z4: 1102 亞泥 | AA4: 7436331 | AB4: 3450204 | AC4: 7006606 | AD4: 7830830 | AE4: 7688883 | AF4: 6895504 | AG4: 6477630 | AH4: 7193266 | AI4: 7831470 | AJ4: 9454594 | AK4: 8985672 | AL4: 9403723 | AN4: 1102 亞泥 | AO4: 7420726 | AP4: 4100676 | AQ4: 8160414 | AR4: 8710220 | AS4: 8000427 | AT4: 7776413 | AU4: 7864622 | AV4: 7069221 | AW4: 6994078 | AX4: 7601097 | AY4: 8306062 | AZ4: 8340507 | BB4: 1102 亞泥 | BC4: 4814494 | BD4: 6241236 | BE4: 8152982 | BF4: 7168871 | BG4: 7238507 | BH4: 6671130 | BI4: 6790125 | BJ4: 6469836 | BK4: 6691905 | BP4: 1102 亞泥 | BQ4: 7905737 | BR4: 3165899 | BS4: 8318969 | BT4: 8434811 | BU4: 8435765 | BV4: 7536507 | BW4: 7813300 | BX4: 7203378 | BY4: 7394901 | BZ4: 7016219 | CA4: 8000839 | CB4: 8115203
A5: 1104 環泥 | B5: M1100 水泥工業 | C5: M11A 水泥製造 | E5: M1300 塑膠工業 | F5: M11C 其他水泥 | L5: 1103 嘉泥 | M5: 165029 | N5: 150813 | O5: 179493 | P5: 158812 | Q5: 171405 | R5: 166768 | S5: 173129 | T5: 152585 | U5: 163492 | V5: 165638 | W5: 208929 | X5: 200989 | Z5: 1103 嘉泥 | AA5: 195482 | AB5: 145091 | AC5: 203954 | AD5: 185227 | AE5: 196403 | AF5: 168756 | AG5: 192983 | AH5: 166022 | AI5: 201306 | AJ5: 193141 | AK5: 197773 | AL5: 171518 | AN5: 1103 嘉泥 | AO5: 158052 | AP5: 134062 | AQ5: 220463 | AR5: 168089 | AS5: 163521 | AT5: 183177 | AU5: 178825 | AV5: 182371 | AW5: 205264 | AX5: 209429 | AY5: 221763 | AZ5: 228644 | BB5: 1103 嘉泥 | BC5: 191217 | BD5: 211050 | BE5: 249135 | BF5: 220272 | BG5: 227797 | BH5: 277233 | BI5: 266631 | BJ5: 238917 | BP5: 1103 嘉泥 | BQ5: 177060 | BR5: 108448 | BS5: 166883 | BT5: 160751 | BU5: 146479 | BV5: 130823 | BW5: 159044 | BX5: 162363 | BY5: 151142 | BZ5: 176879 | CA5: 186042 | CB5: 157879
A6: 1108 幸福 | B6: M1100 水泥工業 | C6: M11A 水泥製造 | E6: M1400 紡織纖維 | F6: M12A 罐頭加工 | L6: 1104 環泥 | M6: 359966 | N6: 414075 | O6: 479717 | P6: 481205 | Q6: 403105 | R6: 453562 | S6: 477040 | T6: 366990 | U6: 450890 | V6: 495885 | W6: 488513 | X6: 555150 | Z6: 1104 環泥 | AA6: 511466 | AB6: 354013 | AC6: 575019 | AD6: 523569 | AE6: 533814 | AF6: 407130 | AG6: 493738 | AH6: 431224 | AI6: 528251 | AJ6: 558944 | AK6: 592281 | AL6: 569625 | AN6: 1104 環泥 | AO6: 592322 | AP6: 348338 | AQ6: 591593 | AR6: 638493 | AS6: 537082 | AT6: 573028 | AU6: 580420 | AV6: 605512 | AW6: 597159 | AX6: 634981 | AY6: 631827 | AZ6: 725055 | BB6: 1104 環泥 | BC6: 504378 | BD6: 591525 | BE6: 739446 | BF6: 644087 | BG6: 671021 | BH6: 604263 | BI6: 637246 | BJ6: 617197 | BP6: 1104 環泥 | BQ6: 479518 | BR6: 270638 | BS6: 437140 | BT6: 418992 | BU6: 421251 | BV6: 353927 | BW6: 398238 | BX6: 380445 | BY6: 391206 | BZ6: 503315 | CA6: 493403 | CB6: 457657
A7: 1109 信大 | B7: M1100 水泥工業 | C7: M11A 水泥製造 | E7: M1500 電機機械 | F7: M12B 油脂飼料 | L7: 1108 幸福 | M7: 296395 | N7: 390288 | O7: 418037 | P7: 404198 | Q7: 357162 | R7: 360616 | S7: 384035 | T7: 366847 | U7: 380768 | V7: 381651 | W7: 402129 | X7: 388124 | Z7: 1108 幸福 | AA7: 417355 | AB7: 279071 | AC7: 349527 | AD7: 345563 | AE7: 357039 | AF7: 325660 | AG7: 310860 | AH7: 249977 | AI7: 269964 | AJ7: 276724 | AK7: 268037 | AL7: 319368 | AN7: 1108 幸福 | AO7: 324664 | AP7: 210635 | AQ7: 345612 | AR7: 335518 | AS7: 332258 | AT7: 334113 | AU7: 326691 | AV7: 390053 | AW7: 346635 | AX7: 401202 | AY7: 383773 | AZ7: 418326 | BB7: 1108 幸福 | BC7: 294901 | BD7: 361748 | BE7: 436030 | BF7: 396170 | BG7: 482963 | BH7: 442961 | BI7: 441143 | BJ7: 430420 | BK7: 404171 | BP7: 1108 幸福 | BQ7: 353189 | BR7: 168065 | BS7: 313093 | BT7: 323834 | BU7: 305274 | BV7: 271998 | BW7: 313198 | BX7: 298541 | BY7: 312444 | BZ7: 348338 | CA7: 345873 | CB7: 377849
A8: 1110 東泥 | B8: M1100 水泥工業 | C8: M11A 水泥製造 | E8: M1600 電器電纜 | F8: M12C 飲料乳品 | L8: 1109 信大 | M8: 476715 | N8: 199776 | O8: 488590 | P8: 772697 | Q8: 706916 | R8: 611254 | S8: 656183 | T8: 625696 | U8: 675602 | V8: 789783 | W8: 719102 | X8: 852626 | Z8: 1109 信大 | AA8: 739226 | AB8: 190339 | AC8: 882786 | AD8: 766026 | AE8: 627354 | AF8: 492001 | AG8: 492134 | AH8: 591358 | AI8: 376885 | AJ8: 660615 | AK8: 781722 | AL8: 777783 | AN8: 1109 信大 | AO8: 566897 | AP8: 181644 | AQ8: 490643 | AR8: 519822 | AS8: 654002 | AT8: 591868 | AU8: 557403 | AV8: 478276 | AW8: 634886 | AX8: 527209 | AY8: 669587 | AZ8: 516142 | BB8: 1109 信大 | BC8: 298010 | BD8: 410951 | BE8: 625197 | BF8: 552377 | BG8: 627486 | BH8: 516592 | BI8: 562522 | BJ8: 541722 | BP8: 1109 信大 | BQ8: 668892 | BR8: 149960 | BS8: 541582 | BT8: 753252 | BU8: 800417 | BV8: 658066 | BW8: 597879 | BX8: 727862 | BY8: 722519 | BZ8: 638725 | CA8: 870651 | CB8: 691591
A9: 1201 味全 | B9: M1200 食品工業 | C9: M12C 飲料乳品 | E9: M1721 化學工業 | F9: M12Z 其他食品 | L9: 1110 東泥 | M9: 126262 | N9: 115270 | O9: 146412 | P9: 145822 | Q9: 106356 | R9: 130369 | S9: 124643 | T9: 98636 | U9: 143254 | V9: 143594 | W9: 149741 | X9: 160628 | Z9: 1110 東泥 | AA9: 137866 | AB9: 103108 | AC9: 146368 | AD9: 143902 | AE9: 141730 | AF9: 262145 | AG9: 159247 | AH9: 109276 | AI9: 140017 | AJ9: 151364 | AK9: 160698 | AL9: 184874 | AN9: 1110 東泥 | AO9: 166858 | AP9: 97391 | AQ9: 178972 | AR9: 114127 | AS9: 89660 | AT9: 115133 | AU9: 134470 | AV9: 176935 | AW9: 157462 | AX9: 197515 | AY9: 198316 | AZ9: 167733 | BB9: 1110 東泥 | BC9: 137873 | BD9: 174115 | BE9: 216150 | BF9: 219472 | BG9: 213937 | BH9: 181890 | BI9: 168514 | BJ9: 160207 | BK9: 169364 | BP9: 1110 東泥 | BQ9: 186293 | BR9: 82927 | BS9: 147819 | BT9: 118229 | BU9: 132249 | BV9: 114080 | BW9: 114772 | BX9: 120521 | BY9: 121926 | BZ9: 143344 | CA9: 151996 | CB9: 150784
A10: 1203 味王 | B10: M1200 食品工業 | C10: M12Z 其他食品 | E10: M1722 生技醫療 | F10: M13A1 泛用塑膠 | L10: 1201 味全 | M10: 1442127 | N10: 1108658 | O10: 1423557 | P10: 1473407 | Q10: 1557936 | R10: 1584018 | S10: 1720915 | T10: 1860519 | U10: 1770907 | V10: 1654044 | W10: 1588873 | X10: 1472723 | Z10: 1201 味全 | AA10: 1461118 | AB10: 1401435 | AC10: 1507135 | AD10: 1567125 | AE10: 1659960 | AF10: 1717230 | AG10: 1802387 | AH10: 1917771 | AI10: 1821712 | AJ10: 1709407 | AK10: 1636605 | AL10: 1614562 | AN10: 1201 味全 | AO10: 1668787 | AP10: 1291903 | AQ10: 1589975 | AR10: 1495139 | AS10: 1662683 | AT10: 1754660 | AU10: 1907939 | AV10: 2008672 | AW10: 1834655 | AX10: 1719108 | AY10: 1596213 | AZ10: 1453858 | BB10: 1201 味全 | BC10: 1585126 | BD10: 1489920 | BE10: 1714224 | BF10: 1684136 | BG10: 1760630 | BH10: 1799883 | BI10: 1987063 | BJ10: 2024542 | BP10: 1201 味全 | BQ10: 1583493 | BR10: 1358770 | BS10: 1598137 | BT10: 1695994 | BU10: 1809938 | BV10: 1728231 | BW10: 1850126 | BX10: 2010851 | BY10: 1797271 | BZ10: 1739332 | CA10: 1557497 | CB10: 1499513
A11: 1210 大成 | B11: M1200 食品工業 | C11: M12B 油脂飼料 | E11: M1800 玻璃陶瓷 | F11: M13A5 化纖 | L11: 1203 味王 | M11: 516699 | N11: 502344 | O11: 564047 | P11: 481367 | Q11: 467509 | R11: 519138 | S11: 490401 | T11: 509509 | U11: 540372 | V11: 435262 | W11: 481337 | X11: 519264 | Z11: 1203 味王 | AA11: 545268 | AB11: 442622 | AC11: 500102 | AD11: 470972 | AE11: 488269 | AF11: 492972 | AG11: 494155 | AH11: 540451 | AI11: 504898 | AJ11: 441364 | AK11: 388602 | AL11: 507831 | AN11: 1203 味王 | AO11: 564100 | AP11: 453678 | AQ11: 517118 | AR11: 516050 | AS11: 533780 | AT11: 527809 | AU11: 514516 | AV11: 546197 | AW11: 523146 | AX11: 534997 | AY11: 538061 | AZ11: 609563 | BB11: 1203 味王 | BC11: 515619 | BD11: 515621 | BE11: 544406 | BF11: 506873 | BG11: 552211 | BH11: 474979 | BI11: 498272 | BJ11: 566658 | BP11: 1203 味王 | BQ11: 544108 | BR11: 443171 | BS11: 514903 | BT11: 469207 | BU11: 531311 | BV11: 574920 | BW11: 552813 | BX11: 573610 | BY11: 540815 | BZ11: 514106 | CA11: 585177 | CB11: 579498
A12: 1213 大飲 | B12: M1200 食品工業 | C12: M12C 飲料乳品 | E12: M1900 造紙工業 | F12: M13A6 合成皮 | L12: 1210 大成 | M12: 6175533 | N12: 5847338 | O12: 6233854 | P12: 6180161 | Q12: 6059697 | R12: 6450520 | S12: 6397684 | T12: 6771132 | U12: 7188625 | V12: 7578191 | W12: 7431123 | X12: 8214226 | Z12: 1210 大成 | AA12: 8480630 | AB12: 5817609 | AC12: 8072006 | AD12: 9053195 | AE12: 8266299 | AF12: 9082135 | AG12: 9150386 | AH12: 7913624 | AI12: 9493296 | AJ12: 8186264 | AK12: 8855770 | AL12: 9224406 | AN12: 1210 大成 | AO12: 9956918 | AP12: 7516358 | AQ12: 8558697 | AR12: 9182352 | AS12: 8649541 | AT12: 9471082 | AU12: 9161168 | AV12: 10578033 | AW12: 9702507 | AX12: 10031178 | AY12: 10074064 | AZ12: 10247364 | BB12: 1210 大成 | BC12: 9191048 | BD12: 8240329 | BE12: 9633956 | BF12: 8940319 | BG12: 9815309 | BH12: 8906040 | BI12: 8904562 | BJ12: 10230624 | BP12: 1210 大成 | BQ12: 7176513 | BR12: 4971488 | BS12: 6130106 | BT12: 6424220 | BU12: 6390612 | BV12: 6144976 | BW12: 6491269 | BX12: 6927433 | BY12: 6685601 | BZ12: 6863541 | CA12: 6902836 | CB12: 6971663
A13: 1215 卜蜂 | B13: M1200 食品工業 | C13: M12B 油脂飼料 | E13: M2000 鋼鐵工業 | F13: M13A7 可塑劑 | L13: 1213 大飲 | M13: 31854 | N13: 23944 | O13: 24268 | P13: 22416 | Q13: 28920 | R13: 35095 | S13: 53900 | T13: 64820 | U13: 41327 | V13: 26380 | W13: 25440 | X13: 31241 | Z13: 1213 大飲 | AA13: 32550 | AB13: 39520 | AC13: 30196 | AD13: 31631 | AE13: 35416 | AF13: 36210 | AG13: 52085 | AH13: 42312 | AI13: 34387 | AJ13: 27981 | AK13: 35048 | AL13: 31545 | AN13: 1213 大飲 | AO13: 45833 | AP13: 24520 | AQ13: 30575 | AR13: 26326 | AS13: 26236 | AT13: 40233 | AU13: 29503 | AV13: 38696 | AW13: 31847 | AX13: 30818 | AY13: 30289 | AZ13: 34198 | BB13: 1213 大飲 | BC13: 31485 | BD13: 30743 | BE13: 28023 | BF13: 16652 | BG13: 13163 | BH13: -2921 | BI13: -297 | BJ13: -998 | BK13: 636 | BP13: 1213 大飲 | BQ13: 63426 | BR13: 39925 | BS13: 29047 | BT13: 28570 | BU13: 38938 | BV13: 26098 | BW13: 64562 | BX13: 50864 | BY13: 13552 | BZ13: 27127 | CA13: 24689 | CB13: 28674
A14: 1216 統一 | B14: M1200 食品工業 | C14: M12C 飲料乳品 | E14: M2100 橡膠工業 | F14: M13A8 塑膠加工 | L14: 1215 卜蜂 | M14: 1686306 | N14: 1643656 | O14: 1911231 | P14: 1851960 | Q14: 1803246 | R14: 1772694 | S14: 1884932 | T14: 1892166 | U14: 1920517 | V14: 1913473 | W14: 1851586 | X14: 2057868 | Z14: 1215 卜蜂 | AA14: 2037460 | AB14: 1651502 | AC14: 2030023 | AD14: 1997700 | AE14: 2086575 | AF14: 2024955 | AG14: 2147399 | AH14: 2037783 | AI14: 2048288 | AJ14: 2086329 | AK14: 2255138 | AL14: 2438193 | AN14: 1215 卜蜂 | AO14: 2672823 | AP14: 2048952 | AQ14: 2477639 | AR14: 2192046 | AS14: 2311671 | AT14: 2335487 | AU14: 2400161 | AV14: 2393814 | AW14: 2418414 | AX14: 2364883 | AY14: 2595219 | AZ14: 2748111 | BB14: 1215 卜蜂 | BC14: 2369583 | BD14: 2263472 | BE14: 2599015 | BF14: 2470578 | BG14: 2519816 | BH14: 2421623 | BI14: 2360314 | BJ14: 2508812 | BK14: 2437231 | BP14: 1215 卜蜂 | BQ14: 1885469 | BR14: 1463626 | BS14: 1686202 | BT14: 1739496 | BU14: 1768590 | BV14: 1642385 | BW14: 1745142 | BX14: 1835593 | BY14: 1808855 | BZ14: 1908232 | CA14: 1856161 | CB14: 1833883
A15: 1217 愛之味 | B15: M1200 食品工業 | C15: M12A 罐頭加工 | E15: M2200 汽車工業 | F15: M13A9 膠帶 | L15: 1216 統一 | M15: 41529085 | N15: 30787526 | O15: 35948254 | P15: 34946280 | Q15: 36909155 | R15: 38616245 | S15: 40509558 | T15: 41212854 | U15: 40353475 | V15: 36463221 | W15: 35858206 | X15: 34159430 | Z15: 1216 統一 | AA15: 45194815 | AB15: 31769464 | AC15: 38463882 | AD15: 38356552 | AE15: 39759158 | AF15: 39253261 | AG15: 41852623 | AH15: 41942340 | AI15: 41123727 | AJ15: 39134900 | AK15: 39352262 | AL15: 37291418 | AN15: 1216 統一 | AO15: 48049485 | AP15: 34113196 | AQ15: 42112136 | AR15: 42977511 | AS15: 43215655 | AT15: 44266245 | AU15: 47295432 | AV15: 48654713 | AW15: 45815778 | AX15: 42927337 | AY15: 40656907 | AZ15: 44564715 | BB15: 1216 統一 | BC15: 45915517 | BD15: 40664831 | BE15: 44823352 | BF15: 44069723 | BG15: 46350796 | BH15: 46976325 | BI15: 54142903 | BJ15: 57541764 | BP15: 1216 統一 | BQ15: 41144409 | BR15: 29826477 | BS15: 36804987 | BT15: 36918812 | BU15: 38716214 | BV15: 38858021 | BW15: 40267551 | BX15: 41324567 | BY15: 39494107 | BZ15: 36972407 | CA15: 34315274 | CB15: 33014880
A16: 1218 泰山 | B16: M1200 食品工業 | C16: M12B 油脂飼料 | E16: M2324 半導體 | F16: M13B 塑膠製品 | L16: 1217 愛之味 | M16: 405408 | N16: 302786 | O16: 444287 | P16: 291186 | Q16: 291246 | R16: 415560 | S16: 430161 | T16: 639670 | U16: 565045 | V16: 266129 | W16: 284591 | X16: 280185 | Z16: 1217 愛之味 | AA16: 411016 | AB16: 317669 | AC16: 367154 | AD16: 273615 | AE16: 439985 | AF16: 464795 | AG16: 441314 | AH16: 605106 | AI16: 463500 | AJ16: 305710 | AK16: 306835 | AL16: 314921 | AN16: 1217 愛之味 | AO16: 442813 | AP16: 312887 | AQ16: 385888 | AR16: 301579 | AS16: 384976 | AT16: 403129 | AU16: 512688 | AV16: 634623 | AW16: 465279 | AX16: 316358 | AY16: 304862 | AZ16: 335992 | BB16: 1217 愛之味 | BC16: 447948 | BD16: 308663 | BE16: 414639 | BF16: 342778 | BG16: 396832 | BH16: 419946 | BI16: 482203 | BJ16: 657803 | BP16: 1217 愛之味 | BQ16: 379511 | BR16: 303197 | BS16: 313572 | BT16: 287677 | BU16: 318595 | BV16: 449669 | BW16: 482920 | BX16: 637949 | BY16: 441377 | BZ16: 284230 | CA16: 277877 | CB16: 292321
A17: 1219 福壽 | B17: M1200 食品工業 | C17: M12B 油脂飼料 | E17: M2325 電腦及週邊 | F17: M13C 輕油製解 | L17: 1218 泰山 | M17: 736974 | N17: 505641 | O17: 661552 | P17: 630513 | Q17: 655813 | R17: 734201 | S17: 831903 | T17: 853882 | U17: 819145 | V17: 676243 | W17: 670202 | X17: 694505 | Z17: 1218 泰山 | AA17: 845756 | AB17: 629161 | AC17: 799575 | AD17: 810520 | AE17: 830360 | AF17: 794155 | AG17: 895483 | AH17: 960802 | AI17: 888282 | AJ17: 829908 | AK17: 893101 | AL17: 816534 | AN17: 1218 泰山 | AO17: 978592 | AP17: 744482 | AQ17: 927607 | AR17: 912408 | AS17: 902029 | AT17: 877120 | AU17: 1023417 | AV17: 1054476 | AW17: 1063747 | AX17: 845561 | AY17: 927603 | AZ17: 873258 | BB17: 1218 泰山 | BC17: 973667 | BD17: 834856 | BE17: 839075 | BF17: 820342 | BG17: 871543 | BH17: 948940 | BI17: 1069944 | BJ17: 1157243 | BK17: 1070356 | BP17: 1218 泰山 | BQ17: 706484 | BR17: 467918 | BS17: 599053 | BT17: 592778 | BU17: 645123 | BV17: 708068 | BW17: 861667 | BX17: 833163 | BY17: 782187 | BZ17: 690997 | CA17: 582987 | CB17: 653138
A18: 1220 台榮 | B18: M1200 食品工業 | C18: M12B 油脂飼料 | E18: M2326 光電業 | F18: M14A1 聚酯絲棉 | L18: 1219 福壽 | M18: 1016959 | N18: 911889 | O18: 1060891 | P18: 1017898 | Q18: 922349 | R18: 987280 | S18: 980279 | T18: 975254 | U18: 1086298 | V18: 1099296 | W18: 1086305 | X18: 1185413 | Z18: 1219 福壽 | AA18: 1326083 | AB18: 1134676 | AC18: 1257299 | AD18: 1240389 | AE18: 1176668 | AF18: 1024656 | AG18: 1263633 | AH18: 1167521 | AI18: 1192316 | AJ18: 1209578 | AK18: 1403710 | AL18: 1383471 | AN18: 1219 福壽 | AO18: 1433167 | AP18: 1130681 | AQ18: 1651054 | AR18: 1479641 | AS18: 1451392 | AT18: 1345756 | AU18: 1321525 | AV18: 1352250 | AW18: 1486102 | AX18: 1443910 | AY18: 1445798 | AZ18: 1495331 | BB18: 1219 福壽 | BC18: 1334658 | BD18: 1293812 | BE18: 1621081 | BF18: 1297059 | BG18: 1442360 | BH18: 1330443 | BI18: 1403695 | BJ18: 1366116 | BK18: 1310734 | BP18: 1219 福壽 | BQ18: 1199814 | BR18: 715431 | BS18: 1055161 | BT18: 1038477 | BU18: 1049658 | BV18: 953087 | BW18: 1038836 | BX18: 999824 | BY18: 994450 | BZ18: 1083064 | CA18: 976184 | CB18: 1144475
A19: 1225 福懋油 | B19: M1200 食品工業 | C19: M12B 油脂飼料 | E19: M2327 通信網路業 | F19: M14A2 加工絲 | L19: 1220 台榮 | M19: 201511 | N19: 178161 | O19: 222238 | P19: 215302 | Q19: 203469 | R19: 222507 | S19: 264847 | T19: 260431 | U19: 287415 | V19: 241613 | W19: 218974 | X19: 258665 | Z19: 1220 台榮 | AA19: 262424 | AB19: 176717 | AC19: 269619 | AD19: 262030 | AE19: 254687 | AF19: 272149 | AG19: 258235 | AH19: 265446 | AI19: 267658 | AJ19: 280906 | AK19: 332714 | AL19: 316808 | AN19: 1220 台榮 | AO19: 322989 | AP19: 207781 | AQ19: 285720 | AR19: 248582 | AS19: 292492 | AT19: 294470 | AU19: 294528 | AV19: 314062 | AW19: 294321 | AX19: 334007 | AY19: 350129 | AZ19: 299446 | BB19: 1220 台榮 | BC19: 185500 | BD19: 178573 | BE19: 290668 | BF19: 266541 | BG19: 280527 | BH19: 287673 | BI19: 272888 | BJ19: 296778 | BK19: 295646 | BP19: 1220 台榮 | BQ19: 261737 | BR19: 143511 | BS19: 208035 | BT19: 209667 | BU19: 242992 | BV19: 240545 | BW19: 277390 | BX19: 261871 | BY19: 229760 | BZ19: 309104 | CA19: 290788 | CB19: 303764
A20: 1227 佳格 | B20: M1200 食品工業 | C20: M12Z 其他食品 | E20: M2328 電子零組件 | F20: M14A7 尼龍絲 | L20: 1225 福懋油 | M20: 850077 | N20: 785185 | O20: 886030 | P20: 856010 | Q20: 809957 | R20: 792623 | S20: 847382 | T20: 826403 | U20: 835861 | V20: 817026 | W20: 900073 | X20: 1006866 | Z20: 1225 福懋油 | AA20: 1076979 | AB20: 893451 | AC20: 1125109 | AD20: 1020599 | AE20: 1114265 | AF20: 1034300 | AG20: 1084754 | AH20: 1052440 | AI20: 1045897 | AJ20: 1081685 | AK20: 1322704 | AL20: 1251774 | AN20: 1225 福懋油 | AO20: 1291723 | AP20: 934637 | AQ20: 1279502 | AR20: 1219664 | AS20: 1269125 | AT20: 1319645 | AU20: 1301087 | AV20: 1333748 | AW20: 1295478 | AX20: 1291928 | AY20: 1291214 | AZ20: 1446610 | BB20: 1225 福懋油 | BC20: 1136459 | BD20: 1326121 | BE20: 1334753 | BF20: 1108821 | BG20: 1233009 | BH20: 1140779 | BI20: 1215578 | BJ20: 1232824 | BK20: 1184327 | BP20: 1225 福懋油 | BQ20: 964100 | BR20: 633413 | BS20: 880257 | BT20: 889193 | BU20: 857478 | BV20: 887020 | BW20: 962604 | BX20: 927042 | BY20: 837263 | BZ20: 1023560 | CA20: 872342 | CB20: 912234
A21: 1229 聯華 | B21: M1200 食品工業 | C21: M12B 油脂飼料 | E21: M2329 電子通路業 | F21: M14B1 聚酯紗棉紗 | L21: 1227 佳格 | M21: 2931475 | N21: 1493010 | O21: 2246948 | P21: 2977463 | Q21: 2583115 | R21: 2392058 | S21: 2474374 | T21: 3167337 | U21: 3958750 | V21: 2812353 | W21: 3556835 | X21: 3872526 | Z21: 1227 佳格 | AA21: 4585987 | AB21: 1740003 | AC21: 1938626 | AD21: 2337076 | AE21: 2373213 | AF21: 2701602 | AG21: 2558217 | AH21: 2813843 | AI21: 3294742 | AJ21: 2716771 | AK21: 3684840 | AL21: 3562124 | AN21: 1227 佳格 | AO21: 3169810 | AP21: 1311370 | AQ21: 2249275 | AR21: 2157826 | AS21: 1961006 | AT21: 1873382 | AU21: 2146094 | AV21: 2686715 | AW21: 2844061 | AX21: 2182437 | AY21: 2778357 | AZ21: 3562467 | BB21: 1227 佳格 | BC21: 2485829 | BD21: 1413138 | BE21: 1981532 | BF21: 2068043 | BG21: 2136966 | BH21: 2118460 | BI21: 2151320 | BJ21: 2657640 | BP21: 1227 佳格 | BQ21: 4362134 | BR21: 1388035 | BS21: 1586997 | BT21: 1776586 | BU21: 2130222 | BV21: 2163646 | BW21: 2206623 | BX21: 3045171 | BY21: 2745482 | BZ21: 2305665 | CA21: 3406880 | CB21: 4148791
A22: 1231 聯華食 | B22: M1200 食品工業 | C22: M12Z 其他食品 | E22: M2330 資訊服務業 | F22: M14B2 亞克力纖維 | L22: 1229 聯華 | M22: 602410 | N22: 658504 | O22: 786115 | P22: 748609 | Q22: 685815 | R22: 1275443 | S22: 725137 | T22: 701837 | U22: 915901 | V22: 807007 | W22: 701599 | X22: 946645 | Z22: 1229 聯華 | AA22: 761338 | AB22: 599791 | AC22: 864164 | AD22: 724446 | AE22: 845247 | AF22: 1662605 | AG22: 965934 | AH22: 793517 | AI22: 832723 | AJ22: 974105 | AK22: 1133311 | AL22: 1166930 | AN22: 1229 聯華 | AO22: 873750 | AP22: 643594 | AQ22: 1081223 | AR22: 879141 | AS22: 914089 | AT22: 2208773 | AU22: 906199 | AV22: 831107 | AW22: 908840 | AX22: 908917 | AY22: 941152 | AZ22: 1229700 | BB22: 1229 聯華 | BC22: 813776 | BD22: 812320 | BE22: 1245351 | BF22: 846720 | BG22: 993539 | BH22: 1799327 | BI22: 1022672 | BJ22: 891803 | BP22: 1229 聯華 | BQ22: 493179 | BR22: 314549 | BS22: 420926 | BT22: 616100 | BU22: 729961 | BV22: 676790 | BW22: 696166 | BX22: 1240355 | BY22: 788561 | BZ22: 716226 | CA22: 649360 | CB22: 920437
A23: 1232 大統益 | B23: M1200 食品工業 | C23: M12B 油脂飼料 | E23: M2331 其他電子業 | F23: M14C1 成衣製造 | L23: 1231 聯華食 | M23: 883070 | N23: 514965 | O23: 700011 | P23: 646251 | Q23: 675104 | R23: 684343 | S23: 787417 | T23: 900089 | U23: 694394 | V23: 708224 | W23: 702239 | X23: 921214 | Z23: 1231 聯華食 | AA23: 949444 | AB23: 718678 | AC23: 705431 | AD23: 695795 | AE23: 723277 | AF23: 738135 | AG23: 829241 | AH23: 887835 | AI23: 706336 | AJ23: 752598 | AK23: 748007 | AL23: 1063115 | AN23: 1231 聯華食 | AO23: 1024108 | AP23: 689899 | AQ23: 810325 | AR23: 811880 | AS23: 815527 | AT23: 821455 | AU23: 987622 | AV23: 976319 | AW23: 825821 | AX23: 866871 | AY23: 869263 | AZ23: 1273749 | BB23: 1231 聯華食 | BC23: 1032901 | BD23: 740027 | BE23: 1000854 | BF23: 808023 | BG23: 793134 | BH23: 819281 | BI23: 956916 | BJ23: 1042128 | BK23: 796194 | BP23: 1231 聯華食 | BQ23: 913458 | BR23: 572959 | BS23: 631653 | BT23: 642774 | BU23: 695419 | BV23: 692963 | BW23: 791473 | BX23: 789158 | BY23: 586266 | BZ23: 695551 | CA23: 665580 | CB23: 911649
A24: 1233 天仁 | B24: M1200 食品工業 | C24: M12Z 其他食品 | E24: M2500 建材營造 | F24: M14C2 織布 | L24: 1232 大統益 | M24: 1479927 | N24: 1229139 | O24: 1364616 | P24: 1259038 | Q24: 1267534 | R24: 1424986 | S24: 1465369 | T24: 1457410 | U24: 1537742 | V24: 1516071 | W24: 1594098 | X24: 1845049 | Z24: 1232 大統益 | AA24: 1659919 | AB24: 1377370 | AC24: 1805442 | AD24: 1916817 | AE24: 1642167 | AF24: 1358757 | AG24: 1556554 | AH24: 1634616 | AI24: 1650643 | AJ24: 1987843 | AK24: 2105196 | AL24: 1782666 | AN24: 1232 大統益 | AO24: 2063315 | AP24: 1467011 | AQ24: 2167843 | AR24: 1919923 | AS24: 1974737 | AT24: 2040294 | AU24: 1798053 | AV24: 2186695 | AW24: 2070078 | AX24: 2198870 | AY24: 2258878 | AZ24: 2531262 | BB24: 1232 大統益 | BC24: 2049752 | BD24: 2067495 | BE24: 2090669 | BF24: 1788853 | BG24: 1998466 | BH24: 1874166 | BI24: 1761631 | BJ24: 2202657 | BK24: 1874068 | BP24: 1232 大統益 | BQ24: 1620137 | BR24: 1101574 | BS24: 1437562 | BT24: 1328619 | BU24: 1406554 | BV24: 1336446 | BW24: 1423850 | BX24: 1503403 | BY24: 1451185 | BZ24: 1486022 | CA24: 1438896 | CB24: 1615860
A25: 1234 黑松 | B25: M1200 食品工業 | C25: M12C 飲料乳品 | E25: M2600 航運業 | F25: M14D2 毛紡 | L25: 1233 天仁 | M25: 223889 | N25: 147563 | O25: 117999 | P25: 122898 | Q25: 149497 | R25: 141988 | S25: 164578 | T25: 170359 | U25: 180532 | V25: 147219 | W25: 186443 | X25: 171334 | Z25: 1233 天仁 | AA25: 170575 | AB25: 163783 | AC25: 148313 | AD25: 141150 | AE25: 134815 | AF25: 107176 | AG25: 128786 | AH25: 137571 | AI25: 163902 | AJ25: 140650 | AK25: 161242 | AL25: 192899 | AN25: 1233 天仁 | AO25: 188123 | AP25: 131798 | AQ25: 138421 | AR25: 128340 | AS25: 148437 | AT25: 134187 | AU25: 148964 | AV25: 158102 | AW25: 150985 | AX25: 149886 | AY25: 177433 | AZ25: 193545 | BB25: 1233 天仁 | BC25: 209169 | BD25: 153523 | BE25: 162294 | BF25: 165246 | BG25: 173923 | BH25: 168374 | BI25: 169784 | BJ25: 178560 | BP25: 1233 天仁 | BQ25: 226345 | BR25: 161835 | BS25: 180929 | BT25: 165999 | BU25: 191640 | BV25: 182526 | BW25: 181089 | BX25: 198165 | BY25: 193774 | BZ25: 176532 | CA25: 210241 | CB25: 196555
A26: 1235 興泰 | B26: M1200 食品工業 | C26: M12B 油脂飼料 | E26: M2700 觀光事業 | F26: M14E 染整 | L26: 1234 黑松 | M26: 831335 | N26: 524531 | O26: 593417 | P26: 620378 | Q26: 733260 | R26: 770065 | S26: 936282 | T26: 983169 | U26: 876580 | V26: 753787 | W26: 737796 | X26: 845690 | Z26: 1234 黑松 | AA26: 835074 | AB26: 646038 | AC26: 733787 | AD26: 687081 | AE26: 731347 | AF26: 748522 | AG26: 766210 | AH26: 853329 | AI26: 790834 | AJ26: 765041 | AK26: 784292 | AL26: 881319 | AN26: 1234 黑松 | AO26: 940229 | AP26: 465642 | AQ26: 638270 | AR26: 645499 | AS26: 605223 | AT26: 752225 | AU26: 952900 | AV26: 1074526 | AW26: 890678 | AX26: 817431 | AY26: 919746 | AZ26: 856128 | BB26: 1234 黑松 | BC26: 1044159 | BD26: 795909 | BE26: 701960 | BF26: 696800 | BG26: 775650 | BH26: 827576 | BI26: 983847 | BJ26: 1121037 | BP26: 1234 黑松 | BQ26: 989413 | BR26: 611984 | BS26: 543860 | BT26: 618002 | BU26: 702807 | BV26: 685161 | BW26: 908599 | BX26: 942073 | BY26: 749900 | BZ26: 729907 | CA26: 746375 | CB26: 918928
A27: 1236 宏亞 | B27: M1200 食品工業 | C27: M12Z 其他食品 | E27: M2800 金融業 | F27: M14F 不織布 | L27: 1235 興泰 | M27: 1350 | N27: 1285 | O27: 1562 | P27: 1908 | Q27: 1915 | R27: 3033 | S27: 6635 | T27: 9481 | U27: 28185 | V27: 6355 | W27: 8146 | X27: 8603 | Z27: 1235 興泰 | AA27: 1833 | AB27: 979 | AC27: 1009 | AD27: 1112 | AE27: 1066 | AF27: 1630 | AG27: 2096 | AH27: 2284 | AI27: 24875 | AJ27: 1776 | AK27: 1203 | AL27: 1227 | AN27: 1235 興泰 | AO27: 1218 | AP27: 685 | AQ27: 1533 | AR27: 1312 | AS27: 1859 | AT27: 2723 | AU27: 3274 | AV27: 6974 | AW27: 29265 | AX27: 3211 | AY27: 2669 | AZ27: 2455 | BB27: 1235 興泰 | BC27: 1560 | BD27: 1836 | BE27: 2365 | BF27: 2232 | BG27: 3193 | BH27: 4266 | BI27: 4037 | BJ27: 6684 | BK27: 6537 | BP27: 1235 興泰 | BQ27: 1752 | BR27: 1114 | BS27: 1830 | BT27: 2555 | BU27: 3028 | BV27: 3092 | BW27: 3771 | BX27: 6382 | BY27: 24344 | BZ27: 10207 | CA27: 1886 | CB27: 1571
A28: 1240 茂生農經 | B28: M3300 農業科技 | C28: M12B 油脂飼料 | E28: M2900 貿易百貨 | F28: M14Z 其他紡織 | L28: 1236 宏亞 | M28: 208484 | N28: 86037 | O28: 142868 | P28: 102352 | Q28: 66599 | R28: 80724 | S28: 122704 | T28: 146991 | U28: 193049 | V28: 112963 | W28: 143333 | X28: 231166 | Z28: 1236 宏亞 | AA28: 329513 | AB28: 95806 | AC28: 115293 | AD28: 100156 | AE28: 98044 | AF28: 83920 | AG28: 119197 | AH28: 107836 | AI28: 174351 | AJ28: 119686 | AK28: 147790 | AL28: 263522 | AN28: 1236 宏亞 | AO28: 283748 | AP28: 96993 | AQ28: 163958 | AR28: 130046 | AS28: 138780 | AT28: 114716 | AU28: 170333 | AV28: 221454 | AW28: 141089 | AX28: 137410 | AY28: 190090 | AZ28: 320009 | BB28: 1236 宏亞 | BC28: 220785 | BD28: 110189 | BE28: 158593 | BF28: 133452 | BG28: 131830 | BH28: 125337 | BI28: 146859 | BJ28: 172261 | BK28: 222123 | BP28: 1236 宏亞 | BQ28: 326947 | BR28: 78912 | BS28: 94089 | BT28: 123213 | BU28: 99992 | BV28: 97300 | BW28: 145523 | BX28: 170372 | BY28: 139678 | BZ28: 149497 | CA28: 165237 | CB28: 273232
A29: 1256 鮮活果汁-KY | B29: M1200 食品工業 | C29: M12C 飲料乳品 | E29: M3200 文化創意業 | F29: M15A1 工具機 | L29: 1240 茂生農經 | M29: 189448 | N29: 168721 | O29: 188934 | P29: 187177 | Q29: 173043 | R29: 178840 | S29: 180860 | T29: 184990 | U29: 195978 | V29: 204196 | W29: 192888 | X29: 231481 | Z29: 1240 茂生農經 | AA29: 219268 | AB29: 190791 | AC29: 235368 | AD29: 249389 | AE29: 237572 | AF29: 248171 | AG29: 280792 | AH29: 248636 | AI29: 237157 | AJ29: 293671 | AK29: 264170 | AL29: 294106 | AN29: 1240 茂生農經 | AO29: 275522 | AP29: 211683 | AQ29: 274367 | AR29: 290585 | AS29: 292443 | AT29: 292475 | AU29: 262129 | AV29: 281860 | AW29: 281078 | AX29: 312492 | AY29: 286961 | AZ29: 309199 | BB29: 1240 茂生農經 | BC29: 246654 | BD29: 239185 | BE29: 265965 | BF29: 216807 | BG29: 232261 | BH29: 222821 | BI29: 240796 | BJ29: 237505 | BP29: 1240 茂生農經 | BQ29: 182291 | BR29: 110650 | BS29: 137999 | BT29: 138094 | BU29: 150424 | BV29: 138339 | BW29: 144841 | BX29: 148637 | BY29: 137393 | BZ29: 150016 | CA29: 182922 | CB29: 196617
A30: 1259 安心 | B30: M2700 觀光餐旅 | C30: M27A2 餐飲業 | E30: M9700 油電燃氣業 | F30: M15A2 模具零件 | L30: 1256 鮮活果汁-KY | M30: 198957 | N30: 20613 | O30: 146814 | P30: 226577 | Q30: 318600 | R30: 362789 | S30: 393593 | T30: 469741 | U30: 570729 | V30: 250600 | W30: 231589 | X30: 291122 | Z30: 1256 鮮活果汁-KY | AA30: 470300 | AB30: 173645 | AC30: 350208 | AD30: 407552 | AE30: 409708 | AF30: 499954 | AG30: 584754 | AH30: 481992 | AI30: 506111 | AJ30: 244920 | AK30: 199421 | AL30: 326762 | AN30: 1256 鮮活果汁-KY | AO30: 382345 | AP30: 173977 | AQ30: 333241 | AR30: 194594 | AS30: 399569 | AT30: 409929 | AU30: 475276 | AV30: 581403 | AW30: 482664 | AX30: 142872 | AY30: 183937 | AZ30: 340614 | BB30: 1256 鮮活果汁-KY | BC30: 178183 | BD30: 274907 | BE30: 371475 | BF30: 477698 | BG30: 452538 | BH30: 556841 | BI30: 577090 | BJ30: 568276 | BK30: 444032 | BP30: 1256 鮮活果汁-KY | BQ30: 251025 | BR30: 140144 | BS30: 295825 | BT30: 313992 | BU30: 364169 | BV30: 364020 | BW30: 341404 | BX30: 368940 | BY30: 396308 | BZ30: 191665 | CA30: 197746 | CB30: 293317
A31: 1264 德麥 | B31: M1200 食品工業 | C31: M12Z 其他食品 | E31: M9900 其他 | F31: M15A3 紡織工具機 | L31: 1259 安心 | M31: 487396 | N31: 392606 | O31: 401279 | P31: 366567 | Q31: 432027 | R31: 481241 | S31: 502535 | T31: 487191 | U31: 466917 | V31: 451296 | W31: 435750 | X31: 437291 | Z31: 1259 安心 | AA31: 428998 | AB31: 426779 | AC31: 429387 | AD31: 433647 | AE31: 404651 | AF31: 350351 | AG31: 375420 | AH31: 411406 | AI31: 440163 | AJ31: 462531 | AK31: 423554 | AL31: 449403 | AN31: 1259 安心 | AO31: 449374 | AP31: 414356 | AQ31: 474960 | AR31: 457469 | AS31: 475404 | AT31: 475576 | AU31: 507739 | AV31: 524381 | AW31: 489931 | AX31: 481302 | AY31: 487256 | AZ31: 472991 | BB31: 1259 安心 | BC31: 526155 | BD31: 436184 | BE31: 473205 | BF31: 468795 | BG31: 503449 | BH31: 524226 | BI31: 543899 | BJ31: 533004 | BK31: 517430 | BP31: 1259 安心 | BQ31: 434403 | BR31: 425382 | BS31: 442305 | BT31: 432786 | BU31: 473037 | BV31: 471523 | BW31: 494332 | BX31: 482921 | BY31: 468247 | BZ31: 467301 | CA31: 440813 | CB31: 451430
A32: 1268 漢來美食 | B32: M2700 觀光餐旅 | C32: M27A2 餐飲業 | F32: M15B1 電機 | L32: 1264 德麥 | M32: 349906 | N32: 214857 | O32: 339263 | P32: 342347 | Q32: 324372 | R32: 338596 | S32: 376152 | T32: 391113 | U32: 455291 | V32: 343932 | W32: 399682 | X32: 507098 | Z32: 1264 德麥 | AA32: 505872 | AB32: 264437 | AC32: 421628 | AD32: 409622 | AE32: 351555 | AF32: 329871 | AG32: 388748 | AH32: 402407 | AI32: 436570 | AJ32: 376190 | AK32: 478574 | AL32: 571633 | AN32: 1264 德麥 | AO32: 521490 | AP32: 268668 | AQ32: 425770 | AR32: 448442 | AS32: 382058 | AT32: 385242 | AU32: 423243 | AV32: 456315 | AW32: 454924 | AX32: 437074 | AY32: 492249 | AZ32: 604559 | BB32: 1264 德麥 | BC32: 421675 | BD32: 383636 | BE32: 532337 | BF32: 456288 | BG32: 469659 | BH32: 441417 | BI32: 451975 | BJ32: 512933 | BK32: 537887 | BP32: 1264 德麥 | BQ32: 439259 | BR32: 187855 | BS32: 317415 | BT32: 355518 | BU32: 361711 | BV32: 297375 | BW32: 328842 | BX32: 350835 | BY32: 336842 | BZ32: 330207 | CA32: 350416 | CB32: 422479
A33: 1301 台塑 | B33: M1300 塑膠工業 | C33: M13A1 泛用塑膠 | F33: M15B2 機電工程 | L33: 1268 漢來美食 | M33: 479014 | N33: 219866 | O33: 140357 | P33: 114139 | Q33: 224812 | R33: 267833 | S33: 312646 | T33: 364606 | U33: 336874 | V33: 331897 | W33: 310479 | X33: 356744 | Z33: 1268 漢來美食 | AA33: 336151 | AB33: 402666 | AC33: 288162 | AD33: 287397 | AE33: 171316 | AF33: 53888 | AG33: 52967 | AH33: 136176 | AI33: 224363 | AJ33: 284966 | AK33: 312488 | AL33: 379315 | AN33: 1268 漢來美食 | AO33: 412375 | AP33: 312197 | AQ33: 312061 | AR33: 203488 | AS33: 143303 | AT33: 190794 | AU33: 304830 | AV33: 346625 | AW33: 388161 | AX33: 353050 | AY33: 350778 | AZ33: 439212 | BB33: 1268 漢來美食 | BC33: 581820 | BD33: 364643 | BE33: 349266 | BF33: 365418 | BG33: 381629 | BH33: 366717 | BI33: 390642 | BJ33: 399093 | BP33: 1268 漢來美食 | BQ33: 359999 | BR33: 379041 | BS33: 290982 | BT33: 249139 | BU33: 308256 | BV33: 310203 | BW33: 310332 | BX33: 313011 | BY33: 314638 | BZ33: 287615 | CA33: 306117 | CB33: 345891
A34: 1303 南亞 | B34: M1300 塑膠工業 | C34: M13A1 泛用塑膠 | F34: M15C1 家電 | L34: 1301 台塑 | M34: 13858050 | N34: 12760661 | O34: 15400468 | P34: 14752079 | Q34: 13455462 | R34: 14776562 | S34: 15716282 | T34: 14622498 | U34: 15836081 | V34: 16712494 | W34: 18212643 | X34: 19710124 | Z34: 1301 台塑 | AA34: 19215607 | AB34: 16367396 | AC34: 25018934 | AD34: 24367037 | AE34: 24347789 | AF34: 22938082 | AG34: 22344061 | AH34: 23158607 | AI34: 21433730 | AJ34: 24683931 | AK34: 24523688 | AL34: 25199437 | AN34: 1301 台塑 | AO34: 23937795 | AP34: 20591656 | AQ34: 26474312 | AR34: 25145986 | AS34: 24846638 | AT34: 23931750 | AU34: 19936058 | AV34: 17450790 | AW34: 18266287 | AX34: 17040281 | AY34: 17363777 | AZ34: 16662024 | BB34: 1301 台塑 | BC34: 14408136 | BD34: 17688186 | BE34: 20116995 | BF34: 16196620 | BG34: 16356337 | BH34: 15893871 | BI34: 16645025 | BJ34: 17501985 | BP34: 1301 台塑 | BQ34: 19500909 | BR34: 14815825 | BS34: 18695341 | BT34: 19209008 | BU34: 19007532 | BV34: 18352747 | BW34: 17511155 | BX34: 16949937 | BY34: 15254406 | BZ34: 16583297 | CA34: 16319772 | CB34: 15648643
A35: 1304 台聚 | B35: M1300 塑膠工業 | C35: M13A1 泛用塑膠 | F35: M15C2 空調冷凍 | L35: 1303 南亞 | M35: 22313695 | N35: 19999005 | O35: 23244809 | P35: 20411078 | Q35: 19418507 | R35: 20794995 | S35: 21752364 | T35: 22209740 | U35: 23828101 | V35: 24739023 | W35: 26310187 | X35: 28327943 | Z35: 1303 南亞 | AA35: 29346765 | AB35: 25991621 | AC35: 34372304 | AD35: 34904534 | AE35: 34484715 | AF35: 34598733 | AG35: 36795856 | AH35: 37422239 | AI35: 35710126 | AJ35: 37452644 | AK35: 36046868 | AL35: 34539153 | AN35: 1303 南亞 | AO35: 35266502 | AP35: 29823052 | AQ35: 37002485 | AR35: 29697081 | AS35: 32883176 | AT35: 32151862 | AU35: 27970940 | AV35: 27507669 | AW35: 27109813 | AX35: 26628431 | AY35: 25203688 | AZ35: 23938601 | BB35: 1303 南亞 | BC35: 20289828 | BD35: 21842845 | BE35: 23641103 | BF35: 21354749 | BG35: 22593257 | BH35: 19790189 | BI35: 21514529 | BJ35: 23595589 | BP35: 1303 南亞 | BQ35: 24994873 | BR35: 20957969 | BS35: 24967277 | BT35: 25074397 | BU35: 24787501 | BV35: 21989854 | BW35: 24563010 | BX35: 23781522 | BY35: 23540826 | BZ35: 24199415 | CA35: 23539431 | CB35: 23906984
A36: 1305 華夏 | B36: M1300 塑膠工業 | C36: M13A1 泛用塑膠 | F36: M15C4 照明 | L36: 1304 台聚 | M36: 3557870 | N36: 3643881 | O36: 4154619 | P36: 3505359 | Q36: 3401050 | R36: 3952131 | S36: 4099746 | T36: 4006402 | U36: 4307703 | V36: 4622066 | W36: 5133507 | X36: 5820253 | Z36: 1304 台聚 | AA36: 5316928 | AB36: 4669544 | AC36: 6209704 | AD36: 6028023 | AE36: 5665595 | AF36: 6053540 | AG36: 5995006 | AH36: 6074485 | AI36: 6396966 | AJ36: 6733585 | AK36: 6835786 | AL36: 5787813 | AN36: 1304 台聚 | AO36: 6100816 | AP36: 5270388 | AQ36: 5732214 | AR36: 5718382 | AS36: 6065369 | AT36: 6140523 | AU36: 5657528 | AV36: 5215901 | AW36: 5389936 | AX36: 5068232 | AY36: 4697381 | AZ36: 5385876 | BB36: 1304 台聚 | BC36: 3931572 | BD36: 4507156 | BE36: 4735505 | BF36: 4274766 | BG36: 4495696 | BH36: 3989480 | BI36: 3963359 | BJ36: 5032636 | BK36: 4506836 | BP36: 1304 台聚 | BQ36: 5004581 | BR36: 3725362 | BS36: 4757905 | BT36: 4838177 | BU36: 5127061 | BV36: 4541760 | BW36: 4769245 | BX36: 4735910 | BY36: 4484846 | BZ36: 4560162 | CA36: 4549681 | CB36: 4568559
A37: 1307 三芳 | B37: M1300 塑膠工業 | C37: M13A6 合成皮 | F37: M15D 汽車組件 | L37: 1305 華夏 | M37: 1042016 | N37: 1269527 | O37: 1279672 | P37: 717906 | Q37: 620635 | R37: 948423 | S37: 1068490 | T37: 1058853 | U37: 1134914 | V37: 1386393 | W37: 1525029 | X37: 1680981 | Z37: 1305 華夏 | AA37: 1603671 | AB37: 1551446 | AC37: 1823567 | AD37: 1493823 | AE37: 1397334 | AF37: 1684606 | AG37: 1830303 | AH37: 1751859 | AI37: 1963157 | AJ37: 2086017 | AK37: 1697043 | AL37: 1338864 | AN37: 1305 華夏 | AO37: 1890241 | AP37: 1571715 | AQ37: 1845700 | AR37: 1715260 | AS37: 1631728 | AT37: 1492779 | AU37: 1560080 | AV37: 1190704 | AW37: 1232717 | AX37: 1086250 | AY37: 1045011 | AZ37: 1375854 | BB37: 1305 華夏 | BC37: 1277800 | BD37: 1338693 | BE37: 1163684 | BF37: 1148546 | BG37: 1176829 | BH37: 1014593 | BI37: 1020444 | BJ37: 1378646 | BK37: 966666 | BP37: 1305 華夏 | BQ37: 1193236 | BR37: 881123 | BS37: 1153354 | BT37: 1322372 | BU37: 1645849 | BV37: 1386382 | BW37: 1320523 | BX37: 1381919 | BY37: 1122459 | BZ37: 1248897 | CA37: 1229172 | CB37: 1233303
A38: 1308 亞聚 | B38: M1300 塑膠工業 | C38: M13A1 泛用塑膠 | F38: M15E 自行車組件 | L38: 1307 三芳 | M38: 748887 | N38: 833964 | O38: 1074419 | P38: 562804 | Q38: 418689 | R38: 489749 | S38: 528216 | T38: 677965 | U38: 840399 | V38: 841490 | W38: 731314 | X38: 693860 | Z38: 1307 三芳 | AA38: 949887 | AB38: 706825 | AC38: 932378 | AD38: 697674 | AE38: 604961 | AF38: 691468 | AG38: 621285 | AH38: 513232 | AI38: 550855 | AJ38: 635756 | AK38: 801545 | AL38: 678141 | AN38: 1307 三芳 | AO38: 837560 | AP38: 759173 | AQ38: 1020535 | AR38: 983242 | AS38: 860620 | AT38: 857800 | AU38: 923832 | AV38: 1118509 | AW38: 1021629 | AX38: 816520 | AY38: 821824 | AZ38: 742256 | BB38: 1307 三芳 | BC38: 789995 | BD38: 959537 | BE38: 860166 | BF38: 739298 | BG38: 823622 | BH38: 728830 | BI38: 893367 | BJ38: 1038632 | BK38: 838162 | BP38: 1307 三芳 | BQ38: 910675 | BR38: 692269 | BS38: 1025298 | BT38: 892304 | BU38: 810708 | BV38: 660096 | BW38: 882453 | BX38: 941448 | BY38: 921765 | BZ38: 968475 | CA38: 798139 | CB38: 767780
A39: 1309 台達化 | B39: M1300 塑膠工業 | C39: M13A1 泛用塑膠 | F39: M15Z 其他電製品 | L39: 1308 亞聚 | M39: 383724 | N39: 430415 | O39: 499915 | P39: 433191 | Q39: 473355 | R39: 451529 | S39: 432139 | T39: 407986 | U39: 473181 | V39: 458950 | W39: 576968 | X39: 682421 | Z39: 1308 亞聚 | AA39: 653244 | AB39: 519823 | AC39: 679625 | AD39: 800995 | AE39: 740520 | AF39: 794147 | AG39: 821270 | AH39: 788485 | AI39: 853180 | AJ39: 943444 | AK39: 1054461 | AL39: 916679 | AN39: 1308 亞聚 | AO39: 759128 | AP39: 668580 | AQ39: 714113 | AR39: 579784 | AS39: 874100 | AT39: 893613 | AU39: 969456 | AV39: 1082981 | AW39: 769148 | AX39: 879815 | AY39: 794927 | AZ39: 829188 | BB39: 1308 亞聚 | BC39: 453973 | BD39: 566122 | BE39: 549006 | BF39: 522892 | BG39: 592132 | BH39: 543794 | BI39: 559778 | BJ39: 679172 | BK39: 572692 | BP39: 1308 亞聚 | BQ39: 620182 | BR39: 477215 | BS39: 612209 | BT39: 622183 | BU39: 542154 | BV39: 521248 | BW39: 554435 | BX39: 528587 | BY39: 562238 | BZ39: 583313 | CA39: 574097 | CB39: 593109
A40: 1310 台苯 | B40: M1300 塑膠工業 | C40: M13A1 泛用塑膠 | F40: M16 電線 | L40: 1309 台達化 | M40: 1033894 | N40: 890685 | O40: 1033774 | P40: 1151977 | Q40: 1137515 | R40: 1276711 | S40: 1404282 | T40: 1366998 | U40: 1371229 | V40: 1419625 | W40: 1622907 | X40: 1789006 | Z40: 1309 台達化 | AA40: 1456463 | AB40: 1233649 | AC40: 1845569 | AD40: 1876788 | AE40: 1827110 | AF40: 1864035 | AG40: 1696625 | AH40: 1846662 | AI40: 1813435 | AJ40: 1851988 | AK40: 1899476 | AL40: 1560037 | AN40: 1309 台達化 | AO40: 1480381 | AP40: 1415449 | AQ40: 1640544 | AR40: 1637667 | AS40: 1633100 | AT40: 1817648 | AU40: 1586565 | AV40: 1529912 | AW40: 1497170 | AX40: 1299689 | AY40: 1183195 | AZ40: 1362281 | BB40: 1309 台達化 | BC40: 985589 | BD40: 1201305 | BE40: 1386900 | BF40: 1268082 | BG40: 1247913 | BH40: 1073664 | BI40: 1094051 | BJ40: 1396557 | BK40: 1491814 | BP40: 1309 台達化 | BQ40: 1746564 | BR40: 1250603 | BS40: 1602824 | BT40: 1588471 | BU40: 1544984 | BV40: 1348375 | BW40: 1461710 | BX40: 1432733 | BY40: 1487398 | BZ40: 1345676 | CA40: 1464141 | CB40: 1397706
A41: 1312 國喬 | B41: M1300 塑膠工業 | C41: M13A1 泛用塑膠 | F41: M17B 染料及顏料 | L41: 1310 台苯 | M41: 768429 | N41: 510293 | O41: 419530 | P41: 590995 | Q41: 604350 | R41: 684951 | S41: 682498 | T41: 654054 | U41: 642101 | V41: 709251 | W41: 975087 | X41: 870907 | Z41: 1310 台苯 | AA41: 730042 | AB41: 730574 | AC41: 677091 | AD41: 1126664 | AE41: 1216202 | AF41: 1087399 | AG41: 1127532 | AH41: 1130863 | AI41: 1029947 | AJ41: 869299 | AK41: 1069782 | AL41: 919556 | AN41: 1310 台苯 | AO41: 1118245 | AP41: 1121273 | AQ41: 1296091 | AR41: 1296574 | AS41: 1389847 | AT41: 1135720 | AU41: 1314555 | AV41: 851722 | AW41: 874662 | AX41: 765461 | AY41: 726252 | AZ41: 962686 | BB41: 1310 台苯 | BC41: 589760 | BD41: 569240 | BE41: 1159395 | BF41: 963801 | BG41: 711900 | BH41: 641308 | BI41: 689103 | BJ41: 814218 | BK41: 806466 | BP41: 1310 台苯 | BQ41: 1117957 | BR41: 848455 | BS41: 970745 | BT41: 1058511 | BU41: 1152782 | BV41: 1100791 | BW41: 1137754 | BX41: 1075426 | BY41: 996939 | BZ41: 1007580 | CA41: 836946 | CB41: 915803
A42: 1313 聯成 | B42: M1300 塑膠工業 | C42: M13A7 可塑劑 | F42: M17C1 西藥 | L42: 1312 國喬 | M42: 1471941 | N42: 1028691 | O42: 1107724 | P42: 1100991 | Q42: 1169189 | R42: 1332033 | S42: 1328986 | T42: 1443785 | U42: 1487844 | V42: 1567152 | W42: 1685135 | X42: 1848773 | Z42: 1312 國喬 | AA42: 1739674 | AB42: 1660203 | AC42: 1835254 | AD42: 1949387 | AE42: 2029279 | AF42: 1955006 | AG42: 1903047 | AH42: 1877342 | AI42: 1871954 | AJ42: 2005736 | AK42: 1966650 | AL42: 1760112 | AN42: 1312 國喬 | AO42: 1637284 | AP42: 1188212 | AQ42: 1711214 | AR42: 1809407 | AS42: 1854261 | AT42: 1839479 | AU42: 1382426 | AV42: 1405126 | AW42: 1407268 | AX42: 1387943 | AY42: 1295194 | AZ42: 1261110 | BB42: 1312 國喬 | BC42: 1285657 | BD42: 1320956 | BE42: 1610657 | BF42: 1411037 | BG42: 1370520 | BH42: 1109039 | BI42: 1226678 | BJ42: 1284350 | BP42: 1312 國喬 | BQ42: 1904635 | BR42: 1454364 | BS42: 1647124 | BT42: 1880808 | BU42: 1903657 | BV42: 1756687 | BW42: 1842861 | BX42: 1621653 | BY42: 1572110 | BZ42: 1595381 | CA42: 1665015 | CB42: 1645058
A43: 1314 中石化 | B43: M1300 塑膠工業 | C43: M13A5 化纖 | F43: M17C2 機能性食品 | L43: 1313 聯成 | M43: 3379946 | N43: 1753579 | O43: 3767808 | P43: 4033358 | Q43: 4110055 | R43: 4199654 | S43: 4292844 | T43: 4621335 | U43: 5087822 | V43: 4936665 | W43: 5696942 | X43: 6091072 | Z43: 1313 聯成 | AA43: 5994488 | AB43: 3932791 | AC43: 7215445 | AD43: 7594888 | AE43: 6407063 | AF43: 6964983 | AG43: 7362982 | AH43: 7666218 | AI43: 7428330 | AJ43: 6861565 | AK43: 7348472 | AL43: 7605814 | AN43: 1313 聯成 | AO43: 5982448 | AP43: 4895616 | AQ43: 8167285 | AR43: 6512868 | AS43: 6945761 | AT43: 6930762 | AU43: 5993125 | AV43: 5052422 | AW43: 5098838 | AX43: 5073138 | AY43: 5846961 | AZ43: 5433061 | BB43: 1313 聯成 | BC43: 3601598 | BD43: 5836564 | BE43: 6511571 | BF43: 6326080 | BG43: 5715364 | BH43: 5679751 | BI43: 6142965 | BJ43: 6494950 | BK43: 7063372 | BP43: 1313 聯成 | BQ43: 5939881 | BR43: 3228374 | BS43: 6149496 | BT43: 5712007 | BU43: 5234388 | BV43: 4986963 | BW43: 5581587 | BX43: 4947933 | BY43: 5369183 | BZ43: 4798646 | CA43: 5763335 | CB43: 5711986
A44: 1315 達新 | B44: M1300 塑膠工業 | C44: M13A8 塑膠加工 | F44: M17C3 農藥肥料 | L44: 1314 中石化 | M44: 2063432 | N44: 1668882 | O44: 1568761 | P44: 1366840 | Q44: 1499660 | R44: 1217571 | S44: 1166126 | T44: 1242352 | U44: 1224711 | V44: 1294775 | W44: 1390823 | X44: 1880643 | Z44: 1314 中石化 | AA44: 2541752 | AB44: 1979742 | AC44: 2915031 | AD44: 2814860 | AE44: 3063236 | AF44: 3363761 | AG44: 3161214 | AH44: 3348017 | AI44: 2884029 | AJ44: 3189912 | AK44: 2985458 | AL44: 2916368 | AN44: 1314 中石化 | AO44: 2541068 | AP44: 2232821 | AQ44: 2608381 | AR44: 2781957 | AS44: 2898219 | AT44: 2458926 | AU44: 2318156 | AV44: 1941044 | AW44: 1363265 | AX44: 1455340 | AY44: 1179469 | AZ44: 1249149 | BB44: 1314 中石化 | BC44: 1141581 | BD44: 1671640 | BE44: 2332203 | BF44: 2465204 | BG44: 2324331 | BH44: 2173525 | BI44: 2412106 | BJ44: 2408787 | BP44: 1314 中石化 | BQ44: 2567786 | BR44: 2702854 | BS44: 2867391 | BT44: 2737182 | BU44: 2592197 | BV44: 2967847 | BW44: 2522461 | BX44: 2850755 | BY44: 2675293 | BZ44: 1931548 | CA44: 1447104 | CB44: 1760840
A45: 1316 上曜 | B45: M2500 建材營造 | C45: M25A 建設 | F45: M17E1 清潔劑原料 | L45: 1315 達新 | M45: 165414 | N45: 160344 | O45: 192450 | P45: 138397 | Q45: 159245 | R45: 188984 | S45: 240945 | T45: 191602 | U45: 194188 | V45: 214384 | W45: 179377 | X45: 213256 | Z45: 1315 達新 | AA45: 185347 | AB45: 170163 | AC45: 183809 | AD45: 166442 | AE45: 163373 | AF45: 213438 | AG45: 287861 | AH45: 209850 | AI45: 185205 | AJ45: 178690 | AK45: 237333 | AL45: 197286 | AN45: 1315 達新 | AO45: 227241 | AP45: 134407 | AQ45: 253082 | AR45: 184323 | AS45: 304665 | AT45: 201760 | AU45: 212786 | AV45: 306497 | AW45: 233641 | AX45: 210962 | AY45: 220847 | AZ45: 179165 | BB45: 1315 達新 | BC45: 241467 | BD45: 117990 | BE45: 181579 | BF45: 141178 | BG45: 279353 | BH45: 203850 | BI45: 229932 | BJ45: 163404 | BK45: 134277 | BP45: 1315 達新 | BQ45: 192157 | BR45: 131022 | BS45: 192036 | BT45: 153983 | BU45: 195678 | BV45: 253354 | BW45: 260865 | BX45: 237353 | BY45: 275155 | BZ45: 155412 | CA45: 207533 | CB45: 191026
A46: 1319 東陽 | B46: M2200 汽車工業 | C46: M15D 汽車組件 | F46: M17E2 清潔用品 | L46: 1316 上曜 | M46: 30363 | N46: 38705 | O46: 106731 | P46: 219677 | Q46: 103425 | R46: 356108 | S46: 46213 | T46: 38646 | U46: 54133 | V46: 63269 | W46: 144820 | X46: 49163 | Z46: 1316 上曜 | AA46: 107981 | AB46: 44527 | AC46: 65446 | AD46: 78632 | AE46: 135104 | AF46: 29269 | AG46: 81525 | AH46: 119723 | AI46: 129731 | AJ46: 93411 | AK46: 73618 | AL46: 77215 | AN46: 1316 上曜 | AO46: 104175 | AP46: 90609 | AQ46: 156365 | AR46: 251232 | AS46: 268193 | AT46: 298544 | AU46: 356587 | AV46: 180206 | AW46: 209883 | AX46: 185272 | AY46: 87434 | AZ46: 103052 | BB46: 1316 上曜 | BC46: 47445 | BD46: 205683 | BE46: 63048 | BF46: 87258 | BG46: 42591 | BH46: 35617 | BI46: 53619 | BJ46: 49555 | BP46: 1316 上曜 | BQ46: 51667 | BR46: 34224 | BS46: 48353 | BT46: 48168 | BU46: 47647 | BV46: 38739 | BW46: 36762 | BX46: 35488 | BY46: 78568 | BZ46: 44975 | CA46: 46963 | CB46: 313186
A47: 1321 大洋 | B47: M1300 塑膠工業 | C47: M13A8 塑膠加工 | F47: M17F 樹脂 | L47: 1319 東陽 | M47: 1559320 | N47: 1624986 | O47: 1611658 | P47: 1016803 | Q47: 1023551 | R47: 1264888 | S47: 1468402 | T47: 1430624 | U47: 1627022 | V47: 1488561 | W47: 1610814 | X47: 1593441 | Z47: 1319 東陽 | AA47: 1486448 | AB47: 1342805 | AC47: 1689085 | AD47: 1463614 | AE47: 1382944 | AF47: 1611783 | AG47: 1477738 | AH47: 1488482 | AI47: 1501236 | AJ47: 1570975 | AK47: 1668856 | AL47: 1692914 | AN47: 1319 東陽 | AO47: 1743989 | AP47: 1389990 | AQ47: 1890259 | AR47: 1793723 | AS47: 1681870 | AT47: 1943301 | AU47: 1859349 | AV47: 1767684 | AW47: 1899913 | AX47: 1793527 | AY47: 1791645 | AZ47: 1724639 | BB47: 1319 東陽 | BC47: 1498170 | BD47: 1931211 | BE47: 2168884 | BF47: 1755176 | BG47: 1869457 | BH47: 1926559 | BI47: 1920265 | BJ47: 2077579 | BK47: 2156228 | BP47: 1319 東陽 | BQ47: 1921791 | BR47: 1415045 | BS47: 1973057 | BT47: 1817693 | BU47: 1818753 | BV47: 1644630 | BW47: 1834203 | BX47: 1673581 | BY47: 1670947 | BZ47: 1807560 | CA47: 2110602 | CB47: 1925818
A48: 1323 永裕 | B48: M1300 塑膠工業 | C48: M13A8 塑膠加工 | F48: M17G 醫療耗材 | L48: 1321 大洋 | M48: 356932 | N48: 343433 | O48: 394797 | P48: 310791 | Q48: 363536 | R48: 406756 | S48: 450073 | T48: 447705 | U48: 508942 | V48: 454209 | W48: 471422 | X48: 479536 | Z48: 1321 大洋 | AA48: 464301 | AB48: 437107 | AC48: 633433 | AD48: 544134 | AE48: 634152 | AF48: 474134 | AG48: 497611 | AH48: 545282 | AI48: 597581 | AJ48: 662746 | AK48: 470119 | AL48: 530841 | AN48: 1321 大洋 | AO48: 596974 | AP48: 500568 | AQ48: 674298 | AR48: 630884 | AS48: 668832 | AT48: 651162 | AU48: 474542 | AV48: 550848 | AW48: 436749 | AX48: 428190 | AY48: 425807 | AZ48: 467673 | BB48: 1321 大洋 | BC48: 396457 | BD48: 441561 | BE48: 492736 | BF48: 387158 | BG48: 428661 | BH48: 351024 | BI48: 361464 | BJ48: 391590 | BK48: 357833 | BP48: 1321 大洋 | BQ48: 435535 | BR48: 249105 | BS48: 358700 | BT48: 399857 | BU48: 416766 | BV48: 380211 | BW48: 417127 | BX48: 429246 | BY48: 403934 | BZ48: 386564 | CA48: 373757 | CB48: 440232
A49: 1324 地球 | B49: M1300 塑膠工業 | C49: M13A9 膠帶 | F49: M17H 生物科技 | L49: 1323 永裕 | M49: 237926 | N49: 218708 | O49: 309627 | P49: 311485 | Q49: 286234 | R49: 298326 | S49: 279151 | T49: 252044 | U49: 303129 | V49: 293385 | W49: 313683 | X49: 301482 | Z49: 1323 永裕 | AA49: 279444 | AB49: 244003 | AC49: 306780 | AD49: 303256 | AE49: 306490 | AF49: 330531 | AG49: 313681 | AH49: 334429 | AI49: 344408 | AJ49: 351157 | AK49: 327627 | AL49: 354010 | AN49: 1323 永裕 | AO49: 364733 | AP49: 256144 | AQ49: 371815 | AR49: 302017 | AS49: 262516 | AT49: 331396 | AU49: 321947 | AV49: 327512 | AW49: 315654 | AX49: 319037 | AY49: 292641 | AZ49: 288851 | BB49: 1323 永裕 | BC49: 243005 | BD49: 244560 | BE49: 315973 | BF49: 267845 | BG49: 284140 | BH49: 294862 | BI49: 261881 | BJ49: 316094 | BP49: 1323 永裕 | BQ49: 307775 | BR49: 236013 | BS49: 302503 | BT49: 311253 | BU49: 304514 | BV49: 287342 | BW49: 308168 | BX49: 295515 | BY49: 329822 | BZ49: 335952 | CA49: 297615 | CB49: 325715
A50: 1325 恒大 | B50: M1300 塑膠工業 | C50: M14F 不織布 | F50: M17X 藥局 | L50: 1324 地球 | M50: 76543 | N50: 101024 | O50: 105320 | P50: 83401 | Q50: 80291 | R50: 86367 | S50: 88678 | T50: 86992 | U50: 85306 | V50: 82168 | W50: 76948 | X50: 102720 | Z50: 1324 地球 | AA50: 82015 | AB50: 58498 | AC50: 111375 | AD50: 83533 | AE50: 97182 | AF50: 86079 | AG50: 87410 | AH50: 92497 | AI50: 96914 | AJ50: 84282 | AK50: 95952 | AL50: 101103 | AN50: 1324 地球 | AO50: 87732 | AP50: 68459 | AQ50: 99839 | AR50: 95073 | AS50: 79065 | AT50: 86540 | AU50: 73983 | AV50: 75027 | AW50: 73352 | AX50: 72801 | AY50: 89461 | AZ50: 81685 | BB50: 1324 地球 | BC50: 62008 | BD50: 76806 | BE50: 92528 | BF50: 66894 | BG50: 80437 | BH50: 82521 | BI50: 83873 | BJ50: 75561 | BP50: 1324 地球 | BQ50: 99191 | BR50: 83062 | BS50: 108686 | BT50: 99656 | BU50: 98271 | BV50: 95012 | BW50: 90435 | BX50: 92566 | BY50: 89644 | BZ50: 94553 | CA50: 93162 | CB50: 92103
A51: 1326 台化 | B51: M1300 塑膠工業 | C51: M13A1 泛用塑膠 | F51: M17Z 其他化學 | L51: 1325 恒大 | M51: 58992 | N51: 106907 | O51: 262200 | P51: 316354 | Q51: 439228 | R51: 484807 | S51: 399921 | T51: 452980 | U51: 471539 | V51: 474557 | W51: 293910 | X51: 295463 | Z51: 1325 恒大 | AA51: 218816 | AB51: 112368 | AC51: 139477 | AD51: 136427 | AE51: 137103 | AF51: 128578 | AG51: 74714 | AH51: 44447 | AI51: 49959 | AJ51: 47679 | AK51: 47895 | AL51: 53580 | AN51: 1325 恒大 | AO51: 67973 | AP51: 40122 | AQ51: 41885 | AR51: 51593 | AS51: 54809 | AT51: 44123 | AU51: 50686 | AV51: 44949 | AW51: 41385 | AX51: 33874 | AY51: 43296 | AZ51: 39273 | BB51: 1325 恒大 | BC51: 35085 | BD51: 33295 | BE51: 41288 | BF51: 29040 | BG51: 38968 | BH51: 35180 | BI51: 32802 | BJ51: 32476 | BK51: 31793 | BP51: 1325 恒大 | BQ51: 81517 | BR51: 45720 | BS51: 68416 | BT51: 67408 | BU51: 77676 | BV51: 79094 | BW51: 63019 | BX51: 52577 | BY51: 61980 | BZ51: 53828 | CA51: 55641 | CB51: 65899
A52: 1336 台翰 | B52: M2328 電子零組件 | C52: M23D9A 沖壓零組件 | F52: M18 玻璃陶瓷 | L52: 1326 台化 | M52: 22647976 | N52: 21029837 | O52: 20766240 | P52: 18134268 | Q52: 18011412 | R52: 19842166 | S52: 20451507 | T52: 18984099 | U52: 20716904 | V52: 22525959 | W52: 23935729 | X52: 26248571 | Z52: 1326 台化 | AA52: 26749217 | AB52: 25225711 | AC52: 32179323 | AD52: 33047596 | AE52: 32135688 | AF52: 30692373 | AG52: 30240623 | AH52: 30621450 | AI52: 30263865 | AJ52: 31749162 | AK52: 31632092 | AL52: 31274998 | AN52: 1326 台化 | AO52: 30314286 | AP52: 28718758 | AQ52: 36365994 | AR52: 36418996 | AS52: 34894962 | AT52: 36477227 | AU52: 31249506 | AV52: 28666166 | AW52: 30822873 | AX52: 30444806 | AY52: 26691678 | AZ52: 28831311 | BB52: 1326 台化 | BC52: 25576976 | BD52: 28017455 | BE52: 29434395 | BF52: 25509217 | BG52: 24506583 | BH52: 25153038 | BI52: 26750801 | BJ52: 29077841 | BP52: 1326 台化 | BQ52: 31787788 | BR52: 27572409 | BS52: 32072473 | BT52: 28942093 | BU52: 27148487 | BV52: 25775641 | BW52: 27457611 | BX52: 25985347 | BY52: 24430793 | BZ52: 24869514 | CA52: 23934947 | CB52: 24389832
A53: 1337 再生-KY | B53: M1300 塑膠工業 | C53: M13B 塑膠製品 | F53: M19A 造紙 | L53: 1336 台翰 | M53: 161999 | N53: 152488 | O53: 152811 | P53: 94184 | Q53: 105967 | R53: 149217 | S53: 177822 | T53: 164372 | U53: 198980 | V53: 193647 | W53: 178490 | X53: 175337 | Z53: 1336 台翰 | AA53: 175544 | AB53: 78341 | AC53: 123105 | AD53: 187035 | AE53: 183841 | AF53: 189567 | AG53: 194341 | AH53: 193765 | AI53: 178411 | AJ53: 207467 | AK53: 203362 | AL53: 180180 | AN53: 1336 台翰 | AO53: 183588 | AP53: 146316 | AQ53: 195442 | AR53: 200544 | AS53: 203868 | AT53: 220750 | AU53: 248172 | AV53: 255096 | AW53: 258105 | AX53: 299080 | AY53: 250749 | AZ53: 207591 | BB53: 1336 台翰 | BC53: 173776 | BD53: 197331 | BE53: 201352 | BF53: 176549 | BG53: 199440 | BH53: 196381 | BI53: 202210 | BJ53: 197848 | BK53: 217748 | BP53: 1336 台翰 | BQ53: 220428 | BR53: 136943 | BS53: 197116 | BT53: 187930 | BU53: 195718 | BV53: 198601 | BW53: 211265 | BX53: 201963 | BY53: 197107 | BZ53: 209998 | CA53: 208551 | CB53: 186661
A54: 1338 廣華-KY | B54: M2200 汽車工業 | C54: M15D 汽車組件 | F54: M19B 紙漿 | L54: 1337 再生-KY | M54: 87446 | N54: 5389 | O54: 91595 | P54: 65295 | Q54: 66816 | R54: 74032 | S54: 81781 | T54: 94272 | U54: 79338 | V54: 104094 | W54: 120963 | X54: 137055 | Z54: 1337 再生-KY | AA54: 107554 | AB54: 54837 | AC54: 102248 | AD54: 108468 | AE54: 111075 | AF54: 105134 | AG54: 98066 | AH54: 87640 | AI54: 83414 | AJ54: 90057 | AK54: 101355 | AL54: 51042 | AN54: 1337 再生-KY | AO54: 63028 | AP54: 47611 | AQ54: 30368 | AR54: 53408 | AS54: 45114 | AT54: 48002 | AU54: 53666 | AV54: 60295 | AW54: 65786 | AX54: 48082 | AY54: 53325 | AZ54: 73922 | BB54: 1337 再生-KY | BC54: 45454 | BD54: 51359 | BE54: 50045 | BF54: 61303 | BG54: 59092 | BH54: 63542 | BI54: 68029 | BJ54: 69380 | BP54: 1337 再生-KY | BQ54: 131561 | BR54: 73286 | BS54: 163960 | BT54: 68526 | BU54: 92226 | BV54: 105934 | BW54: 92574 | BX54: 88396 | BY54: 100189 | BZ54: 96614 | CA54: 115355 | CB54: 128450
A55: 1339 昭輝 | B55: M2200 汽車工業 | C55: M15D 汽車組件 | F55: M20A1 線材 | L55: 1338 廣華-KY | M55: 473528 | N55: 215315 | O55: 376790 | P55: 378914 | Q55: 399029 | R55: 543095 | S55: 578873 | T55: 511085 | U55: 661004 | V55: 636462 | W55: 677998 | X55: 724559 | Z55: 1338 廣華-KY | AA55: 647553 | AB55: 418733 | AC55: 705190 | AD55: 557726 | AE55: 441840 | AF55: 570469 | AG55: 583999 | AH55: 554075 | AI55: 599662 | AJ55: 666267 | AK55: 737542 | AL55: 824576 | AN55: 1338 廣華-KY | AO55: 782314 | AP55: 572444 | AQ55: 722919 | AR55: 417500 | AS55: 509475 | AT55: 685917 | AU55: 705668 | AV55: 617345 | AW55: 635751 | AX55: 601039 | AY55: 602967 | AZ55: 464981 | BB55: 1338 廣華-KY | BC55: 383026 | BD55: 483300 | BE55: 569636 | BF55: 420318 | BG55: 453761 | BH55: 462106 | BI55: 438033 | BJ55: 508943 | BK55: 501571 | BP55: 1338 廣華-KY | BQ55: 649105 | BR55: 376770 | BS55: 662057 | BT55: 607961 | BU55: 630301 | BV55: 588858 | BW55: 603511 | BX55: 664161 | BY55: 632884 | BZ55: 665814 | CA55: 703700 | CB55: 741239
A56: 1340 勝悅-KY | B56: M1300 塑膠工業 | C56: M13B 塑膠製品 | F56: M20A2 鋼筋 | L56: 1339 昭輝 | M56: 168854 | N56: 152461 | O56: 175255 | P56: 150568 | Q56: 128300 | R56: 146257 | S56: 198459 | T56: 195660 | U56: 206573 | V56: 199428 | W56: 201196 | X56: 189986 | Z56: 1339 昭輝 | AA56: 197300 | AB56: 144785 | AC56: 170497 | AD56: 170515 | AE56: 157139 | AF56: 143126 | AG56: 159753 | AH56: 168902 | AI56: 132849 | AJ56: 168512 | AK56: 166461 | AL56: 142241 | AN56: 1339 昭輝 | AO56: 229012 | AP56: 121905 | AQ56: 160802 | AR56: 177505 | AS56: 166991 | AT56: 155001 | AU56: 179434 | AV56: 175239 | AW56: 151164 | AX56: 170130 | AY56: 177450 | AZ56: 154272 | BB56: 1339 昭輝 | BC56: 138659 | BD56: 172406 | BE56: 161412 | BF56: 177167 | BG56: 169218 | BH56: 139294 | BI56: 179866 | BJ56: 203804 | BP56: 1339 昭輝 | BQ56: 247724 | BR56: 155473 | BS56: 239497 | BT56: 234720 | BU56: 233456 | BV56: 187408 | BW56: 219462 | BX56: 215815 | BY56: 202445 | BZ56: 215992 | CA56: 251926 | CB56: 254373
A57: 1341 富林-KY | B57: M1300 塑膠工業 | C57: M13A6 合成皮 | F57: M20A3 鋼板 | L57: 1340 勝悅-KY | M57: 59363 | N57: 0 | O57: 35008 | P57: 55854 | Q57: 51258 | R57: 58098 | S57: 61364 | T57: 71979 | U57: 81580 | V57: 63877 | W57: 69788 | X57: 46900 | Z57: 1340 勝悅-KY | AA57: 57252 | AB57: 15929 | AC57: 46278 | AD57: 53832 | AE57: 54400 | AF57: 56676 | AG57: 54795 | AH57: 60628 | AI57: 63355 | AJ57: 57076 | AK57: 61047 | AL57: 69361 | AN57: 1340 勝悅-KY | AO57: 35025 | AP57: 45863 | AQ57: 44026 | AR57: 25347 | AS57: 40106 | AT57: 49798 | AU57: 36383 | AV57: 40342 | AW57: 43352 | AX57: 41769 | AY57: 45137 | AZ57: 52082 | BB57: 1340 勝悅-KY | BC57: 11642 | BD57: 44007 | BE57: 56942 | BF57: 59275 | BG57: 54312 | BH57: 52386 | BI57: 54226 | BJ57: 49958 | BK57: 48654 | BP57: 1340 勝悅-KY | BQ57: 101253 | BR57: 31486 | BS57: 186580 | BT57: 126134 | BU57: 83337 | BV57: 119358 | BW57: 75269 | BX57: 64311 | BY57: 91160 | BZ57: 93568 | CA57: 94317 | CB57: 90249
A58: 1342 八貫 | B58: M9900 其他 | C58: M13B 塑膠製品 | F58: M20A4 銅 | L58: 1341 富林-KY | M58: 184008 | N58: 284630 | O58: 242921 | P58: 128003 | Q58: 152911 | R58: 189943 | S58: 235779 | T58: 216263 | U58: 229233 | V58: 243484 | W58: 234269 | X58: 320897 | Z58: 1341 富林-KY | AA58: 228998 | AB58: 186140 | AC58: 342386 | AD58: 222207 | AE58: 251222 | AF58: 226918 | AG58: 202509 | AH58: 144646 | AI58: 184094 | AJ58: 257218 | AK58: 224859 | AL58: 291644 | AN58: 1341 富林-KY | AO58: 219638 | AP58: 182804 | AQ58: 375407 | AR58: 286377 | AS58: 306465 | AT58: 254443 | AU58: 212305 | AV58: 215526 | AW58: 261614 | AX58: 223036 | AY58: 251684 | AZ58: 253351 | BB58: 1341 富林-KY | BC58: 134809 | BD58: 206280 | BE58: 289627 | BF58: 208199 | BG58: 193594 | BH58: 203520 | BI58: 225415 | BJ58: 196731 | BK58: 221362 | BP58: 1341 富林-KY | BQ58: 252723 | BR58: 152724 | BS58: 248161 | BT58: 266548 | BU58: 260512 | BV58: 233487 | BW58: 286327 | BX58: 276841 | BY58: 246022 | BZ58: 280626 | CA58: 242337 | CB58: 274823
A59: 1402 遠東新 | B59: M1400 紡織纖維 | C59: M14A1 聚酯絲棉 | F59: M20A5 鋁鋅 | L59: 1342 八貫 | M59: 121261 | N59: 133966 | O59: 130000 | P59: 78382 | Q59: 115231 | R59: 129415 | S59: 125398 | T59: 148589 | U59: 162943 | V59: 118416 | W59: 105110 | X59: 146660 | Z59: 1342 八貫 | AA59: 156539 | AB59: 102956 | AC59: 177880 | AD59: 139188 | AE59: 136733 | AF59: 179870 | AG59: 187911 | AH59: 183364 | AI59: 156759 | AJ59: 214601 | AK59: 185202 | AL59: 247884 | AN59: 1342 八貫 | AO59: 200697 | AP59: 187400 | AQ59: 219630 | AR59: 220491 | AS59: 189314 | AT59: 214236 | AU59: 214641 | AV59: 212537 | AW59: 232050 | AX59: 194665 | AY59: 251437 | AZ59: 253662 | BB59: 1342 八貫 | BC59: 246536 | BD59: 148750 | BE59: 239573 | BF59: 212562 | BG59: 178409 | BH59: 223920 | BI59: 188476 | BJ59: 227391 | BK59: 240631 | BP59: 1342 八貫 | BQ59: 129333 | BR59: 69389 | BS59: 113220 | BT59: 123196 | BU59: 109776 | BV59: 105799 | BW59: 146477 | BX59: 173625 | BY59: 122718 | BZ59: 105818 | CA59: 93229 | CB59: 150134
A60: 1409 新纖 | B60: M1400 紡織纖維 | C60: M14A1 聚酯絲棉 | F60: M20A6 不銹鋼 | L60: 1402 遠東新 | M60: 17466170 | N60: 16072828 | O60: 18696616 | P60: 15915565 | Q60: 16015710 | R60: 17013520 | S60: 15997860 | T60: 16731731 | U60: 16832713 | V60: 16790724 | W60: 18791926 | X60: 20535299 | Z60: 1402 遠東新 | AA60: 19154653 | AB60: 17332331 | AC60: 19757228 | AD60: 18494363 | AE60: 20092465 | AF60: 19922489 | AG60: 19058851 | AH60: 19327770 | AI60: 20059024 | AJ60: 21199363 | AK60: 22482606 | AL60: 22302476 | AN60: 1402 遠東新 | AO60: 20470940 | AP60: 19440141 | AQ60: 23482793 | AR60: 21984550 | AS60: 23317154 | AT60: 23978112 | AU60: 22144589 | AV60: 21973635 | AW60: 23089717 | AX60: 22391824 | AY60: 21194378 | AZ60: 20497072 | BB60: 1402 遠東新 | BC60: 18935083 | BD60: 19701851 | BE60: 22902213 | BF60: 20078194 | BG60: 21526680 | BH60: 21716631 | BI60: 20714646 | BJ60: 21526874 | BP60: 1402 遠東新 | BQ60: 21454753 | BR60: 17985769 | BS60: 22458329 | BT60: 21737013 | BU60: 22998106 | BV60: 21990028 | BW60: 21072415 | BX60: 20288593 | BY60: 20367232 | BZ60: 19963313 | CA60: 19378156 | CB60: 20227978
A61: 1410 南染 | B61: M1400 紡織纖維 | C61: M14E 染整 | F61: M20A7 鋼管 | L61: 1409 新纖 | M61: 2560642 | N61: 2410828 | O61: 2639257 | P61: 2410620 | Q61: 2372030 | R61: 2429664 | S61: 2458078 | T61: 2949597 | U61: 2597618 | V61: 2763433 | W61: 2551167 | X61: 4167286 | Z61: 1409 新纖 | AA61: 3145297 | AB61: 2695907 | AC61: 4214077 | AD61: 3774406 | AE61: 3697034 | AF61: 3597869 | AG61: 3661437 | AH61: 4049279 | AI61: 3733900 | AJ61: 4000959 | AK61: 3935610 | AL61: 3704921 | AN61: 1409 新纖 | AO61: 4120985 | AP61: 3673150 | AQ61: 4597676 | AR61: 4214453 | AS61: 4034111 | AT61: 3930119 | AU61: 4072380 | AV61: 4216488 | AW61: 3883592 | AX61: 3487325 | AY61: 2734599 | AZ61: 2997669 | BB61: 1409 新纖 | BC61: 2779771 | BD61: 3143432 | BE61: 3210638 | BF61: 3031779 | BG61: 3191580 | BH61: 3466844 | BI61: 3338855 | BJ61: 3764714 | BP61: 1409 新纖 | BQ61: 3471998 | BR61: 2842997 | BS61: 3535097 | BT61: 3549872 | BU61: 3700502 | BV61: 3019383 | BW61: 3386398 | BX61: 3357589 | BY61: 2928171 | BZ61: 2900775 | CA61: 2755876 | CB61: 2670865
A62: 1413 宏洲 | B62: M1400 紡織纖維 | C62: M14A2 加工絲 | F62: M20A9 其他 | L62: 1410 南染 | M62: 24254 | N62: 34036 | O62: 38973 | P62: 35217 | Q62: 38867 | R62: 28351 | S62: 31295 | T62: 31428 | U62: 40589 | V62: 34020 | W62: 37087 | X62: 42139 | Z62: 1410 南染 | AA62: 36064 | AB62: 29102 | AC62: 43164 | AD62: 42253 | AE62: 52699 | AF62: 35997 | AG62: 40335 | AH62: 43566 | AI62: 37833 | AJ62: 37426 | AK62: 50600 | AL62: 28325 | AN62: 1410 南染 | AO62: 21405 | AP62: 25621 | AQ62: 40992 | AR62: 36907 | AS62: 47273 | AT62: 30146 | AU62: 30028 | AV62: 29489 | AW62: 30640 | AX62: 35487 | AY62: 35454 | AZ62: 32605 | BB62: 1410 南染 | BC62: 16558 | BD62: 20346 | BE62: 17310 | BF62: 15452 | BG62: 23932 | BH62: 17597 | BI62: 17677 | BJ62: 20769 | BK62: 16372 | BP62: 1410 南染 | BQ62: 37375 | BR62: 25652 | BS62: 33322 | BT62: 33432 | BU62: 43565 | BV62: 26979 | BW62: 33496 | BX62: 35635 | BY62: 29056 | BZ62: 35521 | CA62: 33974 | CB62: 30107
A63: 1414 東和 | B63: M1400 紡織纖維 | C63: M14B1 聚酯紗棉紗 | F63: M20B 金屬製品 | L63: 1413 宏洲 | M63: 161063 | N63: 155068 | O63: 142094 | P63: 88220 | Q63: 101981 | R63: 114480 | S63: 90952 | T63: 100864 | U63: 122414 | V63: 141414 | W63: 183846 | X63: 163371 | Z63: 1413 宏洲 | AA63: 202561 | AB63: 174641 | AC63: 242906 | AD63: 249530 | AE63: 256345 | AF63: 262237 | AG63: 247247 | AH63: 260225 | AI63: 244586 | AJ63: 294688 | AK63: 276845 | AL63: 262444 | AN63: 1413 宏洲 | AO63: 285966 | AP63: 262952 | AQ63: 339348 | AR63: 323292 | AS63: 296340 | AT63: 268894 | AU63: 219957 | AV63: 263208 | AW63: 241101 | AX63: 245129 | AY63: 186974 | AZ63: 212772 | BB63: 1413 宏洲 | BC63: 125711 | BD63: 159368 | BE63: 182678 | BF63: 168387 | BG63: 139321 | BH63: 140767 | BI63: 132361 | BJ63: 199408 | BK63: 202309 | BP63: 1413 宏洲 | BQ63: 330573 | BR63: 241280 | BS63: 315920 | BT63: 294785 | BU63: 335144 | BV63: 172545 | BW63: 279551 | BX63: 214577 | BY63: 206611 | BZ63: 219241 | CA63: 153412 | CB63: 183726
A64: 1416 廣豐 | B64: M9900 其他 | C64: M23X9 應用軟體 | F64: M21A 輪胎 | L64: 1414 東和 | M64: 55721 | N64: 86451 | O64: 67930 | P64: 50885 | Q64: 32832 | R64: 35986 | S64: 40033 | T64: 58930 | U64: 60808 | V64: 66216 | W64: 59309 | X64: 87371 | Z64: 1414 東和 | AA64: 69139 | AB64: 62318 | AC64: 71482 | AD64: 68982 | AE64: 62640 | AF64: 65732 | AG64: 66836 | AH64: 66782 | AI64: 64505 | AJ64: 71195 | AK64: 68863 | AL64: 71240 | AN64: 1414 東和 | AO64: 57978 | AP64: 66296 | AQ64: 61181 | AR64: 62544 | AS64: 69859 | AT64: 68651 | AU64: 60543 | AV64: 55727 | AW64: 45145 | AX64: 46849 | AY64: 45472 | AZ64: 48699 | BB64: 1414 東和 | BC64: 35189 | BD64: 48822 | BE64: 55210 | BF64: 38462 | BG64: 54862 | BH64: 44107 | BI64: 44586 | BJ64: 51833 | BK64: 48748 | BP64: 1414 東和 | BQ64: 67103 | BR64: 65962 | BS64: 78072 | BT64: 64024 | BU64: 90644 | BV64: 62324 | BW64: 80951 | BX64: 61659 | BY64: 47368 | BZ64: 43515 | CA64: 60305 | CB64: 68651
A65: 1417 嘉裕 | B65: M1400 紡織纖維 | C65: M14C1 成衣製造 | F65: M21B1 工業橡膠 | L65: 1416 廣豐 | M65: 18109 | N65: 16793 | O65: 15056 | P65: 33377 | Q65: 14114 | R65: 14859 | S65: 15795 | T65: 16747 | U65: 16627 | V65: 15564 | W65: 16677 | X65: 10118 | Z65: 1416 廣豐 | AA65: 20099 | AB65: 17751 | AC65: 27297 | AD65: 21528 | AE65: 22937 | AF65: 20265 | AG65: 19722 | AH65: 19637 | AI65: 45603 | AJ65: 21348 | AK65: 26139 | AL65: 22997 | AN65: 1416 廣豐 | AO65: 19443 | AP65: 18253 | AQ65: 17746 | AR65: 18654 | AS65: 16698 | AT65: 41487 | AU65: 22451 | AV65: 21003 | AW65: 21346 | AX65: 16958 | AY65: 17515 | AZ65: 17835 | BB65: 1416 廣豐 | BC65: 18311 | BD65: 19231 | BE65: 42520 | BF65: 19294 | BG65: 22912 | BH65: 20086 | BI65: 23230 | BJ65: 21351 | BP65: 1416 廣豐 | BQ65: 18583 | BR65: 18951 | BS65: 18545 | BT65: 19058 | BU65: 46756 | BV65: 19891 | BW65: 22929 | BX65: 20267 | BY65: 18818 | BZ65: 18440 | CA65: 17969 | CB65: 18678
A66: 1418 東華 | B66: M1400 紡織纖維 | C66: M14B2 亞克力纖維 | F66: M21B2 其他橡膠 | L66: 1417 嘉裕 | M66: 129664 | N66: 97360 | O66: 55200 | P66: 49007 | Q66: 79310 | R66: 93304 | S66: 90463 | T66: 81197 | U66: 92872 | V66: 92852 | W66: 107100 | X66: 90121 | Z66: 1417 嘉裕 | AA66: 126957 | AB66: 93957 | AC66: 97834 | AD66: 113051 | AE66: 93885 | AF66: 89594 | AG66: 99009 | AH66: 74018 | AI66: 78757 | AJ66: 135528 | AK66: 167809 | AL66: 152265 | AN66: 1417 嘉裕 | AO66: 131332 | AP66: 122388 | AQ66: 148058 | AR66: 111074 | AS66: 95800 | AT66: 103180 | AU66: 120361 | AV66: 117306 | AW66: 154084 | AX66: 137357 | AY66: 133803 | AZ66: 136189 | BB66: 1417 嘉裕 | BC66: 112648 | BD66: 159979 | BE66: 161679 | BF66: 121853 | BG66: 154036 | BH66: 92878 | BI66: 108193 | BJ66: 111755 | BP66: 1417 嘉裕 | BQ66: 157899 | BR66: 119313 | BS66: 96359 | BT66: 108302 | BU66: 115889 | BV66: 102072 | BW66: 117389 | BX66: 113433 | BY66: 83236 | BZ66: 103663 | CA66: 144440 | CB66: 143657
A67: 1419 新紡 | B67: M1400 紡織纖維 | C67: M14C2 織布 | F67: M21C 橡膠原料 | L67: 1418 東華 | M67: 9629 | N67: 11758 | O67: 12667 | P67: 772 | Q67: 8505 | R67: 11660 | S67: 6940 | T67: 3575 | U67: 6159 | V67: 5172 | W67: 11414 | X67: 11891 | Z67: 1418 東華 | AA67: 6471 | AB67: 2740 | AC67: 3669 | AD67: 6270 | AE67: 6456 | AF67: 1922 | AG67: 2766 | AH67: 4421 | AI67: 747 | AJ67: 2780 | AK67: 146 | AL67: 909 | AN67: 1418 東華 | AO67: 1751 | AP67: 245 | AQ67: 3199 | AR67: 70 | AS67: 3275 | AT67: 1101 | AU67: 427 | AV67: 701 | AW67: 891 | AX67: 1761 | AY67: 883 | AZ67: 6450 | BB67: 1418 東華 | BC67: 3598 | BD67: 3373 | BE67: 3082 | BF67: 1724 | BG67: 244 | BH67: 1190 | BI67: 1580 | BJ67: 1069 | BK67: 1137 | BP67: 1418 東華 | BQ67: 11785 | BR67: 27041 | BS67: 43377 | BT67: 22990 | BU67: 21933 | BV67: 14833 | BW67: 19541 | BX67: 13287 | BY67: 5508 | BZ67: 8824 | CA67: 17183 | CB67: 5238
A68: 1423 利華 | B68: M1400 紡織纖維 | C68: M14D2 毛紡 | F68: M22A 汽車製造 | L68: 1419 新紡 | M68: 163148 | N68: 180755 | O68: 222376 | P68: 162217 | Q68: 137126 | R68: 131116 | S68: 112340 | T68: 155070 | U68: 202648 | V68: 220587 | W68: 229060 | X68: 232948 | Z68: 1419 新紡 | AA68: 192552 | AB68: 143826 | AC68: 213510 | AD68: 244757 | AE68: 183301 | AF68: 206225 | AG68: 166922 | AH68: 223987 | AI68: 257212 | AJ68: 334325 | AK68: 282768 | AL68: 299528 | AN68: 1419 新紡 | AO68: 260430 | AP68: 194672 | AQ68: 294277 | AR68: 259024 | AS68: 220239 | AT68: 234378 | AU68: 270399 | AV68: 312131 | AW68: 349765 | AX68: 357743 | AY68: 324541 | AZ68: 271690 | BB68: 1419 新紡 | BC68: 264387 | BD68: 256959 | BE68: 307556 | BF68: 239631 | BG68: 216761 | BH68: 226608 | BI68: 216163 | BJ68: 266298 | BK68: 334093 | BP68: 1419 新紡 | BQ68: 125881 | BR68: 123598 | BS68: 154998 | BT68: 146762 | BU68: 179713 | BV68: 138297 | BW68: 126294 | BX68: 166996 | BY68: 214712 | BZ68: 264084 | CA68: 246266 | CB68: 194686
A69: 1432 大魯閣 | B69: M3700 運動休閒 | C69: M29A1 百貨及Mall | F69: M22B1 船舶製造 | L69: 1423 利華 | M69: 12069 | N69: 26244 | O69: 19015 | P69: 15837 | Q69: 18695 | R69: 30771 | S69: 14835 | T69: 13614 | U69: 12877 | V69: 14604 | W69: 12038 | X69: 12124 | Z69: 1423 利華 | AA69: 17467 | AB69: 14184 | AC69: 22269 | AD69: 17732 | AE69: 16819 | AF69: 20114 | AG69: 8375 | AH69: 12666 | AI69: 7790 | AJ69: 17597 | AK69: 14354 | AL69: 20778 | AN69: 1423 利華 | AO69: 18968 | AP69: 12381 | AQ69: 29143 | AR69: 16530 | AS69: 15767 | AT69: 9338 | AU69: 10059 | AV69: 14789 | AW69: 9251 | AX69: 9328 | AY69: 16881 | AZ69: 13507 | BB69: 1423 利華 | BC69: 8444 | BD69: 8359 | BE69: 19964 | BF69: 9825 | BG69: 6951 | BH69: 9011 | BI69: 10996 | BJ69: 11088 | BK69: 6637 | BP69: 1423 利華 | BQ69: 42073 | BR69: 31127 | BS69: 38900 | BT69: 63594 | BU69: 50847 | BV69: 37946 | BW69: 49882 | BX69: 41673 | BY69: 38382 | BZ69: 27475 | CA69: 21416 | CB69: 11776
A70: 1434 福懋 | B70: M1400 紡織纖維 | C70: M14C2 織布 | F70: M22B2 機車製造 | L70: 1432 大魯閣 | M70: 103967 | N70: 71789 | O70: 148984 | P70: 71337 | Q70: 88560 | R70: 101031 | S70: 107979 | T70: 110241 | U70: 84413 | V70: 105628 | W70: 67819 | X70: 87314 | Z70: 1432 大魯閣 | AA70: 75403 | AB70: 84692 | AC70: 73031 | AD70: 76668 | AE70: 43410 | AF70: 15449 | AG70: 27002 | AH70: 59027 | AI70: 64585 | AJ70: 86560 | AK70: 80776 | AL70: 90758 | AN70: 1432 大魯閣 | AO70: 79350 | AP70: 95040 | AQ70: 87280 | AR70: 77220 | AS70: 67578 | AT70: 79090 | AU70: 111611 | AV70: 118928 | AW70: 94922 | AX70: 100705 | AY70: 88036 | AZ70: 104185 | BB70: 1432 大魯閣 | BC70: 124297 | BD70: 94608 | BE70: 89248 | BF70: 110818 | BG70: 97945 | BH70: 112502 | BI70: 135685 | BJ70: 134101 | BP70: 1432 大魯閣 | BQ70: 91221 | BR70: 109804 | BS70: 115421 | BT70: 98458 | BU70: 91769 | BV70: 95087 | BW70: 103199 | BX70: 113142 | BY70: 92065 | BZ70: 86014 | CA70: 79771 | CB70: 96781
A71: 1435 中福 | B71: M9900 其他 | C71: M23KX 其他網通 | F71: M22X 汽車買賣 | L71: 1434 福懋 | M71: 2648364 | N71: 2869596 | O71: 3071375 | P71: 2406454 | Q71: 2025420 | R71: 2030628 | S71: 2081782 | T71: 2189192 | U71: 2328734 | V71: 2374609 | W71: 2253131 | X71: 2527585 | Z71: 1434 福懋 | AA71: 2591722 | AB71: 2283006 | AC71: 3284511 | AD71: 3090691 | AE71: 2935975 | AF71: 2583016 | AG71: 2620085 | AH71: 2453091 | AI71: 2510703 | AJ71: 2722623 | AK71: 2767029 | AL71: 2962335 | AN71: 1434 福懋 | AO71: 2904198 | AP71: 2669478 | AQ71: 3340529 | AR71: 3285328 | AS71: 3088377 | AT71: 2908460 | AU71: 2957701 | AV71: 2965754 | AW71: 2814635 | AX71: 2626721 | AY71: 2512236 | AZ71: 2632228 | BB71: 1434 福懋 | BC71: 2465734 | BD71: 2460970 | BE71: 2725747 | BF71: 2449859 | BG71: 2473663 | BH71: 2304846 | BI71: 2256531 | BJ71: 2477621 | BK71: 2407270 | BP71: 1434 福懋 | BQ71: 3887745 | BR71: 3412786 | BS71: 3631838 | BT71: 3530905 | BU71: 3507898 | BV71: 3028509 | BW71: 2895962 | BX71: 3029589 | BY71: 2934871 | BZ71: 2796923 | CA71: 2671814 | CB71: 2753330
A72: 1436 華友聯 | B72: M2500 建材營造 | C72: M25A 建設 | F72: M23A1 PC | L72: 1435 中福 | M72: 1265 | N72: 1173 | O72: 1299 | P72: 1242 | Q72: 1308 | R72: 1280 | S72: 1275 | T72: 1269 | U72: 1267 | V72: 1268 | W72: 1151 | X72: 1304 | Z72: 1435 中福 | AA72: 1226 | AB72: 1152 | AC72: 1094 | AD72: 1290 | AE72: 1184 | AF72: 1068 | AG72: 1306 | AH72: 1146 | AI72: 1225 | AJ72: 1119 | AK72: 1059 | AL72: 1191 | AN72: 1435 中福 | AO72: 1145 | AP72: 1207 | AQ72: 1131 | AR72: 1075 | AS72: 1077 | AT72: 1475 | AU72: 1067 | AV72: 1085 | AW72: 1030 | AX72: 988 | AY72: 1072 | AZ72: 745 | BB72: 1435 中福 | BC72: 738 | BD72: 727 | BE72: 752 | BF72: 759 | BG72: 750 | BH72: 742 | BI72: 745 | BJ72: 724 | BK72: 676 | BP72: 1435 中福 | BQ72: 1799 | BR72: 1810 | BS72: 1755 | BT72: 1787 | BU72: 1799 | BV72: 1769 | BW72: 1755 | BX72: 1748 | BY72: 1853 | BZ72: 1362 | CA72: 2500 | CB72: 1347
A73: 1437 勤益控 | B73: M9900 其他 | C73: M25F 物業管理 | F73: M23A2 NB | L73: 1436 華友聯 | M73: 265215 | N73: 56395 | O73: 69295 | P73: 28317 | Q73: 30993 | R73: 220554 | S73: 395003 | T73: 150705 | U73: 300717 | V73: 92570 | W73: 19566 | X73: 2551 | Z73: 1436 華友聯 | AA73: 675 | AB73: 3934 | AC73: 414725 | AD73: 387958 | AE73: 545143 | AF73: 488356 | AG73: 374053 | AH73: 119757 | AI73: 88834 | AJ73: 86211 | AK73: 35457 | AL73: 34053 | AN73: 1436 華友聯 | AO73: 511 | AP73: 4215 | AQ73: 501 | AR73: 825 | AS73: 232833 | AT73: 544747 | AU73: 655976 | AV73: 864693 | AW73: 938714 | AX73: 413976 | AY73: 167893 | AZ73: 114841 | BB73: 1436 華友聯 | BC73: 1402 | BD73: 2882 | BE73: 18588 | BF73: 25164 | BG73: 25378 | BH73: 26663 | BI73: 37887 | BJ73: 97600 | BK73: 61767 | BP73: 1436 華友聯 | BQ73: 273254 | BR73: 87388 | BS73: 144524 | BT73: 40703 | BU73: 33977 | BV73: 42728 | BW73: 33576 | BX73: 9890 | BY73: 58620 | BZ73: 330408 | CA73: 494240 | CB73: 525463
A74: 1438 三地開發 | B74: M2500 建材營造 | C74: M25A 建設 | F74: M23A3 PC品牌 | L74: 1437 勤益控 | M74: 94623 | N74: 39775 | O74: 41894 | P74: 39674 | Q74: 43993 | R74: 39973 | S74: 40790 | T74: 42076 | U74: 43413 | V74: 45203 | W74: 44647 | X74: 48204 | Z74: 1437 勤益控 | AA74: 90279 | AB74: 41961 | AC74: 46409 | AD74: 44945 | AE74: 52195 | AF74: 49178 | AG74: 78640 | AH74: 48060 | AI74: 52406 | AJ74: 71924 | AK74: 70252 | AL74: 56477 | AN74: 1437 勤益控 | AO74: 66588 | AP74: 59661 | AQ74: 54764 | AR74: 55103 | AS74: 55074 | AT74: 61957 | AU74: 123460 | AV74: 67184 | AW74: 61981 | AX74: 57437 | AY74: 87251 | AZ74: 51382 | BB74: 1437 勤益控 | BC74: 51610 | BD74: 60985 | BE74: 60297 | BF74: 54917 | BG74: 55198 | BH74: 58940 | BI74: 154015 | BJ74: 54326 | BK74: 126347 | BP74: 1437 勤益控 | BQ74: 107333 | BR74: 41382 | BS74: 46061 | BT74: 42797 | BU74: 43836 | BV74: 41198 | BW74: 43964 | BX74: 41186 | BY74: 42740 | BZ74: 41724 | CA74: 43711 | CB74: 42755
A75: 1439 雋揚 | B75: M2500 建材營造 | C75: M25A 建設 | F75: M23B1 主機板 | L75: 1438 三地開發 | M75: 2 | N75: 0 | O75: 84580 | P75: 0 | Q75: 7 | R75: 13833 | S75: 0 | T75: 4 | U75: 2 | V75: 1 | W75: 0 | X75: 1 | Z75: 1438 三地開發 | AA75: 0 | AB75: 38 | AC75: 369 | AD75: 14 | AE75: 1 | AF75: 6 | AG75: 14 | AH75: 39 | AI75: 16 | AJ75: 19 | AK75: 11774 | AL75: 7 | AN75: 1438 三地開發 | AO75: 12 | AP75: 0 | AQ75: 3 | AR75: 0 | AS75: 4 | AT75: 455695 | AU75: 0 | AV75: 0 | AW75: 1 | AX75: 196 | AY75: 14801 | AZ75: 124552 | BB75: 1438 三地開發 | BC75: 105506 | BD75: 150176 | BE75: 16555 | BF75: 0 | BG75: 0 | BH75: 0 | BI75: 0 | BJ75: 27510 | BK75: 0 | BP75: 1438 三地開發 | BQ75: 2 | BR75: 1 | BS75: 2 | BT75: 1 | BU75: 0 | BV75: 0 | BW75: 2 | BX75: 2 | BY75: 0 | BZ75: 0 | CA75: 0 | CB75: 1
A76: 1440 南紡 | B76: M1400 紡織纖維 | C76: M14A1 聚酯絲棉 | F76: M23B2A IC載板 | L76: 1439 雋揚 | M76: 10775 | N76: 11862 | O76: 27092 | P76: 3160 | Q76: 8281 | R76: 8659 | S76: 7998 | T76: 6712 | U76: 4997 | V76: 6211 | W76: 2288 | X76: 15085 | Z76: 1439 雋揚 | AA76: 6140 | AB76: 5257 | AC76: 11128 | AD76: 5984 | AE76: 8858 | AF76: 4245 | AG76: 5312 | AH76: 8056 | AI76: 5322 | AJ76: 5850 | AK76: 9735 | AL76: 2912 | AN76: 1439 雋揚 | AO76: 19949 | AP76: 48389 | AQ76: 32313 | AR76: 82965 | AS76: 97104 | AT76: 18741 | AU76: 79269 | AV76: 15828 | AW76: 60889 | AX76: 16811 | AY76: 84087 | AZ76: 13807 | BB76: 1439 雋揚 | BC76: 44882 | BD76: 13551 | BE76: 31665 | BF76: 8303 | BG76: 4615 | BH76: 7593 | BI76: 24130 | BJ76: 7761 | BK76: 4941 | BP76: 1439 雋揚 | BQ76: 22506 | BR76: 26367 | BS76: 6578 | BT76: 17363 | BU76: 15025 | BV76: 18448 | BW76: 8634 | BX76: 10921 | BY76: 12636 | BZ76: 6760 | CA76: 16504 | CB76: 11264
A77: 1441 大東 | B77: M1400 紡織纖維 | C77: M14B1 聚酯紗棉紗 | F77: M23B2B PCB 組裝 | L77: 1440 南紡 | M77: 1354218 | N77: 1978926 | O77: 1704740 | P77: 1036389 | Q77: 1173545 | R77: 1352756 | S77: 1348536 | T77: 1230819 | U77: 1418244 | V77: 1614790 | W77: 1633489 | X77: 1781769 | Z77: 1440 南紡 | AA77: 1721188 | AB77: 1435743 | AC77: 2176174 | AD77: 1891812 | AE77: 1592547 | AF77: 1834576 | AG77: 1721379 | AH77: 1414727 | AI77: 1233678 | AJ77: 1539664 | AK77: 1742497 | AL77: 1889526 | AN77: 1440 南紡 | AO77: 1784787 | AP77: 1945614 | AQ77: 2060595 | AR77: 1765497 | AS77: 1968738 | AT77: 1865022 | AU77: 1727479 | AV77: 1615212 | AW77: 1759926 | AX77: 1870857 | AY77: 1786531 | AZ77: 1817974 | BB77: 1440 南紡 | BC77: 1392081 | BD77: 2006312 | BE77: 2054918 | BF77: 1611302 | BG77: 1760972 | BH77: 1657001 | BI77: 1467285 | BJ77: 1590203 | BP77: 1440 南紡 | BQ77: 2034326 | BR77: 1513609 | BS77: 2217452 | BT77: 1972090 | BU77: 2022479 | BV77: 1860018 | BW77: 2169047 | BX77: 1875976 | BY77: 1647316 | BZ77: 2011385 | CA77: 1768543 | CB77: 1857387
A78: 1442 名軒 | B78: M2500 建材營造 | C78: M25A 建設 | F78: M23B2C 軟板 | L78: 1441 大東 | M78: 142499 | N78: 163779 | O78: 172867 | P78: 97050 | Q78: 112609 | R78: 86933 | S78: 125484 | T78: 178603 | U78: 45644 | V78: 161229 | W78: 131969 | X78: 109749 | Z78: 1441 大東 | AA78: 152172 | AB78: 76911 | AC78: 142941 | AD78: 113161 | AE78: 147229 | AF78: 119309 | AG78: 136255 | AH78: 113796 | AI78: 109629 | AJ78: 162042 | AK78: 130873 | AL78: 142124 | AN78: 1441 大東 | AO78: 135504 | AP78: 96209 | AQ78: 181288 | AR78: 139385 | AS78: 142337 | AT78: 154545 | AU78: 141393 | AV78: 108145 | AW78: 130954 | AX78: 116047 | AY78: 104499 | AZ78: 137761 | BB78: 1441 大東 | BC78: 89197 | BD78: 106813 | BE78: 109949 | BF78: 95357 | BG78: 86399 | BH78: 86636 | BI78: 119829 | BJ78: 105790 | BP78: 1441 大東 | BQ78: 148439 | BR78: 73105 | BS78: 155685 | BT78: 131729 | BU78: 128569 | BV78: 97221 | BW78: 137235 | BX78: 120395 | BY78: 105088 | BZ78: 123806 | CA78: 120049 | CB78: 125551
A79: 1443 立益物流 | B79: M9900 其他 | C79: M26C 貨運倉儲業 | F79: M23B2D PCB | L79: 1442 名軒 | M79: 20427 | N79: 44873 | O79: 36664 | P79: 79708 | Q79: 38438 | R79: 267759 | S79: 836684 | T79: 176465 | U79: 324999 | V79: 96118 | W79: 174990 | X79: 134272 | Z79: 1442 名軒 | AA79: 136979 | AB79: 98925 | AC79: 130171 | AD79: 56129 | AE79: 347697 | AF79: 591123 | AG79: 1380621 | AH79: 243501 | AI79: 220093 | AJ79: 188462 | AK79: 29610 | AL79: 26824 | AN79: 1442 名軒 | AO79: 46353 | AP79: 34314 | AQ79: 113767 | AR79: 45463 | AS79: 67510 | AT79: 85837 | AU79: 69478 | AV79: 125929 | AW79: 5668 | AX79: 27885 | AY79: 863 | AZ79: 1380284 | BB79: 1442 名軒 | BC79: 12625 | BD79: 158472 | BE79: 306639 | BF79: 39846 | BG79: 134351 | BH79: 71572 | BI79: 64711 | BJ79: 97446 | BK79: 145188 | BP79: 1442 名軒 | BQ79: 74621 | BR79: 47250 | BS79: 38097 | BT79: 47969 | BU79: 72815 | BV79: 25408 | BW79: 66628 | BX79: 32143 | BY79: 50373 | BZ79: 25559 | CA79: 154381 | CB79: 59414
A80: 1444 力麗 | B80: M1400 紡織纖維 | C80: M14A2 加工絲 | F80: M23B3A 銅箔基板 | L80: 1443 立益物流 | M80: 44762 | N80: 45184 | O80: 55681 | P80: 40630 | Q80: 40786 | R80: 39412 | S80: 41296 | T80: 46155 | U80: 55232 | V80: 54439 | W80: 54269 | X80: 49125 | Z80: 1443 立益物流 | AA80: 56609 | AB80: 41826 | AC80: 60327 | AD80: 54808 | AE80: 55089 | AF80: 45266 | AG80: 64877 | AH80: 71794 | AI80: 86556 | AJ80: 111745 | AK80: 114367 | AL80: 89453 | AN80: 1443 立益物流 | AO80: 80108 | AP80: 64738 | AQ80: 69205 | AR80: 53457 | AS80: 75480 | AT80: 57486 | AU80: 63796 | AV80: 103981 | AW80: 77399 | AX80: 63882 | AY80: 64905 | AZ80: 72803 | BB80: 1443 立益物流 | BC80: 53169 | BD80: 49068 | BE80: 67606 | BF80: 54091 | BG80: 59825 | BH80: 62602 | BI80: 56804 | BJ80: 75942 | BK80: 91268 | BP80: 1443 立益物流 | BQ80: 80328 | BR80: 41416 | BS80: 55594 | BT80: 63051 | BU80: 50886 | BV80: 51220 | BW80: 54516 | BX80: 57781 | BY80: 49317 | BZ80: 58625 | CA80: 63982 | CB80: 74903
A81: 1445 大宇 | B81: M1400 紡織纖維 | C81: M14C2 織布 | F81: M23B3B 玻纖紗. 布 | L81: 1444 力麗 | M81: 744969 | N81: 810705 | O81: 888025 | P81: 613571 | Q81: 463133 | R81: 590953 | S81: 601444 | T81: 696679 | U81: 652937 | V81: 713503 | W81: 786572 | X81: 811117 | Z81: 1444 力麗 | AA81: 749992 | AB81: 634910 | AC81: 817402 | AD81: 771799 | AE81: 849439 | AF81: 978966 | AG81: 1083349 | AH81: 1017562 | AI81: 965384 | AJ81: 891412 | AK81: 874440 | AL81: 1243528 | AN81: 1444 力麗 | AO81: 1047806 | AP81: 812838 | AQ81: 1039640 | AR81: 1448814 | AS81: 1111613 | AT81: 1159040 | AU81: 1124306 | AV81: 1110060 | AW81: 1056962 | AX81: 853767 | AY81: 820065 | AZ81: 651881 | BB81: 1444 力麗 | BC81: 712724 | BD81: 691151 | BE81: 851855 | BF81: 713850 | BG81: 816251 | BH81: 685470 | BI81: 654087 | BJ81: 745675 | BK81: 683136 | BP81: 1444 力麗 | BQ81: 1185284 | BR81: 887659 | BS81: 1114135 | BT81: 1020252 | BU81: 1164734 | BV81: 885585 | BW81: 987427 | BX81: 1060625 | BY81: 990231 | BZ81: 972078 | CA81: 769946 | CB81: 970164
A82: 1446 宏和 | B82: M1400 紡織纖維 | C82: M14C2 織布 | F82: M23B3C FCCL | L82: 1445 大宇 | M82: 98410 | N82: 117479 | O82: 101807 | P82: 53183 | Q82: 56628 | R82: 54918 | S82: 66974 | T82: 67213 | U82: 70496 | V82: 66097 | W82: 66994 | X82: 97272 | Z82: 1445 大宇 | AA82: 78183 | AB82: 90150 | AC82: 100235 | AD82: 95403 | AE82: 96775 | AF82: 99244 | AG82: 107528 | AH82: 102038 | AI82: 114512 | AJ82: 109180 | AK82: 123823 | AL82: 137076 | AN82: 1445 大宇 | AO82: 135407 | AP82: 89855 | AQ82: 124622 | AR82: 132084 | AS82: 125230 | AT82: 103931 | AU82: 129689 | AV82: 124480 | AW82: 122975 | AX82: 135940 | AY82: 142777 | AZ82: 144218 | BB82: 1445 大宇 | BC82: 114713 | BD82: 120811 | BE82: 166482 | BF82: 124253 | BG82: 115960 | BH82: 113575 | BI82: 104813 | BJ82: 104160 | BK82: 86848 | BP82: 1445 大宇 | BQ82: 164017 | BR82: 87675 | BS82: 139706 | BT82: 124374 | BU82: 120637 | BV82: 86828 | BW82: 110460 | BX82: 88487 | BY82: 97067 | BZ82: 122584 | CA82: 111504 | CB82: 117192
A83: 1447 力鵬 | B83: M1400 紡織纖維 | C83: M14A7 尼龍絲 | F83: M23B3X PCB上-其他 | L83: 1446 宏和 | M83: 34612 | N83: 20955 | O83: 70954 | P83: 51438 | Q83: 25015 | R83: 35386 | S83: 28078 | T83: 81594 | U83: 44365 | V83: 5008 | W83: 63683 | X83: 30113 | Z83: 1446 宏和 | AA83: 29710 | AB83: 29999 | AC83: 23483 | AD83: 10098 | AE83: 10211 | AF83: 9574 | AG83: 13694 | AH83: 15769 | AI83: 10204 | AJ83: 8842 | AK83: 12554 | AL83: 18881 | AN83: 1446 宏和 | AO83: 12563 | AP83: 6324 | AQ83: 12271 | AR83: 11466 | AS83: 14151 | AT83: 10419 | AU83: 20368 | AV83: 10478 | AW83: 12108 | AX83: 16767 | AY83: 14527 | AZ83: 14263 | BB83: 1446 宏和 | BC83: 7685 | BD83: 9170 | BE83: 18729 | BF83: 10035 | BG83: 17823 | BH83: 9012 | BI83: 9141 | BJ83: 9536 | BK83: 7358 | BP83: 1446 宏和 | BQ83: 36057 | BR83: 21639 | BS83: 25731 | BT83: 43963 | BU83: 49037 | BV83: 49019 | BW83: 44354 | BX83: 45462 | BY83: 29958 | BZ83: 24092 | CA83: 95999 | CB83: 90414
A84: 1449 佳和 | B84: M1400 紡織纖維 | C84: M14C2 織布 | F84: M23B4A 繪圖卡 | L84: 1447 力鵬 | M84: 879978 | N84: 1043140 | O84: 967469 | P84: 652727 | Q84: 674463 | R84: 731202 | S84: 622904 | T84: 960407 | U84: 1972834 | V84: 1880469 | W84: 1736512 | X84: 1437353 | Z84: 1447 力鵬 | AA84: 1703830 | AB84: 1875926 | AC84: 2298590 | AD84: 1910183 | AE84: 2263198 | AF84: 1955590 | AG84: 2046479 | AH84: 1980684 | AI84: 1561857 | AJ84: 2288069 | AK84: 2376394 | AL84: 1991636 | AN84: 1447 力鵬 | AO84: 1567857 | AP84: 1813420 | AQ84: 2981959 | AR84: 1749634 | AS84: 2998495 | AT84: 2998409 | AU84: 3157856 | AV84: 2719435 | AW84: 1396651 | AX84: 2721596 | AY84: 2184186 | AZ84: 2211894 | BB84: 1447 力鵬 | BC84: 3246032 | BD84: 2132592 | BE84: 3107529 | BF84: 1139542 | BG84: 2729847 | BH84: 3698736 | BI84: 3222017 | BJ84: 1938288 | BK84: 1328742 | BP84: 1447 力鵬 | BQ84: 1262287 | BR84: 1143378 | BS84: 1419677 | BT84: 1422954 | BU84: 1423554 | BV84: 1086075 | BW84: 1332260 | BX84: 1074439 | BY84: 1131932 | BZ84: 1143626 | CA84: 964471 | CB84: 1174694
A85: 1451 年興 | B85: M1400 紡織纖維 | C85: M14C1 成衣製造 | F85: M23B4B 電視卡 | L85: 1449 佳和 | M85: 111626 | N85: 150298 | O85: 158417 | P85: 85794 | Q85: 227360 | R85: 183311 | S85: 86690 | T85: 239951 | U85: 109559 | V85: 219162 | W85: 193946 | X85: 163037 | Z85: 1449 佳和 | AA85: 139548 | AB85: 201706 | AC85: 248198 | AD85: 251070 | AE85: 250156 | AF85: 333575 | AG85: 273727 | AH85: 191301 | AI85: 258758 | AJ85: 200317 | AK85: 204431 | AL85: 233086 | AN85: 1449 佳和 | AO85: 203474 | AP85: 145736 | AQ85: 263710 | AR85: 230524 | AS85: 237255 | AT85: 234689 | AU85: 182939 | AV85: 232128 | AW85: 240703 | AX85: 200910 | AY85: 137813 | AZ85: 174301 | BB85: 1449 佳和 | BC85: 141755 | BD85: 208007 | BE85: 265460 | BF85: 188729 | BG85: 204702 | BH85: 228749 | BI85: 227642 | BJ85: 333084 | BK85: 236451 | BP85: 1449 佳和 | BQ85: 200961 | BR85: 165856 | BS85: 196788 | BT85: 219244 | BU85: 204628 | BV85: 188952 | BW85: 224870 | BX85: 198862 | BY85: 236795 | BZ85: 236571 | CA85: 217540 | CB85: 209856
A86: 1452 宏益 | B86: M1400 紡織纖維 | C86: M14A2 加工絲 | F86: M23B5A POS | L86: 1451 年興 | M86: 644616 | N86: 613683 | O86: 615361 | P86: 140598 | Q86: 307953 | R86: 638348 | S86: 669496 | T86: 657733 | U86: 741504 | V86: 699166 | W86: 595405 | X86: 695510 | Z86: 1451 年興 | AA86: 542580 | AB86: 472016 | AC86: 723142 | AD86: 572110 | AE86: 596702 | AF86: 685864 | AG86: 757841 | AH86: 815573 | AI86: 753483 | AJ86: 601494 | AK86: 756766 | AL86: 734906 | AN86: 1451 年興 | AO86: 669189 | AP86: 641972 | AQ86: 661448 | AR86: 783369 | AS86: 901078 | AT86: 785726 | AU86: 861416 | AV86: 825466 | AW86: 724042 | AX86: 642537 | AY86: 771499 | AZ86: 427427 | BB86: 1451 年興 | BC86: 558008 | BD86: 399572 | BE86: 546913 | BF86: 503074 | BG86: 686204 | BH86: 560978 | BI86: 632126 | BJ86: 537506 | BK86: 461901 | BP86: 1451 年興 | BQ86: 841714 | BR86: 533848 | BS86: 721011 | BT86: 639664 | BU86: 833821 | BV86: 742499 | BW86: 705526 | BX86: 723471 | BY86: 767390 | BZ86: 750858 | CA86: 641242 | CB86: 666468
A87: 1453 大將 | B87: M2500 建材營造 | C87: M25A 建設 | F87: M23B5B 工業電腦 | L87: 1452 宏益 | M87: 114486 | N87: 146138 | O87: 112721 | P87: 28631 | Q87: 50251 | R87: 65767 | S87: 81921 | T87: 110149 | U87: 116783 | V87: 119450 | W87: 142400 | X87: 183208 | Z87: 1452 宏益 | AA87: 170473 | AB87: 141746 | AC87: 201142 | AD87: 162389 | AE87: 165986 | AF87: 162515 | AG87: 167154 | AH87: 171621 | AI87: 162067 | AJ87: 184852 | AK87: 216459 | AL87: 191268 | AN87: 1452 宏益 | AO87: 175169 | AP87: 147000 | AQ87: 193024 | AR87: 164269 | AS87: 178007 | AT87: 167982 | AU87: 135987 | AV87: 134402 | AW87: 133017 | AX87: 124496 | AY87: 137930 | AZ87: 127138 | BB87: 1452 宏益 | BC87: 68343 | BD87: 84182 | BE87: 107333 | BF87: 82732 | BG87: 101889 | BH87: 94651 | BI87: 97837 | BJ87: 104627 | BK87: 93126 | BP87: 1452 宏益 | BQ87: 205151 | BR87: 140035 | BS87: 165643 | BT87: 178997 | BU87: 183280 | BV87: 151994 | BW87: 166503 | BX87: 150673 | BY87: 117997 | BZ87: 147973 | CA87: 149486 | CB87: 160406
A88: 1454 台富 | B88: M1400 紡織纖維 | C88: M14C2 織布 | F88: M23C1 監視器 | L88: 1453 大將 | M88: 20381 | N88: 56 | O88: 56 | P88: 56 | Q88: 25630 | R88: 56 | S88: 172376 | T88: 266 | U88: 252 | V88: 56 | W88: 56 | X88: 169 | Z88: 1453 大將 | AA88: 15982 | AB88: 38 | AC88: 38 | AD88: 38 | AE88: 38 | AF88: 38 | AG88: 38 | AH88: 38 | AI88: 38 | AJ88: 38 | AK88: 38 | AL88: 27924 | AN88: 1453 大將 | AO88: 38 | AP88: 73000 | AQ88: 53031 | AR88: 38 | AS88: 23786 | AT88: 57 | AU88: 30291 | AV88: 39629 | AW88: 28514 | AX88: 57 | AY88: 57 | AZ88: 57 | BB88: 1453 大將 | BC88: 57 | BD88: 57 | BE88: 57 | BF88: 57 | BG88: 57 | BH88: 57 | BI88: 57 | BJ88: 57 | BK88: 57 | BP88: 1453 大將 | BQ88: 125 | BR88: 74 | BS88: 37 | BT88: 37 | BU88: 38 | BV88: 191 | BW88: 37 | BX88: 37 | BY88: 37 | BZ88: 56 | CA88: 56 | CB88: 44034
A89: 1455 集盛 | B89: M1400 紡織纖維 | C89: M14A7 尼龍絲 | F89: M23C2 掃瞄器 | L89: 1454 台富 | M89: 118611 | N89: 138709 | O89: 134983 | P89: 98533 | Q89: 79555 | R89: 61594 | S89: 89393 | T89: 63413 | U89: 92735 | V89: 78705 | W89: 118054 | X89: 130643 | Z89: 1454 台富 | AA89: 120729 | AB89: 118548 | AC89: 127728 | AD89: 127762 | AE89: 127550 | AF89: 163692 | AG89: 150961 | AH89: 128509 | AI89: 114653 | AJ89: 118589 | AK89: 140853 | AL89: 135245 | AN89: 1454 台富 | AO89: 153526 | AP89: 120473 | AQ89: 176139 | AR89: 167368 | AS89: 185141 | AT89: 148825 | AU89: 155473 | AV89: 157137 | AW89: 141617 | AX89: 125290 | AY89: 139290 | AZ89: 126002 | BB89: 1454 台富 | BC89: 99448 | BD89: 112569 | BE89: 151861 | BF89: 119161 | BG89: 154835 | BH89: 121252 | BI89: 126650 | BJ89: 144631 | BK89: 138803 | BP89: 1454 台富 | BQ89: 170512 | BR89: 135856 | BS89: 165670 | BT89: 176514 | BU89: 183391 | BV89: 151981 | BW89: 173865 | BX89: 137104 | BY89: 159064 | BZ89: 173464 | CA89: 138256 | CB89: 138854
A90: 1456 怡華 | B90: M2500 建材營造 | C90: M25A 建設 | F90: M23C3 PC週邊 | L90: 1455 集盛 | M90: 679676 | N90: 717761 | O90: 746898 | P90: 384667 | Q90: 396217 | R90: 503149 | S90: 523263 | T90: 715912 | U90: 729968 | V90: 654240 | W90: 787713 | X90: 836143 | Z90: 1455 集盛 | AA90: 828749 | AB90: 708790 | AC90: 825740 | AD90: 886296 | AE90: 934445 | AF90: 923139 | AG90: 1007763 | AH90: 987059 | AI90: 995373 | AJ90: 1069872 | AK90: 1021085 | AL90: 1030203 | AN90: 1455 集盛 | AO90: 913636 | AP90: 768783 | AQ90: 1139439 | AR90: 919860 | AS90: 737288 | AT90: 896410 | AU90: 742046 | AV90: 694537 | AW90: 713084 | AX90: 624203 | AY90: 615555 | AZ90: 536603 | BB90: 1455 集盛 | BC90: 437746 | BD90: 581918 | BE90: 783210 | BF90: 594415 | BG90: 610678 | BH90: 530329 | BI90: 578974 | BJ90: 655615 | BK90: 690467 | BP90: 1455 集盛 | BQ90: 1331476 | BR90: 1064006 | BS90: 1147590 | BT90: 1117121 | BU90: 1133999 | BV90: 754142 | BW90: 1051785 | BX90: 955462 | BY90: 807781 | BZ90: 880881 | CA90: 790711 | CB90: 806421
A91: 1457 宜進 | B91: M1400 紡織纖維 | C91: M14A2 加工絲 | F91: M23C4A 光碟 | L91: 1456 怡華 | M91: 57927 | N91: 29247 | O91: 23049 | P91: 73128 | Q91: 35923 | R91: 24958 | S91: 44070 | T91: 69680 | U91: 37980 | V91: 20925 | W91: 188226 | X91: 111346 | Z91: 1456 怡華 | AA91: 66121 | AB91: 433701 | AC91: 43972 | AD91: 58290 | AE91: 602756 | AF91: 184154 | AG91: 429328 | AH91: 226029 | AI91: 68833 | AJ91: 86217 | AK91: 93115 | AL91: 70721 | AN91: 1456 怡華 | AO91: 53475 | AP91: 31523 | AQ91: 32237 | AR91: 71729 | AS91: 101673 | AT91: 57301 | AU91: 47436 | AV91: 36321 | AW91: 50058 | AX91: 31428 | AY91: 43004 | AZ91: 61064 | BB91: 1456 怡華 | BC91: 24784 | BD91: 32681 | BE91: 68064 | BF91: 373919 | BG91: 349469 | BH91: 200069 | BI91: 110748 | BJ91: 73476 | BK91: 216090 | BP91: 1456 怡華 | BQ91: 59570 | BR91: 79414 | BS91: 56441 | BT91: 114232 | BU91: 84448 | BV91: 75780 | BW91: 72306 | BX91: 24891 | BY91: 24522 | BZ91: 100173 | CA91: 323247 | CB91: 52492
A92: 1459 聯發 | B92: M1400 紡織纖維 | C92: M14A2 加工絲 | F92: M23C4B 硬碟磁碟 | L92: 1457 宜進 | M92: 296309 | N92: 294650 | O92: 299830 | P92: 160102 | Q92: 150806 | R92: 170335 | S92: 171135 | T92: 193402 | U92: 241966 | V92: 249542 | W92: 286100 | X92: 313004 | Z92: 1457 宜進 | AA92: 317026 | AB92: 257456 | AC92: 362143 | AD92: 371454 | AE92: 374574 | AF92: 381444 | AG92: 350585 | AH92: 356213 | AI92: 325191 | AJ92: 374414 | AK92: 358065 | AL92: 342682 | AN92: 1457 宜進 | AO92: 384718 | AP92: 370055 | AQ92: 451942 | AR92: 418944 | AS92: 408417 | AT92: 353383 | AU92: 309944 | AV92: 365255 | AW92: 348821 | AX92: 359933 | AY92: 281242 | AZ92: 299367 | BB92: 1457 宜進 | BC92: 211612 | BD92: 258240 | BE92: 254789 | BF92: 256306 | BG92: 245153 | BH92: 228303 | BI92: 217794 | BJ92: 315028 | BK92: 313769 | BP92: 1457 宜進 | BQ92: 522335 | BR92: 373380 | BS92: 471442 | BT92: 483979 | BU92: 488601 | BV92: 318007 | BW92: 427458 | BX92: 394054 | BY92: 366155 | BZ92: 373712 | CA92: 295760 | CB92: 354395
A93: 1460 宏遠 | B93: M1400 紡織纖維 | C93: M14C2 織布 | F93: M23C5 光碟機 | L93: 1459 聯發 | M93: 143616 | N93: 217512 | O93: 201379 | P93: 88286 | Q93: 77458 | R93: 85472 | S93: 108393 | T93: 124555 | U93: 139676 | V93: 167239 | W93: 194149 | X93: 237455 | Z93: 1459 聯發 | AA93: 235665 | AB93: 184018 | AC93: 256290 | AD93: 221026 | AE93: 193385 | AF93: 187016 | AG93: 213216 | AH93: 200609 | AI93: 199489 | AJ93: 194177 | AK93: 199837 | AL93: 189929 | AN93: 1459 聯發 | AO93: 179979 | AP93: 177350 | AQ93: 238035 | AR93: 217515 | AS93: 200160 | AT93: 183419 | AU93: 162430 | AV93: 132777 | AW93: 108504 | AX93: 97027 | AY93: 127937 | AZ93: 132567 | BB93: 1459 聯發 | BC93: 72580 | BD93: 107221 | BE93: 85396 | BF93: 72984 | BG93: 76264 | BH93: 78029 | BI93: 80422 | BJ93: 95354 | BK93: 98023 | BP93: 1459 聯發 | BQ93: 332149 | BR93: 231172 | BS93: 352140 | BT93: 294357 | BU93: 267160 | BV93: 275940 | BW93: 257252 | BX93: 213846 | BY93: 209867 | BZ93: 248239 | CA93: 231416 | CB93: 233912
A94: 1463 強盛 | B94: M1400 紡織纖維 | C94: M14E 染整 | F94: M23C6A 藍寶石基板 | L94: 1460 宏遠 | M94: 634183 | N94: 585125 | O94: 652418 | P94: 339161 | Q94: 369740 | R94: 444761 | S94: 555438 | T94: 600632 | U94: 679479 | V94: 858236 | W94: 849170 | X94: 753725 | Z94: 1460 宏遠 | AA94: 792034 | AB94: 617249 | AC94: 733251 | AD94: 740461 | AE94: 744338 | AF94: 720402 | AG94: 692595 | AH94: 920232 | AI94: 950028 | AJ94: 1005828 | AK94: 1052751 | AL94: 1037359 | AN94: 1460 宏遠 | AO94: 866114 | AP94: 808271 | AQ94: 959483 | AR94: 724281 | AS94: 750834 | AT94: 825306 | AU94: 835539 | AV94: 925749 | AW94: 904656 | AX94: 692200 | AY94: 804762 | AZ94: 701854 | BB94: 1460 宏遠 | BC94: 613975 | BD94: 644698 | BE94: 669271 | BF94: 473599 | BG94: 551174 | BH94: 582440 | BI94: 637276 | BJ94: 665369 | BK94: 720391 | BP94: 1460 宏遠 | BQ94: 843264 | BR94: 612261 | BS94: 796375 | BT94: 734719 | BU94: 646421 | BV94: 625698 | BW94: 554500 | BX94: 717053 | BY94: 886266 | BZ94: 854068 | CA94: 774277 | CB94: 819118
A95: 1464 得力 | B95: M1400 紡織纖維 | C95: M14C2 織布 | F95: M23C6B 磊晶及晶粒 | L95: 1463 強盛 | M95: 34463 | N95: 123709 | O95: 45905 | P95: 28705 | Q95: 18763 | R95: 14585 | S95: 25016 | T95: 26967 | U95: 32314 | V95: 24174 | W95: 34679 | X95: 32329 | Z95: 1463 強盛 | AA95: 36696 | AB95: 29312 | AC95: 40940 | AD95: 45616 | AE95: 41311 | AF95: 25946 | AG95: 41995 | AH95: 28601 | AI95: 31922 | AJ95: 45128 | AK95: 44173 | AL95: 44924 | AN95: 1463 強盛 | AO95: 44170 | AP95: 36908 | AQ95: 52762 | AR95: 48319 | AS95: 36762 | AT95: 32641 | AU95: 43449 | AV95: 37194 | AW95: 44659 | AX95: 44495 | AY95: 32091 | AZ95: 39664 | BB95: 1463 強盛 | BC95: 24069 | BD95: 32328 | BE95: 36671 | BF95: 17110 | BG95: 22992 | BH95: 24894 | BI95: 25823 | BJ95: 38818 | BK95: 38000 | BP95: 1463 強盛 | BQ95: 71333 | BR95: 29540 | BS95: 53502 | BT95: 47524 | BU95: 43251 | BV95: 36770 | BW95: 41112 | BX95: 77681 | BY95: 39033 | BZ95: 39084 | CA95: 35319 | CB95: 43323
A96: 1465 偉全 | B96: M1400 紡織纖維 | C96: M14C2 織布 | F96: M23C6C 封裝及應用 | L96: 1464 得力 | M96: 881034 | N96: 678094 | O96: 980301 | P96: 519665 | Q96: 451265 | R96: 483742 | S96: 473280 | T96: 640626 | U96: 867547 | V96: 841717 | W96: 720066 | X96: 1006364 | Z96: 1464 得力 | AA96: 868295 | AB96: 642542 | AC96: 918042 | AD96: 857655 | AE96: 873158 | AF96: 888247 | AG96: 809029 | AH96: 802061 | AI96: 829100 | AJ96: 957017 | AK96: 960824 | AL96: 1085357 | AN96: 1464 得力 | AO96: 976510 | AP96: 859396 | AQ96: 1139904 | AR96: 1012526 | AS96: 1072476 | AT96: 1117759 | AU96: 981694 | AV96: 1055023 | AW96: 1073666 | AX96: 1036980 | AY96: 1009691 | AZ96: 990249 | BB96: 1464 得力 | BC96: 736967 | BD96: 913441 | BE96: 929796 | BF96: 748317 | BG96: 720197 | BH96: 657752 | BI96: 585168 | BJ96: 975517 | BK96: 961770 | BP96: 1464 得力 | BQ96: 761248 | BR96: 620621 | BS96: 928824 | BT96: 815113 | BU96: 870935 | BV96: 805117 | BW96: 809603 | BX96: 1001832 | BY96: 1029927 | BZ96: 1122465 | CA96: 1063970 | CB96: 1079557
A97: 1466 聚隆 | B97: M1400 紡織纖維 | C97: M14A7 尼龍絲 | F97: M23C7B 矽晶圓 | L97: 1465 偉全 | M97: 35466 | N97: 38747 | O97: 53883 | P97: 26282 | Q97: 26893 | R97: 37502 | S97: 25290 | T97: 27972 | U97: 38020 | V97: 29407 | W97: 42119 | X97: 43701 | Z97: 1465 偉全 | AA97: 27063 | AB97: 17796 | AC97: 28521 | AD97: 16147 | AE97: 30467 | AF97: 44120 | AG97: 40990 | AH97: 35555 | AI97: 38544 | AJ97: 45370 | AK97: 57805 | AL97: 59147 | AN97: 1465 偉全 | AO97: 44730 | AP97: 30591 | AQ97: 54939 | AR97: 19975 | AS97: 53608 | AT97: 44769 | AU97: 40660 | AV97: 60397 | AW97: 62698 | AX97: 75030 | AY97: 64294 | AZ97: 60043 | BB97: 1465 偉全 | BC97: 32188 | BD97: 51752 | BE97: 46710 | BF97: 46034 | BG97: 66810 | BH97: 56028 | BI97: 51399 | BJ97: 44614 | BK97: 40641 | BP97: 1465 偉全 | BQ97: 101708 | BR97: 75845 | BS97: 123676 | BT97: 92688 | BU97: 92501 | BV97: 85544 | BW97: 76251 | BX97: 46839 | BY97: 45415 | BZ97: 40831 | CA97: 59938 | CB97: 49301
A98: 1467 南緯 | B98: M1400 紡織纖維 | C98: M14C1 成衣製造 | F98: M23C7C 太陽能電池 | L98: 1466 聚隆 | M98: 227705 | N98: 283033 | O98: 275237 | P98: 92549 | Q98: 83636 | R98: 143682 | S98: 213118 | T98: 227247 | U98: 269260 | V98: 262582 | W98: 257415 | X98: 315137 | Z98: 1466 聚隆 | AA98: 248522 | AB98: 218592 | AC98: 315388 | AD98: 262488 | AE98: 294480 | AF98: 353163 | AG98: 342004 | AH98: 333540 | AI98: 308329 | AJ98: 304251 | AK98: 298287 | AL98: 292753 | AN98: 1466 聚隆 | AO98: 278937 | AP98: 211338 | AQ98: 319131 | AR98: 266956 | AS98: 226396 | AT98: 234603 | AU98: 228599 | AV98: 215180 | AW98: 212938 | AX98: 161181 | AY98: 216057 | AZ98: 213312 | BB98: 1466 聚隆 | BC98: 132317 | BD98: 165730 | BE98: 212293 | BF98: 172852 | BG98: 221558 | BH98: 205306 | BI98: 208471 | BJ98: 199625 | BK98: 242571 | BP98: 1466 聚隆 | BQ98: 383622 | BR98: 256099 | BS98: 358557 | BT98: 305811 | BU98: 284402 | BV98: 237369 | BW98: 258040 | BX98: 268055 | BY98: 229004 | BZ98: 196335 | CA98: 244883 | CB98: 270698
A99: 1468 昶和 | B99: M1400 紡織纖維 | C99: M14C2 織布 | F99: M23C7F 其他太陽能 | L99: 1467 南緯 | M99: 441942 | N99: 383369 | O99: 381970 | P99: 197851 | Q99: 315812 | R99: 800319 | S99: 1099563 | T99: 1118168 | U99: 1528050 | V99: 804509 | W99: 815089 | X99: 711037 | Z99: 1467 南緯 | AA99: 464808 | AB99: 618261 | AC99: 542767 | AD99: 487758 | AE99: 465008 | AF99: 547855 | AG99: 558338 | AH99: 522945 | AI99: 553732 | AJ99: 611804 | AK99: 625542 | AL99: 641730 | AN99: 1467 南緯 | AO99: 543119 | AP99: 492880 | AQ99: 643532 | AR99: 456377 | AS99: 498525 | AT99: 630109 | AU99: 522042 | AV99: 547415 | AW99: 506568 | AX99: 421799 | AY99: 438966 | AZ99: 430250 | BB99: 1467 南緯 | BC99: 365456 | BD99: 362473 | BE99: 302105 | BF99: 339292 | BG99: 343015 | BH99: 406703 | BI99: 417569 | BJ99: 503680 | BP99: 1467 南緯 | BQ99: 616427 | BR99: 441422 | BS99: 499654 | BT99: 611395 | BU99: 540949 | BV99: 568455 | BW99: 710199 | BX99: 656382 | BY99: 681669 | BZ99: 540779 | CA99: 558568 | CB99: 519993
A100: 1470 大統新創 | B100: M1400 紡織纖維 | C100: M14E 染整 | F100: M23C8A LCD 面板 | L100: 1468 昶和 | M100: 76156 | N100: 73239 | O100: 94163 | P100: 110768 | Q100: 78376 | R100: 72359 | S100: 83704 | T100: 68829 | U100: 69344 | V100: 63282 | W100: 71097 | X100: 100442 | Z100: 1468 昶和 | AA100: 123050 | AB100: 32907 | AC100: 84514 | AD100: 118037 | AE100: 101263 | AF100: 84741 | AG100: 81802 | AH100: 88023 | AI100: 134801 | AJ100: 79234 | AK100: 115132 | AL100: 96249 | AN100: 1468 昶和 | AO100: 124411 | AP100: 83401 | AQ100: 110588 | AR100: 108274 | AS100: 104048 | AT100: 95434 | AU100: 152071 | AV100: 132643 | AW100: 137893 | AX100: 96725 | AY100: 148304 | AZ100: 118675 | BB100: 1468 昶和 | BC100: 112248 | BD100: 74177 | BE100: 89149 | BF100: 116650 | BG100: 97637 | BH100: 71650 | BI100: 58616 | BJ100: 91518 | BK100: 81874 | BP100: 1468 昶和 | BQ100: 102870 | BR100: 38660 | BS100: 93910 | BT100: 94992 | BU100: 102112 | BV100: 85205 | BW100: 84610 | BX100: 83902 | BY100: 85301 | BZ100: 72704 | CA100: 78730 | CB100: 86749
A101: 1471 首利 | B101: M2328 電子零組件 | C101: M23D3 電源供應器 | F101: M23C8B 背光模組 | L101: 1470 大統新創 | M101: 53667 | N101: 69363 | O101: 83204 | P101: 39589 | Q101: 22179 | R101: 25867 | S101: 35419 | T101: 51766 | U101: 71277 | V101: 54421 | W101: 59081 | X101: 64923 | Z101: 1470 大統新創 | AA101: 65206 | AB101: 55216 | AC101: 81307 | AD101: 76700 | AE101: 73372 | AF101: 84433 | AG101: 65108 | AH101: 87710 | AI101: 90731 | AJ101: 76250 | AK101: 70285 | AL101: 68472 | AN101: 1470 大統新創 | AO101: 92169 | AP101: 77522 | AQ101: 130233 | AR101: 72305 | AS101: 68024 | AT101: 68978 | AU101: 70402 | AV101: 84491 | AW101: 71475 | AX101: 47546 | AY101: 31526 | AZ101: 30482 | BB101: 1470 大統新創 | BC101: 57982 | BD101: 87006 | BE101: 87019 | BF101: 44690 | BG101: 56795 | BH101: 47978 | BI101: 51323 | BJ101: 51791 | BK101: 42437 | BP101: 1470 大統新創 | BQ101: 62082 | BR101: 61913 | BS101: 85503 | BT101: 73403 | BU101: 72063 | BV101: 62551 | BW101: 54019 | BX101: 88088 | BY101: 63773 | BZ101: 62129 | CA101: 66015 | CB101: 66628
A102: 1472 三洋實業 | B102: M2500 建材營造 | C102: M25B 營造 | F102: M23C8C LCD 原料 | L102: 1471 首利 | M102: 49182 | N102: 9945 | O102: 62665 | P102: 64285 | Q102: 107993 | R102: 117960 | S102: 146551 | T102: 165174 | U102: 119662 | V102: 68553 | W102: 78991 | X102: 94405 | Z102: 1471 首利 | AA102: 65492 | AB102: 13077 | AC102: 53044 | AD102: 40805 | AE102: 29005 | AF102: 23511 | AG102: 17251 | AH102: 22488 | AI102: 15098 | AJ102: 23028 | AK102: 27034 | AL102: 25983 | AN102: 1471 首利 | AO102: 20861 | AP102: 12292 | AQ102: 20983 | AR102: 30035 | AS102: 19012 | AT102: 25811 | AU102: 14981 | AV102: 16873 | AW102: 12776 | AX102: 17324 | AY102: 22945 | AZ102: 24096 | BB102: 1471 首利 | BC102: 13175 | BD102: 15693 | BE102: 22464 | BF102: 20940 | BG102: 26705 | BH102: 19050 | BI102: 20416 | BJ102: 31576 | BK102: 17794 | BP102: 1471 首利 | BQ102: 176356 | BR102: 41490 | BS102: 90299 | BT102: 53522 | BU102: 71597 | BV102: 69048 | BW102: 74262 | BX102: 57993 | BY102: 61979 | BZ102: 85560 | CA102: 49309 | CB102: 98774
A103: 1473 台南 | B103: M1400 紡織纖維 | C103: M14C1 成衣製造 | F103: M23C8D LCD-其他 | L103: 1472 三洋實業 | M103: 29339 | N103: 14607 | O103: 21347 | P103: 16507 | Q103: 17240 | R103: 21547 | S103: 28745 | T103: 47230 | U103: 27688 | V103: 53190 | W103: 29569 | X103: 21894 | Z103: 1472 三洋實業 | AA103: 26601 | AB103: 17850 | AC103: 18633 | AD103: 51915 | AE103: 81123 | AF103: 46556 | AG103: 38944 | AH103: 37903 | AI103: 123398 | AJ103: 80778 | AK103: 12574 | AL103: 117223 | AN103: 1472 三洋實業 | AO103: 94781 | AP103: 33487 | AQ103: 68661 | AR103: 68295 | AS103: 96289 | AT103: 89237 | AU103: 63099 | AV103: 40293 | AW103: 129228 | AX103: 138536 | AY103: 137607 | AZ103: 204493 | BB103: 1472 三洋實業 | BC103: 61007 | BD103: 106740 | BE103: 94220 | BF103: 196668 | BG103: 170957 | BH103: 163809 | BI103: 195647 | BJ103: 175397 | BP103: 1472 三洋實業 | BQ103: 19548 | BR103: 23271 | BS103: 36607 | BT103: 27124 | BU103: 26377 | BV103: 23638 | BW103: 39469 | BX103: 45827 | BY103: 46955 | BZ103: 72822 | CA103: 56311 | CB103: 33933
A104: 1474 弘裕 | B104: M1400 紡織纖維 | C104: M14C2 織布 | F104: M23C8E 觸控面板 | L104: 1473 台南 | M104: 806567 | N104: 650767 | O104: 523620 | P104: 306666 | Q104: 266508 | R104: 490280 | S104: 530119 | T104: 578104 | U104: 581438 | V104: 329912 | W104: 410395 | X104: 497702 | Z104: 1473 台南 | AA104: 612453 | AB104: 480887 | AC104: 610081 | AD104: 384725 | AE104: 183663 | AF104: 350096 | AG104: 598052 | AH104: 475063 | AI104: 580293 | AJ104: 435361 | AK104: 507273 | AL104: 543668 | AN104: 1473 台南 | AO104: 797210 | AP104: 757514 | AQ104: 768899 | AR104: 454728 | AS104: 484028 | AT104: 743969 | AU104: 787362 | AV104: 707355 | AW104: 391158 | AX104: 514145 | AY104: 573336 | AZ104: 549939 | BB104: 1473 台南 | BC104: 808935 | BD104: 509235 | BE104: 428536 | BF104: 409020 | BG104: 407637 | BH104: 677989 | BI104: 621373 | BJ104: 664222 | BP104: 1473 台南 | BQ104: 746584 | BR104: 624697 | BS104: 745383 | BT104: 391520 | BU104: 705402 | BV104: 649785 | BW104: 772497 | BX104: 772965 | BY104: 650505 | BZ104: 354161 | CA104: 564510 | CB104: 687386
A105: 1475 業旺 | B105: M1400 紡織纖維 | C105: M14C2 織布 | F105: M23C9 監控系統 | L105: 1474 弘裕 | M105: 172985 | N105: 203686 | O105: 302680 | P105: 189267 | Q105: 194160 | R105: 209272 | S105: 242144 | T105: 225541 | U105: 271516 | V105: 275559 | W105: 294124 | X105: 277543 | Z105: 1474 弘裕 | AA105: 273395 | AB105: 187312 | AC105: 328823 | AD105: 265400 | AE105: 273149 | AF105: 270784 | AG105: 319317 | AH105: 318031 | AI105: 325217 | AJ105: 304949 | AK105: 320263 | AL105: 317229 | AN105: 1474 弘裕 | AO105: 302638 | AP105: 235820 | AQ105: 349784 | AR105: 307823 | AS105: 263236 | AT105: 249746 | AU105: 264396 | AV105: 286882 | AW105: 240259 | AX105: 223226 | AY105: 239942 | AZ105: 225268 | BB105: 1474 弘裕 | BC105: 145194 | BD105: 237080 | BE105: 240011 | BF105: 182117 | BG105: 193819 | BH105: 198878 | BI105: 231620 | BJ105: 257924 | BP105: 1474 弘裕 | BQ105: 309742 | BR105: 220731 | BS105: 333464 | BT105: 304444 | BU105: 296464 | BV105: 252790 | BW105: 289874 | BX105: 290603 | BY105: 262086 | BZ105: 278500 | CA105: 307532 | CB105: 306183
A106: 1476 儒鴻 | B106: M1400 紡織纖維 | C106: M14C1 成衣製造 | F106: M23CZ1 光學投影 | L106: 1475 業旺 | M106: 3117 | N106: 2240 | O106: 1640 | P106: 1694 | Q106: 5601 | R106: 8841 | S106: 9420 | T106: 10597 | U106: 16286 | V106: 25080 | W106: 38238 | X106: 45360 | Z106: 1475 業旺 | AA106: 10361 | AB106: 15339 | AC106: 18677 | AD106: 10945 | AE106: 16641 | AF106: 10071 | AG106: 34187 | AH106: 37495 | AI106: 63250 | AJ106: 73270 | AK106: 85892 | AL106: 102007 | AN106: 1475 業旺 | AO106: 86843 | AP106: 75864 | AQ106: 104181 | AR106: 93918 | AS106: 102710 | AT106: 101592 | AU106: 104255 | AV106: 83865 | AW106: 105736 | AX106: 106418 | AY106: 108272 | AZ106: 122090 | BB106: 1475 業旺 | BC106: 102647 | BD106: 111247 | BE106: 126325 | BF106: 103880 | BG106: 104923 | BH106: 104764 | BI106: 82345 | BJ106: 95610 | BK106: 112605 | BP106: 1475 業旺 | BQ106: 5920 | BR106: 3549 | BS106: 4857 | BT106: 4594 | BU106: 4582 | BV106: 4790 | BW106: 6346 | BX106: 4280 | BY106: 4135 | BZ106: 5871 | CA106: 3635 | CB106: 3963
A107: 1477 聚陽 | B107: M1400 紡織纖維 | C107: M14C1 成衣製造 | F107: M23CZ2 其他光學 | L107: 1476 儒鴻 | M107: 2300958 | N107: 1807489 | O107: 1904112 | P107: 1490917 | Q107: 2039347 | R107: 1918136 | S107: 2733446 | T107: 2040791 | U107: 2614618 | V107: 3128881 | W107: 2494282 | X107: 3702424 | Z107: 1476 儒鴻 | AA107: 2783179 | AB107: 2324451 | AC107: 3111846 | AD107: 3158046 | AE107: 3404550 | AF107: 3224171 | AG107: 3464533 | AH107: 2544549 | AI107: 2049715 | AJ107: 2534825 | AK107: 3129326 | AL107: 4187881 | AN107: 1476 儒鴻 | AO107: 3681106 | AP107: 2772040 | AQ107: 3724585 | AR107: 3702605 | AS107: 3453892 | AT107: 4058641 | AU107: 3899629 | AV107: 3913925 | AW107: 2899990 | AX107: 2255613 | AY107: 2732916 | AZ107: 2639883 | BB107: 1476 儒鴻 | BC107: 2103889 | BD107: 2000856 | BE107: 2391946 | BF107: 2536523 | BG107: 2601391 | BH107: 2683867 | BI107: 2886521 | BJ107: 2704236 | BK107: 2382299 | BP107: 1476 儒鴻 | BQ107: 2415301 | BR107: 1611278 | BS107: 2217718 | BT107: 2040691 | BU107: 2568553 | BV107: 2330083 | BW107: 2461906 | BX107: 2483930 | BY107: 2256557 | BZ107: 2649809 | CA107: 2359195 | CB107: 2730115
A108: 1503 士電 | B108: M1500 電機機械 | C108: M15B1 電機 | F108: M23D1 二極體整流 | L108: 1477 聚陽 | M108: 2092533 | N108: 1693577 | O108: 2344774 | P108: 1133062 | Q108: 1438613 | R108: 2153860 | S108: 2220229 | T108: 3116299 | U108: 2690100 | V108: 2123190 | W108: 1761346 | X108: 2156588 | Z108: 1477 聚陽 | AA108: 2381607 | AB108: 1806671 | AC108: 2628521 | AD108: 2345903 | AE108: 1560469 | AF108: 2214611 | AG108: 3049327 | AH108: 2754378 | AI108: 2492715 | AJ108: 2262641 | AK108: 2255666 | AL108: 3177996 | AN108: 1477 聚陽 | AO108: 2857690 | AP108: 2557570 | AQ108: 2556267 | AR108: 2312614 | AS108: 2400651 | AT108: 2627755 | AU108: 3718403 | AV108: 3261778 | AW108: 2427157 | AX108: 2431827 | AY108: 2462831 | AZ108: 2468373 | BB108: 1477 聚陽 | BC108: 2387509 | BD108: 2653731 | BE108: 2793020 | BF108: 2098860 | BG108: 2325560 | BH108: 2799688 | BI108: 2966123 | BJ108: 3505603 | BK108: 2800342 | BP108: 1477 聚陽 | BQ108: 2143944 | BR108: 2075192 | BS108: 2500439 | BT108: 1819006 | BU108: 2062743 | BV108: 2298489 | BW108: 2124835 | BX108: 2416786 | BY108: 3156364 | BZ108: 2237389 | CA108: 2077871 | CB108: 2134444
A109: 1504 東元 | B109: M1500 電機機械 | C109: M15B1 電機 | F109: M23D2 連接器 | L109: 1503 士電 | M109: 2489575 | N109: 1620361 | O109: 2309826 | P109: 1884976 | Q109: 1966320 | R109: 2137689 | S109: 1901013 | T109: 1935498 | U109: 2177328 | V109: 2207236 | W109: 1991320 | X109: 3063805 | Z109: 1503 士電 | AA109: 2810779 | AB109: 1784924 | AC109: 2519443 | AD109: 2429347 | AE109: 2167952 | AF109: 2423094 | AG109: 2189672 | AH109: 2339338 | AI109: 2156922 | AJ109: 2079311 | AK109: 2161437 | AL109: 2623218 | AN109: 1503 士電 | AO109: 2959059 | AP109: 2017058 | AQ109: 2759545 | AR109: 2398634 | AS109: 2306919 | AT109: 2905083 | AU109: 2353474 | AV109: 2575587 | AW109: 2493434 | AX109: 2581368 | AY109: 2662000 | AZ109: 2733413 | BB109: 1503 士電 | BC109: 3158454 | BD109: 2629403 | BE109: 3185995 | BF109: 2710331 | BG109: 2511880 | BH109: 2453321 | BI109: 2470239 | BJ109: 2843442 | BP109: 1503 士電 | BQ109: 2653863 | BR109: 1684979 | BS109: 2326833 | BT109: 1952433 | BU109: 2134006 | BV109: 2504939 | BW109: 1911565 | BX109: 2069620 | BY109: 2225612 | BZ109: 1987267 | CA109: 2010847 | CB109: 2358387
A110: 1506 正道 | B110: M1500 電機機械 | C110: M15D 汽車組件 | F110: M23D3 電源供應器 | L110: 1504 東元 | M110: 3799231 | N110: 3020654 | O110: 3693406 | P110: 3409349 | Q110: 3443947 | R110: 4406855 | S110: 3940025 | T110: 3678179 | U110: 3786157 | V110: 3589714 | W110: 3927983 | X110: 4868158 | Z110: 1504 東元 | AA110: 3939500 | AB110: 3362861 | AC110: 4157489 | AD110: 4105072 | AE110: 4312815 | AF110: 4397835 | AG110: 4251967 | AH110: 4386806 | AI110: 4413724 | AJ110: 4280930 | AK110: 4594287 | AL110: 5126901 | AN110: 1504 東元 | AO110: 4670154 | AP110: 4029547 | AQ110: 5176830 | AR110: 4434537 | AS110: 4805903 | AT110: 5369300 | AU110: 5228346 | AV110: 4690410 | AW110: 4857361 | AX110: 4733008 | AY110: 5053213 | AZ110: 5159923 | BB110: 1504 東元 | BC110: 4523185 | BD110: 4601348 | BE110: 5587645 | BF110: 4601813 | BG110: 5109505 | BH110: 5420093 | BI110: 4887315 | BJ110: 4999513 | BP110: 1504 東元 | BQ110: 3969809 | BR110: 3410332 | BS110: 4099679 | BT110: 3883445 | BU110: 4335615 | BV110: 4365723 | BW110: 4115430 | BX110: 3656358 | BY110: 4086750 | BZ110: 3879865 | CA110: 3928027 | CB110: 4370102
A111: 1512 瑞利 | B111: M2200 汽車工業 | C111: M15D 汽車組件 | F111: M23D4 機殼 | L111: 1506 正道 | M111: 84135 | N111: 71173 | O111: 91882 | P111: 45553 | Q111: 77081 | R111: 74320 | S111: 60308 | T111: 61639 | U111: 73726 | V111: 65655 | W111: 80460 | X111: 67736 | Z111: 1506 正道 | AA111: 86872 | AB111: 66984 | AC111: 101710 | AD111: 67722 | AE111: 81044 | AF111: 98750 | AG111: 91323 | AH111: 82072 | AI111: 102895 | AJ111: 93321 | AK111: 89402 | AL111: 100016 | AN111: 1506 正道 | AO111: 101348 | AP111: 84738 | AQ111: 97344 | AR111: 102674 | AS111: 99088 | AT111: 106101 | AU111: 90144 | AV111: 91940 | AW111: 85167 | AX111: 98107 | AY111: 95289 | AZ111: 89678 | BB111: 1506 正道 | BC111: 92757 | BD111: 86578 | BE111: 98355 | BF111: 92127 | BG111: 91918 | BH111: 103076 | BI111: 93551 | BJ111: 101233 | BK111: 93680 | BP111: 1506 正道 | BQ111: 93504 | BR111: 81127 | BS111: 120979 | BT111: 107664 | BU111: 113681 | BV111: 105042 | BW111: 100913 | BX111: 97932 | BY111: 108490 | BZ111: 88712 | CA111: 87806 | CB111: 65938
A112: 1513 中興電 | B112: M1500 電機機械 | C112: M15B1 電機 | F112: M23D5 被動元件 | L112: 1512 瑞利 | M112: 158088 | N112: 77633 | O112: 92888 | P112: 68960 | Q112: 104011 | R112: 59754 | S112: 154684 | T112: 74947 | U112: 99501 | V112: 97578 | W112: 96299 | X112: 102691 | Z112: 1512 瑞利 | AA112: 110677 | AB112: 50872 | AC112: 75909 | AD112: 102657 | AE112: 75439 | AF112: 107317 | AG112: 68620 | AH112: 62092 | AI112: 70408 | AJ112: 68933 | AK112: 73290 | AL112: 136056 | AN112: 1512 瑞利 | AO112: 55688 | AP112: 38281 | AQ112: 64474 | AR112: 54886 | AS112: 51130 | AT112: 62628 | AU112: 54530 | AV112: 44832 | AW112: 44702 | AX112: 52786 | AY112: 117553 | AZ112: 132132 | BB112: 1512 瑞利 | BC112: 135234 | BD112: 98886 | BE112: 100937 | BF112: 100673 | BG112: 95915 | BH112: 90362 | BI112: 76832 | BJ112: 90778 | BP112: 1512 瑞利 | BQ112: 125210 | BR112: 121886 | BS112: 170289 | BT112: 141025 | BU112: 133812 | BV112: 375308 | BW112: 154594 | BX112: 135178 | BY112: 130815 | BZ112: 172861 | CA112: 158570 | CB112: 119768
A113: 1514 亞力 | B113: M1500 電機機械 | C113: M15B1 電機 | F113: M23D6 石英元件 | L113: 1513 中興電 | M113: 1012380 | N113: 869977 | O113: 1160807 | P113: 1211115 | Q113: 1099407 | R113: 1029142 | S113: 1087951 | T113: 1324092 | U113: 1132160 | V113: 998584 | W113: 1268416 | X113: 3196653 | Z113: 1513 中興電 | AA113: 1504562 | AB113: 973424 | AC113: 2204727 | AD113: 1678387 | AE113: 1043468 | AF113: 1339572 | AG113: 1246976 | AH113: 1466839 | AI113: 1405608 | AJ113: 1896633 | AK113: 1300299 | AL113: 1966465 | AN113: 1513 中興電 | AO113: 1327330 | AP113: 1435084 | AQ113: 1976860 | AR113: 1464869 | AS113: 1407055 | AT113: 1502907 | AU113: 1498362 | AV113: 1486349 | AW113: 1649006 | AX113: 1632622 | AY113: 1599197 | AZ113: 1573694 | BB113: 1513 中興電 | BC113: 1775922 | BD113: 1982399 | BE113: 2082959 | BF113: 1431534 | BG113: 1858144 | BH113: 1640207 | BI113: 1967699 | BJ113: 1849896 | BK113: 1709458 | BP113: 1513 中興電 | BQ113: 1074295 | BR113: 734869 | BS113: 867703 | BT113: 860310 | BU113: 1134472 | BV113: 1011959 | BW113: 1158861 | BX113: 833099 | BY113: 1176035 | BZ113: 868367 | CA113: 1094349 | CB113: 1562768
A114: 1515 力山 | B114: M1500 電機機械 | C114: M15Z 其他電製品 | F114: M23D7 3C二次電池 | L114: 1514 亞力 | M114: 384478 | N114: 358518 | O114: 468388 | P114: 431356 | Q114: 435413 | R114: 417133 | S114: 416869 | T114: 362926 | U114: 405959 | V114: 379584 | W114: 477166 | X114: 567071 | Z114: 1514 亞力 | AA114: 399915 | AB114: 411153 | AC114: 419387 | AD114: 386044 | AE114: 452007 | AF114: 506362 | AG114: 525318 | AH114: 443719 | AI114: 482037 | AJ114: 456601 | AK114: 657473 | AL114: 542315 | AN114: 1514 亞力 | AO114: 425119 | AP114: 474890 | AQ114: 588575 | AR114: 599332 | AS114: 578515 | AT114: 786621 | AU114: 497977 | AV114: 581803 | AW114: 692853 | AX114: 800822 | AY114: 769327 | AZ114: 883938 | BB114: 1514 亞力 | BC114: 526927 | BD114: 595193 | BE114: 711519 | BF114: 730961 | BG114: 693069 | BH114: 857240 | BI114: 575418 | BJ114: 629670 | BK114: 777195 | BP114: 1514 亞力 | BQ114: 332758 | BR114: 353895 | BS114: 417577 | BT114: 417216 | BU114: 424315 | BV114: 510087 | BW114: 322722 | BX114: 345898 | BY114: 344470 | BZ114: 375703 | CA114: 423430 | CB114: 570145
A115: 1516 川飛 | B115: M9900 其他 | C115: M99ZC 其他製造業 | F115: M23D9A 沖壓零組件 | L115: 1515 力山 | M115: 503251 | N115: 461068 | O115: 454220 | P115: 494494 | Q115: 643187 | R115: 740710 | S115: 1083857 | T115: 1127421 | U115: 1346360 | V115: 1367284 | W115: 1480505 | X115: 1671850 | Z115: 1515 力山 | AA115: 1580814 | AB115: 1155559 | AC115: 1302442 | AD115: 1471519 | AE115: 1497563 | AF115: 2014978 | AG115: 1249931 | AH115: 1641095 | AI115: 1365823 | AJ115: 1918915 | AK115: 1649257 | AL115: 1518927 | AN115: 1515 力山 | AO115: 863527 | AP115: 395425 | AQ115: 374324 | AR115: 343199 | AS115: 246150 | AT115: 356466 | AU115: 342805 | AV115: 419646 | AW115: 310793 | AX115: 221008 | AY115: 320941 | AZ115: 355024 | BB115: 1515 力山 | BC115: 223148 | BD115: 146636 | BE115: 218909 | BF115: 286941 | BG115: 274715 | BH115: 460495 | BI115: 584033 | BJ115: 955059 | BK115: 796888 | BP115: 1515 力山 | BQ115: 1021525 | BR115: 407704 | BS115: 579314 | BT115: 634330 | BU115: 525218 | BV115: 421302 | BW115: 663042 | BX115: 729184 | BY115: 819060 | BZ115: 896984 | CA115: 640903 | CB115: 563308
A116: 1517 利奇 | B116: M1500 電機機械 | C116: M15E 自行車組件 | F116: M23D9B 散熱零組件 | L116: 1516 川飛 | M116: 88122 | N116: 89637 | O116: 89652 | P116: 71522 | Q116: 48195 | R116: 52728 | S116: 65520 | T116: 62942 | U116: 66346 | V116: 55282 | W116: 63809 | X116: 66429 | Z116: 1516 川飛 | AA116: 74577 | AB116: 42844 | AC116: 92024 | AD116: 191365 | AE116: 111248 | AF116: 122211 | AG116: 134181 | AH116: 628 | AI116: 72982 | AJ116: 163486 | AK116: 185051 | AL116: 0 | AN116: 1516 川飛 | AO116: 176695 | AP116: 149716 | AQ116: 211515 | AR116: 657 | AS116: 215627 | AT116: 0 | AU116: 217961 | AV116: 198568 | AW116: 579 | AX116: 110791 | AY116: 0 | AZ116: 220001 | BB116: 1516 川飛 | BC116: 198800 | BD116: 184443 | BE116: 0 | BF116: 0 | BG116: 0 | BH116: 40136 | BI116: 53983 | BJ116: 60030 | BK116: 95771 | BP116: 1516 川飛 | BQ116: 22785 | BR116: 21157 | BS116: 16980 | BT116: 79371 | BU116: 75215 | BV116: 72495 | BW116: 70476 | BX116: 38542 | BY116: 67013 | BZ116: 64432 | CA116: 60244 | CB116: 83727
A117: 1519 華城 | B117: M1500 電機機械 | C117: M15B1 電機 | F117: M23D9C 光電導線架 | L117: 1517 利奇 | M117: 199773 | N117: 133701 | O117: 189779 | P117: 225237 | Q117: 248371 | R117: 269436 | S117: 350337 | T117: 327135 | U117: 352321 | V117: 331423 | W117: 347951 | X117: 411896 | Z117: 1517 利奇 | AA117: 355350 | AB117: 248668 | AC117: 405341 | AD117: 385312 | AE117: 408181 | AF117: 419359 | AG117: 426869 | AH117: 443970 | AI117: 369236 | AJ117: 433490 | AK117: 470364 | AL117: 518756 | AN117: 1517 利奇 | AO117: 413317 | AP117: 299980 | AQ117: 512327 | AR117: 324533 | AS117: 473412 | AT117: 553672 | AU117: 582796 | AV117: 509527 | AW117: 468695 | AX117: 322574 | AY117: 288500 | AZ117: 335340 | BB117: 1517 利奇 | BC117: 162096 | BD117: 216172 | BE117: 234363 | BF117: 160400 | BG117: 133686 | BH117: 135288 | BI117: 170702 | BJ117: 146450 | BP117: 1517 利奇 | BQ117: 305412 | BR117: 156619 | BS117: 266702 | BT117: 248372 | BU117: 263257 | BV117: 225802 | BW117: 294925 | BX117: 239120 | BY117: 251549 | BZ117: 199223 | CA117: 254375 | CB117: 296233
A118: 1521 大億 | B118: M2200 汽車工業 | C118: M15D 汽車組件 | F118: M23D9D 其他零組件 | L118: 1519 華城 | M118: 735811 | N118: 424239 | O118: 516662 | P118: 475168 | Q118: 662623 | R118: 670184 | S118: 613204 | T118: 918051 | U118: 849914 | V118: 608406 | W118: 650893 | X118: 1346437 | Z118: 1519 華城 | AA118: 469183 | AB118: 417358 | AC118: 709451 | AD118: 683460 | AE118: 723841 | AF118: 971935 | AG118: 641898 | AH118: 705918 | AI118: 634517 | AJ118: 567140 | AK118: 870436 | AL118: 1624957 | AN118: 1519 華城 | AO118: 300184 | AP118: 525084 | AQ118: 570125 | AR118: 488370 | AS118: 622040 | AT118: 934679 | AU118: 353640 | AV118: 509820 | AW118: 781296 | AX118: 558201 | AY118: 844380 | AZ118: 1262908 | BB118: 1519 華城 | BC118: 184019 | BD118: 306963 | BE118: 1049563 | BF118: 1084596 | BG118: 614688 | BH118: 1403435 | BI118: 1241976 | BJ118: 961051 | BK118: 1441440 | BP118: 1519 華城 | BQ118: 237388 | BR118: 418100 | BS118: 575665 | BT118: 450377 | BU118: 412632 | BV118: 620143 | BW118: 363164 | BX118: 656929 | BY118: 383387 | BZ118: 676528 | CA118: 776318 | CB118: 1605967
A119: 1522 堤維西 | B119: M2200 汽車工業 | C119: M15D 汽車組件 | F119: M23E1 數據機 | L119: 1521 大億 | M119: 323875 | N119: 490043 | O119: 350014 | P119: 211054 | Q119: 308244 | R119: 371195 | S119: 323713 | T119: 273921 | U119: 395909 | V119: 728048 | W119: 522022 | X119: 499128 | Z119: 1521 大億 | AA119: 422046 | AB119: 358400 | AC119: 495429 | AD119: 392103 | AE119: 440727 | AF119: 408417 | AG119: 391699 | AH119: 356022 | AI119: 363654 | AJ119: 431962 | AK119: 428555 | AL119: 503128 | AN119: 1521 大億 | AO119: 434379 | AP119: 350472 | AQ119: 442764 | AR119: 378292 | AS119: 410886 | AT119: 380583 | AU119: 398886 | AV119: 371194 | AW119: 407598 | AX119: 371904 | AY119: 413497 | AZ119: 385947 | BB119: 1521 大億 | BC119: 384307 | BD119: 381295 | BE119: 430927 | BF119: 338445 | BG119: 428266 | BH119: 329626 | BI119: 360988 | BJ119: 432228 | BK119: 494626 | BP119: 1521 大億 | BQ119: 413134 | BR119: 348139 | BS119: 704140 | BT119: 424421 | BU119: 487450 | BV119: 473405 | BW119: 421906 | BX119: 463541 | BY119: 384849 | BZ119: 435962 | CA119: 485732 | CB119: 347517
A120: 1524 耿鼎 | B120: M2200 汽車工業 | C120: M15D 汽車組件 | F120: M23E2 網路卡 | L120: 1522 堤維西 | M120: 1305764 | N120: 1255449 | O120: 1267261 | P120: 804857 | Q120: 950017 | R120: 1221037 | S120: 1320186 | T120: 1260148 | U120: 1230277 | V120: 1268689 | W120: 1232668 | X120: 1278889 | Z120: 1522 堤維西 | AA120: 1324347 | AB120: 1191059 | AC120: 1438368 | AD120: 1359787 | AE120: 1362275 | AF120: 1442880 | AG120: 1371797 | AH120: 1324818 | AI120: 1436901 | AJ120: 1368230 | AK120: 1496445 | AL120: 1445961 | AN120: 1522 堤維西 | AO120: 1487456 | AP120: 1370144 | AQ120: 1744645 | AR120: 1619858 | AS120: 1624357 | AT120: 1761328 | AU120: 1508869 | AV120: 1526510 | AW120: 1633734 | AX120: 1704887 | AY120: 1617039 | AZ120: 1586603 | BB120: 1522 堤維西 | BC120: 1499360 | BD120: 1498874 | BE120: 1693497 | BF120: 1463741 | BG120: 1745468 | BH120: 1595785 | BI120: 1486892 | BJ120: 1820442 | BP120: 1522 堤維西 | BQ120: 1588233 | BR120: 1213168 | BS120: 1538749 | BT120: 1628524 | BU120: 1540779 | BV120: 1433115 | BW120: 1550596 | BX120: 1476241 | BY120: 1396603 | BZ120: 1492929 | CA120: 1315361 | CB120: 1364551
A121: 1525 江申 | B121: M2200 汽車工業 | C121: M15D 汽車組件 | F121: M23G1A 晶圓代工 | L121: 1524 耿鼎 | M121: 159821 | N121: 192249 | O121: 189572 | P121: 99051 | Q121: 109404 | R121: 115822 | S121: 174998 | T121: 170689 | U121: 184608 | V121: 171669 | W121: 148435 | X121: 192467 | Z121: 1524 耿鼎 | AA121: 159668 | AB121: 127934 | AC121: 172805 | AD121: 121778 | AE121: 165284 | AF121: 170815 | AG121: 161428 | AH121: 166369 | AI121: 161959 | AJ121: 183516 | AK121: 199860 | AL121: 172008 | AN121: 1524 耿鼎 | AO121: 203779 | AP121: 115862 | AQ121: 223543 | AR121: 230615 | AS121: 218320 | AT121: 239136 | AU121: 192039 | AV121: 180053 | AW121: 197003 | AX121: 210646 | AY121: 209603 | AZ121: 218854 | BB121: 1524 耿鼎 | BC121: 146193 | BD121: 201283 | BE121: 226123 | BF121: 198834 | BG121: 239715 | BH121: 231043 | BI121: 207747 | BJ121: 240721 | BK121: 246511 | BP121: 1524 耿鼎 | BQ121: 231829 | BR121: 148681 | BS121: 214550 | BT121: 200517 | BU121: 198650 | BV121: 162759 | BW121: 203598 | BX121: 201306 | BY121: 184936 | BZ121: 188301 | CA121: 225408 | CB121: 233181
A122: 1526 日馳 | B122: M1500 電機機械 | C122: M15E 自行車組件 | F122: M23G1B 記憶體製造 | L122: 1525 江申 | M122: 71484 | N122: 43827 | O122: 92360 | P122: 97211 | Q122: 75070 | R122: 78853 | S122: 104552 | T122: 81583 | U122: 82427 | V122: 93931 | W122: 102809 | X122: 128884 | Z122: 1525 江申 | AA122: 104028 | AB122: 92003 | AC122: 121493 | AD122: 116157 | AE122: 123191 | AF122: 133340 | AG122: 120926 | AH122: 91644 | AI122: 93896 | AJ122: 74829 | AK122: 101964 | AL122: 102137 | AN122: 1525 江申 | AO122: 80122 | AP122: 96630 | AQ122: 127488 | AR122: 116158 | AS122: 113414 | AT122: 132173 | AU122: 152879 | AV122: 120687 | AW122: 144636 | AX122: 137069 | AY122: 148237 | AZ122: 130771 | BB122: 1525 江申 | BC122: 126038 | BD122: 141810 | BE122: 187207 | BF122: 140008 | BG122: 155138 | BH122: 129998 | BI122: 130366 | BJ122: 104547 | BK122: 124629 | BP122: 1525 江申 | BQ122: 99329 | BR122: 117145 | BS122: 135852 | BT122: 122784 | BU122: 112504 | BV122: 96324 | BW122: 96430 | BX122: 53706 | BY122: 74654 | BZ122: 118935 | CA122: 118360 | CB122: 96098
A123: 1527 鑽全 | B123: M1500 電機機械 | C123: M15A1 工具機 | F123: M23G2 IC封測 | L123: 1526 日馳 | M123: 74103 | N123: 77107 | O123: 84706 | P123: 83948 | Q123: 89112 | R123: 104035 | S123: 120977 | T123: 127903 | U123: 122780 | V123: 109234 | W123: 121040 | X123: 131704 | Z123: 1526 日馳 | AA123: 113686 | AB123: 79389 | AC123: 149344 | AD123: 155818 | AE123: 160701 | AF123: 167887 | AG123: 159132 | AH123: 173495 | AI123: 148024 | AJ123: 171096 | AK123: 186427 | AL123: 222530 | AN123: 1526 日馳 | AO123: 165056 | AP123: 135516 | AQ123: 211980 | AR123: 194111 | AS123: 206546 | AT123: 209828 | AU123: 188609 | AV123: 198988 | AW123: 207799 | AX123: 153303 | AY123: 178193 | AZ123: 147188 | BB123: 1526 日馳 | BC123: 111668 | BD123: 118064 | BE123: 118483 | BF123: 90585 | BG123: 76947 | BH123: 105058 | BI123: 90585 | BJ123: 84974 | BK123: 55961 | BP123: 1526 日馳 | BQ123: 90001 | BR123: 64987 | BS123: 84340 | BT123: 104555 | BU123: 108154 | BV123: 113172 | BW123: 107728 | BX123: 93773 | BY123: 72665 | BZ123: 99085 | CA123: 80405 | CB123: 114536
A124: 1528 恩德 | B124: M1500 電機機械 | C124: M15A1 工具機 | F124: M23G3A 特用IC | L124: 1527 鑽全 | M124: 274371 | N124: 286395 | O124: 310571 | P124: 253386 | Q124: 285485 | R124: 248196 | S124: 301298 | T124: 318383 | U124: 323881 | V124: 298915 | W124: 284799 | X124: 403633 | Z124: 1527 鑽全 | AA124: 344093 | AB124: 335250 | AC124: 433439 | AD124: 335787 | AE124: 443928 | AF124: 417884 | AG124: 433095 | AH124: 383380 | AI124: 364062 | AJ124: 314176 | AK124: 354865 | AL124: 324779 | AN124: 1527 鑽全 | AO124: 435041 | AP124: 263381 | AQ124: 476021 | AR124: 360476 | AS124: 430590 | AT124: 335713 | AU124: 304470 | AV124: 318364 | AW124: 287717 | AX124: 209171 | AY124: 284560 | AZ124: 213173 | BB124: 1527 鑽全 | BC124: 273295 | BD124: 220866 | BE124: 306736 | BF124: 204088 | BG124: 215660 | BH124: 200096 | BI124: 201096 | BJ124: 266274 | BP124: 1527 鑽全 | BQ124: 371214 | BR124: 230397 | BS124: 319745 | BT124: 315568 | BU124: 306224 | BV124: 280602 | BW124: 311394 | BX124: 317437 | BY124: 223538 | BZ124: 243075 | CA124: 236451 | CB124: 308438
A125: 1529 樂事綠能 | B125: M1500 電機機械 | C125: M15B1 電機 | F125: M23G3B 記憶體模組 | L125: 1528 恩德 | M125: 231176 | N125: 281766 | O125: 325884 | P125: 272687 | Q125: 211278 | R125: 274098 | S125: 248639 | T125: 281561 | U125: 290830 | V125: 243531 | W125: 236571 | X125: 320896 | Z125: 1528 恩德 | AA125: 216644 | AB125: 198296 | AC125: 344820 | AD125: 287133 | AE125: 307483 | AF125: 281614 | AG125: 310150 | AH125: 369008 | AI125: 317563 | AJ125: 275958 | AK125: 285752 | AL125: 372935 | AN125: 1528 恩德 | AO125: 234592 | AP125: 199306 | AQ125: 362127 | AR125: 345836 | AS125: 307660 | AT125: 398023 | AU125: 287238 | AV125: 286967 | AW125: 295730 | AX125: 326923 | AY125: 394266 | AZ125: 376144 | BB125: 1528 恩德 | BC125: 282962 | BD125: 242839 | BE125: 375756 | BF125: 335234 | BG125: 300035 | BH125: 326549 | BI125: 310373 | BJ125: 340123 | BK125: 290165 | BP125: 1528 恩德 | BQ125: 339618 | BR125: 261018 | BS125: 339249 | BT125: 322028 | BU125: 335413 | BV125: 334033 | BW125: 311111 | BX125: 324550 | BY125: 394638 | BZ125: 410436 | CA125: 390007 | CB125: 403618
A126: 1530 亞崴 | B126: M1500 電機機械 | C126: M15A1 工具機 | F126: M23G3C 晶圓材料 | L126: 1529 樂事綠能 | M126: 68676 | N126: 41149 | O126: 76114 | P126: 57856 | Q126: 8648 | R126: 65063 | S126: 51559 | T126: 127794 | U126: 52072 | V126: 29360 | W126: 14239 | X126: 16429 | Z126: 1529 樂事綠能 | AA126: 5595 | AB126: 8934 | AC126: 15852 | AD126: 20595 | AE126: 13803 | AF126: 91721 | AG126: 14822 | AH126: 35320 | AI126: 56280 | AJ126: 10219 | AK126: 16392 | AL126: 34913 | AN126: 1529 樂事綠能 | AO126: 18573 | AP126: 11260 | AQ126: 13488 | AR126: 28514 | AS126: 9470 | AT126: 32896 | AU126: 25085 | AV126: 22909 | AW126: 39916 | AX126: 18858 | AY126: 23326 | AZ126: 37222 | BB126: 1529 樂事綠能 | BC126: 51634 | BD126: 37824 | BE126: 82803 | BF126: 28026 | BG126: 69145 | BH126: 24479 | BI126: 85566 | BJ126: 37741 | BK126: 114243 | BP126: 1529 樂事綠能 | BQ126: 30040 | BR126: 2143 | BS126: 24792 | BT126: 5208 | BU126: 21330 | BV126: 57493 | BW126: 51245 | BX126: 49962 | BY126: 88042 | BZ126: 80655 | CA126: 187324 | CB126: 195437
A127: 1531 高林股 | B127: M1500 電機機械 | C127: M15A3 紡織工具機 | F127: M23G4 IC導線架 | L127: 1530 亞崴 | M127: 178804 | N127: 167960 | O127: 244352 | P127: 289848 | Q127: 275918 | R127: 298809 | S127: 319293 | T127: 256838 | U127: 209901 | V127: 261212 | W127: 285184 | X127: 305397 | Z127: 1530 亞崴 | AA127: 250039 | AB127: 141357 | AC127: 412591 | AD127: 311109 | AE127: 311606 | AF127: 340016 | AG127: 291536 | AH127: 337700 | AI127: 290088 | AJ127: 262426 | AK127: 355420 | AL127: 327068 | AN127: 1530 亞崴 | AO127: 263258 | AP127: 186759 | AQ127: 175393 | AR127: 270022 | AS127: 240124 | AT127: 235926 | AU127: 327831 | AV127: 299268 | AW127: 434276 | AX127: 232272 | AY127: 224038 | AZ127: 211350 | BB127: 1530 亞崴 | BC127: 163300 | BD127: 148102 | BE127: 227401 | BF127: 197850 | BG127: 207418 | BH127: 253368 | BI127: 211469 | BJ127: 177761 | BK127: 271990 | BP127: 1530 亞崴 | BQ127: 321784 | BR127: 202739 | BS127: 313173 | BT127: 260772 | BU127: 304459 | BV127: 283562 | BW127: 301153 | BX127: 280609 | BY127: 330765 | BZ127: 291315 | CA127: 243894 | CB127: 283724
A128: 1532 勤美 | B128: M1500 電機機械 | C128: M15A2 模具零件 | F128: M23G5 IC設計 | L128: 1531 高林股 | M128: 113241 | N128: 66199 | O128: 156697 | P128: 145877 | Q128: 99468 | R128: 103888 | S128: 126347 | T128: 142660 | U128: 181850 | V128: 131137 | W128: 165833 | X128: 176732 | Z128: 1531 高林股 | AA128: 243146 | AB128: 115925 | AC128: 265125 | AD128: 260585 | AE128: 213474 | AF128: 285602 | AG128: 227863 | AH128: 273558 | AI128: 238904 | AJ128: 197534 | AK128: 319081 | AL128: 306201 | AN128: 1531 高林股 | AO128: 276087 | AP128: 180022 | AQ128: 307268 | AR128: 207398 | AS128: 209055 | AT128: 277868 | AU128: 212566 | AV128: 193348 | AW128: 167661 | AX128: 87704 | AY128: 185303 | AZ128: 166777 | BB128: 1531 高林股 | BC128: 105694 | BD128: 126970 | BE128: 108239 | BF128: 147530 | BG128: 92972 | BH128: 167559 | BI128: 130119 | BJ128: 112308 | BK128: 117776 | BP128: 1531 高林股 | BQ128: 230758 | BR128: 145074 | BS128: 225456 | BT128: 215510 | BU128: 155313 | BV128: 181604 | BW128: 181608 | BX128: 179432 | BY128: 159952 | BZ128: 112590 | CA128: 160273 | CB128: 222534
A129: 1533 車王電 | B129: M2200 汽車工業 | C129: M15D 汽車組件 | F129: M23G6 IC光罩 | L129: 1532 勤美 | M129: 846719 | N129: 553694 | O129: 867494 | P129: 832480 | Q129: 748855 | R129: 844592 | S129: 969679 | T129: 1179290 | U129: 1197780 | V129: 1714970 | W129: 1303517 | X129: 2122105 | Z129: 1532 勤美 | AA129: 1164624 | AB129: 835083 | AC129: 1655763 | AD129: 1289068 | AE129: 994013 | AF129: 986696 | AG129: 1794654 | AH129: 1665213 | AI129: 2187890 | AJ129: 1785704 | AK129: 2101785 | AL129: 2747544 | AN129: 1532 勤美 | AO129: 1578230 | AP129: 1212553 | AQ129: 1812987 | AR129: 968599 | AS129: 956219 | AT129: 1138896 | AU129: 1127279 | AV129: 1202021 | AW129: 1158278 | AX129: 1086761 | AY129: 1129967 | AZ129: 1237022 | BB129: 1532 勤美 | BC129: 811722 | BD129: 957222 | BE129: 1109044 | BF129: 863993 | BG129: 975871 | BH129: 2828888 | BI129: 2487753 | BJ129: 1732102 | BP129: 1532 勤美 | BQ129: 1203550 | BR129: 964707 | BS129: 1596895 | BT129: 1099565 | BU129: 1233207 | BV129: 1306068 | BW129: 1102770 | BX129: 1045547 | BY129: 1019530 | BZ129: 892287 | CA129: 1015498 | CB129: 1235183
A130: 1535 中宇 | B130: M1500 電機機械 | C130: M15B2 機電工程 | F130: M23H1 廠辦機電 | L130: 1533 車王電 | M130: 226107 | N130: 175521 | O130: 187579 | P130: 156048 | Q130: 150233 | R130: 205060 | S130: 208813 | T130: 228284 | U130: 255406 | V130: 249473 | W130: 211559 | X130: 610751 | Z130: 1533 車王電 | AA130: 201948 | AB130: 159385 | AC130: 210776 | AD130: 229800 | AE130: 257699 | AF130: 218006 | AG130: 270505 | AH130: 238329 | AI130: 222603 | AJ130: 180004 | AK130: 225408 | AL130: 518311 | AN130: 1533 車王電 | AO130: 311048 | AP130: 210774 | AQ130: 231393 | AR130: 213337 | AS130: 228615 | AT130: 340182 | AU130: 370906 | AV130: 245523 | AW130: 281736 | AX130: 260060 | AY130: 345477 | AZ130: 331974 | BB130: 1533 車王電 | BC130: 273666 | BD130: 248631 | BE130: 401228 | BF130: 288929 | BG130: 486939 | BH130: 328932 | BI130: 320876 | BJ130: 391517 | BP130: 1533 車王電 | BQ130: 251189 | BR130: 166357 | BS130: 238800 | BT130: 231081 | BU130: 242533 | BV130: 325080 | BW130: 224107 | BX130: 249684 | BY130: 211656 | BZ130: 231806 | CA130: 204162 | CB130: 226307
A131: 1536 和大 | B131: M2200 汽車工業 | C131: M15D 汽車組件 | F131: M23H2 電機設備 | L131: 1535 中宇 | M131: 566085 | N131: 636646 | O131: 815449 | P131: 620260 | Q131: 650920 | R131: 704875 | S131: 705915 | T131: 746497 | U131: 793878 | V131: 902626 | W131: 846632 | X131: 846577 | Z131: 1535 中宇 | AA131: 653089 | AB131: 798706 | AC131: 722161 | AD131: 640253 | AE131: 660989 | AF131: 622844 | AG131: 635419 | AH131: 690125 | AI131: 679673 | AJ131: 683276 | AK131: 714862 | AL131: 983216 | AN131: 1535 中宇 | AO131: 780623 | AP131: 608349 | AQ131: 704652 | AR131: 606248 | AS131: 605090 | AT131: 854971 | AU131: 720211 | AV131: 685491 | AW131: 798394 | AX131: 726818 | AY131: 754502 | AZ131: 998704 | BB131: 1535 中宇 | BC131: 634031 | BD131: 627487 | BE131: 744991 | BF131: 724621 | BG131: 793274 | BH131: 972580 | BI131: 707519 | BJ131: 746573 | BK131: 749850 | BP131: 1535 中宇 | BQ131: 1005894 | BR131: 856147 | BS131: 857147 | BT131: 682762 | BU131: 804008 | BV131: 651676 | BW131: 664797 | BX131: 822978 | BY131: 731146 | BZ131: 576022 | CA131: 738463 | CB131: 924870
A132: 1537 廣隆 | B132: M1500 電機機械 | C132: M23D7 二次電池 | F132: M23H3 設備通路 | L132: 1536 和大 | M132: 516966 | N132: 450968 | O132: 439959 | P132: 168505 | Q132: 255959 | R132: 352638 | S132: 368145 | T132: 420769 | U132: 510362 | V132: 559302 | W132: 602414 | X132: 558952 | Z132: 1536 和大 | AA132: 609771 | AB132: 421180 | AC132: 542003 | AD132: 558067 | AE132: 601926 | AF132: 515758 | AG132: 526374 | AH132: 625075 | AI132: 606815 | AJ132: 542724 | AK132: 608985 | AL132: 535469 | AN132: 1536 和大 | AO132: 522610 | AP132: 435008 | AQ132: 627338 | AR132: 634368 | AS132: 612615 | AT132: 683281 | AU132: 669456 | AV132: 701619 | AW132: 647576 | AX132: 575987 | AY132: 615077 | AZ132: 614907 | BB132: 1536 和大 | BC132: 497837 | BD132: 578132 | BE132: 637545 | BF132: 637886 | BG132: 631275 | BH132: 512596 | BI132: 526944 | BJ132: 534523 | BP132: 1536 和大 | BQ132: 559963 | BR132: 417342 | BS132: 502632 | BT132: 509843 | BU132: 494408 | BV132: 500942 | BW132: 506523 | BX132: 517645 | BY132: 505658 | BZ132: 521274 | CA132: 501377 | CB132: 428372
A133: 1538 正峰 | B133: M1500 電機機械 | C133: M15A1 工具機 | F133: M23K1 手機 | L133: 1537 廣隆 | M133: 519466 | N133: 554416 | O133: 630694 | P133: 504349 | Q133: 595517 | R133: 587949 | S133: 614533 | T133: 597914 | U133: 624602 | V133: 616113 | W133: 590004 | X133: 677979 | Z133: 1537 廣隆 | AA133: 615961 | AB133: 433990 | AC133: 646022 | AD133: 611767 | AE133: 644513 | AF133: 688504 | AG133: 402326 | AH133: 193093 | AI133: 190622 | AJ133: 322759 | AK133: 502931 | AL133: 546187 | AN133: 1537 廣隆 | AO133: 659845 | AP133: 396270 | AQ133: 613512 | AR133: 650265 | AS133: 675156 | AT133: 697872 | AU133: 702257 | AV133: 707839 | AW133: 629208 | AX133: 604352 | AY133: 440496 | AZ133: 538718 | BB133: 1537 廣隆 | BC133: 489898 | BD133: 362038 | BE133: 577154 | BF133: 456636 | BG133: 621738 | BH133: 531517 | BI133: 515802 | BJ133: 574790 | BK133: 534044 | BP133: 1537 廣隆 | BQ133: 744711 | BR133: 518881 | BS133: 743917 | BT133: 655797 | BU133: 671628 | BV133: 677810 | BW133: 592362 | BX133: 677723 | BY133: 660321 | BZ133: 677632 | CA133: 623706 | CB133: 685401
A134: 1539 巨庭 | B134: M1500 電機機械 | C134: M15A1 工具機 | F134: M23K2 通訊設備 | L134: 1538 正峰 | M134: 23464 | N134: 11786 | O134: 20187 | P134: 27959 | Q134: 21988 | R134: 24974 | S134: 25752 | T134: 25726 | U134: 15721 | V134: 23851 | W134: 28526 | X134: 25358 | Z134: 1538 正峰 | AA134: 17124 | AB134: 15187 | AC134: 28964 | AD134: 18568 | AE134: 28609 | AF134: 24304 | AG134: 20779 | AH134: 16692 | AI134: 23229 | AJ134: 13826 | AK134: 28333 | AL134: 29686 | AN134: 1538 正峰 | AO134: 29024 | AP134: 13288 | AQ134: 20063 | AR134: 11412 | AS134: 15562 | AT134: 28598 | AU134: 28086 | AV134: 32519 | AW134: 24675 | AX134: 34794 | AY134: 26389 | AZ134: 21798 | BB134: 1538 正峰 | BC134: 15616 | BD134: 17257 | BE134: 20083 | BF134: 21967 | BG134: 19025 | BH134: 14982 | BI134: 19155 | BJ134: 16090 | BP134: 1538 正峰 | BQ134: 30485 | BR134: 18393 | BS134: 29396 | BT134: 20565 | BU134: 33394 | BV134: 36570 | BW134: 35005 | BX134: 30659 | BY134: 34920 | BZ134: 25008 | CA134: 26513 | CB134: 34906
A135: 1540 喬福 | B135: M1500 電機機械 | C135: M15A1 工具機 | F135: M23K3 電信業 | L135: 1539 巨庭 | M135: 164226 | N135: 101242 | O135: 189668 | P135: 157734 | Q135: 168045 | R135: 163862 | S135: 206821 | T135: 198573 | U135: 215803 | V135: 276238 | W135: 214757 | X135: 236566 | Z135: 1539 巨庭 | AA135: 209247 | AB135: 189094 | AC135: 217037 | AD135: 243445 | AE135: 272787 | AF135: 223175 | AG135: 315567 | AH135: 241574 | AI135: 290452 | AJ135: 326922 | AK135: 324837 | AL135: 294709 | AN135: 1539 巨庭 | AO135: 320702 | AP135: 219689 | AQ135: 279659 | AR135: 231345 | AS135: 235813 | AT135: 272970 | AU135: 232621 | AV135: 214396 | AW135: 201775 | AX135: 112048 | AY135: 103592 | AZ135: 76708 | BB135: 1539 巨庭 | BC135: 90674 | BD135: 51681 | BE135: 111617 | BF135: 151212 | BG135: 155084 | BH135: 144623 | BI135: 91382 | BJ135: 154729 | BK135: 150541 | BP135: 1539 巨庭 | BQ135: 286948 | BR135: 142568 | BS135: 212366 | BT135: 188440 | BU135: 188676 | BV135: 193732 | BW135: 182674 | BX135: 117691 | BY135: 186804 | BZ135: 160369 | CA135: 159709 | CB135: 175847
A136: 1541 錩泰 | B136: M1500 電機機械 | C136: M15A1 工具機 | F136: M23K4 網路服務 | L136: 1540 喬福 | M136: 40196 | N136: 32749 | O136: 26825 | P136: 5703 | Q136: 9169 | R136: 15138 | S136: 21026 | T136: 22063 | U136: 19435 | V136: 37804 | W136: 28090 | X136: 52907 | Z136: 1540 喬福 | AA136: 45257 | AB136: 32908 | AC136: 40439 | AD136: 42144 | AE136: 36859 | AF136: 35648 | AG136: 21409 | AH136: 21460 | AI136: 10495 | AJ136: 11952 | AK136: 47490 | AL136: 14730 | AN136: 1540 喬福 | AO136: 44143 | AP136: 16135 | AQ136: 43677 | AR136: 59780 | AS136: 47982 | AT136: 13057 | AU136: 48710 | AV136: 52791 | AW136: 26267 | AX136: 61604 | AY136: 34083 | AZ136: 25062 | BB136: 1540 喬福 | BC136: 66884 | BD136: 20813 | BE136: 30777 | BF136: 58202 | BG136: 63881 | BH136: 21313 | BI136: 56479 | BJ136: 31860 | BP136: 1540 喬福 | BQ136: 50830 | BR136: 54190 | BS136: 52580 | BT136: 72586 | BU136: 67544 | BV136: 52815 | BW136: 54048 | BX136: 66687 | BY136: 40192 | BZ136: 51323 | CA136: 56957 | CB136: 50844
A137: 1558 伸興 | B137: M1500 電機機械 | C137: M15A3 紡織工具機 | F137: M23K5 衛星通訊 | L137: 1541 錩泰 | M137: 415373 | N137: 329264 | O137: 368476 | P137: 408741 | Q137: 361394 | R137: 425913 | S137: 513506 | T137: 408445 | U137: 530327 | V137: 464634 | W137: 496968 | X137: 548903 | Z137: 1541 錩泰 | AA137: 489059 | AB137: 315416 | AC137: 474909 | AD137: 475146 | AE137: 491464 | AF137: 439989 | AG137: 585150 | AH137: 674920 | AI137: 517901 | AJ137: 648888 | AK137: 579947 | AL137: 510159 | AN137: 1541 錩泰 | AO137: 629216 | AP137: 382722 | AQ137: 574301 | AR137: 478025 | AS137: 324579 | AT137: 215544 | AU137: 242720 | AV137: 291602 | AW137: 261060 | AX137: 236321 | AY137: 223832 | AZ137: 197525 | BB137: 1541 錩泰 | BC137: 203919 | BD137: 152004 | BE137: 231084 | BF137: 288826 | BG137: 404011 | BH137: 258516 | BI137: 231712 | BJ137: 272639 | BK137: 245401 | BP137: 1541 錩泰 | BQ137: 347031 | BR137: 235869 | BS137: 328741 | BT137: 383227 | BU137: 497220 | BV137: 339796 | BW137: 412859 | BX137: 417530 | BY137: 360272 | BZ137: 363278 | CA137: 255239 | CB137: 258998
A138: 1560 中砂 | B138: M1500 電機機械 | C138: M23G3C 晶圓材料 | F138: M23K6 光纖通訊 | L138: 1558 伸興 | M138: 337493 | N138: 340150 | O138: 491547 | P138: 504995 | Q138: 413366 | R138: 696273 | S138: 735104 | T138: 815229 | U138: 701611 | V138: 678115 | W138: 692204 | X138: 559730 | Z138: 1558 伸興 | AA138: 980933 | AB138: 630647 | AC138: 933640 | AD138: 800381 | AE138: 643327 | AF138: 812459 | AG138: 866648 | AH138: 382470 | AI138: 342870 | AJ138: 332422 | AK138: 461878 | AL138: 539205 | AN138: 1558 伸興 | AO138: 746933 | AP138: 432660 | AQ138: 800122 | AR138: 491680 | AS138: 562349 | AT138: 877908 | AU138: 431679 | AV138: 406755 | AW138: 556400 | AX138: 672141 | AY138: 662424 | AZ138: 553589 | BB138: 1558 伸興 | BC138: 505439 | BD138: 490384 | BE138: 660153 | BF138: 541921 | BG138: 648984 | BH138: 718169 | BI138: 647790 | BJ138: 734399 | BK138: 735363 | BP138: 1558 伸興 | BQ138: 411722 | BR138: 266664 | BS138: 397511 | BT138: 537176 | BU138: 442559 | BV138: 608731 | BW138: 614867 | BX138: 668805 | BY138: 722020 | BZ138: 455609 | CA138: 344224 | CB138: 466060
A139: 1565 精華 | B139: M1722 生技醫療 | C139: M17G 醫療耗材 | F139: M23T1 3C通路 | L139: 1560 中砂 | M139: 395279 | N139: 412201 | O139: 420382 | P139: 450328 | Q139: 413221 | R139: 443332 | S139: 439426 | T139: 432477 | U139: 420571 | V139: 420808 | W139: 437013 | X139: 469077 | Z139: 1560 中砂 | AA139: 472827 | AB139: 470114 | AC139: 521795 | AD139: 480526 | AE139: 507991 | AF139: 499253 | AG139: 517447 | AH139: 512863 | AI139: 508701 | AJ139: 484715 | AK139: 525131 | AL139: 526453 | AN139: 1560 中砂 | AO139: 531136 | AP139: 530672 | AQ139: 583052 | AR139: 590111 | AS139: 599802 | AT139: 668209 | AU139: 618058 | AV139: 617552 | AW139: 579720 | AX139: 537502 | AY139: 534158 | AZ139: 517624 | BB139: 1560 中砂 | BC139: 470383 | BD139: 516402 | BE139: 575725 | BF139: 509157 | BG139: 546335 | BH139: 519571 | BI139: 523288 | BJ139: 556064 | BK139: 569539 | BP139: 1560 中砂 | BQ139: 441889 | BR139: 382857 | BS139: 417177 | BT139: 400295 | BU139: 388228 | BV139: 398242 | BW139: 410086 | BX139: 403594 | BY139: 403026 | BZ139: 420369 | CA139: 419284 | CB139: 390317
A140: 1568 倉佑 | B140: M2200 汽車工業 | C140: M15D 汽車組件 | F140: M23T2 零組件代理 | L140: 1565 精華 | M140: 415791 | N140: 463892 | O140: 455729 | P140: 411937 | Q140: 403851 | R140: 400431 | S140: 352759 | T140: 355895 | U140: 358904 | V140: 415748 | W140: 463464 | X140: 508186 | Z140: 1565 精華 | AA140: 425448 | AB140: 394543 | AC140: 486091 | AD140: 400742 | AE140: 440278 | AF140: 501864 | AG140: 470757 | AH140: 503940 | AI140: 450480 | AJ140: 417506 | AK140: 503424 | AL140: 406534 | AN140: 1565 精華 | AO140: 468434 | AP140: 368183 | AQ140: 509145 | AR140: 371717 | AS140: 384201 | AT140: 469322 | AU140: 431500 | AV140: 426121 | AW140: 429047 | AX140: 402730 | AY140: 379099 | AZ140: 364000 | BB140: 1565 精華 | BC140: 333711 | BD140: 397184 | BE140: 400438 | BF140: 377732 | BG140: 370949 | BH140: 325654 | BI140: 359944 | BJ140: 350975 | BK140: 342909 | BP140: 1565 精華 | BQ140: 590044 | BR140: 479118 | BS140: 554401 | BT140: 523572 | BU140: 522265 | BV140: 526390 | BW140: 522637 | BX140: 524826 | BY140: 525289 | BZ140: 525965 | CA140: 527408 | CB140: 524755
A141: 1569 濱川 | B141: M2325 電腦及週邊 | C141: M23D4 機殼 | F141: M23U1 照相機 | L141: 1568 倉佑 | M141: 137587 | N141: 113180 | O141: 150455 | P141: 101256 | Q141: 104524 | R141: 132832 | S141: 154499 | T141: 158701 | U141: 172346 | V141: 176727 | W141: 179703 | X141: 175969 | Z141: 1568 倉佑 | AA141: 157429 | AB141: 147796 | AC141: 164783 | AD141: 155613 | AE141: 120537 | AF141: 154483 | AG141: 149174 | AH141: 161997 | AI141: 143121 | AJ141: 155992 | AK141: 153240 | AL141: 161655 | AN141: 1568 倉佑 | AO141: 179206 | AP141: 139912 | AQ141: 179859 | AR141: 129939 | AS141: 174087 | AT141: 161013 | AU141: 153467 | AV141: 133799 | AW141: 149552 | AX141: 124308 | AY141: 142258 | AZ141: 123015 | BB141: 1568 倉佑 | BC141: 112863 | BD141: 101470 | BE141: 122170 | BF141: 144929 | BG141: 154252 | BH141: 145662 | BI141: 91176 | BJ141: 100640 | BK141: 114056 | BP141: 1568 倉佑 | BQ141: 156877 | BR141: 130094 | BS141: 168586 | BT141: 173325 | BU141: 181204 | BV141: 143502 | BW141: 191730 | BX141: 182042 | BY141: 165595 | BZ141: 163780 | CA141: 171449 | CB141: 207760
A142: 1570 力肯 | B142: M1500 電機機械 | C142: M15A1 工具機 | F142: M23U2 音響設備 | L142: 1569 濱川 | M142: 284725 | N142: 147663 | O142: 503631 | P142: 574803 | Q142: 483181 | R142: 412449 | S142: 418927 | T142: 445926 | U142: 412932 | V142: 432023 | W142: 402071 | X142: 426039 | Z142: 1569 濱川 | AA142: 478366 | AB142: 257655 | AC142: 390104 | AD142: 279510 | AE142: 296170 | AF142: 398792 | AG142: 402617 | AH142: 375178 | AI142: 444426 | AJ142: 511846 | AK142: 525781 | AL142: 410418 | AN142: 1569 濱川 | AO142: 454201 | AP142: 411289 | AQ142: 629328 | AR142: 436259 | AS142: 428843 | AT142: 483102 | AU142: 435232 | AV142: 321300 | AW142: 363730 | AX142: 342223 | AY142: 342450 | AZ142: 356211 | BB142: 1569 濱川 | BC142: 304442 | BD142: 249697 | BE142: 319402 | BF142: 286515 | BG142: 341516 | BH142: 300457 | BI142: 321357 | BJ142: 336109 | BP142: 1569 濱川 | BQ142: 431274 | BR142: 176379 | BS142: 297800 | BT142: 344482 | BU142: 375409 | BV142: 354824 | BW142: 343733 | BX142: 389433 | BY142: 373581 | BZ142: 501477 | CA142: 447563 | CB142: 394020
A143: 1580 新麥 | B143: M1500 電機機械 | C143: M15H 儀器設備 | F143: M23X1 系統整合 | L143: 1570 力肯 | M143: 37707 | N143: 44416 | O143: 40354 | P143: 40383 | Q143: 58094 | R143: 48456 | S143: 50267 | T143: 45069 | U143: 45763 | V143: 45792 | W143: 47361 | X143: 52176 | Z143: 1570 力肯 | AA143: 57884 | AB143: 33806 | AC143: 71173 | AD143: 39647 | AE143: 59429 | AF143: 53086 | AG143: 59227 | AH143: 63709 | AI143: 63567 | AJ143: 60964 | AK143: 62112 | AL143: 66409 | AN143: 1570 力肯 | AO143: 51559 | AP143: 31335 | AQ143: 75637 | AR143: 43253 | AS143: 70824 | AT143: 52633 | AU143: 72208 | AV143: 35742 | AW143: 38607 | AX143: 55065 | AY143: 50451 | AZ143: 64055 | BB143: 1570 力肯 | BC143: 25519 | BD143: 48435 | BE143: 62691 | BF143: 45830 | BG143: 24340 | BH143: 29017 | BI143: 31008 | BJ143: 19387 | BK143: 20095 | BP143: 1570 力肯 | BQ143: 56712 | BR143: 21899 | BS143: 45905 | BT143: 31593 | BU143: 77968 | BV143: 56974 | BW143: 50171 | BX143: 50019 | BY143: 41257 | BZ143: 64866 | CA143: 63719 | CB143: 65838
A144: 1582 信錦 | B144: M2328 電子零組件 | C144: M23D9A 沖壓零組件 | F144: M23X2 應用軟體 | L144: 1580 新麥 | M144: 219028 | N144: 82089 | O144: 183018 | P144: 242032 | Q144: 268179 | R144: 287570 | S144: 324786 | T144: 337091 | U144: 339402 | V144: 278777 | W144: 327093 | X144: 411765 | Z144: 1580 新麥 | AA144: 317656 | AB144: 157149 | AC144: 317231 | AD144: 387548 | AE144: 331926 | AF144: 369923 | AG144: 382475 | AH144: 395621 | AI144: 462541 | AJ144: 341612 | AK144: 439077 | AL144: 408148 | AN144: 1580 新麥 | AO144: 260832 | AP144: 216168 | AQ144: 314443 | AR144: 295592 | AS144: 371223 | AT144: 368382 | AU144: 356589 | AV144: 363931 | AW144: 334670 | AX144: 320649 | AY144: 347002 | AZ144: 362804 | BB144: 1580 新麥 | BC144: 241589 | BD144: 261662 | BE144: 381182 | BF144: 400791 | BG144: 372654 | BH144: 395391 | BI144: 372377 | BJ144: 436714 | BP144: 1580 新麥 | BQ144: 366606 | BR144: 146629 | BS144: 307897 | BT144: 370424 | BU144: 366149 | BV144: 330937 | BW144: 359482 | BX144: 421276 | BY144: 378813 | BZ144: 332610 | CA144: 404875 | CB144: 433808
A145: 1583 程泰 | B145: M1500 電機機械 | C145: M15A1 工具機 | F145: M23Z 其他電子 | L145: 1582 信錦 | M145: 562207 | N145: 262595 | O145: 890651 | P145: 1011892 | Q145: 866086 | R145: 808462 | S145: 772978 | T145: 841928 | U145: 973822 | V145: 872133 | W145: 870076 | X145: 929438 | Z145: 1582 信錦 | AA145: 879364 | AB145: 507915 | AC145: 905462 | AD145: 873364 | AE145: 825639 | AF145: 826018 | AG145: 834805 | AH145: 932727 | AI145: 858041 | AJ145: 795114 | AK145: 908762 | AL145: 1046568 | AN145: 1582 信錦 | AO145: 938130 | AP145: 736378 | AQ145: 1092014 | AR145: 767382 | AS145: 962206 | AT145: 1071936 | AU145: 962758 | AV145: 753559 | AW145: 740987 | AX145: 602727 | AY145: 651779 | AZ145: 529049 | BB145: 1582 信錦 | BC145: 502455 | BD145: 584004 | BE145: 743833 | BF145: 672099 | BG145: 764406 | BH145: 725641 | BI145: 745348 | BJ145: 884051 | BK145: 886702 | BP145: 1582 信錦 | BQ145: 785131 | BR145: 492191 | BS145: 726914 | BT145: 709673 | BU145: 672293 | BV145: 731484 | BW145: 711939 | BX145: 745469 | BY145: 754339 | BZ145: 751850 | CA145: 733524 | CB145: 774916
A146: 1584 精剛 | B146: M9900 其他 | C146: M20A6 不鏽鋼 | F146: M25A 建設 | L146: 1583 程泰 | M146: 334189 | N146: 250973 | O146: 458905 | P146: 425438 | Q146: 418300 | R146: 539679 | S146: 482880 | T146: 437724 | U146: 435996 | V146: 427442 | W146: 475291 | X146: 516599 | Z146: 1583 程泰 | AA146: 488443 | AB146: 324817 | AC146: 693407 | AD146: 594390 | AE146: 567389 | AF146: 595592 | AG146: 569259 | AH146: 561792 | AI146: 581312 | AJ146: 527458 | AK146: 597839 | AL146: 623795 | AN146: 1583 程泰 | AO146: 580008 | AP146: 376284 | AQ146: 430820 | AR146: 494177 | AS146: 534722 | AT146: 493699 | AU146: 596528 | AV146: 615406 | AW146: 742068 | AX146: 493728 | AY146: 519095 | AZ146: 508625 | BB146: 1583 程泰 | BC146: 277891 | BD146: 323501 | BE146: 552634 | BF146: 413440 | BG146: 523891 | BH146: 495305 | BI146: 402999 | BJ146: 410263 | BK146: 486883 | BP146: 1583 程泰 | BQ146: 558549 | BR146: 402889 | BS146: 562649 | BT146: 462119 | BU146: 602068 | BV146: 503454 | BW146: 609644 | BX146: 421692 | BY146: 525606 | BZ146: 553453 | CA146: 435125 | CB146: 487472
A147: 1586 和勤 | B147: M1500 電機機械 | C147: M23D9A 沖壓零組件 | F147: M25B 營造 | L147: 1584 精剛 | M147: 79927 | N147: 82528 | O147: 74134 | P147: 68407 | Q147: 37485 | R147: 52501 | S147: 69952 | T147: 75318 | U147: 60803 | V147: 52275 | W147: 62207 | X147: 72020 | Z147: 1584 精剛 | AA147: 67527 | AB147: 40069 | AC147: 71088 | AD147: 74531 | AE147: 69915 | AF147: 74937 | AG147: 106389 | AH147: 112323 | AI147: 100143 | AJ147: 133784 | AK147: 127970 | AL147: 130183 | AN147: 1584 精剛 | AO147: 120456 | AP147: 80038 | AQ147: 132092 | AR147: 132880 | AS147: 131223 | AT147: 151759 | AU147: 172086 | AV147: 129328 | AW147: 133405 | AX147: 147012 | AY147: 178935 | AZ147: 262009 | BB147: 1584 精剛 | BC147: 148297 | BD147: 253218 | BE147: 224227 | BF147: 215749 | BG147: 224557 | BH147: 203277 | BI147: 227341 | BJ147: 255866 | BK147: 210465 | BP147: 1584 精剛 | BQ147: 56174 | BR147: 53810 | BS147: 68822 | BT147: 73007 | BU147: 72776 | BV147: 77816 | BW147: 73564 | BX147: 77346 | BY147: 76747 | BZ147: 72750 | CA147: 70544 | CB147: 71388
A148: 1587 吉茂 | B148: M2200 汽車工業 | C148: M15D 汽車組件 | F148: M25C 工程承攬 | L148: 1586 和勤 | M148: 190331 | N148: 79865 | O148: 148616 | P148: 202289 | Q148: 201534 | R148: 156280 | S148: 196919 | T148: 203173 | U148: 227131 | V148: 209756 | W148: 236919 | X148: 255387 | Z148: 1586 和勤 | AA148: 253364 | AB148: 168728 | AC148: 204367 | AD148: 205459 | AE148: 208039 | AF148: 241905 | AG148: 204428 | AH148: 213477 | AI148: 247297 | AJ148: 209880 | AK148: 237596 | AL148: 249324 | AN148: 1586 和勤 | AO148: 271944 | AP148: 189688 | AQ148: 259666 | AR148: 172468 | AS148: 176548 | AT148: 272472 | AU148: 239884 | AV148: 177083 | AW148: 189692 | AX148: 183921 | AY148: 199176 | AZ148: 206186 | BB148: 1586 和勤 | BC148: 125054 | BD148: 153690 | BE148: 202157 | BF148: 209248 | BG148: 175660 | BH148: 160389 | BI148: 174896 | BJ148: 196276 | BK148: 216274 | BP148: 1586 和勤 | BQ148: 162322 | BR148: 102876 | BS148: 160161 | BT148: 196388 | BU148: 196899 | BV148: 146699 | BW148: 151837 | BX148: 167589 | BY148: 180741 | BZ148: 190616 | CA148: 209430 | CB148: 229601
A149: 1589 永冠-KY | B149: M1500 電機機械 | C149: M15A2 模具零件 | F149: M25D 仲介建經 | L149: 1587 吉茂 | M149: 128019 | N149: 94524 | O149: 131974 | P149: 106226 | Q149: 105127 | R149: 162049 | S149: 155055 | T149: 163865 | U149: 193477 | V149: 186584 | W149: 156165 | X149: 142664 | Z149: 1587 吉茂 | AA149: 173964 | AB149: 160643 | AC149: 200002 | AD149: 221466 | AE149: 195806 | AF149: 209596 | AG149: 216327 | AH149: 196793 | AI149: 201499 | AJ149: 206454 | AK149: 201570 | AL149: 178794 | AN149: 1587 吉茂 | AO149: 199961 | AP149: 169813 | AQ149: 232711 | AR149: 223761 | AS149: 222731 | AT149: 256061 | AU149: 245881 | AV149: 230637 | AW149: 183167 | AX149: 217706 | AY149: 171472 | AZ149: 181395 | BB149: 1587 吉茂 | BC149: 183000 | BD149: 179268 | BE149: 179703 | BF149: 173771 | BG149: 210431 | BH149: 191455 | BI149: 159852 | BJ149: 193155 | BK149: 145650 | BP149: 1587 吉茂 | BQ149: 117220 | BR149: 84588 | BS149: 126594 | BT149: 129316 | BU149: 148132 | BV149: 125740 | BW149: 142265 | BX149: 123848 | BY149: 133318 | BZ149: 121352 | CA149: 130538 | CB149: 133556
A150: 1590 亞德客-KY | B150: M1500 電機機械 | C150: M15A2 模具零件 | F150: M25F 物業管理 | L150: 1589 永冠-KY | M150: 467800 | N150: 86318 | O150: 576081 | P150: 712460 | Q150: 701277 | R150: 721927 | S150: 802373 | T150: 796499 | U150: 831729 | V150: 696479 | W150: 861842 | X150: 929488 | Z150: 1589 永冠-KY | AA150: 879365 | AB150: 504342 | AC150: 762001 | AD150: 777036 | AE150: 678178 | AF150: 779538 | AG150: 756793 | AH150: 747334 | AI150: 766343 | AJ150: 684585 | AK150: 791014 | AL150: 821682 | AN150: 1589 永冠-KY | AO150: 672787 | AP150: 460763 | AQ150: 679549 | AR150: 687515 | AS150: 773130 | AT150: 869773 | AU150: 786319 | AV150: 849214 | AW150: 845243 | AX150: 883902 | AY150: 922207 | AZ150: 953523 | BB150: 1589 永冠-KY | BC150: 528224 | BD150: 699228 | BE150: 990223 | BF150: 909964 | BG150: 839743 | BH150: 592701 | BI150: 600871 | BJ150: 674045 | BK150: 663609 | BP150: 1589 永冠-KY | BQ150: 610493 | BR150: 276032 | BS150: 665832 | BT150: 674264 | BU150: 637646 | BV150: 638706 | BW150: 674048 | BX150: 741046 | BY150: 753101 | BZ150: 692514 | CA150: 742477 | CB150: 793827
A151: 1591 駿吉-KY | B151: M1500 電機機械 | C151: M20B 金屬製品 | F151: M26A1 散裝輪 | L151: 1590 亞德客-KY | M151: 888909 | N151: 532385 | O151: 1736113 | P151: 1964417 | Q151: 1682673 | R151: 1688835 | S151: 1754776 | T151: 1670613 | U151: 1794693 | V151: 1537348 | W151: 1874075 | X151: 1978234 | Z151: 1590 亞德客-KY | AA151: 2133512 | AB151: 1409761 | AC151: 2388542 | AD151: 2426662 | AE151: 2233597 | AF151: 2376162 | AG151: 2253509 | AH151: 2245773 | AI151: 2163974 | AJ151: 1591905 | AK151: 1925213 | AL151: 2250066 | AN151: 1590 亞德客-KY | AO151: 1950788 | AP151: 1718300 | AQ151: 2839524 | AR151: 2264771 | AS151: 2650385 | AT151: 2307603 | AU151: 1978552 | AV151: 1976218 | AW151: 2122815 | AX151: 1974139 | AY151: 2210863 | AZ151: 2079528 | BB151: 1590 亞德客-KY | BC151: 1457763 | BD151: 2368561 | BE151: 3079445 | BF151: 2687697 | BG151: 2772214 | BH151: 2542033 | BI151: 2410641 | BJ151: 2561743 | BP151: 1590 亞德客-KY | BQ151: 1171487 | BR151: 729595 | BS151: 1477314 | BT151: 1586264 | BU151: 1491592 | BV151: 1325186 | BW151: 1335215 | BX151: 1335010 | BY151: 1352364 | BZ151: 1183761 | CA151: 1411391 | CB151: 1500008
A152: 1593 祺驊 | B152: M3700 運動休閒 | C152: M15Z 其他電製品 | F152: M26A2 貨櫃輪 | L152: 1591 駿吉-KY | M152: 45465 | N152: 47024 | O152: 33415 | P152: 23179 | Q152: 62203 | R152: 64575 | S152: 67261 | T152: 48929 | U152: 50168 | V152: 53971 | W152: 57767 | X152: 59067 | Z152: 1591 駿吉-KY | AA152: 65664 | AB152: 65456 | AC152: 76143 | AD152: 66502 | AE152: 54910 | AF152: 56926 | AG152: 0 | AH152: 42536 | AI152: 41503 | AJ152: 22900 | AK152: 40474 | AL152: 41251 | AN152: 1591 駿吉-KY | AO152: 42012 | AP152: 65006 | AQ152: 71247 | AR152: 70732 | AS152: 68649 | AT152: 61439 | AU152: 66903 | AV152: 45885 | AW152: 69152 | AX152: 75367 | AY152: 39839 | AZ152: 3675 | BB152: 1591 駿吉-KY | BC152: 5704 | BD152: 5737 | BE152: 8138 | BF152: 2207 | BG152: 3895 | BH152: 2355 | BI152: 7002 | BJ152: 9375 | BP152: 1591 駿吉-KY | BQ152: 90497 | BR152: 46019 | BS152: 54173 | BT152: 56557 | BU152: 58216 | BV152: 60236 | BW152: 54453 | BX152: 32654 | BY152: 33726 | BZ152: 33205 | CA152: 34863 | CB152: 42738
A153: 1595 川寶 | B153: M2328 電子零組件 | C153: M23H2 電機設備 | F153: M26B 汽車陸運業 | L153: 1593 祺驊 | M153: 43151 | N153: 52042 | O153: 60177 | P153: 60912 | Q153: 60387 | R153: 66610 | S153: 78308 | T153: 78358 | U153: 87587 | V153: 86730 | W153: 101123 | X153: 93224 | Z153: 1593 祺驊 | AA153: 108688 | AB153: 69112 | AC153: 87977 | AD153: 117827 | AE153: 109194 | AF153: 112708 | AG153: 121965 | AH153: 106696 | AI153: 87892 | AJ153: 87714 | AK153: 84992 | AL153: 76689 | AN153: 1593 祺驊 | AO153: 67383 | AP153: 55670 | AQ153: 47663 | AR153: 51202 | AS153: 28980 | AT153: 42582 | AU153: 64189 | AV153: 69599 | AW153: 94045 | AX153: 109029 | AY153: 119655 | AZ153: 123901 | BB153: 1593 祺驊 | BC153: 83621 | BD153: 67759 | BE153: 86498 | BF153: 81785 | BG153: 97070 | BH153: 97607 | BI153: 93338 | BJ153: 85923 | BP153: 1593 祺驊 | BQ153: 73618 | BR153: 40416 | BS153: 74097 | BT153: 68716 | BU153: 65678 | BV153: 63480 | BW153: 70532 | BX153: 69156 | BY153: 75936 | BZ153: 73082 | CA153: 66244 | CB153: 73555
A154: 1597 直得 | B154: M1500 電機機械 | C154: M15A2 模具零件 | F154: M26C 貨運倉儲業 | L154: 1595 川寶 | M154: 116603 | N154: 78965 | O154: 133156 | P154: 219039 | Q154: 155376 | R154: 142460 | S154: 106101 | T154: 174962 | U154: 96127 | V154: 140888 | W154: 186355 | X154: 142117 | Z154: 1595 川寶 | AA154: 152460 | AB154: 132872 | AC154: 187084 | AD154: 179037 | AE154: 170708 | AF154: 232296 | AG154: 229174 | AH154: 243710 | AI154: 223398 | AJ154: 253639 | AK154: 214620 | AL154: 198038 | AN154: 1595 川寶 | AO154: 176745 | AP154: 158941 | AQ154: 164265 | AR154: 192211 | AS154: 162270 | AT154: 171587 | AU154: 134610 | AV154: 119938 | AW154: 138072 | AX154: 120022 | AY154: 137035 | AZ154: 120027 | BB154: 1595 川寶 | BC154: 110169 | BD154: 122082 | BE154: 86304 | BF154: 160468 | BG154: 163152 | BH154: 168987 | BI154: 84113 | BJ154: 104912 | BK154: 149944 | BP154: 1595 川寶 | BQ154: 107952 | BR154: 99077 | BS154: 83856 | BT154: 157288 | BU154: 170884 | BV154: 113546 | BW154: 161703 | BX154: 160034 | BY154: 172040 | BZ154: 174425 | CA154: 162924 | CB154: 165799
A155: 1598 岱宇 | B155: M3700 運動休閒 | C155: M15Z 其他電製品 | F155: M26D 空運業 | L155: 1597 直得 | M155: 81609 | N155: 89248 | O155: 119633 | P155: 130375 | Q155: 128609 | R155: 132301 | S155: 113076 | T155: 121215 | U155: 113151 | V155: 107479 | W155: 113647 | X155: 131541 | Z155: 1597 直得 | AA155: 135504 | AB155: 129093 | AC155: 154057 | AD155: 161737 | AE155: 162123 | AF155: 165908 | AG155: 166052 | AH155: 151508 | AI155: 174286 | AJ155: 150442 | AK155: 151821 | AL155: 154388 | AN155: 1597 直得 | AO155: 130623 | AP155: 117905 | AQ155: 144907 | AR155: 117194 | AS155: 164037 | AT155: 170410 | AU155: 147964 | AV155: 138345 | AW155: 134996 | AX155: 131796 | AY155: 126912 | AZ155: 110690 | BB155: 1597 直得 | BC155: 103999 | BD155: 99783 | BE155: 103481 | BF155: 105357 | BG155: 101660 | BH155: 78961 | BI155: 80224 | BJ155: 82382 | BK155: 82550 | BP155: 1597 直得 | BQ155: 114277 | BR155: 95400 | BS155: 122653 | BT155: 126178 | BU155: 110818 | BV155: 109051 | BW155: 114924 | BX155: 112735 | BY155: 94215 | BZ155: 103088 | CA155: 97093 | CB155: 99918
A156: 1599 宏佳騰 | B156: M1500 電機機械 | C156: M22A 汽車製造 | F156: M27A1 飯店業 | L156: 1598 岱宇 | M156: 434445 | N156: 400473 | O156: 768689 | P156: 773185 | Q156: 819092 | R156: 903905 | S156: 1042445 | T156: 1114849 | U156: 1411781 | V156: 1711714 | W156: 1719006 | X156: 2005978 | Z156: 1598 岱宇 | AA156: 1343735 | AB156: 1208886 | AC156: 1275903 | AD156: 1004666 | AE156: 959845 | AF156: 819589 | AG156: 751159 | AH156: 786966 | AI156: 895003 | AJ156: 937590 | AK156: 819680 | AL156: 942436 | AN156: 1598 岱宇 | AO156: 726377 | AP156: 711912 | AQ156: 820919 | AR156: 463617 | AS156: 494778 | AT156: 420104 | AU156: 448166 | AV156: 449422 | AW156: 491059 | AX156: 517819 | AY156: 840523 | AZ156: 743365 | BB156: 1598 岱宇 | BC156: 790794 | BD156: 773508 | BE156: 664459 | BF156: 543491 | BG156: 558925 | BH156: 413317 | BI156: 514829 | BJ156: 570892 | BK156: 585465 | BP156: 1598 岱宇 | BQ156: 746884 | BR156: 459234 | BS156: 575371 | BT156: 452865 | BU156: 349644 | BV156: 302468 | BW156: 350329 | BX156: 430603 | BY156: 501204 | BZ156: 560449 | CA156: 525651 | CB156: 586757
A157: 1603 華電 | B157: M1600 電器電纜 | C157: M16 電線 | F157: M27A2 餐飲業 | L157: 1599 宏佳騰 | M157: 149693 | N157: 177761 | O157: 204659 | P157: 260326 | Q157: 213669 | R157: 140180 | S157: 209895 | T157: 368427 | U157: 537982 | V157: 289654 | W157: 337206 | X157: 336160 | Z157: 1599 宏佳騰 | AA157: 265211 | AB157: 189095 | AC157: 303986 | AD157: 227624 | AE157: 294811 | AF157: 263434 | AG157: 290680 | AH157: 349757 | AI157: 435651 | AJ157: 284481 | AK157: 322249 | AL157: 384018 | AN157: 1599 宏佳騰 | AO157: 282526 | AP157: 195119 | AQ157: 416297 | AR157: 259565 | AS157: 276384 | AT157: 310045 | AU157: 266309 | AV157: 330066 | AW157: 308276 | AX157: 269781 | AY157: 252210 | AZ157: 213230 | BB157: 1599 宏佳騰 | BC157: 66840 | BD157: 166206 | BE157: 106465 | BF157: 181294 | BG157: 83438 | BH157: 117212 | BI157: 303522 | BJ157: 327220 | BP157: 1599 宏佳騰 | BQ157: 254581 | BR157: 125089 | BS157: 188934 | BT157: 277741 | BU157: 231478 | BV157: 110245 | BW157: 142214 | BX157: 238479 | BY157: 205731 | BZ157: 310407 | CA157: 143446 | CB157: 170803
A158: 1604 聲寶 | B158: M1600 電器電纜 | C158: M15C1 家電 | F158: M27B 觀光遊樂區 | L158: 1603 華電 | M158: 197104 | N158: 247028 | O158: 212014 | P158: 156566 | Q158: 107088 | R158: 252991 | S158: 200574 | T158: 139681 | U158: 165978 | V158: 164642 | W158: 205699 | X158: 194902 | Z158: 1603 華電 | AA158: 265490 | AB158: 145291 | AC158: 327643 | AD158: 148748 | AE158: 161627 | AF158: 152772 | AG158: 143362 | AH158: 174638 | AI158: 359057 | AJ158: 216189 | AK158: 254980 | AL158: 214602 | AN158: 1603 華電 | AO158: 244118 | AP158: 146174 | AQ158: 316351 | AR158: 268837 | AS158: 223347 | AT158: 293035 | AU158: 214634 | AV158: 491483 | AW158: 258471 | AX158: 254260 | AY158: 469994 | AZ158: 285921 | BB158: 1603 華電 | BC158: 252349 | BD158: 307450 | BE158: 314920 | BF158: 281436 | BG158: 360279 | BH158: 331324 | BI158: 296923 | BJ158: 282068 | BK158: 621451 | BP158: 1603 華電 | BQ158: 156589 | BR158: 81481 | BS158: 215561 | BT158: 282191 | BU158: 215450 | BV158: 211211 | BW158: 283394 | BX158: 170712 | BY158: 243855 | BZ158: 345203 | CA158: 251826 | CB158: 256791
A159: 1605 華新 | B159: M1600 電器電纜 | C159: M16 電線 | F159: M27C 旅行社 | L159: 1604 聲寶 | M159: 724844 | N159: 510285 | O159: 573093 | P159: 577889 | Q159: 748297 | R159: 764012 | S159: 835946 | T159: 647857 | U159: 591889 | V159: 551670 | W159: 529607 | X159: 618176 | Z159: 1604 聲寶 | AA159: 846631 | AB159: 591817 | AC159: 670122 | AD159: 683761 | AE159: 838750 | AF159: 788114 | AG159: 772952 | AH159: 706217 | AI159: 680562 | AJ159: 738388 | AK159: 785427 | AL159: 802160 | AN159: 1604 聲寶 | AO159: 1014865 | AP159: 632949 | AQ159: 750523 | AR159: 778535 | AS159: 841444 | AT159: 794233 | AU159: 845180 | AV159: 714628 | AW159: 597829 | AX159: 625304 | AY159: 691420 | AZ159: 648757 | BB159: 1604 聲寶 | BC159: 991211 | BD159: 635155 | BE159: 726236 | BF159: 751279 | BG159: 869115 | BH159: 824019 | BI159: 827720 | BJ159: 688324 | BK159: 601230 | BP159: 1604 聲寶 | BQ159: 743165 | BR159: 430993 | BS159: 592920 | BT159: 672274 | BU159: 653162 | BV159: 640485 | BW159: 672488 | BX159: 576682 | BY159: 525332 | BZ159: 530903 | CA159: 504095 | CB159: 573509
A160: 1608 華榮 | B160: M1600 電器電纜 | C160: M16 電線 | F160: M28A 本國銀行 | L160: 1605 華新 | M160: 8063234 | N160: 6970984 | O160: 9160981 | P160: 12913956 | Q160: 7208866 | R160: 8812556 | S160: 8900885 | T160: 8849975 | U160: 10659389 | V160: 9667281 | W160: 9517377 | X160: 11826620 | Z160: 1605 華新 | AA160: 10181000 | AB160: 7251245 | AC160: 11422132 | AD160: 12244761 | AE160: 12770540 | AF160: 14184106 | AG160: 14448725 | AH160: 13419588 | AI160: 14394712 | AJ160: 13715425 | AK160: 14611879 | AL160: 17479990 | AN160: 1605 華新 | AO160: 13499329 | AP160: 13028634 | AQ160: 16037946 | AR160: 17201723 | AS160: 17630961 | AT160: 15579541 | AU160: 15121399 | AV160: 14315935 | AW160: 14016727 | AX160: 14051332 | AY160: 14443667 | AZ160: 14681167 | BB160: 1605 華新 | BC160: 15162554 | BD160: 17872155 | BE160: 17642621 | BF160: 16250367 | BG160: 17711337 | BH160: 15511914 | BI160: 15187001 | BJ160: 14410608 | BK160: 16771119 | BP160: 1605 華新 | BQ160: 13638561 | BR160: 9739782 | BS160: 13674394 | BT160: 14156462 | BU160: 13129978 | BV160: 9844288 | BW160: 9999721 | BX160: 9657602 | BY160: 10240216 | BZ160: 10086581 | CA160: 8972585 | CB160: 11694930
A161: 1609 大亞 | B161: M1600 電器電纜 | C161: M16 電線 | F161: M28F 票券公司 | L161: 1608 華榮 | M161: 542860 | N161: 493882 | O161: 674058 | P161: 500631 | Q161: 769694 | R161: 501998 | S161: 559833 | T161: 574345 | U161: 859677 | V161: 684140 | W161: 618687 | X161: 660258 | Z161: 1608 華榮 | AA161: 671293 | AB161: 662515 | AC161: 915976 | AD161: 808397 | AE161: 880343 | AF161: 935989 | AG161: 906578 | AH161: 812890 | AI161: 988471 | AJ161: 973633 | AK161: 941524 | AL161: 987205 | AN161: 1608 華榮 | AO161: 834139 | AP161: 897613 | AQ161: 1042822 | AR161: 848954 | AS161: 1025379 | AT161: 885096 | AU161: 976010 | AV161: 857290 | AW161: 953769 | AX161: 764354 | AY161: 869009 | AZ161: 795462 | BB161: 1608 華榮 | BC161: 791408 | BD161: 730688 | BE161: 981663 | BF161: 743219 | BG161: 842263 | BH161: 675438 | BI161: 806878 | BJ161: 710289 | BK161: 905462 | BP161: 1608 華榮 | BQ161: 715762 | BR161: 451498 | BS161: 696543 | BT161: 602601 | BU161: 609767 | BV161: 741362 | BW161: 651684 | BX161: 692934 | BY161: 748441 | BZ161: 580616 | CA161: 545098 | CB161: 796311
A162: 1611 中電 | B162: M1600 電器電纜 | C162: M15C4 照明 | F162: M28I 壽險業 | L162: 1609 大亞 | M162: 1203912 | N162: 1059078 | O162: 1694021 | P162: 1476671 | Q162: 1456484 | R162: 1478283 | S162: 1613994 | T162: 1528848 | U162: 1621234 | V162: 1552389 | W162: 1850911 | X162: 2055603 | Z162: 1609 大亞 | AA162: 2135936 | AB162: 1534532 | AC162: 2410381 | AD162: 2105240 | AE162: 2373863 | AF162: 2758445 | AG162: 2347019 | AH162: 2238712 | AI162: 2373865 | AJ162: 2276433 | AK162: 2542009 | AL162: 2515377 | AN162: 1609 大亞 | AO162: 2295292 | AP162: 1799952 | AQ162: 2647479 | AR162: 2406527 | AS162: 2410204 | AT162: 2263177 | AU162: 2138751 | AV162: 2289497 | AW162: 2176392 | AX162: 2111691 | AY162: 2237182 | AZ162: 2202713 | BB162: 1609 大亞 | BC162: 1721314 | BD162: 2036454 | BE162: 2590453 | BF162: 2130994 | BG162: 2097985 | BH162: 2135689 | BI162: 2121639 | BJ162: 2347203 | BP162: 1609 大亞 | BQ162: 1561227 | BR162: 1107153 | BS162: 1748069 | BT162: 1584250 | BU162: 1525698 | BV162: 1501674 | BW162: 1585866 | BX162: 1464737 | BY162: 1561896 | BZ162: 1443005 | CA162: 1556711 | CB162: 1668164
A163: 1612 宏泰 | B163: M1600 電器電纜 | C163: M16 電線 | F163: M28J 產險業 | L163: 1611 中電 | M163: 172810 | N163: 210706 | O163: 180126 | P163: 168646 | Q163: 162147 | R163: 179172 | S163: 183152 | T163: 176437 | U163: 159038 | V163: 147703 | W163: 160599 | X163: 173175 | Z163: 1611 中電 | AA163: 182866 | AB163: 127187 | AC163: 150794 | AD163: 147596 | AE163: 145031 | AF163: 131457 | AG163: 140077 | AH163: 145213 | AI163: 139051 | AJ163: 147914 | AK163: 172007 | AL163: 151535 | AN163: 1611 中電 | AO163: 142331 | AP163: 101511 | AQ163: 148084 | AR163: 122990 | AS163: 141382 | AT163: 129570 | AU163: 126845 | AV163: 140844 | AW163: 124767 | AX163: 127974 | AY163: 131678 | AZ163: 132493 | BB163: 1611 中電 | BC163: 105013 | BD163: 99403 | BE163: 125036 | BF163: 96403 | BG163: 108068 | BH163: 105706 | BI163: 113985 | BJ163: 119925 | BK163: 106450 | BP163: 1611 中電 | BQ163: 226338 | BR163: 152833 | BS163: 194660 | BT163: 204744 | BU163: 203578 | BV163: 189656 | BW163: 198835 | BX163: 195345 | BY163: 187380 | BZ163: 198437 | CA163: 198008 | CB163: 211223
A164: 1614 三洋電 | B164: M1600 電器電纜 | C164: M15C1 家電 | F164: M28K 租賃業 | L164: 1612 宏泰 | M164: 287849 | N164: 432718 | O164: 444449 | P164: 327067 | Q164: 435517 | R164: 429605 | S164: 318163 | T164: 427866 | U164: 336784 | V164: 344641 | W164: 409699 | X164: 372804 | Z164: 1612 宏泰 | AA164: 430393 | AB164: 415232 | AC164: 613523 | AD164: 496329 | AE164: 541426 | AF164: 578338 | AG164: 520618 | AH164: 631737 | AI164: 575841 | AJ164: 460996 | AK164: 626070 | AL164: 416764 | AN164: 1612 宏泰 | AO164: 602810 | AP164: 474197 | AQ164: 579505 | AR164: 479578 | AS164: 466583 | AT164: 468654 | AU164: 503497 | AV164: 470080 | AW164: 532534 | AX164: 532834 | AY164: 611559 | AZ164: 664113 | BB164: 1612 宏泰 | BC164: 434387 | BD164: 415693 | BE164: 509703 | BF164: 430975 | BG164: 458523 | BH164: 562749 | BI164: 499259 | BJ164: 677991 | BK164: 459278 | BP164: 1612 宏泰 | BQ164: 297535 | BR164: 231959 | BS164: 381913 | BT164: 291449 | BU164: 307813 | BV164: 259683 | BW164: 284677 | BX164: 296331 | BY164: 272446 | BZ164: 330359 | CA164: 239324 | CB164: 310824
A165: 1615 大山 | B165: M1600 電器電纜 | C165: M16 電線 | F165: M28L 金融控股 | L165: 1614 三洋電 | M165: 443227 | N165: 358398 | O165: 368332 | P165: 408347 | Q165: 575613 | R165: 616287 | S165: 694427 | T165: 477949 | U165: 471575 | V165: 322581 | W165: 332440 | X165: 392759 | Z165: 1614 三洋電 | AA165: 478400 | AB165: 459545 | AC165: 383729 | AD165: 453266 | AE165: 613425 | AF165: 523873 | AG165: 565435 | AH165: 482311 | AI165: 455565 | AJ165: 490623 | AK165: 464379 | AL165: 391218 | AN165: 1614 三洋電 | AO165: 585753 | AP165: 460903 | AQ165: 461047 | AR165: 537961 | AS165: 520451 | AT165: 646108 | AU165: 692704 | AV165: 570465 | AW165: 455614 | AX165: 420437 | AY165: 388010 | AZ165: 368334 | BB165: 1614 三洋電 | BC165: 496253 | BD165: 447139 | BE165: 450118 | BF165: 504153 | BG165: 576628 | BH165: 570295 | BI165: 607875 | BJ165: 488036 | BK165: 429345 | BP165: 1614 三洋電 | BQ165: 509806 | BR165: 324276 | BS165: 394377 | BT165: 499403 | BU165: 490607 | BV165: 460461 | BW165: 575492 | BX165: 453131 | BY165: 438625 | BZ165: 314822 | CA165: 328623 | CB165: 384403
A166: 1616 億泰 | B166: M1600 電器電纜 | C166: M16 電線 | F166: M28N 保險經紀 | L166: 1615 大山 | M166: 175644 | N166: 150167 | O166: 230966 | P166: 309542 | Q166: 303998 | R166: 200154 | S166: 365987 | T166: 299534 | U166: 269800 | V166: 246924 | W166: 255806 | X166: 357448 | Z166: 1615 大山 | AA166: 261465 | AB166: 170999 | AC166: 354433 | AD166: 885445 | AE166: 343992 | AF166: 238655 | AG166: 384511 | AH166: 372934 | AI166: 353278 | AJ166: 416617 | AK166: 346880 | AL166: 395359 | AN166: 1615 大山 | AO166: 326974 | AP166: 218138 | AQ166: 479433 | AR166: 365709 | AS166: 335307 | AT166: 342722 | AU166: 263424 | AV166: 415238 | AW166: 344482 | AX166: 408602 | AY166: 403723 | AZ166: 529050 | BB166: 1615 大山 | BC166: 207339 | BD166: 294217 | BE166: 565717 | BF166: 310062 | BG166: 297594 | BH166: 383148 | BI166: 500804 | BJ166: 472133 | BK166: 469649 | BP166: 1615 大山 | BQ166: 192795 | BR166: 206188 | BS166: 223778 | BT166: 187053 | BU166: 264639 | BV166: 277439 | BW166: 319346 | BX166: 233109 | BY166: 258388 | BZ166: 261253 | CA166: 290240 | CB166: 433065
A167: 1617 榮星 | B167: M1600 電器電纜 | C167: M16 電線 | F167: M29A1 百貨購物中 | L167: 1616 億泰 | M167: 172405 | N167: 214446 | O167: 232330 | P167: 282964 | Q167: 224775 | R167: 185338 | S167: 218417 | T167: 212801 | U167: 216050 | V167: 192755 | W167: 244007 | X167: 286586 | Z167: 1616 億泰 | AA167: 201227 | AB167: 161672 | AC167: 264305 | AD167: 204612 | AE167: 284397 | AF167: 305540 | AG167: 258305 | AH167: 248488 | AI167: 257191 | AJ167: 317339 | AK167: 336867 | AL167: 363726 | AN167: 1616 億泰 | AO167: 235391 | AP167: 251291 | AQ167: 371036 | AR167: 330991 | AS167: 312977 | AT167: 278272 | AU167: 308203 | AV167: 366545 | AW167: 313106 | AX167: 308583 | AY167: 318808 | AZ167: 328810 | BB167: 1616 億泰 | BC167: 262935 | BD167: 280606 | BE167: 344723 | BF167: 339795 | BG167: 356316 | BH167: 330045 | BI167: 348934 | BJ167: 330385 | BK167: 307904 | BP167: 1616 億泰 | BQ167: 192355 | BR167: 167740 | BS167: 255063 | BT167: 200227 | BU167: 299727 | BV167: 251832 | BW167: 329983 | BX167: 323009 | BY167: 155261 | BZ167: 281937 | CA167: 348622 | CB167: 341576
A168: 1618 合機 | B168: M1600 電器電纜 | C168: M16 電線 | F168: M29A2 量販 | L168: 1617 榮星 | M168: 196052 | N168: 167591 | O168: 272053 | P168: 256363 | Q168: 190355 | R168: 209571 | S168: 235203 | T168: 261718 | U168: 294052 | V168: 278099 | W168: 287963 | X168: 335579 | Z168: 1617 榮星 | AA168: 372868 | AB168: 221979 | AC168: 438642 | AD168: 445931 | AE168: 392786 | AF168: 457023 | AG168: 437288 | AH168: 393843 | AI168: 370723 | AJ168: 377274 | AK168: 347554 | AL168: 363711 | AN168: 1617 榮星 | AO168: 287453 | AP168: 253983 | AQ168: 396087 | AR168: 359962 | AS168: 340936 | AT168: 302685 | AU168: 278889 | AV168: 248161 | AW168: 276154 | AX168: 278798 | AY168: 273624 | AZ168: 283657 | BB168: 1617 榮星 | BC168: 151760 | BD168: 261299 | BE168: 270908 | BF168: 213809 | BG168: 219569 | BH168: 241717 | BI168: 245979 | BJ168: 254781 | BP168: 1617 榮星 | BQ168: 244936 | BR168: 172944 | BS168: 251229 | BT168: 258459 | BU168: 246597 | BV168: 235925 | BW168: 238854 | BX168: 235583 | BY168: 238216 | BZ168: 248427 | CA168: 269055 | CB168: 268772
A169: 1626 艾美特-KY | B169: M1600 電器電纜 | C169: M15C1 家電 | F169: M29A4 便利商店 | L169: 1618 合機 | M169: 90271 | N169: 169846 | O169: 176162 | P169: 198568 | Q169: 206328 | R169: 144734 | S169: 505642 | T169: 276791 | U169: 443209 | V169: 215094 | W169: 248374 | X169: 147928 | Z169: 1618 合機 | AA169: 257430 | AB169: 352009 | AC169: 203031 | AD169: 176037 | AE169: 445601 | AF169: 131414 | AG169: 153537 | AH169: 143424 | AI169: 170373 | AJ169: 432201 | AK169: 127702 | AL169: 211082 | AN169: 1618 合機 | AO169: 224176 | AP169: 139086 | AQ169: 338319 | AR169: 122181 | AS169: 293935 | AT169: 113317 | AU169: 103947 | AV169: 405947 | AW169: 304615 | AX169: 335164 | AY169: 315167 | AZ169: 168558 | BB169: 1618 合機 | BC169: 151877 | BD169: 220221 | BE169: 435227 | BF169: 329646 | BG169: 234673 | BH169: 400084 | BI169: 231100 | BJ169: 699174 | BK169: 478542 | BP169: 1618 合機 | BQ169: 145365 | BR169: 147645 | BS169: 184265 | BT169: 158173 | BU169: 223902 | BV169: 164926 | BW169: 235397 | BX169: 172739 | BY169: 419515 | BZ169: 250665 | CA169: 424301 | CB169: 230843
A170: 1701 中化 | B170: M1722 生技醫療 | C170: M17C1 製藥 | F170: M29B 貿易業 | L170: 1626 艾美特-KY | M170: 436669 | N170: 305425 | O170: 1069716 | P170: 1010444 | Q170: 1353286 | R170: 1375128 | S170: 699808 | T170: 413072 | U170: 645779 | V170: 645345 | W170: 433739 | X170: 818937 | Z170: 1626 艾美特-KY | AA170: 801066 | AB170: 384880 | AC170: 1357586 | AD170: 1147031 | AE170: 1375276 | AF170: 1346111 | AG170: 717532 | AH170: 487627 | AI170: 838623 | AJ170: 691578 | AK170: 513929 | AL170: 495351 | AN170: 1626 艾美特-KY | AO170: 605122 | AP170: 315591 | AQ170: 1008428 | AR170: 1188835 | AS170: 1324995 | AT170: 1402909 | AU170: 712747 | AV170: 500166 | AW170: 733716 | AX170: 488480 | AY170: 441967 | AZ170: 497907 | BB170: 1626 艾美特-KY | BC170: 429440 | BD170: 493934 | BE170: 922491 | BF170: 1090990 | BG170: 1285260 | BH170: 1235197 | BI170: 654939 | BJ170: 277656 | BP170: 1626 艾美特-KY | BQ170: 734777 | BR170: 513999 | BS170: 1170834 | BT170: 1398505 | BU170: 1406291 | BV170: 1105443 | BW170: 497310 | BX170: 523062 | BY170: 848845 | BZ170: 752758 | CA170: 643642 | CB170: 547315
A171: 1702 南僑 | B171: M1200 食品工業 | C171: M12B 油脂飼料 | F171: M29D 直銷 | L171: 1701 中化 | M171: 737281 | N171: 640025 | O171: 728371 | P171: 701073 | Q171: 625512 | R171: 617720 | S171: 634856 | T171: 626738 | U171: 753371 | V171: 613931 | W171: 731270 | X171: 736343 | Z171: 1701 中化 | AA171: 863490 | AB171: 522933 | AC171: 622390 | AD171: 647486 | AE171: 717855 | AF171: 677409 | AG171: 632685 | AH171: 614507 | AI171: 654963 | AJ171: 633230 | AK171: 679023 | AL171: 713668 | AN171: 1701 中化 | AO171: 740726 | AP171: 530948 | AQ171: 679100 | AR171: 678926 | AS171: 694902 | AT171: 711385 | AU171: 659390 | AV171: 678623 | AW171: 728746 | AX171: 694895 | AY171: 724997 | AZ171: 933515 | BB171: 1701 中化 | BC171: 753430 | BD171: 645122 | BE171: 710635 | BF171: 693843 | BG171: 698521 | BH171: 729551 | BI171: 691536 | BJ171: 711815 | BK171: 713176 | BP171: 1701 中化 | BQ171: 881375 | BR171: 477035 | BS171: 635777 | BT171: 668917 | BU171: 666255 | BV171: 637768 | BW171: 630287 | BX171: 664429 | BY171: 667515 | BZ171: 671164 | CA171: 684393 | CB171: 672901
A172: 1707 葡萄王 | B172: M1722 生技醫療 | C172: M17C2 機能性食品 | F172: M30A 證券 | L172: 1702 南僑 | M172: 1492225 | N172: 847574 | O172: 1252759 | P172: 1396304 | Q172: 1440122 | R172: 1431284 | S172: 1404101 | T172: 1626214 | U172: 1768470 | V172: 1518892 | W172: 1531731 | X172: 1865641 | Z172: 1702 南僑 | AA172: 1747421 | AB172: 1205199 | AC172: 1712334 | AD172: 1680650 | AE172: 1647810 | AF172: 1602134 | AG172: 1492597 | AH172: 1662626 | AI172: 1757618 | AJ172: 1640589 | AK172: 1663975 | AL172: 2070357 | AN172: 1702 南僑 | AO172: 1809151 | AP172: 1265823 | AQ172: 1689826 | AR172: 1640303 | AS172: 1713829 | AT172: 1800363 | AU172: 1604189 | AV172: 1710172 | AW172: 1742187 | AX172: 1720526 | AY172: 1849987 | AZ172: 1947391 | BB172: 1702 南僑 | BC172: 1645186 | BD172: 1643891 | BE172: 1976303 | BF172: 1907435 | BG172: 1923791 | BH172: 1894892 | BI172: 1774321 | BJ172: 1998440 | BP172: 1702 南僑 | BQ172: 1718531 | BR172: 983725 | BS172: 1515983 | BT172: 1478897 | BU172: 1556349 | BV172: 1628688 | BW172: 1466893 | BX172: 1544160 | BY172: 1533998 | BZ172: 1511382 | CA172: 1568899 | CB172: 1836474
A173: 1708 東鹼 | B173: M1721 化學工業 | C173: M17Z 其他化學 | F173: M30C 期貨 | L173: 1707 葡萄王 | M173: 574728 | N173: 681703 | O173: 752491 | P173: 672841 | Q173: 776728 | R173: 798685 | S173: 740937 | T173: 678882 | U173: 748192 | V173: 733274 | W173: 963181 | X173: 1046553 | Z173: 1707 葡萄王 | AA173: 594187 | AB173: 557621 | AC173: 820392 | AD173: 762506 | AE173: 920329 | AF173: 821032 | AG173: 861043 | AH173: 749006 | AI173: 793518 | AJ173: 805466 | AK173: 1058373 | AL173: 1054773 | AN173: 1707 葡萄王 | AO173: 701078 | AP173: 483677 | AQ173: 867825 | AR173: 829518 | AS173: 1009379 | AT173: 883576 | AU173: 792012 | AV173: 838287 | AW173: 861571 | AX173: 851454 | AY173: 1162739 | AZ173: 1110115 | BB173: 1707 葡萄王 | BC173: 666333 | BD173: 610065 | BE173: 943305 | BF173: 790685 | BG173: 929197 | BH173: 944769 | BI173: 793835 | BJ173: 991411 | BK173: 765446 | BP173: 1707 葡萄王 | BQ173: 756431 | BR173: 472101 | BS173: 785123 | BT173: 762623 | BU173: 824744 | BV173: 809548 | BW173: 756599 | BX173: 673792 | BY173: 684814 | BZ173: 798134 | CA173: 924577 | CB173: 990584
A174: 1709 和益 | B174: M1721 化學工業 | C174: M17E1 清潔劑原料 | F174: M99B 五金及家具 | L174: 1708 東鹼 | M174: 349300 | N174: 343547 | O174: 364674 | P174: 339415 | Q174: 336406 | R174: 336688 | S174: 329276 | T174: 335463 | U174: 332745 | V174: 341589 | W174: 287501 | X174: 338602 | Z174: 1708 東鹼 | AA174: 290746 | AB174: 249588 | AC174: 306096 | AD174: 415078 | AE174: 292402 | AF174: 440138 | AG174: 390366 | AH174: 403997 | AI174: 426915 | AJ174: 448665 | AK174: 621473 | AL174: 509802 | AN174: 1708 東鹼 | AO174: 581784 | AP174: 681223 | AQ174: 648002 | AR174: 620278 | AS174: 538989 | AT174: 804755 | AU174: 681342 | AV174: 882160 | AW174: 691134 | AX174: 722290 | AY174: 680035 | AZ174: 491856 | BB174: 1708 東鹼 | BC174: 435183 | BD174: 525024 | BE174: 645112 | BF174: 417229 | BG174: 491182 | BH174: 499685 | BI174: 449136 | BJ174: 494044 | BK174: 449308 | BP174: 1708 東鹼 | BQ174: 246863 | BR174: 284693 | BS174: 385178 | BT174: 385650 | BU174: 457209 | BV174: 373993 | BW174: 370586 | BX174: 390570 | BY174: 352526 | BZ174: 363624 | CA174: 348397 | CB174: 382045
A175: 1710 東聯 | B175: M1721 化學工業 | C175: M13A5 化纖 | F175: M99C 印刷 | L175: 1709 和益 | M175: 771316 | N175: 825763 | O175: 760650 | P175: 660616 | Q175: 565530 | R175: 807252 | S175: 677623 | T175: 617786 | U175: 824520 | V175: 599376 | W175: 710664 | X175: 661970 | Z175: 1709 和益 | AA175: 813366 | AB175: 642191 | AC175: 884697 | AD175: 754119 | AE175: 899382 | AF175: 812640 | AG175: 619917 | AH175: 785104 | AI175: 813711 | AJ175: 731574 | AK175: 778859 | AL175: 667984 | AN175: 1709 和益 | AO175: 1107155 | AP175: 777063 | AQ175: 1036062 | AR175: 774773 | AS175: 1083349 | AT175: 787545 | AU175: 868527 | AV175: 874460 | AW175: 775534 | AX175: 1098776 | AY175: 757570 | AZ175: 631094 | BB175: 1709 和益 | BC175: 739306 | BD175: 695861 | BE175: 1030003 | BF175: 998136 | BG175: 654799 | BH175: 752930 | BI175: 631537 | BJ175: 853507 | BK175: 845980 | BP175: 1709 和益 | BQ175: 620853 | BR175: 597558 | BS175: 788025 | BT175: 748893 | BU175: 802920 | BV175: 619231 | BW175: 897872 | BX175: 789959 | BY175: 663080 | BZ175: 860765 | CA175: 581696 | CB175: 826445
A176: 1711 永光 | B176: M1721 化學工業 | C176: M17B 染料及顏料 | F176: M99D1 加油站 | L176: 1710 東聯 | M176: 1391398 | N176: 1475719 | O176: 1444652 | P176: 1478763 | Q176: 1797573 | R176: 1614180 | S176: 1306235 | T176: 1300138 | U176: 1639701 | V176: 1779869 | W176: 1834052 | X176: 1700879 | Z176: 1710 東聯 | AA176: 2011182 | AB176: 1856217 | AC176: 2707364 | AD176: 2601336 | AE176: 2476338 | AF176: 2197770 | AG176: 2439130 | AH176: 2370831 | AI176: 2173419 | AJ176: 2529249 | AK176: 2092658 | AL176: 2026225 | AN176: 1710 東聯 | AO176: 2009754 | AP176: 2336045 | AQ176: 2179385 | AR176: 2268161 | AS176: 1776762 | AT176: 1474470 | AU176: 1121107 | AV176: 1852131 | AW176: 1942737 | AX176: 1770525 | AY176: 1768274 | AZ176: 1581748 | BB176: 1710 東聯 | BC176: 1544402 | BD176: 1900471 | BE176: 1779811 | BF176: 1843658 | BG176: 1869771 | BH176: 1524124 | BI176: 1717466 | BJ176: 1786506 | BP176: 1710 東聯 | BQ176: 2324372 | BR176: 1872331 | BS176: 2403265 | BT176: 2212407 | BU176: 2131594 | BV176: 1925689 | BW176: 2187072 | BX176: 1808661 | BY176: 1401602 | BZ176: 1298296 | CA176: 1660453 | CB176: 1115485
A177: 1712 興農 | B177: M1721 化學工業 | C177: M17C3 農藥肥料 | F177: M99D2 天然氣 | L177: 1711 永光 | M177: 661699 | N177: 734761 | O177: 874017 | P177: 555992 | Q177: 472568 | R177: 494797 | S177: 591468 | T177: 592948 | U177: 678137 | V177: 663321 | W177: 659991 | X177: 789367 | Z177: 1711 永光 | AA177: 823732 | AB177: 606434 | AC177: 850637 | AD177: 793963 | AE177: 783261 | AF177: 772271 | AG177: 712261 | AH177: 757158 | AI177: 725758 | AJ177: 753924 | AK177: 836154 | AL177: 785435 | AN177: 1711 永光 | AO177: 850106 | AP177: 643609 | AQ177: 918518 | AR177: 765135 | AS177: 796256 | AT177: 762410 | AU177: 735513 | AV177: 772829 | AW177: 721723 | AX177: 635608 | AY177: 680129 | AZ177: 609866 | BB177: 1711 永光 | BC177: 552437 | BD177: 661754 | BE177: 727839 | BF177: 583000 | BG177: 676521 | BH177: 646525 | BI177: 643477 | BJ177: 692430 | BK177: 734490 | BP177: 1711 永光 | BQ177: 900397 | BR177: 567679 | BS177: 835288 | BT177: 847429 | BU177: 844627 | BV177: 762399 | BW177: 792348 | BX177: 783586 | BY177: 762273 | BZ177: 749894 | CA177: 712787 | CB177: 773369
A178: 1713 國化 | B178: M1721 化學工業 | C178: M17B 染料及顏料 | F178: M99D3 汽電共生 | L178: 1712 興農 | M178: 1528330 | N178: 1390626 | O178: 1767722 | P178: 1550126 | Q178: 1472936 | R178: 1388367 | S178: 1457145 | T178: 1404696 | U178: 1523205 | V178: 1343723 | W178: 1310838 | X178: 1346687 | Z178: 1712 興農 | AA178: 1587445 | AB178: 1434783 | AC178: 1806822 | AD178: 1509545 | AE178: 1543796 | AF178: 1675034 | AG178: 1595355 | AH178: 1518611 | AI178: 1495643 | AJ178: 1497567 | AK178: 1465434 | AL178: 1515840 | AN178: 1712 興農 | AO178: 2341759 | AP178: 1550473 | AQ178: 2181001 | AR178: 2007657 | AS178: 1966359 | AT178: 2118309 | AU178: 2021193 | AV178: 1910508 | AW178: 1915609 | AX178: 2068709 | AY178: 1507133 | AZ178: 1454166 | BB178: 1712 興農 | BC178: 1878943 | BD178: 1526677 | BE178: 1717794 | BF178: 1550977 | BG178: 1555910 | BH178: 1469449 | BI178: 1449359 | BJ178: 1585242 | BP178: 1712 興農 | BQ178: 1516151 | BR178: 1318376 | BS178: 1747958 | BT178: 1465595 | BU178: 1444168 | BV178: 1251152 | BW178: 1277883 | BX178: 1441985 | BY178: 1563470 | BZ178: 1361685 | CA178: 1262765 | CB178: 1430201
A179: 1714 和桐 | B179: M1721 化學工業 | C179: M17E1 清潔劑原料 | F179: M99F 平媒電子報 | L179: 1713 國化 | M179: 36808 | N179: 41743 | O179: 52050 | P179: 37460 | Q179: 37539 | R179: 30322 | S179: 36624 | T179: 36333 | U179: 39097 | V179: 32338 | W179: 39774 | X179: 55557 | Z179: 1713 國化 | AA179: 47489 | AB179: 33629 | AC179: 52974 | AD179: 47429 | AE179: 51729 | AF179: 56432 | AG179: 62372 | AH179: 49951 | AI179: 45479 | AJ179: 53546 | AK179: 71058 | AL179: 52511 | AN179: 1713 國化 | AO179: 54770 | AP179: 50676 | AQ179: 55759 | AR179: 52127 | AS179: 61520 | AT179: 54346 | AU179: 44478 | AV179: 58815 | AW179: 37219 | AX179: 34035 | AY179: 38509 | AZ179: 29206 | BB179: 1713 國化 | BC179: 26296 | BD179: 54357 | BE179: 42389 | BF179: 28535 | BG179: 37301 | BH179: 39007 | BI179: 34057 | BJ179: 43833 | BK179: 40844 | BP179: 1713 國化 | BQ179: 66383 | BR179: 39890 | BS179: 45291 | BT179: 51639 | BU179: 54577 | BV179: 49092 | BW179: 40451 | BX179: 52712 | BY179: 42173 | BZ179: 49064 | CA179: 54567 | CB179: 47363
A180: 1717 長興 | B180: M1721 化學工業 | C180: M17F 樹脂 | F180: M99G 有線電視 | L180: 1714 和桐 | M180: 1815402 | N180: 1396515 | O180: 2265616 | P180: 2129826 | Q180: 2098560 | R180: 4940382 | S180: 1888300 | T180: 1794327 | U180: 1881822 | V180: 1827787 | W180: 1938587 | X180: 1915455 | Z180: 1714 和桐 | AA180: 1800434 | AB180: 1211182 | AC180: 1837409 | AD180: 1732500 | AE180: 1622275 | AF180: 1545691 | AG180: 1642419 | AH180: 1673015 | AI180: 1842123 | AJ180: 1730316 | AK180: 1644724 | AL180: 1802419 | AN180: 1714 和桐 | AO180: 1526686 | AP180: 1491087 | AQ180: 1929326 | AR180: 1947283 | AS180: 1878391 | AT180: 1839578 | AU180: 2338832 | AV180: 2042992 | AW180: 2081377 | AX180: 1821733 | AY180: 1860121 | AZ180: 1773292 | BB180: 1714 和桐 | BC180: 1582206 | BD180: 1589422 | BE180: 1937142 | BF180: 1721325 | BG180: 1492139 | BH180: 1567642 | BI180: 1594036 | BJ180: 1553868 | BK180: 1941684 | BP180: 1714 和桐 | BQ180: 2512281 | BR180: 1442651 | BS180: 2605677 | BT180: 2527976 | BU180: 2017462 | BV180: 2510582 | BW180: 2717696 | BX180: 2061554 | BY180: 2636454 | BZ180: 2198182 | CA180: 2237855 | CB180: 1740654
A181: 1718 中纖 | B181: M1721 化學工業 | C181: M13A5 化纖 | F181: M99H 電視廣播 | L181: 1717 長興 | M181: 2340333 | N181: 2040891 | O181: 3248291 | P181: 3174938 | Q181: 2896092 | R181: 2885102 | S181: 3203507 | T181: 3171998 | U181: 3513059 | V181: 3705269 | W181: 4096702 | X181: 4094184 | Z181: 1717 長興 | AA181: 4116280 | AB181: 2631509 | AC181: 4454630 | AD181: 4718326 | AE181: 4316922 | AF181: 4175807 | AG181: 4240587 | AH181: 4368209 | AI181: 4401398 | AJ181: 4211682 | AK181: 4418016 | AL181: 4418031 | AN181: 1717 長興 | AO181: 4036781 | AP181: 3275069 | AQ181: 5051983 | AR181: 4520617 | AS181: 4505625 | AT181: 4158528 | AU181: 4010038 | AV181: 3878708 | AW181: 3805756 | AX181: 4109743 | AY181: 4074326 | AZ181: 3586926 | BB181: 1717 長興 | BC181: 2465213 | BD181: 3292782 | BE181: 3817497 | BF181: 3709132 | BG181: 3691766 | BH181: 3448811 | BI181: 3387642 | BJ181: 3963723 | BP181: 1717 長興 | BQ181: 3403666 | BR181: 2086008 | BS181: 3948143 | BT181: 3554479 | BU181: 3477316 | BV181: 3315895 | BW181: 3503197 | BX181: 3405490 | BY181: 3497422 | BZ181: 3255454 | CA181: 3449106 | CB181: 3467062
A182: 1720 生達 | B182: M1722 生技醫療 | C182: M17C1 製藥 | F182: M99I 保全業 | L182: 1718 中纖 | M182: 2679023 | N182: 2511454 | O182: 2391400 | P182: 2108027 | Q182: 2191961 | R182: 2138228 | S182: 2675847 | T182: 2433210 | U182: 4872746 | V182: 2269616 | W182: 2306567 | X182: 2391658 | Z182: 1718 中纖 | AA182: 2327601 | AB182: 2457848 | AC182: 2921189 | AD182: 2680593 | AE182: 2587885 | AF182: 2548978 | AG182: 2880141 | AH182: 2735907 | AI182: 2660048 | AJ182: 2966288 | AK182: 3033512 | AL182: 3295638 | AN182: 1718 中纖 | AO182: 2960509 | AP182: 2295623 | AQ182: 2795604 | AR182: 2823270 | AS182: 2794081 | AT182: 2756923 | AU182: 2952896 | AV182: 2973454 | AW182: 2779499 | AX182: 3152222 | AY182: 3385989 | AZ182: 2721853 | BB182: 1718 中纖 | BC182: 3169704 | BD182: 3131986 | BE182: 2954711 | BF182: 3028341 | BG182: 3429587 | BH182: 3227783 | BI182: 3352660 | BJ182: 3662804 | BP182: 1718 中纖 | BQ182: 3450764 | BR182: 3188768 | BS182: 3068116 | BT182: 3154830 | BU182: 3204854 | BV182: 2620726 | BW182: 2871400 | BX182: 2895985 | BY182: 2999480 | BZ182: 2928161 | CA182: 2714295 | CB182: 2459152
A183: 1721 三晃 | B183: M1721 化學工業 | C183: M17F 樹脂 | F183: M99K 鞋及旅行箱 | L183: 1720 生達 | M183: 314869 | N183: 326403 | O183: 393137 | P183: 370344 | Q183: 379591 | R183: 358120 | S183: 340386 | T183: 345579 | U183: 359392 | V183: 370225 | W183: 340793 | X183: 412784 | Z183: 1720 生達 | AA183: 393236 | AB183: 312910 | AC183: 394959 | AD183: 390132 | AE183: 443535 | AF183: 315438 | AG183: 358516 | AH183: 379426 | AI183: 382901 | AJ183: 359643 | AK183: 393206 | AL183: 480171 | AN183: 1720 生達 | AO183: 480929 | AP183: 322740 | AQ183: 433700 | AR183: 430810 | AS183: 505470 | AT183: 545007 | AU183: 462839 | AV183: 509036 | AW183: 577234 | AX183: 523622 | AY183: 537613 | AZ183: 522557 | BB183: 1720 生達 | BC183: 493507 | BD183: 454878 | BE183: 544635 | BF183: 495723 | BG183: 516803 | BH183: 496451 | BI183: 563910 | BJ183: 585898 | BK183: 495586 | BP183: 1720 生達 | BQ183: 374705 | BR183: 214454 | BS183: 257017 | BT183: 321953 | BU183: 339639 | BV183: 349245 | BW183: 347840 | BX183: 331181 | BY183: 369659 | BZ183: 353035 | CA183: 345724 | CB183: 332276
A184: 1722 台肥 | B184: M1721 化學工業 | C184: M17C3 農藥肥料 | F184: M99L1 貴金屬回收 | L184: 1721 三晃 | M184: 251563 | N184: 291371 | O184: 287327 | P184: 237645 | Q184: 211844 | R184: 219356 | S184: 220390 | T184: 199617 | U184: 201278 | V184: 193640 | W184: 236914 | X184: 201656 | Z184: 1721 三晃 | AA184: 267847 | AB184: 180284 | AC184: 278527 | AD184: 212536 | AE184: 230490 | AF184: 243448 | AG184: 180460 | AH184: 194246 | AI184: 225462 | AJ184: 269719 | AK184: 306256 | AL184: 261364 | AN184: 1721 三晃 | AO184: 278165 | AP184: 175985 | AQ184: 342699 | AR184: 321888 | AS184: 327634 | AT184: 205457 | AU184: 230167 | AV184: 225643 | AW184: 196164 | AX184: 197109 | AY184: 246244 | AZ184: 261399 | BB184: 1721 三晃 | BC184: 166550 | BD184: 182930 | BE184: 225991 | BF184: 167367 | BG184: 207930 | BH184: 124401 | BI184: 148976 | BJ184: 167455 | BK184: 206090 | BP184: 1721 三晃 | BQ184: 355110 | BR184: 213202 | BS184: 292415 | BT184: 265931 | BU184: 279739 | BV184: 220442 | BW184: 272518 | BX184: 273750 | BY184: 269779 | BZ184: 290691 | CA184: 248799 | CB184: 261593
A185: 1723 中碳 | B185: M1721 化學工業 | C185: M17Z 其他化學 | F185: M99L2 廢棄物處理 | L185: 1722 台肥 | M185: 959280 | N185: 952012 | O185: 1115866 | P185: 914754 | Q185: 745409 | R185: 758157 | S185: 919353 | T185: 817293 | U185: 830979 | V185: 752587 | W185: 711162 | X185: 693838 | Z185: 1722 台肥 | AA185: 1057966 | AB185: 923777 | AC185: 963772 | AD185: 858319 | AE185: 728505 | AF185: 1027962 | AG185: 901496 | AH185: 996228 | AI185: 1171517 | AJ185: 1100881 | AK185: 1648114 | AL185: 2280895 | AN185: 1722 台肥 | AO185: 1495346 | AP185: 1107210 | AQ185: 1481717 | AR185: 1396356 | AS185: 1151274 | AT185: 1199247 | AU185: 1191512 | AV185: 1318608 | AW185: 1201791 | AX185: 990785 | AY185: 1087053 | AZ185: 1432121 | BB185: 1722 台肥 | BC185: 1160450 | BD185: 1078965 | BE185: 1193549 | BF185: 1354134 | BG185: 1100251 | BH185: 3576861 | BI185: 930082 | BJ185: 1021253 | BK185: 966873 | BP185: 1722 台肥 | BQ185: 1390537 | BR185: 1157498 | BS185: 952245 | BT185: 1145866 | BU185: 945872 | BV185: 908966 | BW185: 979022 | BX185: 865852 | BY185: 1189737 | BZ185: 1552315 | CA185: 910450 | CB185: 943061
A186: 1725 元禎 | B186: M1721 化學工業 | C186: M17Z 其他化學 | F186: M99Z1 自行健行車 | L186: 1723 中碳 | M186: 554160 | N186: 518292 | O186: 526725 | P186: 332281 | Q186: 394598 | R186: 422791 | S186: 335847 | T186: 432718 | U186: 393207 | V186: 452816 | W186: 496347 | X186: 503615 | Z186: 1723 中碳 | AA186: 456534 | AB186: 505420 | AC186: 706902 | AD186: 649410 | AE186: 642982 | AF186: 659493 | AG186: 749190 | AH186: 751480 | AI186: 795130 | AJ186: 655718 | AK186: 711800 | AL186: 698785 | AN186: 1723 中碳 | AO186: 830092 | AP186: 656535 | AQ186: 885939 | AR186: 1258776 | AS186: 916336 | AT186: 1067016 | AU186: 964882 | AV186: 865016 | AW186: 778765 | AX186: 977671 | AY186: 527891 | AZ186: 730532 | BB186: 1723 中碳 | BC186: 672027 | BD186: 839791 | BE186: 759290 | BF186: 971662 | BG186: 584378 | BH186: 737721 | BI186: 642568 | BJ186: 666121 | BP186: 1723 中碳 | BQ186: 689967 | BR186: 584475 | BS186: 744685 | BT186: 631257 | BU186: 648487 | BV186: 586009 | BW186: 758858 | BX186: 712468 | BY186: 687702 | BZ186: 607351 | CA186: 377379 | CB186: 513243
A187: 1726 永記 | B187: M1721 化學工業 | C187: M17B 染料及顏料 | F187: M99Z2 高爾夫球頭 | L187: 1725 元禎 | M187: 619818 | N187: 443891 | O187: 574853 | P187: 611240 | Q187: 531424 | R187: 545441 | S187: 489248 | T187: 489844 | U187: 636485 | V187: 557958 | W187: 730635 | X187: 841682 | Z187: 1725 元禎 | AA187: 785959 | AB187: 600014 | AC187: 992652 | AD187: 975515 | AE187: 931594 | AF187: 971267 | AG187: 936501 | AH187: 846697 | AI187: 929067 | AJ187: 967061 | AK187: 984718 | AL187: 749295 | AN187: 1725 元禎 | AO187: 838171 | AP187: 680806 | AQ187: 1071627 | AR187: 916035 | AS187: 822835 | AT187: 947350 | AU187: 632445 | AV187: 646962 | AW187: 623168 | AX187: 650328 | AY187: 678714 | AZ187: 702365 | BB187: 1725 元禎 | BC187: 537180 | BD187: 613630 | BE187: 749933 | BF187: 674543 | BG187: 651621 | BH187: 498679 | BI187: 587885 | BJ187: 726950 | BK187: 604467 | BP187: 1725 元禎 | BQ187: 823090 | BR187: 667441 | BS187: 750178 | BT187: 858623 | BU187: 734313 | BV187: 619636 | BW187: 716901 | BX187: 677657 | BY187: 684332 | BZ187: 748021 | CA187: 607862 | CB187: 698491
A188: 1727 中華化 | B188: M1721 化學工業 | C188: M17Z 其他化學 | F188: M99ZC 其他製造業 | L188: 1726 永記 | M188: 654464 | N188: 583689 | O188: 671992 | P188: 627774 | Q188: 595797 | R188: 636312 | S188: 669485 | T188: 594184 | U188: 731228 | V188: 732255 | W188: 708516 | X188: 792970 | Z188: 1726 永記 | AA188: 786523 | AB188: 537408 | AC188: 770746 | AD188: 673100 | AE188: 764047 | AF188: 739969 | AG188: 717208 | AH188: 727220 | AI188: 733270 | AJ188: 802513 | AK188: 779413 | AL188: 844839 | AN188: 1726 永記 | AO188: 873211 | AP188: 608193 | AQ188: 967359 | AR188: 749504 | AS188: 784344 | AT188: 765499 | AU188: 791287 | AV188: 763776 | AW188: 790559 | AX188: 817312 | AY188: 891236 | AZ188: 937389 | BB188: 1726 永記 | BC188: 766379 | BD188: 818068 | BE188: 875292 | BF188: 694234 | BG188: 727324 | BH188: 753886 | BI188: 706595 | BJ188: 784327 | BP188: 1726 永記 | BQ188: 792055 | BR188: 499212 | BS188: 606347 | BT188: 618665 | BU188: 666448 | BV188: 589292 | BW188: 646539 | BX188: 631792 | BY188: 658910 | BZ188: 766438 | CA188: 706593 | CB188: 757839
A189: 1730 花仙子 | B189: M1721 化學工業 | C189: M17E2 清潔用品 | F189: M99ZX 其他服務 | L189: 1727 中華化 | M189: 161650 | N189: 160832 | O189: 166749 | P189: 151082 | Q189: 149425 | R189: 134801 | S189: 138401 | T189: 140909 | U189: 164133 | V189: 145753 | W189: 152575 | X189: 144827 | Z189: 1727 中華化 | AA189: 156461 | AB189: 114754 | AC189: 163192 | AD189: 157320 | AE189: 148585 | AF189: 154334 | AG189: 169359 | AH189: 164839 | AI189: 175010 | AJ189: 185606 | AK189: 189000 | AL189: 234471 | AN189: 1727 中華化 | AO189: 177535 | AP189: 190368 | AQ189: 233593 | AR189: 181274 | AS189: 195523 | AT189: 178553 | AU189: 192762 | AV189: 192152 | AW189: 198647 | AX189: 179392 | AY189: 204490 | AZ189: 182380 | BB189: 1727 中華化 | BC189: 133909 | BD189: 147732 | BE189: 160933 | BF189: 133444 | BG189: 156072 | BH189: 132386 | BI189: 144381 | BJ189: 138477 | BK189: 151735 | BP189: 1727 中華化 | BQ189: 215510 | BR189: 150611 | BS189: 188872 | BT189: 203815 | BU189: 214201 | BV189: 176630 | BW189: 193515 | BX189: 211646 | BY189: 168799 | BZ189: 215388 | CA189: 190684 | CB189: 185809
A190: 1731 美吾華 | B190: M1722 生技醫療 | C190: M17C1 製藥 | L190: 1730 花仙子 | M190: 314995 | N190: 157441 | O190: 196485 | P190: 248280 | Q190: 234770 | R190: 271707 | S190: 245741 | T190: 244761 | U190: 324815 | V190: 244458 | W190: 341302 | X190: 234003 | Z190: 1730 花仙子 | AA190: 469327 | AB190: 222258 | AC190: 210838 | AD190: 185384 | AE190: 190970 | AF190: 201851 | AG190: 208792 | AH190: 241463 | AI190: 327257 | AJ190: 302489 | AK190: 306444 | AL190: 271717 | AN190: 1730 花仙子 | AO190: 446559 | AP190: 161381 | AQ190: 187037 | AR190: 174124 | AS190: 213814 | AT190: 227339 | AU190: 204056 | AV190: 266545 | AW190: 240248 | AX190: 231622 | AY190: 222261 | AZ190: 209628 | BB190: 1730 花仙子 | BC190: 307061 | BD190: 183946 | BE190: 208074 | BF190: 194415 | BG190: 206746 | BH190: 222266 | BI190: 209982 | BJ190: 207472 | BK190: 218065 | BP190: 1730 花仙子 | BQ190: 432620 | BR190: 283550 | BS190: 287600 | BT190: 318467 | BU190: 341447 | BV190: 311729 | BW190: 274250 | BX190: 234341 | BY190: 239621 | BZ190: 241197 | CA190: 223159 | CB190: 203619
A191: 1732 毛寶 | B191: M1721 化學工業 | C191: M17E2 清潔用品 | L191: 1731 美吾華 | M191: 107813 | N191: 72801 | O191: 84445 | P191: 74732 | Q191: 71210 | R191: 93039 | S191: 93714 | T191: 98741 | U191: 99118 | V191: 87151 | W191: 91285 | X191: 91277 | Z191: 1731 美吾華 | AA191: 126627 | AB191: 88759 | AC191: 93247 | AD191: 116540 | AE191: 99623 | AF191: 94571 | AG191: 118445 | AH191: 105984 | AI191: 115887 | AJ191: 102193 | AK191: 116047 | AL191: 111288 | AN191: 1731 美吾華 | AO191: 154000 | AP191: 86385 | AQ191: 98009 | AR191: 92431 | AS191: 80626 | AT191: 117402 | AU191: 105362 | AV191: 103953 | AW191: 98291 | AX191: 104459 | AY191: 95165 | AZ191: 109021 | BB191: 1731 美吾華 | BC191: 119473 | BD191: 90679 | BE191: 134821 | BF191: 106407 | BG191: 104374 | BH191: 104522 | BI191: 96834 | BJ191: 101448 | BK191: 105364 | BP191: 1731 美吾華 | BQ191: 141727 | BR191: 75774 | BS191: 97974 | BT191: 97190 | BU191: 90384 | BV191: 91988 | BW191: 90429 | BX191: 88022 | BY191: 80346 | BZ191: 85606 | CA191: 77832 | CB191: 83591
A192: 1733 五鼎 | B192: M1722 生技醫療 | C192: M17G 醫療耗材 | L192: 1732 毛寶 | M192: 49183 | N192: 48352 | O192: 60872 | P192: 62491 | Q192: 51019 | R192: 51981 | S192: 52806 | T192: 45855 | U192: 51174 | V192: 43696 | W192: 44148 | X192: 62685 | Z192: 1732 毛寶 | AA192: 64719 | AB192: 41832 | AC192: 51520 | AD192: 55982 | AE192: 54893 | AF192: 51773 | AG192: 43092 | AH192: 48631 | AI192: 46904 | AJ192: 51406 | AK192: 48961 | AL192: 58806 | AN192: 1732 毛寶 | AO192: 59368 | AP192: 40365 | AQ192: 47939 | AR192: 49366 | AS192: 52899 | AT192: 56065 | AU192: 49203 | AV192: 46050 | AW192: 45933 | AX192: 42815 | AY192: 43639 | AZ192: 51308 | BB192: 1732 毛寶 | BC192: 45408 | BD192: 43238 | BE192: 46817 | BF192: 49816 | BG192: 53523 | BH192: 50146 | BI192: 43021 | BJ192: 41511 | BP192: 1732 毛寶 | BQ192: 62219 | BR192: 39631 | BS192: 45782 | BT192: 48512 | BU192: 54433 | BV192: 50690 | BW192: 52249 | BX192: 47283 | BY192: 46536 | BZ192: 47409 | CA192: 49422 | CB192: 53114
A193: 1734 杏輝 | B193: M1722 生技醫療 | C193: M17C1 製藥 | L193: 1733 五鼎 | M193: 144401 | N193: 197604 | O193: 169925 | P193: 130885 | Q193: 173582 | R193: 224617 | S193: 194017 | T193: 165562 | U193: 150014 | V193: 161526 | W193: 142900 | X193: 150304 | Z193: 1733 五鼎 | AA193: 191093 | AB193: 210250 | AC193: 175045 | AD193: 157667 | AE193: 170873 | AF193: 155945 | AG193: 172367 | AH193: 169558 | AI193: 167544 | AJ193: 165110 | AK193: 197972 | AL193: 198232 | AN193: 1733 五鼎 | AO193: 161017 | AP193: 185661 | AQ193: 175276 | AR193: 208187 | AS193: 211675 | AT193: 188243 | AU193: 203389 | AV193: 198847 | AW193: 203242 | AX193: 162460 | AY193: 186565 | AZ193: 159614 | BB193: 1733 五鼎 | BC193: 141091 | BD193: 135344 | BE193: 160102 | BF193: 150643 | BG193: 136814 | BH193: 129824 | BI193: 149769 | BJ193: 147378 | BK193: 115344 | BP193: 1733 五鼎 | BQ193: 205344 | BR193: 136438 | BS193: 183152 | BT193: 193298 | BU193: 182401 | BV193: 166061 | BW193: 155788 | BX193: 139224 | BY193: 170745 | BZ193: 187664 | CA193: 283608 | CB193: 195138
A194: 1735 日勝化 | B194: M1721 化學工業 | C194: M17F 樹脂 | L194: 1734 杏輝 | M194: 161834 | N194: 214339 | O194: 248999 | P194: 197144 | Q194: 207854 | R194: 177598 | S194: 200095 | T194: 204066 | U194: 237151 | V194: 180624 | W194: 185698 | X194: 174029 | Z194: 1734 杏輝 | AA194: 220867 | AB194: 187459 | AC194: 209831 | AD194: 202986 | AE194: 202915 | AF194: 200857 | AG194: 163286 | AH194: 192807 | AI194: 211669 | AJ194: 197558 | AK194: 217091 | AL194: 226318 | AN194: 1734 杏輝 | AO194: 240274 | AP194: 166743 | AQ194: 262316 | AR194: 217214 | AS194: 257980 | AT194: 239595 | AU194: 193219 | AV194: 240083 | AW194: 276864 | AX194: 254765 | AY194: 257236 | AZ194: 250087 | BB194: 1734 杏輝 | BC194: 228663 | BD194: 212309 | BE194: 329968 | BF194: 239580 | BG194: 264870 | BH194: 222942 | BI194: 224786 | BJ194: 227103 | BP194: 1734 杏輝 | BQ194: 213815 | BR194: 128717 | BS194: 228404 | BT194: 167973 | BU194: 202196 | BV194: 204403 | BW194: 203090 | BX194: 184427 | BY194: 189657 | BZ194: 190643 | CA194: 229946 | CB194: 250306
A195: 1736 喬山 | B195: M3700 運動休閒 | C195: M15Z 其他電製品 | L195: 1735 日勝化 | M195: 136916 | N195: 159324 | O195: 234984 | P195: 157351 | Q195: 133159 | R195: 142980 | S195: 190362 | T195: 215671 | U195: 254887 | V195: 239107 | W195: 232296 | X195: 266860 | Z195: 1735 日勝化 | AA195: 222960 | AB195: 153100 | AC195: 305493 | AD195: 286670 | AE195: 275343 | AF195: 308415 | AG195: 303074 | AH195: 244920 | AI195: 229668 | AJ195: 306696 | AK195: 279032 | AL195: 285734 | AN195: 1735 日勝化 | AO195: 238167 | AP195: 227511 | AQ195: 334862 | AR195: 256244 | AS195: 286089 | AT195: 275565 | AU195: 229032 | AV195: 242407 | AW195: 237879 | AX195: 226971 | AY195: 201971 | AZ195: 200495 | BB195: 1735 日勝化 | BC195: 128223 | BD195: 188061 | BE195: 254467 | BF195: 178002 | BG195: 187734 | BH195: 183485 | BI195: 191715 | BJ195: 229340 | BK195: 208998 | BP195: 1735 日勝化 | BQ195: 239110 | BR195: 163744 | BS195: 304661 | BT195: 273969 | BU195: 285361 | BV195: 261136 | BW195: 272876 | BX195: 266545 | BY195: 272330 | BZ195: 268113 | CA195: 292936 | CB195: 274209
A196: 1737 臺鹽 | B196: M1200 食品工業 | C196: M12Z 其他食品 | L196: 1736 喬山 | M196: 1611021 | N196: 1601078 | O196: 2274687 | P196: 1663022 | Q196: 1845275 | R196: 2128218 | S196: 2172534 | T196: 2237583 | U196: 3066687 | V196: 2715434 | W196: 2979988 | X196: 3936987 | Z196: 1736 喬山 | AA196: 2495565 | AB196: 2168495 | AC196: 2585437 | AD196: 2259849 | AE196: 2035765 | AF196: 2268750 | AG196: 2043439 | AH196: 2275977 | AI196: 2889358 | AJ196: 2786924 | AK196: 2711903 | AL196: 4191435 | AN196: 1736 喬山 | AO196: 2583197 | AP196: 2375686 | AQ196: 2579879 | AR196: 2137951 | AS196: 2225345 | AT196: 2150449 | AU196: 1996618 | AV196: 2745173 | AW196: 3277165 | AX196: 3252410 | AY196: 3738735 | AZ196: 4712665 | BB196: 1736 喬山 | BC196: 2072491 | BD196: 2087740 | BE196: 2878493 | BF196: 2408997 | BG196: 3102338 | BH196: 3131669 | BI196: 2764855 | BJ196: 3276394 | BP196: 1736 喬山 | BQ196: 1781104 | BR196: 1552995 | BS196: 1979132 | BT196: 1847235 | BU196: 1816021 | BV196: 1935854 | BW196: 1837455 | BX196: 2222015 | BY196: 2134057 | BZ196: 2244246 | CA196: 2464363 | CB196: 3480203
A197: 1742 台蠟 | B197: M1721 化學工業 | C197: M17Z 其他化學 | L197: 1737 臺鹽 | M197: 230456 | N197: 233536 | O197: 260465 | P197: 264371 | Q197: 249085 | R197: 277394 | S197: 247573 | T197: 257340 | U197: 282412 | V197: 232717 | W197: 252684 | X197: 380378 | Z197: 1737 臺鹽 | AA197: 280603 | AB197: 219142 | AC197: 290340 | AD197: 309644 | AE197: 362608 | AF197: 313844 | AG197: 315171 | AH197: 364313 | AI197: 444550 | AJ197: 394956 | AK197: 252705 | AL197: 547775 | AN197: 1737 臺鹽 | AO197: 339010 | AP197: 212495 | AQ197: 371648 | AR197: 300262 | AS197: 296471 | AT197: 276814 | AU197: 305192 | AV197: 334505 | AW197: 332826 | AX197: 300649 | AY197: 273311 | AZ197: 268302 | BB197: 1737 臺鹽 | BC197: 320289 | BD197: 250507 | BE197: 294205 | BF197: 260635 | BG197: 315818 | BH197: 283034 | BI197: 269146 | BJ197: 318789 | BP197: 1737 臺鹽 | BQ197: 274611 | BR197: 164679 | BS197: 236758 | BT197: 228226 | BU197: 260904 | BV197: 229791 | BW197: 259498 | BX197: 258901 | BY197: 257599 | BZ197: 242350 | CA197: 225411 | CB197: 268745
A198: 1752 南光 | B198: M1722 生技醫療 | C198: M17C1 製藥 | L198: 1742 台蠟 | M198: 15348 | N198: 43934 | O198: 47993 | P198: 68893 | Q198: 8838 | R198: 14441 | S198: 19102 | T198: 24859 | U198: 36816 | V198: 9566 | W198: 12078 | X198: 31837 | Z198: 1742 台蠟 | AA198: 17238 | AB198: 44937 | AC198: 41861 | AD198: 18137 | AE198: 39458 | AF198: 110589 | AG198: 21739 | AH198: 31366 | AI198: 84081 | AJ198: 21029 | AK198: 27602 | AL198: 41509 | AN198: 1742 台蠟 | AO198: 44471 | AP198: 26943 | AQ198: 64788 | AR198: 32909 | AS198: 35961 | AT198: 53726 | AU198: 49793 | AV198: 35053 | AW198: 81570 | AX198: 12914 | AY198: 15207 | AZ198: 28680 | BB198: 1742 台蠟 | BC198: 20735 | BD198: 31791 | BE198: 51772 | BF198: 21990 | BG198: 70793 | BH198: 33219 | BI198: 23486 | BJ198: 14460 | BP198: 1742 台蠟 | BQ198: 25758 | BR198: 18896 | BS198: 85482 | BT198: 20937 | BU198: 25480 | BV198: 33876 | BW198: 28438 | BX198: 37225 | BY198: 23982 | BZ198: 8980 | CA198: 110288 | CB198: 20169
A199: 1760 寶齡富錦 | B199: M1722 生技醫療 | C199: M17C1 製藥 | L199: 1752 南光 | M199: 129465 | N199: 168200 | O199: 182220 | P199: 150484 | Q199: 140305 | R199: 131564 | S199: 145903 | T199: 136853 | U199: 142077 | V199: 131446 | W199: 119423 | X199: 176887 | Z199: 1752 南光 | AA199: 143279 | AB199: 119161 | AC199: 160654 | AD199: 139485 | AE199: 161674 | AF199: 141544 | AG199: 168081 | AH199: 153505 | AI199: 143319 | AJ199: 153554 | AK199: 144944 | AL199: 150898 | AN199: 1752 南光 | AO199: 142201 | AP199: 92399 | AQ199: 141154 | AR199: 145938 | AS199: 153181 | AT199: 173736 | AU199: 180890 | AV199: 151201 | AW199: 158742 | AX199: 208581 | AY199: 194901 | AZ199: 197563 | BB199: 1752 南光 | BC199: 165023 | BD199: 166390 | BE199: 241671 | BF199: 160551 | BG199: 186278 | BH199: 176948 | BI199: 176193 | BJ199: 193411 | BK199: 167453 | BP199: 1752 南光 | BQ199: 142542 | BR199: 95227 | BS199: 139324 | BT199: 137767 | BU199: 142232 | BV199: 136253 | BW199: 150515 | BX199: 180374 | BY199: 138880 | BZ199: 158963 | CA199: 156267 | CB199: 183913
A200: 1762 中化生 | B200: M1722 生技醫療 | C200: M17C1 製藥 | L200: 1760 寶齡富錦 | M200: 80004 | N200: 163659 | O200: 96943 | P200: 97109 | Q200: 151948 | R200: 79654 | S200: 102966 | T200: 166011 | U200: 129161 | V200: 115119 | W200: 213950 | X200: 172114 | Z200: 1760 寶齡富錦 | AA200: 94467 | AB200: 168901 | AC200: 110681 | AD200: 99343 | AE200: 254243 | AF200: 179623 | AG200: 170936 | AH200: 217592 | AI200: 140839 | AJ200: 114997 | AK200: 209988 | AL200: 139599 | AN200: 1760 寶齡富錦 | AO200: 119666 | AP200: 194689 | AQ200: 140211 | AR200: 183649 | AS200: 388449 | AT200: 242694 | AU200: 159290 | AV200: 345476 | AW200: 156797 | AX200: 111677 | AY200: 225616 | AZ200: 130434 | BB200: 1760 寶齡富錦 | BC200: 90013 | BD200: 198126 | BE200: 120390 | BF200: 118958 | BG200: 225334 | BH200: 125781 | BI200: 114909 | BJ200: 244031 | BP200: 1760 寶齡富錦 | BQ200: 107061 | BR200: 143335 | BS200: 107026 | BT200: 140617 | BU200: 166661 | BV200: 93571 | BW200: 83666 | BX200: 164176 | BY200: 102949 | BZ200: 106610 | CA200: 196841 | CB200: 161432
... 925 more rows

Sheet RUN2
D1: 產業合計數 | E1: =SUBTOTAL(9,E4:E205) -> 150441474 | F1: =SUBTOTAL(9,F4:F205) -> 103073010 | G1: 137042388 | H1: 140790362 | I1: 147789877 | J1: 141385749 | K1: 161002817 | L1: 166201455 | M1: 171102936 | N1: 172561977 | O1: 167879225 | P1: =SUBTOTAL(9,P4:P205) -> 160249955 | Q1: =SUBTOTAL(9,Q4:Q205) -> 134292195 | R1: =SUBTOTAL(9,R4:R205) -> 119604996 | S1: 176660182 | T1: 162479256 | U1: 145897413 | V1: 155978671 | W1: 178059887 | X1: 170820593 | Y1: 194698158 | Z1: 174248467 | AA1: 192614378 | AB1: =SUBTOTAL(9,AB4:AB205) -> 192861811 | AC1: =SUBTOTAL(9,AC4:AC205) -> 200966121 | AD1: 150852084 | AE1: 207167858 | AF1: 201905363 | AG1: 200572050 | AH1: 206058255 | AI1: 198433127 | AJ1: 218245937 | AK1: 229392775 | AL1: 195327728 | AM1: 236452472 | AN1: 241100012 | AO1: 234145373 | AP1: 181882229 | AQ1: 249408675 | AR1: 207227294 | AS1: 213971072 | AT1: 224207431 | AU1: 201821900 | AV1: 216033214 | AW1: 244912793 | AX1: 223846866 | AY1: 199371253 | AZ1: 218108758 | BA1: 174367967 | BB1: 155912868 | BC1: 192226798 | BD1: 177278332 | BE1: 182697906 | BF1: 194901507 | BG1: 202726631 | BH1: 215489718 | BI1: 109891922 | BJ1: 0 | BK1: 0 | BL1: 0 | BO1: 2023/09/28
E2: =YEAR('RUN1'!BQ2) -> 2020 | Q2: =YEAR('RUN1'!M2) -> 2020 | AC2: =YEAR('RUN1'!AA2) -> 2021 | AO2: =YEAR('RUN1'!AO2) -> 2022 | BA2: =YEAR('RUN1'!AO2)+1 -> 2023 | BO2: 公司 | BP2: 單月營收(千元) | BQ2: 單月營收MoM％ | BR2: 單月營收YoY％
B3: 公司簡稱 | C3: TSE新產業名 | D3: TEJ子產業名 | E3: Jan | F3: Feb | G3: Mar | H3: Apr | I3: May | J3: Jun | K3: Jul | L3: Aug | M3: Sep | N3: Oct | O3: Nov | P3: Dec | Q3: Jan | R3: Feb | S3: Mar | T3: Apr | U3: May | V3: Jun | W3: Jul | X3: Aug | Y3: Sep | Z3: Oct | AA3: Nov | AB3: Dec | AC3: Jan | AD3: Feb | AE3: Mar | AF3: Apr | AG3: May | AH3: Jun | AI3: Jul | AJ3: Aug | AK3: Sep | AL3: Oct | AM3: Nov | AN3: Dec | AO3: Jan | AP3: Feb | AQ3: Mar | AR3: Apr | AS3: May | AT3: Jun | AU3: Jul | AV3: Aug | AW3: Sep | AX3: Oct | AY3: Nov | AZ3: Dec | BA3: Jan | BB3: Feb | BC3: Mar | BD3: Apr | BE3: May | BF3: Jun | BG3: Jul | BH3: Aug | BI3: Sep | BJ3: Oct | BK3: Nov | BL3: Dec | BN3: =IF(BO3="","",LEFT(BO3,FIND(" ",BO3)-1)) -> 1101 | BO3: 1101 台泥
A4: =IF(B4="","",RANK($BM4,$BM$4:$BM$1000)) -> 22 | B4: 2347 聯強 | C4: M2329 電子通路業 | D4: M23T1 3C通路 | E4: =IF($B4="","",VLOOKUP($B4,XX_TEJ8,2,FALSE)) -> 31502924 | F4: =IF($B4="","",VLOOKUP($B4,XX_TEJ8,3,FALSE)) -> 21599476 | G4: =IF($B4="","",VLOOKUP($B4,XX_TEJ8,4,FALSE)) -> 28230720 | H4: =IF($B4="","",VLOOKUP($B4,XX_TEJ8,5,FALSE)) -> 25556423 | I4: =IF($B4="","",VLOOKUP($B4,XX_TEJ8,6,FALSE)) -> 26885400 | J4: =IF($B4="","",VLOOKUP($B4,XX_TEJ8,7,FALSE)) -> 25490685 | K4: =IF($B4="","",VLOOKUP($B4,XX_TEJ8,8,FALSE)) -> 29588810 | L4: =IF($B4="","",VLOOKUP($B4,XX_TEJ8,9,FALSE)) -> 28446408 | M4: =IF($B4="","",VLOOKUP($B4,XX_TEJ8,10,FALSE)) -> 29414439 | N4: =IF($B4="","",VLOOKUP($B4,XX_TEJ8,11,FALSE)) -> 30522743 | O4: =IF($B4="","",VLOOKUP($B4,XX_TEJ8,12,FALSE)) -> 29730592 | P4: =IF($B4="","",VLOOKUP($B4,XX_TEJ8,13,FALSE)) -> 33026046 | Q4: =IF($B4="","",VLOOKUP($B4,XX_TEJ2,2,FALSE)) -> 22163336 | R4: =IF($B4="","",VLOOKUP($B4,XX_TEJ2,3,FALSE)) -> 18929971 | S4: =IF($B4="","",VLOOKUP($B4,XX_TEJ2,4,FALSE)) -> 26890896 | T4: =IF($B4="","",VLOOKUP($B4,XX_TEJ2,5,FALSE)) -> 23525704 | U4: =IF($B4="","",VLOOKUP($B4,XX_TEJ2,6,FALSE)) -> 23916475 | V4: =IF($B4="","",VLOOKUP($B4,XX_TEJ2,7,FALSE)) -> 28977736 | W4: =IF($B4="","",VLOOKUP($B4,XX_TEJ2,8,FALSE)) -> 29097426 | X4: =IF($B4="","",VLOOKUP($B4,XX_TEJ2,9,FALSE)) -> 28404644 | Y4: =IF($B4="","",VLOOKUP($B4,XX_TEJ2,10,FALSE)) -> 32485951 | Z4: =IF($B4="","",VLOOKUP($B4,XX_TEJ2,11,FALSE)) -> 28556656 | AA4: =IF($B4="","",VLOOKUP($B4,XX_TEJ2,12,FALSE)) -> 34158123 | AB4: =IF($B4="","",VLOOKUP($B4,XX_TEJ2,13,FALSE)) -> 37463030 | AC4: =IF($B4="","",VLOOKUP($B4,XX_TEJ3,2,FALSE)) -> 31023432 | AD4: =IF($B4="","",VLOOKUP($B4,XX_TEJ3,3,FALSE)) -> 22360857 | AE4: =IF($B4="","",VLOOKUP($B4,XX_TEJ3,4,FALSE)) -> 33106288 | AF4: =IF($B4="","",VLOOKUP($B4,XX_TEJ3,5,FALSE)) -> 31828300 | AG4: =IF($B4="","",VLOOKUP($B4,XX_TEJ3,6,FALSE)) -> 31570759 | AH4: =IF($B4="","",VLOOKUP($B4,XX_TEJ3,7,FALSE)) -> 33736979 | AI4: =IF($B4="","",VLOOKUP($B4,XX_TEJ3,8,FALSE)) -> 31859885 | AJ4: =IF($B4="","",VLOOKUP($B4,XX_TEJ3,9,FALSE)) -> 33366645 | AK4: =IF($B4="","",VLOOKUP($B4,XX_TEJ3,10,FALSE)) -> 36665574 | AL4: =IF($B4="","",VLOOKUP($B4,XX_TEJ3,11,FALSE)) -> 33628623 | AM4: =IF($B4="","",VLOOKUP($B4,XX_TEJ3,12,FALSE)) -> 40313630 | AN4: =IF($B4="","",VLOOKUP($B4,XX_TEJ3,13,FALSE)) -> 50532404 | AO4: =IF($B4="","",VLOOKUP($B4,XX_TEJ4,2,FALSE)) -> 33444199 | AP4: =IF($B4="","",VLOOKUP($B4,XX_TEJ4,3,FALSE)) -> 26644582 | AQ4: =IF($B4="","",VLOOKUP($B4,XX_TEJ4,4,FALSE)) -> 40425593 | AR4: =IF($B4="","",VLOOKUP($B4,XX_TEJ4,5,FALSE)) -> 29682693 | AS4: =IF($B4="","",VLOOKUP($B4,XX_TEJ4,6,FALSE)) -> 32214286 | AT4: =IF($B4="","",VLOOKUP($B4,XX_TEJ4,7,FALSE)) -> 41929243 | AU4: =IF($B4="","",VLOOKUP($B4,XX_TEJ4,8,FALSE)) -> 32768594 | AV4: =IF($B4="","",VLOOKUP($B4,XX_TEJ4,9,FALSE)) -> 35920894 | AW4: =IF($B4="","",VLOOKUP($B4,XX_TEJ4,10,FALSE)) -> 40305498 | AX4: =IF($B4="","",VLOOKUP($B4,XX_TEJ4,11,FALSE)) -> 36644238 | AY4: =IF($B4="","",VLOOKUP($B4,XX_TEJ4,12,FALSE)) -> 35742535 | AZ4: =IF($B4="","",VLOOKUP($B4,XX_TEJ4,13,FALSE)) -> 39768842 | BA4: =IFERROR(VLOOKUP($B4,XX_TEJ5,2,FALSE),"") -> 28087374 | BB4: =IFERROR(VLOOKUP($B4,XX_TEJ5,3,FALSE),"") -> 26084151 | BC4: =IFERROR(VLOOKUP($B4,XX_TEJ5,4,FALSE),"") -> 35036726 | BD4: =IFERROR(VLOOKUP($B4,XX_TEJ5,5,FALSE),"") -> 27715480 | BE4: =IFERROR(VLOOKUP($B4,XX_TEJ5,6,FALSE),"") -> 29107204 | BF4: =IFERROR(VLOOKUP($B4,XX_TEJ5,7,FALSE),"") -> 37748474 | BG4: =IFERROR(VLOOKUP($B4,XX_TEJ5,8,FALSE),"") -> 31728433 | BH4: =IFERROR(VLOOKUP($B4,XX_TEJ5,9,FALSE),"") -> 34236328 | BI4: =IFERROR(VLOOKUP($B4,XX_TEJ5,10,FALSE),"") -> 0 | BJ4: =IFERROR(VLOOKUP($B4,XX_TEJ5,11,FALSE),"") ->  | BK4: =IFERROR(VLOOKUP($B4,XX_TEJ5,12,FALSE),"") ->  | BL4: =IFERROR(VLOOKUP($B4,XX_TEJ5,13,FALSE),"") ->  | BM4: =IFERROR(VLOOKUP(B4,BO:BR,2,0),"") -> 0 | BN4: =IF(BO4="","",LEFT(BO4,FIND(" ",BO4)-1)) -> 1102 | BO4: 1102 亞泥 | BP4: 6691905 | BQ4: 3.43 | BR4: -4.32
A5: =IF(B5="","",RANK($BM5,$BM$4:$BM$1000)) -> 22 | B5: 2414 精技 | C5: M2329 電子通路業 | D5: M23T1 3C通路 | E5: 1576384 | F5: 1016511 | G5: 1607609 | H5: 1358392 | I5: 1490402 | J5: 1391010 | K5: 1682637 | L5: 1880152 | M5: 1595086 | N5: 1875135 | O5: 1808280 | P5: 1692426 | Q5: 1630527 | R5: 1629078 | S5: 1669811 | T5: 1579148 | U5: 1781318 | V5: 2106212 | W5: 1987483 | X5: 1695693 | Y5: 2135663 | Z5: 1648465 | AA5: 1823270 | AB5: 1870949 | AC5: 2070499 | AD5: 1545137 | AE5: 1934645 | AF5: 1687495 | AG5: 1975052 | AH5: 2014553 | AI5: 2161759 | AJ5: 2332739 | AK5: 2227904 | AL5: 2175592 | AM5: 2005538 | AN5: 1769648 | AO5: 1895698 | AP5: 1509315 | AQ5: 2159552 | AR5: 1662350 | AS5: 1936278 | AT5: 2379987 | AU5: 2375085 | AV5: 2361914 | AW5: 2596502 | AX5: 2211309 | AY5: 1999317 | AZ5: 1983243 | BA5: 1675600 | BB5: 1680025 | BC5: 2351666 | BD5: 1866722 | BE5: 1934857 | BF5: 2057351 | BG5: 1886826 | BH5: 2094563 | BI5: 0 | BM5: =IFERROR(VLOOKUP(B5,BO:BR,2,0),"") -> 0 | BN5: 1103 | BO5: 1103 嘉泥
A6: 9 | B6: 2430 燦坤 | C6: M2329 電子通路業 | D6: M23T1 3C通路 | E6: 2053344 | F6: 1422223 | G6: 1410972 | H6: 1619836 | I6: 1541777 | J6: 1506190 | K6: 1914038 | L6: 1548328 | M6: 1633276 | N6: 1337788 | O6: 1569914 | P6: 1359280 | Q6: 1811974 | R6: 1376022 | S6: 1332533 | T6: 1440824 | U6: 1614895 | V6: 1594836 | W6: 2097020 | X6: 1830126 | Y6: 1450399 | Z6: 1409972 | AA6: 1776817 | AB6: 1807302 | AC6: 2097616 | AD6: 1628009 | AE6: 1520609 | AF6: 1694800 | AG6: 2275140 | AH6: 2043220 | AI6: 2164830 | AJ6: 1708900 | AK6: 1716759 | AL6: 2093660 | AM6: 1990256 | AN6: 1776351 | AO6: 2367261 | AP6: 1670154 | AQ6: 1712615 | AR6: 2106409 | AS6: 2022874 | AT6: 1812767 | AU6: 1991245 | AV6: 1758229 | AW6: 1729603 | AX6: 1673425 | AY6: 1659399 | AZ6: 1787250 | BA6: 2045074 | BB6: 1528681 | BC6: 1477208 | BD6: 1710056 | BE6: 1716967 | BF6: 1673719 | BG6: 1839652 | BH6: 1637033 | BI6: 1630497 | BM6: 1630497 | BN6: 1104 | BO6: 1104 環泥
A7: 4 | B7: 3010 華立 | C7: M2329 電子通路業 | D7: M23T2 零組件代理 | E7: 4446960 | F7: 3176868 | G7: 4442052 | H7: 4464438 | I7: 4863442 | J7: 4713613 | K7: 4710534 | L7: 4882520 | M7: 4965446 | N7: 4633874 | O7: 4684271 | P7: 4697811 | Q7: 4272418 | R7: 3232286 | S7: 4848323 | T7: 5271180 | U7: 4513772 | V7: 5051499 | W7: 5215809 | X7: 5109468 | Y7: 5835215 | Z7: 5029834 | AA7: 5435634 | AB7: 5265482 | AC7: 5844746 | AD7: 4525154 | AE7: 5913640 | AF7: 5588007 | AG7: 5437199 | AH7: 5840628 | AI7: 6134070 | AJ7: 6058979 | AK7: 6563249 | AL7: 6002467 | AM7: 6516097 | AN7: 6091067 | AO7: 7265769 | AP7: 5203560 | AQ7: 7040557 | AR7: 5889814 | AS7: 5920056 | AT7: 6526360 | AU7: 6473883 | AV7: 6431519 | AW7: 6243745 | AX7: 5870003 | AY7: 5733451 | AZ7: 4971579 | BA7: 4713572 | BB7: 4720799 | BC7: 4943913 | BD7: 5072591 | BE7: 5327248 | BF7: 5767235 | BG7: 5854910 | BH7: 6517958 | BI7: 6646333 | BM7: 6646333 | BN7: 1108 | BO7: 1108 幸福 | BP7: 404171 | BQ7: -6.1 | BR7: 16.6
A8: 22 | B8: 3028 增你強 | C8: M2329 電子通路業 | D8: M23T2 零組件代理 | E8: 2440129 | F8: 1826836 | G8: 2226541 | H8: 2131550 | I8: 2074657 | J8: 2206316 | K8: 2464051 | L8: 2355913 | M8: 2356697 | N8: 2030662 | O8: 2296599 | P8: 2566023 | Q8: 1840283 | R8: 1824848 | S8: 2554926 | T8: 2324356 | U8: 2203441 | V8: 2680683 | W8: 3493886 | X8: 3160939 | Y8: 4137283 | Z8: 3185666 | AA8: 3480003 | AB8: 3510131 | AC8: 3911907 | AD8: 2758603 | AE8: 3797563 | AF8: 3217531 | AG8: 3706467 | AH8: 3447853 | AI8: 3642469 | AJ8: 3851581 | AK8: 3392770 | AL8: 3004672 | AM8: 3486913 | AN8: 3807551 | AO8: 4232084 | AP8: 3371869 | AQ8: 4443811 | AR8: 3560945 | AS8: 3573096 | AT8: 3554997 | AU8: 2988118 | AV8: 2676060 | AW8: 2917276 | AX8: 2979548 | AY8: 2807609 | AZ8: 2891254 | BA8: 1962019 | BB8: 2480648 | BC8: 2858865 | BD8: 2532230 | BE8: 2798458 | BF8: 2546166 | BG8: 2620381 | BH8: 3198451 | BI8: 0 | BM8: 0 | BN8: 1109 | BO8: 1109 信大
A9: 3 | B9: 3033 威健 | C9: M2329 電子通路業 | D9: M23T2 零組件代理 | E9: 3879161 | F9: 2663125 | G9: 3967354 | H9: 3901108 | I9: 3978524 | J9: 3694259 | K9: 4161779 | L9: 4365554 | M9: 4552953 | N9: 4268641 | O9: 4177120 | P9: 4614508 | Q9: 3152664 | R9: 3108265 | S9: 5300581 | T9: 4948049 | U9: 4470599 | V9: 4578635 | W9: 6208651 | X9: 5166444 | Y9: 5890464 | Z9: 5304282 | AA9: 5211424 | AB9: 5073358 | AC9: 5956993 | AD9: 3637073 | AE9: 6229080 | AF9: 6531297 | AG9: 6330755 | AH9: 5818016 | AI9: 6197040 | AJ9: 6854390 | AK9: 6529996 | AL9: 5634061 | AM9: 6204196 | AN9: 6481989 | AO9: 5495218 | AP9: 4766820 | AQ9: 6662507 | AR9: 5454227 | AS9: 5628959 | AT9: 6337831 | AU9: 5167770 | AV9: 6175847 | AW9: 6860159 | AX9: 6128999 | AY9: 5945979 | AZ9: 5656747 | BA9: 3859897 | BB9: 5912819 | BC9: 6751776 | BD9: 5117225 | BE9: 5949126 | BF9: 6444403 | BG9: 5912604 | BH9: 5919842 | BI9: 6832430 | BM9: 6832430 | BN9: 1110 | BO9: 1110 東泥 | BP9: 169364 | BQ9: 5.72 | BR9: 7.56
A10: 1 | B10: 3036 文曄 | C10: M2329 電子通路業 | D10: M23T2 零組件代理 | E10: 26182710 | F10: 18647002 | G10: 22644495 | H10: 24649113 | I10: 25348882 | J10: 24750004 | K10: 30244072 | L10: 31166267 | M10: 34780390 | N10: 36441369 | O10: 33372527 | P10: 26960320 | Q10: 24737890 | R10: 17367081 | S10: 35370688 | T10: 27879410 | U10: 23084468 | V10: 23760308 | W10: 28050163 | X10: 27435829 | Y10: 36376047 | Z10: 34693002 | AA10: 39085713 | AB10: 35311596 | AC10: 37531203 | AD10: 26333814 | AE10: 33781360 | AF10: 35794148 | AG10: 33061931 | AH10: 33240310 | AI10: 36346555 | AJ10: 40457022 | AK10: 42301092 | AL10: 36792688 | AM10: 47004427 | AN10: 45251566 | AO10: 48248004 | AP10: 32503720 | AQ10: 47191335 | AR10: 44346839 | AS10: 42341754 | AT10: 43432131 | AU10: 46816263 | AV10: 45134755 | AW10: 63717778 | AX10: 57528817 | AY10: 43170029 | AZ10: 56765693 | BA10: 48997303 | BB10: 32119077 | BC10: 38986778 | BD10: 39986081 | BE10: 36689920 | BF10: 40783846 | BG10: 53994572 | BH10: 50372285 | BI10: 62892944 | BM10: 62892944 | BN10: 1201 | BO10: 1201 味全
A11: 22 | B11: 3048 益登 | C11: M2329 電子通路業 | D11: M23T2 零組件代理 | E11: 7411634 | F11: 4118111 | G11: 5959384 | H11: 7013758 | I11: 7754626 | J11: 7923807 | K11: 8257407 | L11: 10445764 | M11: 10748553 | N11: 10091343 | O11: 9043105 | P11: 8112185 | Q11: 7301339 | R11: 5861779 | S11: 8422664 | T11: 8007988 | U11: 7163048 | V11: 7970774 | W11: 9726609 | X11: 10312398 | Y11: 10185128 | Z11: 10544176 | AA11: 12146250 | AB11: 10880669 | AC11: 9577505 | AD11: 6224943 | AE11: 8752029 | AF11: 7970218 | AG11: 7553863 | AH11: 7871034 | AI11: 8417689 | AJ11: 9956545 | AK11: 10982199 | AL11: 9192457 | AM11: 10747827 | AN11: 10990412 | AO11: 11048406 | AP11: 7339148 | AQ11: 10674940 | AR11: 8096215 | AS11: 9739840 | AT11: 9604347 | AU11: 9072811 | AV11: 10912095 | AW11: 11784120 | AX11: 10582927 | AY11: 9844425 | AZ11: 10007762 | BA11: 8100662 | BB11: 7541941 | BC11: 8573665 | BD11: 7359677 | BE11: 7843460 | BF11: 7577002 | BG11: 7654010 | BH11: 9468181 | BI11: 0 | BM11: 0 | BN11: 1203 | BO11: 1203 味王
A12: 22 | B12: 3055 蔚華科 | C12: M2329 電子通路業 | D12: M23H3 設備通路 | E12: 152821 | F12: 208711 | G12: 317650 | H12: 162136 | I12: 147570 | J12: 144898 | K12: 108356 | L12: 144969 | M12: 223199 | N12: 237609 | O12: 419841 | P12: 643045 | Q12: 135072 | R12: 139588 | S12: 320211 | T12: 234333 | U12: 221875 | V12: 261995 | W12: 192795 | X12: 257178 | Y12: 449270 | Z12: 298345 | AA12: 516328 | AB12: 673331 | AC12: 451560 | AD12: 267310 | AE12: 361340 | AF12: 281608 | AG12: 330740 | AH12: 466434 | AI12: 330983 | AJ12: 425250 | AK12: 440258 | AL12: 353892 | AM12: 492033 | AN12: 801834 | AO12: 130146 | AP12: 103363 | AQ12: 212254 | AR12: 117789 | AS12: 173500 | AT12: 194070 | AU12: 184243 | AV12: 178580 | AW12: 225108 | AX12: 172131 | AY12: 124619 | AZ12: 98842 | BA12: 145703 | BB12: 116978 | BC12: 102792 | BD12: 109709 | BE12: 190380 | BF12: 57449 | BG12: 100792 | BH12: 123529 | BI12: 0 | BM12: 0 | BN12: 1210 | BO12: 1210 大成
A13: 22 | B13: 3209 全科 | C13: M2329 電子通路業 | D13: M23T2 零組件代理 | E13: 3779207 | F13: 1729553 | G13: 2481157 | H13: 2829571 | I13: 3310782 | J13: 3119826 | K13: 3341695 | L13: 3877506 | M13: 3574296 | N13: 4332301 | O13: 4173242 | P13: 3022932 | Q13: 3242974 | R13: 3044833 | S13: 3234867 | T13: 3679577 | U13: 3135749 | V13: 2912387 | W13: 3946869 | X13: 3551076 | Y13: 3855546 | Z13: 4334231 | AA13: 3817643 | AB13: 3203588 | AC13: 4514155 | AD13: 3195885 | AE13: 3887979 | AF13: 4528328 | AG13: 3772043 | AH13: 3445621 | AI13: 4352677 | AJ13: 4538119 | AK13: 4811027 | AL13: 3554161 | AM13: 3542079 | AN13: 2992179 | AO13: 5437054 | AP13: 3868691 | AQ13: 4729619 | AR13: 5469376 | AS13: 5014403 | AT13: 4825693 | AU13: 6345141 | AV13: 5017486 | AW13: 4536401 | AX13: 5045554 | AY13: 4992270 | AZ13: 5146708 | BA13: 6069368 | BB13: 2554729 | BC13: 6572794 | BD13: 6471770 | BE13: 4669533 | BF13: 2434576 | BG13: 6653841 | BH13: 4270136 | BI13: 0 | BM13: 0 | BN13: 1213 | BO13: 1213 大飲 | BP13: 636 | BQ13: 163.73 | BR13: -98
A14: 16 | B14: 3224 三顧 | C14: M2329 電子通路業 | D14: M23T2 零組件代理 | E14: 126803 | F14: 85794 | G14: 108964 | H14: 113521 | I14: 126264 | J14: 115371 | K14: 123218 | L14: 134810 | M14: 123759 | N14: 125711 | O14: 120107 | P14: 110565 | Q14: 131683 | R14: 112573 | S14: 157105 | T14: 153348 | U14: 158815 | V14: 152917 | W14: 147853 | X14: 131294 | Y14: 103321 | Z14: 104445 | AA14: 108836 | AB14: 115166 | AC14: 144485 | AD14: 105254 | AE14: 154047 | AF14: 128644 | AG14: 143778 | AH14: 132585 | AI14: 208331 | AJ14: 139195 | AK14: 227691 | AL14: 203179 | AM14: 243780 | AN14: 179322 | AO14: 201085 | AP14: 146827 | AQ14: 231649 | AR14: 175348 | AS14: 146771 | AT14: 184924 | AU14: 144629 | AV14: 113626 | AW14: 152629 | AX14: 126884 | AY14: 103553 | AZ14: 112738 | BA14: 136922 | BB14: 120337 | BC14: 118078 | BD14: 108951 | BE14: 156473 | BF14: 136386 | BG14: 151876 | BH14: 106897 | BI14: 118531 | BM14: 118531 | BN14: 1215 | BO14: 1215 卜蜂 | BP14: 2437231 | BQ14: -2.85 | BR14: 0.78
A15: 22 | B15: 3232 昱捷 | C15: M2329 電子通路業 | D15: M23T2 零組件代理 | E15: 103523 | F15: 79877 | G15: 105087 | H15: 131531 | I15: 65037 | J15: 74342 | K15: 73395 | L15: 80824 | M15: 105009 | N15: 79784 | O15: 78894 | P15: 68818 | Q15: 49849 | R15: 50911 | S15: 75034 | T15: 55347 | U15: 54788 | V15: 75700 | W15: 61393 | X15: 50683 | Y15: 55899 | Z15: 87105 | AA15: 59348 | AB15: 76497 | AC15: 52788 | AD15: 41184 | AE15: 66247 | AF15: 90075 | AG15: 84789 | AH15: 81712 | AI15: 92282 | AJ15: 92193 | AK15: 76336 | AL15: 78169 | AM15: 97316 | AN15: 147279 | AO15: 100656 | AP15: 102723 | AQ15: 124964 | AR15: 111656 | AS15: 85918 | AT15: 105741 | AU15: 93970 | AV15: 144669 | AW15: 205150 | AX15: 138050 | AY15: 105866 | AZ15: 98355 | BA15: 100538 | BB15: 111349 | BC15: 126227 | BD15: 116834 | BE15: 109215 | BF15: 128537 | BG15: 125430 | BH15: 159839 | BI15: 0 | BM15: 0 | BN15: 1216 | BO15: 1216 統一
A16: 10 | B16: 3312 弘憶股 | C16: M2329 電子通路業 | D16: M23T2 零組件代理 | E16: 940322 | F16: 644765 | G16: 897020 | H16: 978694 | I16: 1008981 | J16: 950383 | K16: 1112405 | L16: 1179559 | M16: 1186229 | N16: 1223096 | O16: 1340240 | P16: 1243044 | Q16: 909037 | R16: 970921 | S16: 1114075 | T16: 1135611 | U16: 1015619 | V16: 1012904 | W16: 1146443 | X16: 1173125 | Y16: 1318532 | Z16: 1303331 | AA16: 1286693 | AB16: 1292356 | AC16: 1405080 | AD16: 1121060 | AE16: 1569635 | AF16: 1520228 | AG16: 1406392 | AH16: 1819683 | AI16: 1688172 | AJ16: 1575695 | AK16: 1704776 | AL16: 1736858 | AM16: 1496894 | AN16: 1808216 | AO16: 1654629 | AP16: 1488991 | AQ16: 2040490 | AR16: 1642356 | AS16: 1555501 | AT16: 1564330 | AU16: 1589595 | AV16: 1580078 | AW16: 1697903 | AX16: 1695626 | AY16: 1364140 | AZ16: 1472864 | BA16: 981519 | BB16: 1187867 | BC16: 1150896 | BD16: 1165347 | BE16: 1300891 | BF16: 1274700 | BG16: 1283610 | BH16: 1359163 | BI16: 1508579 | BM16: 1508579 | BN16: 1217 | BO16: 1217 愛之味
A17: 14 | B17: 3360 尚立 | C17: M2329 電子通路業 | D17: M23T2 零組件代理 | E17: 1460943 | F17: 1504696 | G17: 1558406 | H17: 1607399 | I17: 1749292 | J17: 1976388 | K17: 1998283 | L17: 2020592 | M17: 2075573 | N17: 1190457 | O17: 1021268 | P17: 1076481 | Q17: 955420 | R17: 1197572 | S17: 1586274 | T17: 2164786 | U17: 1567115 | V17: 1560345 | W17: 763551 | X17: 1423087 | Y17: 1683208 | Z17: 436061 | AA17: 380311 | AB17: 540616 | AC17: 1036311 | AD17: 997925 | AE17: 699757 | AF17: 909418 | AG17: 714925 | AH17: 563427 | AI17: 685649 | AJ17: 718674 | AK17: 656602 | AL17: 749653 | AM17: 785135 | AN17: 871548 | AO17: 1048544 | AP17: 967327 | AQ17: 1166469 | AR17: 815170 | AS17: 646691 | AT17: 505384 | AU17: 677652 | AV17: 1005064 | AW17: 981991 | AX17: 711437 | AY17: 701274 | AZ17: 874125 | BA17: 685501 | BB17: 642369 | BC17: 921437 | BD17: 951042 | BE17: 949363 | BF17: 745126 | BG17: 387770 | BH17: 355570 | BI17: 388947 | BM17: 388947 | BN17: 1218 | BO17: 1218 泰山 | BP17: 1070356 | BQ17: -7.51 | BR17: 0.62
A18: 18 | B18: 3444 利機 | C18: M2329 電子通路業 | D18: M23T2 零組件代理 | E18: 68138 | F18: 52264 | G18: 64165 | H18: 59228 | I18: 72334 | J18: 72993 | K18: 71665 | L18: 67245 | M18: 68560 | N18: 69531 | O18: 65760 | P18: 71957 | Q18: 61538 | R18: 73826 | S18: 79840 | T18: 77813 | U18: 74345 | V18: 71178 | W18: 76028 | X18: 82188 | Y18: 84914 | Z18: 87047 | AA18: 90479 | AB18: 105261 | AC18: 99350 | AD18: 84419 | AE18: 105153 | AF18: 103884 | AG18: 106868 | AH18: 113786 | AI18: 95275 | AJ18: 110000 | AK18: 104221 | AL18: 97847 | AM18: 100569 | AN18: 97547 | AO18: 96538 | AP18: 84064 | AQ18: 114460 | AR18: 117261 | AS18: 90825 | AT18: 86903 | AU18: 79170 | AV18: 77902 | AW18: 75677 | AX18: 73925 | AY18: 91324 | AZ18: 72349 | BA18: 58595 | BB18: 68500 | BC18: 83702 | BD18: 78705 | BE18: 87146 | BF18: 94471 | BG18: 91559 | BH18: 86827 | BI18: 80933 | BM18: 80933 | BN18: 1219 | BO18: 1219 福壽 | BP18: 1310734 | BQ18: -4.05 | BR18: -11.8
A19: 22 | B19: 3528 安馳 | C19: M2329 電子通路業 | D19: M23T2 零組件代理 | E19: 379152 | F19: 196589 | G19: 343514 | H19: 349865 | I19: 351479 | J19: 342923 | K19: 367765 | L19: 345429 | M19: 353867 | N19: 341839 | O19: 367920 | P19: 378198 | Q19: 389910 | R19: 344564 | S19: 464859 | T19: 418447 | U19: 399241 | V19: 555907 | W19: 389156 | X19: 375080 | Y19: 482196 | Z19: 396441 | AA19: 420370 | AB19: 337056 | AC19: 609730 | AD19: 372673 | AE19: 553622 | AF19: 563122 | AG19: 610081 | AH19: 522284 | AI19: 574780 | AJ19: 541974 | AK19: 447517 | AL19: 588553 | AM19: 498453 | AN19: 397085 | AO19: 515432 | AP19: 418778 | AQ19: 570889 | AR19: 610528 | AS19: 542734 | AT19: 552235 | AU19: 580146 | AV19: 551377 | AW19: 583226 | AX19: 507304 | AY19: 511866 | AZ19: 462664 | BA19: 655735 | BB19: 527085 | BC19: 646834 | BD19: 674461 | BE19: 585424 | BF19: 501138 | BG19: 523949 | BH19: 531717 | BI19: 0 | BM19: 0 | BN19: 1220 | BO19: 1220 台榮 | BP19: 295646 | BQ19: -0.38 | BR19: 0.45
A20: 22 | B20: 3702 大聯大 | C20: M2329 電子通路業 | D20: M23T2 零組件代理 | E20: 41484483 | F20: 29615153 | G20: 40732306 | H20: 41050777 | I20: 46346861 | J20: 41778333 | K20: 46039240 | L20: 46975350 | M20: 47806479 | N20: 48723667 | O20: 50240139 | P20: 46884511 | Q20: 39617441 | R20: 37402364 | S20: 54024503 | T20: 55754407 | U20: 46709026 | V20: 47346786 | W20: 57306638 | X20: 54352682 | Y20: 58327675 | Z20: 50553966 | AA20: 53816733 | AB20: 54996325 | AC20: 61331135 | AD20: 47682421 | AE20: 68100463 | AF20: 66372523 | AG20: 66085397 | AH20: 67767917 | AI20: 59168492 | AJ20: 68844648 | AK20: 73876307 | AL20: 59545755 | AM20: 69325198 | AN20: 70509147 | AO20: 68692434 | AP20: 61126892 | AQ20: 80045742 | AR20: 63807643 | AS20: 66963202 | AT20: 68284883 | AU20: 54266320 | AV20: 65325978 | AW20: 70229857 | AX20: 61011133 | AY20: 57669964 | AZ20: 58681251 | BA20: 44064564 | BB20: 45293691 | BC20: 55395218 | BD20: 47417387 | BE20: 53731110 | BF20: 55540972 | BG20: 53195403 | BH20: 63236032 | BI20: 0 | BM20: 0 | BN20: 1225 | BO20: 1225 福懋油 | BP20: 1184327 | BQ20: -3.93 | BR20: -8.58
A21: 5 | B21: 5434 崇越 | C21: M2329 電子通路業 | D21: M23T2 零組件代理 | E21: 2591957 | F21: 1903165 | G21: 2604464 | H21: 2386422 | I21: 2697189 | J21: 2543591 | K21: 2658967 | L21: 2722992 | M21: 2776605 | N21: 2668446 | O21: 2855242 | P21: 3291476 | Q21: 2795200 | R21: 2815017 | S21: 3179635 | T21: 3410752 | U21: 2861080 | V21: 3099994 | W21: 2957667 | X21: 2944010 | Y21: 3166037 | Z21: 2844355 | AA21: 2892357 | AB21: 3203773 | AC21: 3148636 | AD21: 2960295 | AE21: 3423958 | AF21: 3755934 | AG21: 3137696 | AH21: 3487524 | AI21: 3614942 | AJ21: 3651032 | AK21: 3722789 | AL21: 3728095 | AM21: 3764376 | AN21: 4273728 | AO21: 4437861 | AP21: 3589783 | AQ21: 4551499 | AR21: 4050846 | AS21: 4587600 | AT21: 4586887 | AU21: 4621927 | AV21: 4632104 | AW21: 4538814 | AX21: 4603324 | AY21: 4408925 | AZ21: 4248803 | BA21: 4439933 | BB21: 3813643 | BC21: 4196928 | BD21: 3947717 | BE21: 4056478 | BF21: 4092997 | BG21: 4128574 | BH21: 4153263 | BI21: 4210501 | BM21: 4210501 | BN21: 1227 | BO21: 1227 佳格
A22: 17 | B22: 6113 亞矽 | C22: M2329 電子通路業 | D22: M23T2 零組件代理 | E22: 138602 | F22: 98069 | G22: 139077 | H22: 164780 | I22: 124438 | J22: 125879 | K22: 96028 | L22: 80234 | M22: 82485 | N22: 87798 | O22: 118747 | P22: 102148 | Q22: 88358 | R22: 53396 | S22: 82200 | T22: 86528 | U22: 94843 | V22: 117930 | W22: 107521 | X22: 136814 | Y22: 163613 | Z22: 187363 | AA22: 214378 | AB22: 162579 | AC22: 206170 | AD22: 126116 | AE22: 209544 | AF22: 159760 | AG22: 225312 | AH22: 207010 | AI22: 141244 | AJ22: 152203 | AK22: 100750 | AL22: 186817 | AM22: 269138 | AN22: 245564 | AO22: 222454 | AP22: 183746 | AQ22: 227059 | AR22: 281344 | AS22: 237918 | AT22: 209891 | AU22: 208389 | AV22: 120093 | AW22: 136948 | AX22: 92301 | AY22: 123089 | AZ22: 176974 | BA22: 81355 | BB22: 125370 | BC22: 152071 | BD22: 106800 | BE22: 102572 | BF22: 90002 | BG22: 80917 | BH22: 96002 | BI22: 108436 | BM22: 108436 | BN22: 1229 | BO22: 1229 聯華
A23: 13 | B23: 6118 建達 | C23: M2329 電子通路業 | D23: M23T1 3C通路 | E23: 668363 | F23: 466792 | G23: 541839 | H23: 584994 | I23: 594783 | J23: 608622 | K23: 639912 | L23: 716283 | M23: 646715 | N23: 576786 | O23: 645561 | P23: 591360 | Q23: 698377 | R23: 664793 | S23: 712469 | T23: 670467 | U23: 707579 | V23: 685312 | W23: 733606 | X23: 760066 | Y23: 741343 | Z23: 639355 | AA23: 686937 | AB23: 824791 | AC23: 729708 | AD23: 654384 | AE23: 696555 | AF23: 629383 | AG23: 836637 | AH23: 788981 | AI23: 742673 | AJ23: 952734 | AK23: 823601 | AL23: 752834 | AM23: 1031407 | AN23: 798522 | AO23: 829729 | AP23: 699991 | AQ23: 793906 | AR23: 656935 | AS23: 881135 | AT23: 921592 | AU23: 915046 | AV23: 823282 | AW23: 779174 | AX23: 741850 | AY23: 789979 | AZ23: 869185 | BA23: 671962 | BB23: 613964 | BC23: 743211 | BD23: 661403 | BE23: 691945 | BF23: 603336 | BG23: 724982 | BH23: 799514 | BI23: 716064 | BM23: 716064 | BN23: 1231 | BO23: 1231 聯華食 | BP23: 796194 | BQ23: -23.6 | BR23: -3.59
A24: 22 | B24: 6154 順發 | C24: M2329 電子通路業 | D24: M23T1 3C通路 | E24: 333102 | F24: 365209 | G24: 332673 | H24: 284840 | I24: 295499 | J24: 300035 | K24: 333317 | L24: 385680 | M24: 366862 | N24: 287259 | O24: 285609 | P24: 285803 | Q24: 361051 | R24: 339591 | S24: 340991 | T24: 322089 | U24: 333635 | V24: 312694 | W24: 379046 | X24: 388827 | Y24: 367616 | Z24: 302350 | AA24: 320178 | AB24: 323805 | AC24: 323634 | AD24: 369753 | AE24: 340219 | AF24: 340644 | AG24: 570508 | AH24: 562836 | AI24: 491495 | AJ24: 467479 | AK24: 456407 | AL24: 457466 | AM24: 409929 | AN24: 337801 | AO24: 404300 | AP24: 413427 | AQ24: 376714 | AR24: 380053 | AS24: 477773 | AT24: 402304 | AU24: 342780 | AV24: 364640 | AW24: 334153 | AX24: 295063 | AY24: 294760 | AZ24: 292961 | BA24: 347056 | BB24: 307029 | BC24: 282734 | BD24: 288198 | BE24: 292527 | BF24: 327758 | BG24: 325226 | BH24: 362585 | BI24: 0 | BM24: 0 | BN24: 1232 | BO24: 1232 大統益 | BP24: 1874068 | BQ24: -14.92 | BR24: -9.47
A25: 6 | B25: 6189 豐藝 | C25: M2329 電子通路業 | D25: M23T2 零組件代理 | E25: 1827410 | F25: 1219990 | G25: 1778422 | H25: 1931011 | I25: 2064187 | J25: 1953697 | K25: 2046252 | L25: 2067882 | M25: 1916917 | N25: 2065758 | O25: 1993245 | P25: 1959501 | Q25: 1726060 | R25: 1344644 | S25: 2505741 | T25: 2651782 | U25: 1956138 | V25: 2021512 | W25: 2292559 | X25: 2338681 | Y25: 2720888 | Z25: 2283815 | AA25: 2254183 | AB25: 2602206 | AC25: 2955404 | AD25: 2102475 | AE25: 2786653 | AF25: 2702551 | AG25: 2736678 | AH25: 2558789 | AI25: 2828268 | AJ25: 2878559 | AK25: 2711829 | AL25: 2616249 | AM25: 2823830 | AN25: 2759875 | AO25: 3094730 | AP25: 2358279 | AQ25: 3014088 | AR25: 2452025 | AS25: 2908476 | AT25: 2363264 | AU25: 1811874 | AV25: 1952572 | AW25: 2195935 | AX25: 1975146 | AY25: 2072342 | AZ25: 1874456 | BA25: 1969320 | BB25: 2476055 | BC25: 2476026 | BD25: 2093375 | BE25: 2465632 | BF25: 2180406 | BG25: 2371700 | BH25: 2964660 | BI25: 3027372 | BM25: 3027372 | BN25: 1233 | BO25: 1233 天仁
A26: 22 | B26: 6227 茂綸 | C26: M2329 電子通路業 | D26: M23T2 零組件代理 | E26: 756767 | F26: 501700 | G26: 794447 | H26: 767550 | I26: 653177 | J26: 696783 | K26: 786023 | L26: 743651 | M26: 782948 | N26: 681618 | O26: 674371 | P26: 786050 | Q26: 553775 | R26: 637527 | S26: 809499 | T26: 688879 | U26: 712418 | V26: 818102 | W26: 877986 | X26: 954012 | Y26: 1168546 | Z26: 870001 | AA26: 1089390 | AB26: 1067101 | AC26: 1293020 | AD26: 888317 | AE26: 1328938 | AF26: 1280838 | AG26: 1241342 | AH26: 1228528 | AI26: 1276775 | AJ26: 1331202 | AK26: 968822 | AL26: 1115675 | AM26: 1186330 | AN26: 1140110 | AO26: 1337824 | AP26: 1176487 | AQ26: 1082807 | AR26: 1098536 | AS26: 1472733 | AT26: 1187011 | AU26: 1369880 | AV26: 1307432 | AW26: 1223788 | AX26: 1274736 | AY26: 1247088 | AZ26: 1223208 | BA26: 995581 | BB26: 1122420 | BC26: 1231007 | BD26: 1075951 | BE26: 1301927 | BF26: 1132401 | BG26: 1216147 | BH26: 1210397 | BI26: 0 | BM26: 0 | BN26: 1234 | BO26: 1234 黑松
A27: 21 | B27: 6265 方土昶 | C27: M2329 電子通路業 | D27: M23T2 零組件代理 | E27: 74409 | F27: 60467 | G27: 80327 | H27: 59617 | I27: 61578 | J27: 68593 | K27: 90574 | L27: 100207 | M27: 93022 | N27: 74510 | O27: 56307 | P27: 50785 | Q27: 104158 | R27: 87189 | S27: 82489 | T27: 96231 | U27: 66250 | V27: 78508 | W27: 50239 | X27: 75915 | Y27: 99612 | Z27: 67626 | AA27: 97935 | AB27: 129009 | AC27: 104497 | AD27: 119371 | AE27: 98819 | AF27: 105817 | AG27: 177918 | AH27: 108695 | AI27: 131952 | AJ27: 147410 | AK27: 152402 | AL27: 164341 | AM27: 159876 | AN27: 141017 | AO27: 137112 | AP27: 99130 | AQ27: 139054 | AR27: 90652 | AS27: 105439 | AT27: 132547 | AU27: 97651 | AV27: 141798 | AW27: 105017 | AX27: 53385 | AY27: 74982 | AZ27: 73822 | BA27: 60301 | BB27: 66724 | BC27: 84462 | BD27: 44375 | BE27: 34842 | BF27: 48247 | BG27: 43675 | BH27: 81650 | BI27: 54458 | BM27: 54458 | BN27: 1235 | BO27: 1235 興泰 | BP27: 6537 | BQ27: -2.2 | BR27: -77.66
A28: 15 | B28: 6270 倍微 | C28: M2329 電子通路業 | D28: M23T2 零組件代理 | E28: 268220 | F28: 169076 | G28: 230905 | H28: 245820 | I28: 273839 | J28: 244667 | K28: 289090 | L28: 281713 | M28: 312213 | N28: 290493 | O28: 267579 | P28: 276161 | Q28: 206378 | R28: 255363 | S28: 258683 | T28: 349475 | U28: 321464 | V28: 369570 | W28: 337216 | X28: 299061 | Y28: 372171 | Z28: 288798 | AA28: 319416 | AB28: 320884 | AC28: 396315 | AD28: 244993 | AE28: 335458 | AF28: 367033 | AG28: 377499 | AH28: 324095 | AI28: 368316 | AJ28: 385713 | AK28: 362558 | AL28: 343205 | AM28: 317327 | AN28: 364088 | AO28: 362778 | AP28: 335674 | AQ28: 515607 | AR28: 385152 | AS28: 333336 | AT28: 361996 | AU28: 409567 | AV28: 378646 | AW28: 460194 | AX28: 390944 | AY28: 328046 | AZ28: 344614 | BA28: 378574 | BB28: 323585 | BC28: 396593 | BD28: 244341 | BE28: 284336 | BF28: 255963 | BG28: 275689 | BH28: 261415 | BI28: 255938 | BM28: 255938 | BN28: 1236 | BO28: 1236 宏亞 | BP28: 222123 | BQ28: 28.95 | BR28: 57.43
A29: 11 | B29: 6281 全國電 | C29: M2329 電子通路業 | D29: M23T1 3C通路 | E29: 1592773 | F29: 1200797 | G29: 1137498 | H29: 1626938 | I29: 1747578 | J29: 1612988 | K29: 1969854 | L29: 1576384 | M29: 1376362 | N29: 1210561 | O29: 1223587 | P29: 1250349 | Q29: 1711438 | R29: 1242597 | S29: 1284407 | T29: 1514212 | U29: 2017416 | V29: 1845310 | W29: 2327760 | X29: 2008675 | Y29: 1425381 | Z29: 1253260 | AA29: 1352398 | AB29: 1493402 | AC29: 1906981 | AD29: 1318503 | AE29: 1283667 | AF29: 1673879 | AG29: 2300211 | AH29: 1982553 | AI29: 2144064 | AJ29: 1720535 | AK29: 1452498 | AL29: 1727111 | AM29: 1730684 | AN29: 1549506 | AO29: 2087743 | AP29: 1408665 | AQ29: 1549785 | AR29: 1992903 | AS29: 2014156 | AT29: 2003558 | AU29: 2337918 | AV29: 1961170 | AW29: 1574926 | AX29: 1392722 | AY29: 1435062 | AZ29: 1633501 | BA29: 1910359 | BB29: 1376032 | BC29: 1487508 | BD29: 1875295 | BE29: 2017226 | BF29: 1965909 | BG29: 2155750 | BH29: 1820261 | BI29: 1504462 | BM29: 1504462 | BN29: 1240 | BO29: 1240 茂生農經
A30: 8 | B30: 6776 展碁國際 | C30: M2329 電子通路業 | D30: M23T1 3C通路 | E30: 1721614 | F30: 731380 | G30: 914904 | H30: 917530 | I30: 907779 | J30: 1020573 | K30: 1045463 | L30: 1151435 | M30: 1130135 | N30: 1178724 | O30: 1441818 | P30: 1341580 | Q30: 1583428 | R30: 1122390 | S30: 1373057 | T30: 1396092 | U30: 1183626 | V30: 1414087 | W30: 1638619 | X30: 1698870 | Y30: 1469389 | Z30: 1400602 | AA30: 1456991 | AB30: 1543958 | AC30: 1431569 | AD30: 1367262 | AE30: 1266629 | AF30: 1248155 | AG30: 1614989 | AH30: 1765899 | AI30: 2095504 | AJ30: 2029479 | AK30: 2001956 | AL30: 2279736 | AM30: 2231728 | AN30: 1966491 | AO30: 2194987 | AP30: 1504467 | AQ30: 2095011 | AR30: 1767707 | AS30: 2084940 | AT30: 2218820 | AU30: 1756354 | AV30: 1992711 | AW30: 1861803 | AX30: 1775126 | AY30: 2033297 | AZ30: 1996771 | BA30: 1676224 | BB30: 1525549 | BC30: 1984952 | BD30: 1702095 | BE30: 2398171 | BF30: 1961799 | BG30: 1797122 | BH30: 1906313 | BI30: 1843189 | BM30: 1843189 | BN30: 1256 | BO30: 1256 鮮活果汁-KY | BP30: 444032 | BQ30: -21.86 | BR30: -8
A31: 22 | B31: 8032 光菱 | C31: M2329 電子通路業 | D31: M23T2 零組件代理 | E31: 280762 | F31: 173062 | G31: 296515 | H31: 300345 | I31: 253301 | J31: 273288 | K31: 288973 | L31: 240090 | M31: 302411 | N31: 267348 | O31: 306045 | P31: 285767 | Q31: 178733 | R31: 194819 | S31: 322978 | T31: 253748 | U31: 201321 | V31: 214601 | W31: 256165 | X31: 278167 | Y31: 270983 | Z31: 233342 | AA31: 283111 | AB31: 277318 | AC31: 336659 | AD31: 239663 | AE31: 307657 | AF31: 312569 | AG31: 316831 | AH31: 334475 | AI31: 322520 | AJ31: 317012 | AK31: 353758 | AL31: 287520 | AM31: 369952 | AN31: 309167 | AO31: 345930 | AP31: 261191 | AQ31: 376735 | AR31: 236426 | AS31: 419147 | AT31: 435376 | AU31: 367484 | AV31: 382277 | AW31: 412266 | AX31: 245144 | AY31: 272386 | AZ31: 334830 | BA31: 239655 | BB31: 262247 | BC31: 298936 | BD31: 187617 | BE31: 253561 | BF31: 243754 | BG31: 241945 | BH31: 224517 | BI31: 0 | BM31: 0 | BN31: 1259 | BO31: 1259 安心 | BP31: 517430 | BQ31: -2.92 | BR31: 5.61
A32: 22 | B32: 8067 志旭 | C32: M2329 電子通路業 | D32: M23T1 3C通路 | E32: 21605 | F32: 15078 | G32: 13728 | H32: 12017 | I32: 11524 | J32: 14904 | K32: 13711 | L32: 23509 | M32: 22963 | N32: 29196 | O32: 32337 | P32: 30790 | Q32: 15593 | R32: 16175 | S32: 16609 | T32: 17243 | U32: 26295 | V32: 20271 | W32: 22674 | X32: 18057 | Y32: 27925 | Z32: 24982 | AA32: 20027 | AB32: 29718 | AC32: 23042 | AD32: 20208 | AE32: 19476 | AF32: 16032 | AG32: 17468 | AH32: 10179 | AI32: 18459 | AJ32: 14591 | AK32: 26474 | AL32: 21758 | AM32: 18167 | AN32: 17038 | AO32: 11747 | AP32: 13790 | AQ32: 27080 | AR32: 10554 | AS32: 10246 | AT32: 9163 | AU32: 15333 | AV32: 10143 | AW32: 10145 | AX32: 9359 | AY32: 8171 | AZ32: 9061 | BA32: 7562 | BB32: 7255 | BC32: 11882 | BD32: 10658 | BE32: 9069 | BF32: 10642 | BG32: 10718 | BH32: 7543 | BI32: 0 | BM32: 0 | BN32: 1264 | BO32: 1264 德麥 | BP32: 537887 | BQ32: 4.86 | BR32: 18.24
A33: 19 | B33: 8068 全達 | C33: M2329 電子通路業 | D33: M23T2 零組件代理 | E33: 264231 | F33: 204597 | G33: 234878 | H33: 154184 | I33: 215659 | J33: 165495 | K33: 227981 | L33: 241755 | M33: 157919 | N33: 129441 | O33: 152557 | P33: 157599 | Q33: 157095 | R33: 119928 | S33: 110287 | T33: 136886 | U33: 155124 | V33: 135751 | W33: 195185 | X33: 185300 | Y33: 169953 | Z33: 169853 | AA33: 169892 | AB33: 222258 | AC33: 79574 | AD33: 32576 | AE33: 33736 | AF33: 17533 | AG33: 26535 | AH33: 11796 | AI33: 21376 | AJ33: 29270 | AK33: 19291 | AL33: 33286 | AM33: 20675 | AN33: 40995 | AO33: 127234 | AP33: 62437 | AQ33: 137445 | AR33: 78931 | AS33: 47050 | AT33: 134382 | AU33: 43654 | AV33: 65925 | AW33: 129007 | AX33: 43019 | AY33: 65655 | AZ33: 82712 | BA33: 24395 | BB33: 27554 | BC33: 87710 | BD33: 44517 | BE33: 66526 | BF33: 89011 | BG33: 59980 | BH33: 62694 | BI33: 69542 | BM33: 69542 | BN33: 1268 | BO33: 1268 漢來美食
A34: 12 | B34: 8070 長華* | C34: M2329 電子通路業 | D34: M23T2 零組件代理 | E34: 1267012 | F34: 1003259 | G34: 1195402 | H34: 1191791 | I34: 1151788 | J34: 1264281 | K34: 1487972 | L34: 1349069 | M34: 1356057 | N34: 1505669 | O34: 1330762 | P34: 1361319 | Q34: 1174211 | R34: 1206664 | S34: 1407535 | T34: 1388540 | U34: 1383335 | V34: 1344027 | W34: 1357138 | X34: 1289131 | Y34: 1435944 | Z34: 1373618 | AA34: 1549149 | AB34: 1514726 | AC34: 1604399 | AD34: 1332975 | AE34: 1657240 | AF34: 1594942 | AG34: 1564982 | AH34: 1740792 | AI34: 1835015 | AJ34: 1821516 | AK34: 1815855 | AL34: 1836860 | AM34: 1890429 | AN34: 1975504 | AO34: 1928184 | AP34: 1698038 | AQ34: 2028530 | AR34: 1854271 | AS34: 1997861 | AT34: 1968026 | AU34: 1891503 | AV34: 1855940 | AW34: 1765668 | AX34: 1717412 | AY34: 1588121 | AZ34: 1564955 | BA34: 1405960 | BB34: 1330237 | BC34: 1429473 | BD34: 1432156 | BE34: 1434373 | BF34: 1312725 | BG34: 1350330 | BH34: 1374533 | BI34: 1249818 | BM34: 1249818 | BN34: 1301 | BO34: 1301 台塑
A35: 22 | B35: 8072 陞泰 | C35: M2329 電子通路業 | D35: M23C9 安全監控 | E35: 67262 | F35: 45212 | G35: 67914 | H35: 48651 | I35: 66149 | J35: 59720 | K35: 84793 | L35: 76151 | M35: 70775 | N35: 76170 | O35: 70012 | P35: 69048 | Q35: 43063 | R35: 72949 | S35: 69010 | T35: 59724 | U35: 71842 | V35: 85994 | W35: 112213 | X35: 145614 | Y35: 154346 | Z35: 134293 | AA35: 115618 | AB35: 155695 | AC35: 119134 | AD35: 68541 | AE35: 137003 | AF35: 121805 | AG35: 109913 | AH35: 122823 | AI35: 127034 | AJ35: 112540 | AK35: 114882 | AL35: 102091 | AM35: 115371 | AN35: 105326 | AO35: 121151 | AP35: 83773 | AQ35: 119568 | AR35: 117270 | AS35: 112654 | AT35: 103527 | AU35: 95134 | AV35: 104016 | AW35: 121881 | AX35: 106785 | AY35: 91827 | AZ35: 66963 | BA35: 66823 | BB35: 86379 | BC35: 108195 | BD35: 91358 | BE35: 93474 | BF35: 95543 | BG35: 112774 | BH35: 117316 | BI35: 0 | BM35: 0 | BN35: 1303 | BO35: 1303 南亞
A36: 20 | B36: 8084 巨虹 | C36: M2329 電子通路業 | D36: M23G5 IC設計 | E36: 194858 | F36: 105232 | G36: 167777 | H36: 205942 | I36: 171812 | J36: 180036 | K36: 145029 | L36: 186723 | M36: 175699 | N36: 166079 | O36: 163270 | P36: 185791 | Q36: 115192 | R36: 45303 | S36: 43723 | T36: 61887 | U36: 91308 | V36: 95601 | W36: 93641 | X36: 95003 | Y36: 97542 | Z36: 70514 | AA36: 99832 | AB36: 112851 | AC36: 66213 | AD36: 62904 | AE36: 76664 | AF36: 65615 | AG36: 67614 | AH36: 62742 | AI36: 48145 | AJ36: 52292 | AK36: 66819 | AL36: 62712 | AM36: 87478 | AN36: 132576 | AO36: 74455 | AP36: 85683 | AQ36: 89343 | AR36: 71602 | AS36: 57845 | AT36: 74897 | AU36: 69712 | AV36: 95177 | AW36: 96997 | AX36: 107324 | AY36: 156003 | AZ36: 180263 | BA36: 101506 | BB36: 85462 | BC36: 99161 | BD36: 73451 | BE36: 35329 | BF36: 30453 | BG36: 32823 | BH36: 57934 | BI36: 65866 | BM36: 65866 | BN36: 1304 | BO36: 1304 台聚 | BP36: 4506836 | BQ36: -10.45 | BR36: -16.38
A37: 7 | B37: 8096 擎亞 | C37: M2329 電子通路業 | D37: M23T2 零組件代理 | E37: 2163648 | F37: 1133096 | G37: 1819342 | H37: 2240430 | I37: 2180918 | J37: 2082212 | K37: 2052238 | L37: 2054607 | M37: 2037312 | N37: 1683943 | O37: 1587577 | P37: 1752829 | Q37: 2043402 | R37: 2110378 | S37: 3304659 | T37: 1675353 | U37: 1701113 | V37: 2095796 | W37: 2760852 | X37: 2211682 | Y37: 2757741 | Z37: 2432505 | AA37: 1576350 | AB37: 2193359 | AC37: 2294738 | AD37: 2059800 | AE37: 2554170 | AF37: 2503965 | AG37: 3227734 | AH37: 2480437 | AI37: 2113569 | AJ37: 2037079 | AK37: 2172984 | AL37: 1774647 | AM37: 3694665 | AN37: 2270454 | AO37: 2765641 | AP37: 2201734 | AQ37: 3214948 | AR37: 2408093 | AS37: 1946635 | AT37: 1643127 | AU37: 1569918 | AV37: 1540621 | AW37: 1765421 | AX37: 1847707 | AY37: 1478739 | AZ37: 973598 | BA37: 902105 | BB37: 1114863 | BC37: 1622091 | BD37: 2420453 | BE37: 1668442 | BF37: 2219122 | BG37: 2115000 | BH37: 1675942 | BI37: 2373318 | BM37: 2373318 | BN37: 1305 | BO37: 1305 華夏 | BP37: 966666 | BQ37: -29.88 | BR37: -21.58
A38: 2 | B38: 8112 至上 | C38: M2329 電子通路業 | D38: M23T2 零組件代理 | E38: 8220241 | F38: 5089275 | G38: 7594880 | H38: 9690160 | I38: 7202369 | J38: 7919044 | K38: 10487290 | L38: 12285900 | M38: 11931725 | N38: 12056628 | O38: 10164780 | P38: 9943449 | Q38: 8333328 | R38: 10609791 | S38: 13309020 | T38: 9049040 | U38: 9928037 | V38: 10552809 | W38: 11652027 | X38: 10480774 | Y38: 13232417 | Z38: 11698810 | AA38: 14502261 | AB38: 14161665 | AC38: 16287933 | AD38: 14002227 | AE38: 20078015 | AF38: 16199282 | AG38: 16856004 | AH38: 19354059 | AI38: 15990838 | AJ38: 18572742 | AK38: 19344822 | AL38: 12405038 | AM38: 21480769 | AN38: 18167105 | AO38: 21788356 | AP38: 14389110 | AQ38: 19522050 | AR38: 15627375 | AS38: 15679440 | AT38: 13569237 | AU38: 12283141 | AV38: 12938594 | AW38: 12558033 | AX38: 14074209 | AY38: 10335161 | AZ38: 11309815 | BA38: 6749350 | BB38: 8557454 | BC38: 9435283 | BD38: 12524304 | BE38: 12344701 | BF38: 12729888 | BG38: 11677661 | BH38: 14638828 | BI38: 14313764 | BM38: 14313764 | BN38: 1307 | BO38: 1307 三芳 | BP38: 838162 | BQ38: -19.3 | BR38: -17.96
BN39: 1308 | BO39: 1308 亞聚 | BP39: 572692 | BQ39: -15.68 | BR39: -25.54
BN40: 1309 | BO40: 1309 台達化 | BP40: 1491814 | BQ40: 6.82 | BR40: -0.36
BN41: 1310 | BO41: 1310 台苯 | BP41: 806466 | BQ41: -0.95 | BR41: -7.8
BN42: 1312 | BO42: 1312 國喬
BN43: 1313 | BO43: 1313 聯成 | BP43: 7063372 | BQ43: 8.75 | BR43: 38.53
BN44: 1314 | BO44: 1314 中石化
BN45: 1315 | BO45: 1315 達新 | BP45: 134277 | BQ45: -17.83 | BR45: -42.53
BN46: 1316 | BO46: 1316 上曜
BN47: 1319 | BO47: 1319 東陽 | BP47: 2156228 | BQ47: 3.79 | BR47: 13.49
BN48: 1321 | BO48: 1321 大洋 | BP48: 357833 | BQ48: -8.62 | BR48: -18.07
BN49: 1323 | BO49: 1323 永裕
BN50: 1324 | BO50: 1324 地球
BN51: 1325 | BO51: 1325 恒大 | BP51: 31793 | BQ51: -2.1 | BR51: -23.18
BN52: 1326 | BO52: 1326 台化
BN53: 1336 | BO53: 1336 台翰 | BP53: 217748 | BQ53: 10.06 | BR53: -15.64
BN54: 1337 | BO54: 1337 再生-KY
BN55: 1338 | BO55: 1338 廣華-KY | BP55: 501571 | BQ55: -1.45 | BR55: -21.11
BN56: 1339 | BO56: 1339 昭輝
BN57: 1340 | BO57: 1340 勝悅-KY | BP57: 48654 | BQ57: -2.61 | BR57: 12.23
BN58: 1341 | BO58: 1341 富林-KY | BP58: 221362 | BQ58: 12.52 | BR58: -15.89
BN59: 1342 | BO59: 1342 八貫 | BP59: 240631 | BQ59: 5.82 | BR59: 3.7
BN60: 1402 | BO60: 1402 遠東新
BN61: 1409 | BO61: 1409 新纖
BN62: 1410 | BO62: 1410 南染 | BP62: 16372 | BQ62: -21.17 | BR62: -46.57
BN63: 1413 | BO63: 1413 宏洲 | BP63: 202309 | BQ63: 1.45 | BR63: -16.09
BN64: 1414 | BO64: 1414 東和 | BP64: 48748 | BQ64: -5.95 | BR64: 7.98
BN65: 1416 | BO65: 1416 廣豐
BN66: 1417 | BO66: 1417 嘉裕
BN67: 1418 | BO67: 1418 東華 | BP67: 1137 | BQ67: 6.36 | BR67: 27.61
E68: =IF($B68="","",VLOOKUP($B68,XX_TEJ8,2,FALSE)) ->  | F68: =IF($B68="","",VLOOKUP($B68,XX_TEJ8,3,FALSE)) ->  | G68: =IF($B68="","",VLOOKUP($B68,XX_TEJ8,4,FALSE)) ->  | H68: =IF($B68="","",VLOOKUP($B68,XX_TEJ8,5,FALSE)) ->  | I68: =IF($B68="","",VLOOKUP($B68,XX_TEJ8,6,FALSE)) ->  | J68: =IF($B68="","",VLOOKUP($B68,XX_TEJ8,7,FALSE)) ->  | K68: =IF($B68="","",VLOOKUP($B68,XX_TEJ8,8,FALSE)) ->  | L68: =IF($B68="","",VLOOKUP($B68,XX_TEJ8,9,FALSE)) ->  | M68: =IF($B68="","",VLOOKUP($B68,XX_TEJ8,10,FALSE)) ->  | N68: =IF($B68="","",VLOOKUP($B68,XX_TEJ8,11,FALSE)) ->  | O68: =IF($B68="","",VLOOKUP($B68,XX_TEJ8,12,FALSE)) ->  | P68: =IF($B68="","",VLOOKUP($B68,XX_TEJ8,13,FALSE)) ->  | Q68: =IF($B68="","",VLOOKUP($B68,XX_TEJ2,2,FALSE)) ->  | R68: =IF($B68="","",VLOOKUP($B68,XX_TEJ2,3,FALSE)) ->  | S68: =IF($B68="","",VLOOKUP($B68,XX_TEJ2,4,FALSE)) ->  | T68: =IF($B68="","",VLOOKUP($B68,XX_TEJ2,5,FALSE)) ->  | U68: =IF($B68="","",VLOOKUP($B68,XX_TEJ2,6,FALSE)) ->  | V68: =IF($B68="","",VLOOKUP($B68,XX_TEJ2,7,FALSE)) ->  | W68: =IF($B68="","",VLOOKUP($B68,XX_TEJ2,8,FALSE)) ->  | X68: =IF($B68="","",VLOOKUP($B68,XX_TEJ2,9,FALSE)) ->  | Y68: =IF($B68="","",VLOOKUP($B68,XX_TEJ2,10,FALSE)) ->  | Z68: =IF($B68="","",VLOOKUP($B68,XX_TEJ2,11,FALSE)) ->  | AA68: =IF($B68="","",VLOOKUP($B68,XX_TEJ2,12,FALSE)) ->  | AB68: =IF($B68="","",VLOOKUP($B68,XX_TEJ2,13,FALSE)) ->  | AC68: =IF($B68="","",VLOOKUP($B68,XX_TEJ3,2,FALSE)) ->  | AD68: =IF($B68="","",VLOOKUP($B68,XX_TEJ3,3,FALSE)) ->  | AE68: =IF($B68="","",VLOOKUP($B68,XX_TEJ3,4,FALSE)) ->  | AF68: =IF($B68="","",VLOOKUP($B68,XX_TEJ3,5,FALSE)) ->  | AG68: =IF($B68="","",VLOOKUP($B68,XX_TEJ3,6,FALSE)) ->  | AH68: =IF($B68="","",VLOOKUP($B68,XX_TEJ3,7,FALSE)) ->  | AI68: =IF($B68="","",VLOOKUP($B68,XX_TEJ3,8,FALSE)) ->  | AJ68: =IF($B68="","",VLOOKUP($B68,XX_TEJ3,9,FALSE)) ->  | AK68: =IF($B68="","",VLOOKUP($B68,XX_TEJ3,10,FALSE)) ->  | AL68: =IF($B68="","",VLOOKUP($B68,XX_TEJ3,11,FALSE)) ->  | AM68: =IF($B68="","",VLOOKUP($B68,XX_TEJ3,12,FALSE)) ->  | AN68: =IF($B68="","",VLOOKUP($B68,XX_TEJ3,13,FALSE)) ->  | AO68: =IF($B68="","",VLOOKUP($B68,XX_TEJ4,2,FALSE)) ->  | AP68: =IF($B68="","",VLOOKUP($B68,XX_TEJ4,3,FALSE)) ->  | AQ68: =IF($B68="","",VLOOKUP($B68,XX_TEJ4,4,FALSE)) ->  | AR68: =IF($B68="","",VLOOKUP($B68,XX_TEJ4,5,FALSE)) ->  | AS68: =IF($B68="","",VLOOKUP($B68,XX_TEJ4,6,FALSE)) ->  | AT68: =IF($B68="","",VLOOKUP($B68,XX_TEJ4,7,FALSE)) ->  | AU68: =IF($B68="","",VLOOKUP($B68,XX_TEJ4,8,FALSE)) ->  | AV68: =IF($B68="","",VLOOKUP($B68,XX_TEJ4,9,FALSE)) ->  | AW68: =IF($B68="","",VLOOKUP($B68,XX_TEJ4,10,FALSE)) ->  | AX68: =IF($B68="","",VLOOKUP($B68,XX_TEJ4,11,FALSE)) ->  | AY68: =IF($B68="","",VLOOKUP($B68,XX_TEJ4,12,FALSE)) ->  | AZ68: =IF($B68="","",VLOOKUP($B68,XX_TEJ4,13,FALSE)) ->  | BA68: =IFERROR(VLOOKUP($B68,XX_TEJ5,2,FALSE),"") ->  | BB68: =IFERROR(VLOOKUP($B68,XX_TEJ5,3,FALSE),"") ->  | BC68: =IFERROR(VLOOKUP($B68,XX_TEJ5,4,FALSE),"") ->  | BD68: =IFERROR(VLOOKUP($B68,XX_TEJ5,5,FALSE),"") ->  | BE68: =IFERROR(VLOOKUP($B68,XX_TEJ5,6,FALSE),"") ->  | BF68: =IFERROR(VLOOKUP($B68,XX_TEJ5,7,FALSE),"") ->  | BG68: =IFERROR(VLOOKUP($B68,XX_TEJ5,8,FALSE),"") ->  | BH68: =IFERROR(VLOOKUP($B68,XX_TEJ5,9,FALSE),"") ->  | BI68: =IFERROR(VLOOKUP($B68,XX_TEJ5,10,FALSE),"") ->  | BJ68: =IFERROR(VLOOKUP($B68,XX_TEJ5,11,FALSE),"") ->  | BK68: =IFERROR(VLOOKUP($B68,XX_TEJ5,12,FALSE),"") ->  | BL68: =IFERROR(VLOOKUP($B68,XX_TEJ5,13,FALSE),"") ->  | BN68: =IF(BO68="","",LEFT(BO68,FIND(" ",BO68)-1)) -> 1419 | BO68: 1419 新紡 | BP68: 334093 | BQ68: 25.46 | BR68: -4.48
A69: =IF(B69="","",RANK($BM69,$BM$4:$BM$1000)) ->  | BM69: =IFERROR(VLOOKUP(B69,BO:BR,2,0),"") ->  | BN69: 1423 | BO69: 1423 利華 | BP69: 6637 | BQ69: -40.14 | BR69: -28.26
BN70: 1432 | BO70: 1432 大魯閣
BN71: 1434 | BO71: 1434 福懋 | BP71: 2407270 | BQ71: -2.84 | BR71: -14.47
BN72: 1435 | BO72: 1435 中福 | BP72: 676 | BQ72: -6.63 | BR72: -34.37
BN73: 1436 | BO73: 1436 華友聯 | BP73: 61767 | BQ73: -36.71 | BR73: -93.42
BN74: 1437 | BO74: 1437 勤益控 | BP74: 126347 | BQ74: 132.57 | BR74: 103.85
BN75: 1438 | BO75: 1438 三地開發 | BP75: 0 | BQ75: -100 | BR75: -100
BN76: 1439 | BO76: 1439 雋揚 | BP76: 4941 | BQ76: -36.34 | BR76: -91.89
BN77: 1440 | BO77: 1440 南紡
BN78: 1441 | BO78: 1441 大東
BN79: 1442 | BO79: 1442 名軒 | BP79: 145188 | BQ79: 48.99 | BR79: 2461.54
BN80: 1443 | BO80: 1443 立益物流 | BP80: 91268 | BQ80: 20.18 | BR80: 17.92
BN81: 1444 | BO81: 1444 力麗 | BP81: 683136 | BQ81: -8.39 | BR81: -35.37
BN82: 1445 | BO82: 1445 大宇 | BP82: 86848 | BQ82: -16.62 | BR82: -29.38
BN83: 1446 | BO83: 1446 宏和 | BP83: 7358 | BQ83: -22.84 | BR83: -39.23
BN84: 1447 | BO84: 1447 力鵬 | BP84: 1328742 | BQ84: -31.45 | BR84: -4.86
BN85: 1449 | BO85: 1449 佳和 | BP85: 236451 | BQ85: -29.01 | BR85: -1.77
BN86: 1451 | BO86: 1451 年興 | BP86: 461901 | BQ86: -14.07 | BR86: -36.21
BN87: 1452 | BO87: 1452 宏益 | BP87: 93126 | BQ87: -10.99 | BR87: -29.99
BN88: 1453 | BO88: 1453 大將 | BP88: 57 | BQ88: 0 | BR88: -99.8
BN89: 1454 | BO89: 1454 台富 | BP89: 138803 | BQ89: -4.03 | BR89: -1.99
BN90: 1455 | BO90: 1455 集盛 | BP90: 690467 | BQ90: 5.32 | BR90: -3.17
BN91: 1456 | BO91: 1456 怡華 | BP91: 216090 | BQ91: 194.1 | BR91: 331.68
BN92: 1457 | BO92: 1457 宜進 | BP92: 313769 | BQ92: -0.4 | BR92: -10.05
BN93: 1459 | BO93: 1459 聯發 | BP93: 98023 | BQ93: 2.8 | BR93: -9.66
BN94: 1460 | BO94: 1460 宏遠 | BP94: 720391 | BQ94: 8.27 | BR94: -20.37
BN95: 1463 | BO95: 1463 強盛 | BP95: 38000 | BQ95: -2.11 | BR95: -14.91
BN96: 1464 | BO96: 1464 得力 | BP96: 961770 | BQ96: -1.41 | BR96: -10.42
BN97: 1465 | BO97: 1465 偉全 | BP97: 40641 | BQ97: -8.91 | BR97: -35.18
BN98: 1466 | BO98: 1466 聚隆 | BP98: 242571 | BQ98: 21.51 | BR98: 13.92
BN99: 1467 | BO99: 1467 南緯
BN100: 1468 | BO100: 1468 昶和 | BP100: 81874 | BQ100: -10.54 | BR100: -40.62
BN101: 1470 | BO101: 1470 大統新創 | BP101: 42437 | BQ101: -18.06 | BR101: -40.63
BN102: 1471 | BO102: 1471 首利 | BP102: 17794 | BQ102: -43.65 | BR102: 39.28
BN103: 1472 | BO103: 1472 三洋實業
BN104: 1473 | BO104: 1473 台南
BN105: 1474 | BO105: 1474 弘裕
BN106: 1475 | BO106: 1475 業旺 | BP106: 112605 | BQ106: 17.78 | BR106: 6.5
BN107: 1476 | BO107: 1476 儒鴻 | BP107: 2382299 | BQ107: -11.9 | BR107: -17.83
BN108: 1477 | BO108: 1477 聚陽 | BP108: 2800342 | BQ108: -20.12 | BR108: 15.38
BN109: 1503 | BO109: 1503 士電
BN110: 1504 | BO110: 1504 東元
BN111: 1506 | BO111: 1506 正道 | BP111: 93680 | BQ111: -7.46 | BR111: 10
BN112: 1512 | BO112: 1512 瑞利
BN113: 1513 | BO113: 1513 中興電 | BP113: 1709458 | BQ113: -7.59 | BR113: 3.67
BN114: 1514 | BO114: 1514 亞力 | BP114: 777195 | BQ114: 23.43 | BR114: 12.17
BN115: 1515 | BO115: 1515 力山 | BP115: 796888 | BQ115: -16.56 | BR115: 156.4
BN116: 1516 | BO116: 1516 川飛 | BP116: 95771 | BQ116: 59.54 | BR116: 16440.76
BN117: 1517 | BO117: 1517 利奇
BN118: 1519 | BO118: 1519 華城 | BP118: 1441440 | BQ118: 49.99 | BR118: 84.49
BN119: 1521 | BO119: 1521 大億 | BP119: 494626 | BQ119: 14.44 | BR119: 21.35
BN120: 1522 | BO120: 1522 堤維西
BN121: 1524 | BO121: 1524 耿鼎 | BP121: 246511 | BQ121: 2.41 | BR121: 25.13
BN122: 1525 | BO122: 1525 江申 | BP122: 124629 | BQ122: 19.21 | BR122: -13.83
BN123: 1526 | BO123: 1526 日馳 | BP123: 55961 | BQ123: -34.14 | BR123: -73.07
BN124: 1527 | BO124: 1527 鑽全
BN125: 1528 | BO125: 1528 恩德 | BP125: 290165 | BQ125: -14.69 | BR125: -1.88
BN126: 1529 | BO126: 1529 樂事綠能 | BP126: 114243 | BQ126: 202.7 | BR126: 186.21
BN127: 1530 | BO127: 1530 亞崴 | BP127: 271990 | BQ127: 53.01 | BR127: -37.37
BN128: 1531 | BO128: 1531 高林股 | BP128: 117776 | BQ128: 4.87 | BR128: -29.75
BN129: 1532 | BO129: 1532 勤美
BN130: 1533 | BO130: 1533 車王電
BN131: 1535 | BO131: 1535 中宇 | BP131: 749850 | BQ131: 0.44 | BR131: -6.08
E132: =IF($B132="","",VLOOKUP($B132,XX_TEJ8,2,FALSE)) ->  | F132: =IF($B132="","",VLOOKUP($B132,XX_TEJ8,3,FALSE)) ->  | G132: =IF($B132="","",VLOOKUP($B132,XX_TEJ8,4,FALSE)) ->  | H132: =IF($B132="","",VLOOKUP($B132,XX_TEJ8,5,FALSE)) ->  | I132: =IF($B132="","",VLOOKUP($B132,XX_TEJ8,6,FALSE)) ->  | J132: =IF($B132="","",VLOOKUP($B132,XX_TEJ8,7,FALSE)) ->  | K132: =IF($B132="","",VLOOKUP($B132,XX_TEJ8,8,FALSE)) ->  | L132: =IF($B132="","",VLOOKUP($B132,XX_TEJ8,9,FALSE)) ->  | M132: =IF($B132="","",VLOOKUP($B132,XX_TEJ8,10,FALSE)) ->  | N132: =IF($B132="","",VLOOKUP($B132,XX_TEJ8,11,FALSE)) ->  | O132: =IF($B132="","",VLOOKUP($B132,XX_TEJ8,12,FALSE)) ->  | P132: =IF($B132="","",VLOOKUP($B132,XX_TEJ8,13,FALSE)) ->  | Q132: =IF($B132="","",VLOOKUP($B132,XX_TEJ2,2,FALSE)) ->  | R132: =IF($B132="","",VLOOKUP($B132,XX_TEJ2,3,FALSE)) ->  | S132: =IF($B132="","",VLOOKUP($B132,XX_TEJ2,4,FALSE)) ->  | T132: =IF($B132="","",VLOOKUP($B132,XX_TEJ2,5,FALSE)) ->  | U132: =IF($B132="","",VLOOKUP($B132,XX_TEJ2,6,FALSE)) ->  | V132: =IF($B132="","",VLOOKUP($B132,XX_TEJ2,7,FALSE)) ->  | W132: =IF($B132="","",VLOOKUP($B132,XX_TEJ2,8,FALSE)) ->  | X132: =IF($B132="","",VLOOKUP($B132,XX_TEJ2,9,FALSE)) ->  | Y132: =IF($B132="","",VLOOKUP($B132,XX_TEJ2,10,FALSE)) ->  | Z132: =IF($B132="","",VLOOKUP($B132,XX_TEJ2,11,FALSE)) ->  | AA132: =IF($B132="","",VLOOKUP($B132,XX_TEJ2,12,FALSE)) ->  | AB132: =IF($B132="","",VLOOKUP($B132,XX_TEJ2,13,FALSE)) ->  | AC132: =IF($B132="","",VLOOKUP($B132,XX_TEJ3,2,FALSE)) ->  | AD132: =IF($B132="","",VLOOKUP($B132,XX_TEJ3,3,FALSE)) ->  | AE132: =IF($B132="","",VLOOKUP($B132,XX_TEJ3,4,FALSE)) ->  | AF132: =IF($B132="","",VLOOKUP($B132,XX_TEJ3,5,FALSE)) ->  | AG132: =IF($B132="","",VLOOKUP($B132,XX_TEJ3,6,FALSE)) ->  | AH132: =IF($B132="","",VLOOKUP($B132,XX_TEJ3,7,FALSE)) ->  | AI132: =IF($B132="","",VLOOKUP($B132,XX_TEJ3,8,FALSE)) ->  | AJ132: =IF($B132="","",VLOOKUP($B132,XX_TEJ3,9,FALSE)) ->  | AK132: =IF($B132="","",VLOOKUP($B132,XX_TEJ3,10,FALSE)) ->  | AL132: =IF($B132="","",VLOOKUP($B132,XX_TEJ3,11,FALSE)) ->  | AM132: =IF($B132="","",VLOOKUP($B132,XX_TEJ3,12,FALSE)) ->  | AN132: =IF($B132="","",VLOOKUP($B132,XX_TEJ3,13,FALSE)) ->  | AO132: =IF($B132="","",VLOOKUP($B132,XX_TEJ4,2,FALSE)) ->  | AP132: =IF($B132="","",VLOOKUP($B132,XX_TEJ4,3,FALSE)) ->  | AQ132: =IF($B132="","",VLOOKUP($B132,XX_TEJ4,4,FALSE)) ->  | AR132: =IF($B132="","",VLOOKUP($B132,XX_TEJ4,5,FALSE)) ->  | AS132: =IF($B132="","",VLOOKUP($B132,XX_TEJ4,6,FALSE)) ->  | AT132: =IF($B132="","",VLOOKUP($B132,XX_TEJ4,7,FALSE)) ->  | AU132: =IF($B132="","",VLOOKUP($B132,XX_TEJ4,8,FALSE)) ->  | AV132: =IF($B132="","",VLOOKUP($B132,XX_TEJ4,9,FALSE)) ->  | AW132: =IF($B132="","",VLOOKUP($B132,XX_TEJ4,10,FALSE)) ->  | AX132: =IF($B132="","",VLOOKUP($B132,XX_TEJ4,11,FALSE)) ->  | AY132: =IF($B132="","",VLOOKUP($B132,XX_TEJ4,12,FALSE)) ->  | AZ132: =IF($B132="","",VLOOKUP($B132,XX_TEJ4,13,FALSE)) ->  | BA132: =IFERROR(VLOOKUP($B132,XX_TEJ5,2,FALSE),"") ->  | BB132: =IFERROR(VLOOKUP($B132,XX_TEJ5,3,FALSE),"") ->  | BC132: =IFERROR(VLOOKUP($B132,XX_TEJ5,4,FALSE),"") ->  | BD132: =IFERROR(VLOOKUP($B132,XX_TEJ5,5,FALSE),"") ->  | BE132: =IFERROR(VLOOKUP($B132,XX_TEJ5,6,FALSE),"") ->  | BF132: =IFERROR(VLOOKUP($B132,XX_TEJ5,7,FALSE),"") ->  | BG132: =IFERROR(VLOOKUP($B132,XX_TEJ5,8,FALSE),"") ->  | BH132: =IFERROR(VLOOKUP($B132,XX_TEJ5,9,FALSE),"") ->  | BI132: =IFERROR(VLOOKUP($B132,XX_TEJ5,10,FALSE),"") ->  | BJ132: =IFERROR(VLOOKUP($B132,XX_TEJ5,11,FALSE),"") ->  | BK132: =IFERROR(VLOOKUP($B132,XX_TEJ5,12,FALSE),"") ->  | BL132: =IFERROR(VLOOKUP($B132,XX_TEJ5,13,FALSE),"") ->  | BN132: =IF(BO132="","",LEFT(BO132,FIND(" ",BO132)-1)) -> 1536 | BO132: 1536 和大
A133: =IF(B133="","",RANK($BM133,$BM$4:$BM$1000)) ->  | BM133: =IFERROR(VLOOKUP(B133,BO:BR,2,0),"") ->  | BN133: 1537 | BO133: 1537 廣隆 | BP133: 534044 | BQ133: -7.09 | BR133: -15.12
BN134: 1538 | BO134: 1538 正峰
BN135: 1539 | BO135: 1539 巨庭 | BP135: 150541 | BQ135: -2.71 | BR135: -25.39
BN136: 1540 | BO136: 1540 喬福
BN137: 1541 | BO137: 1541 錩泰 | BP137: 245401 | BQ137: -9.99 | BR137: -6
BN138: 1558 | BO138: 1558 伸興 | BP138: 735363 | BQ138: 0.13 | BR138: 32.16
BN139: 1560 | BO139: 1560 中砂 | BP139: 569539 | BQ139: 2.42 | BR139: -1.76
BN140: 1565 | BO140: 1565 精華 | BP140: 342909 | BQ140: -2.3 | BR140: -20.08
BN141: 1568 | BO141: 1568 倉佑 | BP141: 114056 | BQ141: 13.33 | BR141: -23.73
BN142: 1569 | BO142: 1569 濱川
BN143: 1570 | BO143: 1570 力肯 | BP143: 20095 | BQ143: 3.65 | BR143: -47.95
BN144: 1580 | BO144: 1580 新麥
BN145: 1582 | BO145: 1582 信錦 | BP145: 886702 | BQ145: 0.3 | BR145: 19.66
BN146: 1583 | BO146: 1583 程泰 | BP146: 486883 | BQ146: 18.68 | BR146: -34.39
BN147: 1584 | BO147: 1584 精剛 | BP147: 210465 | BQ147: -17.74 | BR147: 57.76
BN148: 1586 | BO148: 1586 和勤 | BP148: 216274 | BQ148: 10.19 | BR148: 14.01
BN149: 1587 | BO149: 1587 吉茂 | BP149: 145650 | BQ149: -24.59 | BR149: -20.48
BN150: 1589 | BO150: 1589 永冠-KY | BP150: 663609 | BQ150: -1.55 | BR150: -21.49
BN151: 1590 | BO151: 1590 亞德客-KY
BN152: 1591 | BO152: 1591 駿吉-KY
BN153: 1593 | BO153: 1593 祺驊
BN154: 1595 | BO154: 1595 川寶 | BP154: 149944 | BQ154: 42.92 | BR154: 8.6
BN155: 1597 | BO155: 1597 直得 | BP155: 82550 | BQ155: 0.2 | BR155: -38.85
BN156: 1598 | BO156: 1598 岱宇 | BP156: 585465 | BQ156: 2.55 | BR156: 19.22
BN157: 1599 | BO157: 1599 宏佳騰
BN158: 1603 | BO158: 1603 華電 | BP158: 621451 | BQ158: 120.32 | BR158: 140.43
BN159: 1604 | BO159: 1604 聲寶 | BP159: 601230 | BQ159: -12.65 | BR159: 0.57
BN160: 1605 | BO160: 1605 華新 | BP160: 16771119 | BQ160: 16.38 | BR160: 19.65
BN161: 1608 | BO161: 1608 華榮 | BP161: 905462 | BQ161: 27.48 | BR161: -5.06
BN162: 1609 | BO162: 1609 大亞
BN163: 1611 | BO163: 1611 中電 | BP163: 106450 | BQ163: -11.24 | BR163: -14.68
BN164: 1612 | BO164: 1612 宏泰 | BP164: 459278 | BQ164: -32.26 | BR164: -13.76
BN165: 1614 | BO165: 1614 三洋電 | BP165: 429345 | BQ165: -12.03 | BR165: -5.77
BN166: 1615 | BO166: 1615 大山 | BP166: 469649 | BQ166: -0.53 | BR166: 36.33
BN167: 1616 | BO167: 1616 億泰 | BP167: 307904 | BQ167: -6.8 | BR167: -1.66
BN168: 1617 | BO168: 1617 榮星
BN169: 1618 | BO169: 1618 合機 | BP169: 478542 | BQ169: -31.56 | BR169: 57.1
BN170: 1626 | BO170: 1626 艾美特-KY
BN171: 1701 | BO171: 1701 中化 | BP171: 713176 | BQ171: 0.19 | BR171: -2.14
BN172: 1702 | BO172: 1702 南僑
BN173: 1707 | BO173: 1707 葡萄王 | BP173: 765446 | BQ173: -22.79 | BR173: -11.16
BN174: 1708 | BO174: 1708 東鹼 | BP174: 449308 | BQ174: -9.06 | BR174: -34.99
BN175: 1709 | BO175: 1709 和益 | BP175: 845980 | BQ175: -0.88 | BR175: 9.08
BN176: 1710 | BO176: 1710 東聯
BN177: 1711 | BO177: 1711 永光 | BP177: 734490 | BQ177: 6.07 | BR177: 1.77
BN178: 1712 | BO178: 1712 興農
BN179: 1713 | BO179: 1713 國化 | BP179: 40844 | BQ179: -6.82 | BR179: 9.74
BN180: 1714 | BO180: 1714 和桐 | BP180: 1941684 | BQ180: 24.96 | BR180: -6.71
BN181: 1717 | BO181: 1717 長興
BN182: 1718 | BO182: 1718 中纖
BN183: 1720 | BO183: 1720 生達 | BP183: 495586 | BQ183: -15.41 | BR183: -14.14
BN184: 1721 | BO184: 1721 三晃 | BP184: 206090 | BQ184: 23.07 | BR184: 5.06
BN185: 1722 | BO185: 1722 台肥 | BP185: 966873 | BQ185: -5.32 | BR185: -19.55
BN186: 1723 | BO186: 1723 中碳
BN187: 1725 | BO187: 1725 元禎 | BP187: 604467 | BQ187: -16.85 | BR187: -3
BN188: 1726 | BO188: 1726 永記
BN189: 1727 | BO189: 1727 中華化 | BP189: 151735 | BQ189: 9.57 | BR189: -23.62
BN190: 1730 | BO190: 1730 花仙子 | BP190: 218065 | BQ190: 5.11 | BR190: -9.23
BN191: 1731 | BO191: 1731 美吾華 | BP191: 105364 | BQ191: 3.86 | BR191: 7.2
BN192: 1732 | BO192: 1732 毛寶
BN193: 1733 | BO193: 1733 五鼎 | BP193: 115344 | BQ193: -21.74 | BR193: -43.25
BN194: 1734 | BO194: 1734 杏輝
BN195: 1735 | BO195: 1735 日勝化 | BP195: 208998 | BQ195: -8.87 | BR195: -12.14
E196: =IF($B196="","",VLOOKUP($B196,XX_TEJ8,2,FALSE)) ->  | F196: =IF($B196="","",VLOOKUP($B196,XX_TEJ8,3,FALSE)) ->  | G196: =IF($B196="","",VLOOKUP($B196,XX_TEJ8,4,FALSE)) ->  | H196: =IF($B196="","",VLOOKUP($B196,XX_TEJ8,5,FALSE)) ->  | I196: =IF($B196="","",VLOOKUP($B196,XX_TEJ8,6,FALSE)) ->  | J196: =IF($B196="","",VLOOKUP($B196,XX_TEJ8,7,FALSE)) ->  | K196: =IF($B196="","",VLOOKUP($B196,XX_TEJ8,8,FALSE)) ->  | L196: =IF($B196="","",VLOOKUP($B196,XX_TEJ8,9,FALSE)) ->  | M196: =IF($B196="","",VLOOKUP($B196,XX_TEJ8,10,FALSE)) ->  | N196: =IF($B196="","",VLOOKUP($B196,XX_TEJ8,11,FALSE)) ->  | O196: =IF($B196="","",VLOOKUP($B196,XX_TEJ8,12,FALSE)) ->  | P196: =IF($B196="","",VLOOKUP($B196,XX_TEJ8,13,FALSE)) ->  | Q196: =IF($B196="","",VLOOKUP($B196,XX_TEJ2,2,FALSE)) ->  | R196: =IF($B196="","",VLOOKUP($B196,XX_TEJ2,3,FALSE)) ->  | S196: =IF($B196="","",VLOOKUP($B196,XX_TEJ2,4,FALSE)) ->  | T196: =IF($B196="","",VLOOKUP($B196,XX_TEJ2,5,FALSE)) ->  | U196: =IF($B196="","",VLOOKUP($B196,XX_TEJ2,6,FALSE)) ->  | V196: =IF($B196="","",VLOOKUP($B196,XX_TEJ2,7,FALSE)) ->  | W196: =IF($B196="","",VLOOKUP($B196,XX_TEJ2,8,FALSE)) ->  | X196: =IF($B196="","",VLOOKUP($B196,XX_TEJ2,9,FALSE)) ->  | Y196: =IF($B196="","",VLOOKUP($B196,XX_TEJ2,10,FALSE)) ->  | Z196: =IF($B196="","",VLOOKUP($B196,XX_TEJ2,11,FALSE)) ->  | AA196: =IF($B196="","",VLOOKUP($B196,XX_TEJ2,12,FALSE)) ->  | AB196: =IF($B196="","",VLOOKUP($B196,XX_TEJ2,13,FALSE)) ->  | AC196: =IF($B196="","",VLOOKUP($B196,XX_TEJ3,2,FALSE)) ->  | AD196: =IF($B196="","",VLOOKUP($B196,XX_TEJ3,3,FALSE)) ->  | AE196: =IF($B196="","",VLOOKUP($B196,XX_TEJ3,4,FALSE)) ->  | AF196: =IF($B196="","",VLOOKUP($B196,XX_TEJ3,5,FALSE)) ->  | AG196: =IF($B196="","",VLOOKUP($B196,XX_TEJ3,6,FALSE)) ->  | AH196: =IF($B196="","",VLOOKUP($B196,XX_TEJ3,7,FALSE)) ->  | AI196: =IF($B196="","",VLOOKUP($B196,XX_TEJ3,8,FALSE)) ->  | AJ196: =IF($B196="","",VLOOKUP($B196,XX_TEJ3,9,FALSE)) ->  | AK196: =IF($B196="","",VLOOKUP($B196,XX_TEJ3,10,FALSE)) ->  | AL196: =IF($B196="","",VLOOKUP($B196,XX_TEJ3,11,FALSE)) ->  | AM196: =IF($B196="","",VLOOKUP($B196,XX_TEJ3,12,FALSE)) ->  | AN196: =IF($B196="","",VLOOKUP($B196,XX_TEJ3,13,FALSE)) ->  | AO196: =IF($B196="","",VLOOKUP($B196,XX_TEJ4,2,FALSE)) ->  | AP196: =IF($B196="","",VLOOKUP($B196,XX_TEJ4,3,FALSE)) ->  | AQ196: =IF($B196="","",VLOOKUP($B196,XX_TEJ4,4,FALSE)) ->  | AR196: =IF($B196="","",VLOOKUP($B196,XX_TEJ4,5,FALSE)) ->  | AS196: =IF($B196="","",VLOOKUP($B196,XX_TEJ4,6,FALSE)) ->  | AT196: =IF($B196="","",VLOOKUP($B196,XX_TEJ4,7,FALSE)) ->  | AU196: =IF($B196="","",VLOOKUP($B196,XX_TEJ4,8,FALSE)) ->  | AV196: =IF($B196="","",VLOOKUP($B196,XX_TEJ4,9,FALSE)) ->  | AW196: =IF($B196="","",VLOOKUP($B196,XX_TEJ4,10,FALSE)) ->  | AX196: =IF($B196="","",VLOOKUP($B196,XX_TEJ4,11,FALSE)) ->  | AY196: =IF($B196="","",VLOOKUP($B196,XX_TEJ4,12,FALSE)) ->  | AZ196: =IF($B196="","",VLOOKUP($B196,XX_TEJ4,13,FALSE)) ->  | BA196: =IFERROR(VLOOKUP($B196,XX_TEJ5,2,FALSE),"") ->  | BB196: =IFERROR(VLOOKUP($B196,XX_TEJ5,3,FALSE),"") ->  | BC196: =IFERROR(VLOOKUP($B196,XX_TEJ5,4,FALSE),"") ->  | BD196: =IFERROR(VLOOKUP($B196,XX_TEJ5,5,FALSE),"") ->  | BE196: =IFERROR(VLOOKUP($B196,XX_TEJ5,6,FALSE),"") ->  | BF196: =IFERROR(VLOOKUP($B196,XX_TEJ5,7,FALSE),"") ->  | BG196: =IFERROR(VLOOKUP($B196,XX_TEJ5,8,FALSE),"") ->  | BH196: =IFERROR(VLOOKUP($B196,XX_TEJ5,9,FALSE),"") ->  | BI196: =IFERROR(VLOOKUP($B196,XX_TEJ5,10,FALSE),"") ->  | BJ196: =IFERROR(VLOOKUP($B196,XX_TEJ5,11,FALSE),"") ->  | BK196: =IFERROR(VLOOKUP($B196,XX_TEJ5,12,FALSE),"") ->  | BL196: =IFERROR(VLOOKUP($B196,XX_TEJ5,13,FALSE),"") ->  | BN196: =IF(BO196="","",LEFT(BO196,FIND(" ",BO196)-1)) -> 1736 | BO196: 1736 喬山
A197: =IF(B197="","",RANK($BM197,$BM$4:$BM$1000)) ->  | BM197: =IFERROR(VLOOKUP(B197,BO:BR,2,0),"") ->  | BN197: 1737 | BO197: 1737 臺鹽
BN198: 1742 | BO198: 1742 台蠟
BN199: 1752 | BO199: 1752 南光 | BP199: 167453 | BQ199: -13.42 | BR199: 5.49
BN200: 1760 | BO200: 1760 寶齡富錦
... 784 more rows

Sheet RATIO
A2: =產業月營收!A7 -> 年度\月份 | B2: =產業月營收!B7 -> Jan | C2: =產業月營收!C7 -> Feb | D2: =產業月營收!D7 -> Mar | E2: =產業月營收!E7 -> Apr | F2: =產業月營收!F7 -> May | G2: =產業月營收!G7 -> Jun | H2: =產業月營收!H7 -> Jul | I2: =產業月營收!I7 -> Aug | J2: =產業月營收!J7 -> Sep | K2: =產業月營收!K7 -> Oct | L2: =產業月營收!L7 -> Nov | M2: =產業月營收!M7 -> Dec
A3: ='RUN2'!E2 -> 2020 | B3: ='RUN2'!E1 -> 150441474 | C3: ='RUN2'!F1 -> 103073010 | D3: ='RUN2'!G1 -> 137042388 | E3: ='RUN2'!H1 -> 140790362 | F3: ='RUN2'!I1 -> 147789877 | G3: ='RUN2'!J1 -> 141385749 | H3: ='RUN2'!K1 -> 161002817 | I3: ='RUN2'!L1 -> 166201455 | J3: ='RUN2'!M1 -> 171102936 | K3: ='RUN2'!N1 -> 172561977 | L3: ='RUN2'!O1 -> 167879225 | M3: ='RUN2'!P1 -> 160249955
A4: =產業月營收!A8 -> 2020 | B4: =產業月營收!B8 -> 134292195 | C4: =產業月營收!C8 -> 119604996 | D4: =產業月營收!D8 -> 176660182 | E4: =產業月營收!E8 -> 162479256 | F4: =產業月營收!F8 -> 145897413 | G4: =產業月營收!G8 -> 155978671 | H4: =產業月營收!H8 -> 178059887 | I4: =產業月營收!I8 -> 170820593 | J4: =產業月營收!J8 -> 194698158 | K4: =產業月營收!K8 -> 174248467 | L4: =產業月營收!L8 -> 192614378 | M4: =產業月營收!M8 -> 192861811
A5: =產業月營收!A9 -> 2021 | B5: =產業月營收!B9 -> 200966121 | C5: =產業月營收!C9 -> 150852084 | D5: =產業月營收!D9 -> 207167858 | E5: =產業月營收!E9 -> 201905363 | F5: =產業月營收!F9 -> 200572050 | G5: =產業月營收!G9 -> 206058255 | H5: =產業月營收!H9 -> 198433127 | I5: =產業月營收!I9 -> 218245937 | J5: =產業月營收!J9 -> 229392775 | K5: =產業月營收!K9 -> 195327728 | L5: =產業月營收!L9 -> 236452472 | M5: =產業月營收!M9 -> 241100012
A6: =產業月營收!A10 -> 2022 | B6: =產業月營收!B10 -> 234145373 | C6: =產業月營收!C10 -> 181882229 | D6: =產業月營收!D10 -> 249408675 | E6: =產業月營收!E10 -> 207227294 | F6: =產業月營收!F10 -> 213971072 | G6: =產業月營收!G10 -> 224207431 | H6: =產業月營收!H10 -> 201821900 | I6: =產業月營收!I10 -> 216033214 | J6: =產業月營收!J10 -> 244912793 | K6: =產業月營收!K10 -> 223846866 | L6: =產業月營收!L10 -> 199371253 | M6: =產業月營收!M10 -> 218108758
A7: =產業月營收!A11 -> 2023 | B7: =產業月營收!B11 -> 174367967 | C7: =產業月營收!C11 -> 155912868 | D7: =產業月營收!D11 -> 192226798 | E7: =產業月營收!E11 -> 177278332 | F7: =產業月營收!F11 -> 182697906 | G7: =產業月營收!G11 -> 194901507 | H7: =產業月營收!H11 -> 202726631 | I7: =產業月營收!I11 -> 215489718 | J7: =產業月營收!J11 -> 109891922 | K7: =產業月營收!K11 -> 0 | L7: =產業月營收!L11 -> 0 | M7: =產業月營收!M11 -> 0
A8: MOM% | B8: =B2 -> Jan | C8: =C2 -> Feb | D8: Mar | E8: Apr | F8: May | G8: Jun | H8: Jul | I8: Aug | J8: Sep | K8: Oct | L8: Nov | M8: Dec
A9: =A4 -> 2020 | B9: =IF(B4=0,"",(B4-M3)/M3) -> -0.1619829472 | C9: =IF(C4=0,"",(C4-B4)/B4) -> -0.1093674804 | D9: =IF(D4=0,"",(D4-C4)/C4) -> 0.4770301234 | E9: -0.0802723389 | F9: -0.1020551387 | G9: 0.06909826427 | H9: 0.1415656119 | I9: -0.04065651238 | J9: 0.1397815368 | K9: -0.1050327913 | L9: 0.1054007035 | M9: 0.001284602959
A10: =A5 -> 2021 | B10: =IF(B5=0,"",(B5-M4)/M4) -> 0.04202133101 | C10: =IF($A10=2013,"",IF(C5=0,"",(C5-B5)/B5)) -> -0.2493655983 | D10: 0.373317839 | E10: -0.0254020824 | F10: -0.006603653217 | G10: 0.02735278918 | H10: -0.03700471985 | I10: 0.09984628222 | J10: 0.05107466445 | K10: -0.1485009587 | L10: 0.2105422739 | M10: 0.01965528193
A11: =A6 -> 2022 | B11: =IF(B6=0,"",(B6-M5)/M5) -> -0.02884545273 | C11: =IF($A11=2013,"",IF(C6=0,"",(C6-B6)/B6)) -> -0.2232081007 | D11: 0.3712646715 | E11: -0.1691255567 | F11: 0.03254290431 | G11: 0.04783992016 | H11: -0.09984294856 | I11: 0.07041512343 | J11: 0.1336811987 | K11: -0.08601399193 | L11: -0.1093408786 | M11: 0.09398298259
A12: =A7 -> 2023 | B12: =IF(B7=0,"",(B7-M6)/M6) -> -0.20054578 | C12: =IF($A12=2013,"",IF(C7=0,"",(C7-B7)/B7)) -> -0.105839962 | D12: 0.2329116927 | E12: -0.07776473497 | F12: 0.03057098935 | G12: 0.06679661123 | H12: 0.04014912004 | I12: 0.06295713068 | J12: -0.4900363552
A13: YOY% | B13: =B8 -> Jan | C13: =C8 -> Feb | D13: Mar | E13: Apr | F13: May | G13: Jun | H13: Jul | I13: Aug | J13: Sep | K13: Oct | L13: Nov | M13: Dec
A14: =A9 -> 2020 | B14: =IF(B4=0,"",(B4-B3)/B3) -> -0.1073459238 | C14: =IF(C4=0,"",(C4-C3)/C3) -> 0.1603910277 | D14: =IF(D4=0,"",(D4-D3)/D3) -> 0.2890915328 | E14: 0.1540509854 | F14: -0.01280509896 | G14: 0.1032135283 | H14: 0.1059426805 | I14: 0.0277924041 | J14: 0.137900743 | K14: 0.009773242225 | L14: 0.1473389754 | M14: 0.2035061788
A15: =A10 -> 2021 | B15: =IF(B5=0,"",(B5-B4)/B4) -> 0.4964839989 | C15: 0.2612523644 | D15: 0.1726912972 | E15: 0.2426531729 | F15: 0.3747471314 | G15: 0.321066872 | H15: 0.1144179093 | I15: 0.2776324749 | J15: 0.1781969452 | K15: 0.120972433 | L15: 0.2275951279 | M15: 0.250117951
A16: =A11 -> 2022 | B16: 0.1650987332 | C16: 0.205699147 | D16: 0.2038965765 | E16: 0.02635854205 | F16: 0.06680403376 | G16: 0.08807788846 | H16: 0.0170776576 | I16: -0.01013866755 | J16: 0.06765696086 | K16: 0.1460066028 | L16: -0.1568231395 | M16: -0.09535982105
A17: =A12 -> 2023 | B17: -0.2553003941 | C17: -0.1427811895 | D17: -0.2292697999 | E17: -0.1445222848 | F17: -0.1461560467 | G17: -0.1307089773 | H17: 0.004482818762 | I17: -0.002515798335 | J17: -0.5513018301
